Workbook

Sheet Intro
A3: Note: This Excel tool is designed for this specific project, results may not be generalized.
A5: Step 1: Enable Macros
A6: Note: This calculator is for use with Excel for Mac 2011 and Excel 2007 or later.
A8: Step 2: Choose Project
A9: To Evaluate PV Noise Barrier (PVNB) | H9: To Evaluate PV Snow Fences (PVSF)
A10: Method 1 (M1): From a form wizard (one step) | H10: Method 1 (M1): From a form wizard (one step)
A13: For fast evaluation with limited access to analysis input parameters.
A15: Method 2 (M2): From Detailed Forms (Multiple Steps) | H15: Method 2 (M2): From Detailed Forms (Multiple Steps)
A18: For detailed evaluation with full access to all analysis input parameters.

Sheet PVNB M2 (hidden)
A5: Step 3: Change the PV System Info if Known
A6: Note: Use PVWatts Calculator for more accurate calculation, leave it as default as unknown.
A8: Step 4: Change the Noise Barrier Info if Known
A9: Note: Leave it as default if unknown.
A11: Step 5: Generate Outputs and Analysis of Results
A12: Note: Expand the results for more information.

Sheet PVNB(M1) Info (hidden)
A1: PVNB (Method 1) Inputs & Outputs | F1: Information Table
A2: General Info | C2: PV Info | F2: PV System Cost Inputs (2020 U.S. Dollars) | G2: Value | H2: Li-ion Standalone Storage System Inputs | I2: Value | J2: PV System Info | K2: Value
A3: Project Length (mi) | B3: ='PV(NB)(M2) Info'!F3 -> 1 | C3: Panel Capacity (Watt) | D3: ='PV(NB)(M2) Info'!F4 -> 375 | F3: Direct Capital Costs ($/W) | H3: DC System Size (KW) | I3: =Table14[[#This Row],[Value]] -> 990 | J3: Project Length (mi) | K3: =Table12[[#This Row],[Value]] -> 1
A4: Real Discount Rate (%) | B4: ='PV(NB)(M2) Info'!B25 -> 0.0035 | C4: Number of Panels/mi | D4: ='PV(NB)(M2) Info'!F5 -> 2640 | F4: Module Price | G4: ='PV(NB)(M2) Info'!B4 -> 0.65 | H4: Storage Duration (hr) | I4: =Table14[[#This Row],[Value]] -> 2 | J4: Panel Capacity (Watt) | K4: =Table12[[#This Row],[Value]] -> 375
A5: Sale & Use Tax (%) | B5: ='PV(NB)(M2) Info'!B14 -> 0.06875 | C5: Tilt (deg) | D5: ='PV(NB)(M2) Info'!F10 -> 90 | F5: Inverter Price | G5: ='PV(NB)(M2) Info'!B5 -> 0.15 | H5: Li-ion battery Cost ($/kWh) | I5: =Table14[[#This Row],[Value]] -> 209 | J5: Number of Panel/mi | K5: =Table12[[#This Row],[Value]] -> 2640
A6: Utility Info | C6: Azimuth (deg) | D6: ='PV(NB)(M2) Info'!F11 -> 180 | F6: BOS Equipment | G6: ='PV(NB)(M2) Info'!B6 -> 0.35 | H6: Battery Cost ($/W) | I6: =Table14[[#This Row],[Value]] -> 0.418 | J6: Panel Length (foot) | K6: =Table12[[#This Row],[Value]] -> 6.42
A7: Utility Price ($/kWh) | B7: ='PV(NB)(M2) Info'!D19 -> 0.12 | C7: SF Info | F7: Direct Installation Labor | G7: ='PV(NB)(M2) Info'!B7 -> 0.2 | H7: Battery central inverter ($/W) | I7: =Table14[[#This Row],[Value]] -> 0.07 | J7: Panel Width (foot) | K7: =Table12[[#This Row],[Value]] -> 3.25
A8: Selling Price ($/kWh) | B8: ='PV(NB)(M2) Info'!D20 -> 0.11 | C8: NB Material | D8: ='NB(M2) Info'!B7 -> Concrete | F8: Grid Interconnection and Transmission | G8: ='PV(NB)(M2) Info'!B8 -> 0.05 | H8: Structural BOS ($/W) | I8: =Table14[[#This Row],[Value]] -> 0.03 | J8: Degradation Rate | K8: =Table12[[#This Row],[Value]] -> 0.008
A9: PPA Price for Indirect Ownership ($/kWh) | B9: ='PV(NB)(M2) Info'!D21 -> 0.1 | C9: # of noise-sensitive receptors/mi | D9: ='NB(M2) Info'!B13 -> 51 | F9: Supply Chain Costs | G9: ='PV(NB)(M2) Info'!B9 -> 0.115 | H9: Electrical BOS ($/W) | I9: =Table14[[#This Row],[Value]] -> 0.1 | J9: System Losses (%) | K9: =Table12[[#This Row],[Value]] -> 0.1408
A10: PV System Costs Outputs ($/W） | C10: MnDOT’s cost effectiveness value | D10: ='NB(M2) Info'!B14 -> 78500 | F10: Indirect Capital Costs ($/W) | H10: Installation labor & equipment ($/W) | I10: =Table14[[#This Row],[Value]] -> 0.07 | J10: Tilt (deg) | K10: =Table12[[#This Row],[Value]] -> 90
A11: Total Direct Capital Costs ($/W) | B11: ='PV(NB)(M2) Info'!H3 -> 1.515 | C11: Energy Outputs | F11: Permitting and Environmental Studies | G11: ='PV(NB)(M2) Info'!B11 -> 0.048 | H11: EPC overhead ($/W) | I11: =Table14[[#This Row],[Value]] -> 0.03 | J11: Azimuth (deg) | K11: =Table12[[#This Row],[Value]] -> 180
A12: Total Indirect Capital Costs ($/W) | B12: ='PV(NB)(M2) Info'!H4 -> 0.3770625 | C12: DC System Size (KW) | D12: ='PV(NB)(M2) Info'!H11 -> 990 | F12: Customer Acquisition and System Design | G12: ='PV(NB)(M2) Info'!B12 -> 0.05 | H12: Land acquisition ($/W) | I12: =Table14[[#This Row],[Value]] -> 0.01 | J12: Inverter Efficiency (%) | K12: =Table12[[#This Row],[Value]] -> 0.96
A13: Total O&M Costs ($/W) | B13: ='PV(NB)(M2) Info'!H5 -> 0.375 | C13: Base Energy Output (kWh) | D13: ='PV(NB)(M2) Info'!H12 -> 991032.3297 | F13: Other Overheads | G13: ='PV(NB)(M2) Info'!B13 -> 0.2 | H13: Permitting fee ($/W) | I13: =Table14[[#This Row],[Value]] -> 0.01 | J13: Average Peak Sun Hours for MN (hrs/day) | K13: =Table12[[#This Row],[Value]] -> 4.53
A14: Li-ion Standalone Storage System Outputs ($/W) | C14: PVWatts Annual AC Energy Output (kWh) | D14: ='PV(NB)(M2) Info'!H13 -> 990979 | F14: Sales and Use Taxes (%) | G14: ='PV(NB)(M2) Info'!B14 -> 0.06875 | H14: Interconnection fee ($/W) | I14: =Table14[[#This Row],[Value]] -> 0.03 | J14: Electricity Rate (2020 U.S. Dollars) | K14: Value
A15: ∑ EPC cost | B15: ='PV(NB)(M2) Info'!H7 -> 0.7673625 | C15: Estimate Annual AC Energy Output (kWh) | D15: ='PV(NB)(M2) Info'!H14 -> 991032.3297 | F15: O&M Costs ($/W) | H15: Contingency ($/W) | I15: =Table14[[#This Row],[Value]] -> 0.02 | J15: Utility Price ($/kWh) | K15: ='PV(NB)(M2) Info'!D19 -> 0.12
A16: ∑ Developer cost | B16: ='PV(NB)(M2) Info'!H8 -> 0.13 | C16: EPA Greenhouse Gas Equivalencies (Metric Tons CO2) | D16: ='PV(NB)(M2) Info'!H15 -> 702.604111 | F16: Inverter Lifetime (years) | G16: ='PV(NB)(M2) Info'!B16 -> 13 | H16: Developer overhead ($/W) | I16: =Table14[[#This Row],[Value]] -> 0.02 | J16: Selling Price ($/kWh) | K16: ='PV(NB)(M2) Info'!D20 -> 0.11
A17: ∑ Total energy storage system cost ($/W) | B17: ='PV(NB)(M2) Info'!H9 -> 0.8973625 | C17: Final Annual AC Energy Output (kWh) | D17: ='PV(NB)(M2) Info'!H18 -> 990979 | F17: Inverter Replacement | G17: ='PV(NB)(M2) Info'!B17 -> 0.09 | H17: EPC/developer net profit ($/W) | I17: =Table14[[#This Row],[Value]] -> 0.04 | J17: PPA Price for Indirect Ownership ($/kWh) | K17: ='PV(NB)(M2) Info'!D21 -> 0.1
F18: Insurance Cost by Capacity ($/kW-yr) | G18: ='PV(NB)(M2) Info'!B18 -> 5 | H18: Social Cost Info (Per Short ton of Bituminous Coal) | I18: Value | J18: Self-Consumption Utilization Rate (%) | K18: ='PV(NB)(M2) Info'!D22 -> 1
F19: O&M Annual Cost by Capacity ($/kW-yr) | G19: ='PV(NB)(M2) Info'!B19 -> 10 | H19: Heating Value of Bituminous Coal (mmBtu) | I19: ='PV(NB)(M2) Info'!F15 -> 24.93 | J19: Noise Barrier Info | K19: New NB
F20: Recycling Cost | G20: ='PV(NB)(M2) Info'!B21 -> 0.17 | H20: 1 kWh to BTU | I20: ='PV(NB)(M2) Info'!F16 -> 3412 | J20: Average Height Feet | K20: ='NB(M2) Info'!B3 -> 20
F21: System Salvage Value (% of module cost) | G21: ='PV(NB)(M2) Info'!B22 -> 0.15 | H21: Electricity Output (kWh) | I21: ='PV(NB)(M2) Info'!F17 -> 7306.565064 | J21: Area Sq Ft | K21: ='NB(M2) Info'!B5 -> 105600
F22: Financial Parameters and Incentive | H22: kg CO2 | I22: ='PV(NB)(M2) Info'!F18 -> 2325 | J22: Year of Original Construction | K22: 2021
F23: Analysis Period (Effective System Lifetime) | G23: ='PV(NB)(M2) Info'!B24 -> 25 | H23: g CH4 | I23: ='PV(NB)(M2) Info'!F19 -> 274 | J23: Life Span (years) | K23: =IF(K24="Concrete",50,30) -> 50
F24: Real Discount Rate (%/yr) | G24: ='PV(NB)(M2) Info'!B25 -> 0.0035 | H24: g N2O | I24: ='PV(NB)(M2) Info'!F20 -> 40 | J24: Primary Construction Material | K24: ='NB(M2) Info'!B7 -> Concrete
F25: Federal Income Tax Rate (%/yr) | G25: ='PV(NB)(M2) Info'!B26 -> 0 | H25: GHG Emission Social Cost (2020 U.S. Dollars) | I25: Value | J25: Installation & Materials Costs ($/sq ft) | K25: ='NB(M2) Info'!B8 -> 36
F26: State Income Tax Rate (%/yr) | G26: ='PV(NB)(M2) Info'!B27 -> 0 | H26: Per metric ton CO2 | I26: ='PV(NB)(M2) Info'!F22 -> 42 | J26: Disposal cost ($/sq ft) | K26: ='NB(M2) Info'!B9 -> 5
F27: Federal ITC Qualification | G27: ='PV(NB)(M2) Info'!B28 -> 0.1 | H27: Per metric ton CH4 | I27: ='PV(NB)(M2) Info'!F23 -> 1200 | J27: Maintenance Cost ($/sq ft-Year) | K27: ='NB(M2) Info'!B10 -> 0
F28: Other Incentives | G28: ='PV(NB)(M2) Info'!B29 -> 0 | H28: Per metric ton N2O | I28: ='PV(NB)(M2) Info'!F24 -> 15000 | J28: # of noise-sensitive receptors/mi | K28: ='NB(M2) Info'!B13 -> 51
F29: RECs ($/1MW) | G29: ='PV(NB)(M2) Info'!B30 -> 0.65 | H29: GHG Emission Ratio (Coal/Solar) | I29: ='PV(NB)(M2) Info'!F25 -> 8.37 | J29: MnDOT’s cost effectiveness value | K29: ='NB(M2) Info'!B14 -> 78500

Sheet PV(NB)(M2) Info (hidden)
A1: PV &Finance Inputs | G1: PV Costs & Energy Outputs
A2: PV System Cost Inputs (2020 U.S. Dollars) | B2: Value | C2: Li-ion Standalone Storage System Inputs | D2: Value | E2: PV System Info | F2: Value | G2: PV System Costs Outputs ($/W） | H2: Value
A3: Direct Capital Costs ($/W) | C3: DC System Size (KW) | D3: =H11 -> 990 | E3: Project Length (mi) | F3: 1 | G3: Total Direct Capital Costs ($/W) | H3: =SUM(B4:B9) -> 1.515
A4: Module Price | B4: =0.65*F3^(-(0.07029)) -> 0.65 | C4: Storage Duration (hr) | D4: 2 | E4: Panel Capacity (Watt) | F4: 375 | G4: Total Indirect Capital Costs ($/W) | H4: =SUM(B11:B13)+B14*SUM(B4:B6) -> 0.3770625
A5: Inverter Price | B5: =0.15*F3^(-(0.0587)) -> 0.15 | C5: Li-ion battery Cost ($/kWh) | D5: 209 | E5: Number of Panel/mi | F5: 2640 | G5: Total O&M Costs ($/W) | H5: =(B18+B19)*B24/1000 -> 0.375
A6: BOS Equipment | B6: =0.35*F3^(-(0.0487)) -> 0.35 | C6: Battery Cost ($/W) | D6: =D5*D4/1000 -> 0.418 | E6: Panel Length (foot) | F6: 6.42 | G6: Li-ion Standalone Storage System Outputs ($/W) | H6: Value
A7: Direct Installation Labor | B7: =0.2*F3^(-(0.1004)) -> 0.2 | C7: Battery central inverter ($/W) | D7: 0.07 | E7: Panel Width (foot) | F7: 3.25 | G7: ∑ EPC cost | H7: =SUM(D6:D11)*(1+B14) -> 0.7673625
A8: Grid Interconnection and Transmission | B8: =0.05*F3^(-(0.0741)) -> 0.05 | C8: Structural BOS ($/W) | D8: 0.03 | E8: Degradation Rate | F8: 0.008 | G8: ∑ Developer cost | H8: =SUM(D12:D17) -> 0.13
A9: Supply Chain Costs | B9: =0.1*SUM(B4:B6) -> 0.115 | C9: Electrical BOS ($/W) | D9: 0.1 | E9: System Losses (%) | F9: =IF(AND(F5=2640,F10=45),25%,14.08%) -> 0.1408 | G9: ∑ Total energy storage system cost ($/W) | H9: =H7+H8 -> 0.8973625
A10: Indirect Capital Costs ($/W) | C10: Installation labor & equipment ($/W) | D10: 0.07 | E10: Tilt (deg) | F10: 90 | G10: Energy Outputs | H10: Value
A11: Permitting and Environmental Studies | B11: =0.048*F3^(-(0.068)) -> 0.048 | C11: EPC overhead ($/W) | D11: 0.03 | E11: Azimuth (deg) | F11: 180 | G11: DC System Size (KW) | H11: =F4*F5*F3/1000 -> 990
A12: Customer Acquisition and System Design | B12: =0.05*F3^(-(0.1325)) -> 0.05 | C12: Land acquisition ($/W) | D12: 0.01 | E12: Inverter Efficiency (%) | F12: 0.96 | G12: Base Energy Output (kWh) | H12: =H11*F12*F13*(1-F9)*365*(IF(F10=90,0.734,1)) -> 991032.3297
A13: Other Overheads | B13: =0.2*F3^(-(0.1004)) -> 0.2 | C13: Permitting fee ($/W) | D13: 0.01 | E13: Average Peak Sun Hours for MN (hrs/day) | F13: 4.53 | G13: PVWatts Annual AC Energy Output (kWh) | H13: 990979
A14: Sales and Use Taxes (%) | B14: 0.06875 | C14: Interconnection fee ($/W) | D14: 0.03 | E14: Social Cost Info (Per Short ton of Bituminous Coal) | F14: Value | G14: Estimate Annual AC Energy Output (kWh) | H14: =IF(F11=90, 0.7308*H12, IF(F11=270,0.7363*H12,H12)) -> 991032.3297
A15: O&M Costs ($/W) | C15: Contingency ($/W) | D15: 0.02 | E15: Heating Value of Bituminous Coal (mmBtu) | F15: 24.93 | G15: EPA Greenhouse Gas Equivalencies (Metric Tons CO2) | H15: =0.709*H18/1000 -> 702.604111
A16: Inverter Lifetime (years) | B16: 13 | C16: Developer overhead ($/W) | D16: 0.02 | E16: 1 kWh to BTU | F16: 3412 | G16: Choose Energy Output Options Below:
A17: Inverter Replacement ($/W) | B17: =0.09*F3^(-(0.0587)) -> 0.09 | C17: EPC/developer net profit ($/W) | D17: 0.04 | E17: Electricity Output (kWh) | F17: =F15*1000000/F16 -> 7306.565064 | G17: PVWatts Annual AC Energy Output (KWH)
A18: Insurance Cost by Capacity ($/kW-yr) | B18: =5*F3^(-(0.074)) -> 5 | C18: Electricity Rate (2020 U.S. Dollars) | D18: Value | E18: kg CO2 | F18: 2325 | G18: Final Annual AC Energy Output (kWh) | H18: =IF(G17=G14,H14,H13) -> 990979
A19: O&M Annual Cost by Capacity ($/kW-yr) | B19: =10*F3^(-(0.0516)) -> 10 | C19: Utility Price ($/kWh) | D19: 0.12 | E19: g CH4 | F19: 274
A20: Future Costs ($/W) | C20: Selling Price ($/kWh) | D20: 0.11 | E20: g N2O | F20: 40
A21: Recycling Cost | B21: 0.17 | C21: PPA Pricing for indirect ownership ($/kWh) | D21: 0.1 | E21: GHG Emission Social Cost (2020 U.S. Dollars) | F21: Value
A22: System Salvage Value (% of module cost) | B22: 0.15 | C22: Self-Consumption Utilization Rate (%) | D22: 1 | E22: Per metric ton CO2 | F22: 42
A23: Financial Parameters and Incentive | E23: Per metric ton CH4 | F23: 1200
A24: Analysis Period (Effective System Lifetime) | B24: 25 | E24: Per metric ton N2O | F24: 15000
A25: Real Discount Rate (%/yr) | B25: 0.0035 | E25: GHG Emission Ratio (Coal/Solar) | F25: 8.37
A26: Federal Income Tax Rate (%/yr) | B26: 0
A27: State Income Tax Rate (%/yr) | B27: 0
A28: Federal ITC Qualification | B28: 0.1
A29: Other Incentives | B29: 0
A30: RECs ($/1MW) | B30: 0.65

Sheet NB(M2) Info (hidden)
A1: Inputs
A2: Noise Barrier Info | B2: New NB
A3: Average Height (ft) | B3: 20
A4: Project Scale (ft) | B4: ='PV(NB)(M2) Info'!F3*5280 -> 5280
A5: Area (Sq Ft) | B5: =B3*B4 -> 105600
A6: Life Span (years) | B6: =IF(B7="Concrete",50,30) -> 50
A7: Primary Construction Material | B7: Concrete
A8: Installation & Materials Costs ($/sq ft) | B8: =IF(B7="Concrete",36,25.6) -> 36
A9: Disposal cost ($/sq ft) | B9: 5
A10: Maintenance Cost ($/sq ft-Year) | B10: 0
A11: Real Discount Rate (%) | B11: ='PV(NB)(M2) Info'!B25 -> 0.0035
A12: Sales & Use Taxes (%) | B12: ='PV(NB)(M2) Info'!B14 -> 0.06875
A13: # of noise-sensitive receptors/mi | B13: 51
A14: MnDOT’s cost effectiveness value | B14: 78500

Sheet PVNB Results Summary (hidden)
C1: CBA Results
C2: NPV | D2: IRR | E2: Payback | F2: Option | G2: Case Scenario
C3: =PVNB_CBA!AB3 -> 1.683473289e+10 | D3: =PVNB_CBA!AB16 -> 124.1836486 | E3: =PVNB_CBA!AB29 -> 1 | F3: PVNB | G3: CASE 1 | I3: =IF(Table1[[#This Row],[Payback]]=">25",26,Table1[[#This Row],[Payback]]) -> 1
C4: =PVNB_CBA!AB4 -> 1.68350032e+10 | D4: =PVNB_CBA!AB17 -> 124.1858365 | E4: =PVNB_CBA!AB30 -> 1 | F4: PVNB | G4: CASE 2 | I4: =IF(Table1[[#This Row],[Payback]]=">25",26,Table1[[#This Row],[Payback]]) -> 1
C5: =PVNB_CBA!AB5 -> 1.68349202e+10 | D5: =PVNB_CBA!AB18 -> 128.4226765 | E5: =PVNB_CBA!AB31 -> 1 | F5: PVNB | G5: CASE 3 | I5: =IF(Table1[[#This Row],[Payback]]=">25",26,Table1[[#This Row],[Payback]]) -> 1
C6: =PVNB_CBA!AB6 -> 1.683519051e+10 | D6: =PVNB_CBA!AB19 -> 128.4249392 | E6: =PVNB_CBA!AB32 -> 1 | F6: PVNB | G6: CASE 4 | I6: =IF(Table1[[#This Row],[Payback]]=">25",26,Table1[[#This Row],[Payback]]) -> 1
C7: =PVNB_CBA!AB7 -> 1.683406023e+10 | D7: =PVNB_CBA!AB20 -> 107.3755934 | E7: =PVNB_CBA!AB33 -> 1 | F7: PVNB | G7: CASE 5 | I7: =IF(Table1[[#This Row],[Payback]]=">25",26,Table1[[#This Row],[Payback]]) -> 1
C8: =PVNB_CBA!AB8 -> 1.683433055e+10 | D8: =PVNB_CBA!AB21 -> 107.3774851 | E8: =PVNB_CBA!AB34 -> 1 | F8: PVNB | G8: CASE 6 | I8: =IF(Table1[[#This Row],[Payback]]=">25",26,Table1[[#This Row],[Payback]]) -> 1
C9: =PVNB_CBA!AB9 -> 1.683433639e+10 | D9: =PVNB_CBA!AB22 -> 112.092025 | E9: =PVNB_CBA!AB35 -> 1 | F9: PVNB | G9: CASE 7 | I9: =IF(Table1[[#This Row],[Payback]]=">25",26,Table1[[#This Row],[Payback]]) -> 1
C10: =PVNB_CBA!AB10 -> 1.68346067e+10 | D10: =PVNB_CBA!AB23 -> 112.0939999 | E10: =PVNB_CBA!AB36 -> 1 | F10: PVNB | G10: CASE 8 | I10: =IF(Table1[[#This Row],[Payback]]=">25",26,Table1[[#This Row],[Payback]]) -> 1
C11: =PVNB_CBA!AB12 -> 1.683517022e+10 | D11: =PVNB_CBA!AB25 -> 185.3524355 | E11: =PVNB_CBA!AB38 -> 1 | F11: PVNB | G11: CASE 9 | I11: =IF(Table1[[#This Row],[Payback]]=">25",26,Table1[[#This Row],[Payback]]) -> 1
C12: =PVNB_CBA!AB13 -> 1.683542651e+10 | D12: =PVNB_CBA!AB26 -> 185.3555321 | E12: =PVNB_CBA!AB39 -> 1 | F12: PVNB | G12: CASE 10 | I12: =IF(Table1[[#This Row],[Payback]]=">25",26,Table1[[#This Row],[Payback]]) -> 1
C13: =C23 -> -5865.504365 | D13: 0.003234618196 | E13: >25 | F13: PVNB (Existing) | G13: CASE 1 | I13: =IF(Table1[[#This Row],[Payback]]=">25",26,Table1[[#This Row],[Payback]]) -> 26
C14: 264446.1886 | D14: 0.0149531563 | E14: 21 | F14: PVNB (Existing) | G14: CASE 2 | I14: =IF(Table1[[#This Row],[Payback]]=">25",26,Table1[[#This Row],[Payback]]) -> 21
C15: 181448.6831 | D15: 0.01235765509 | E15: 22 | F15: PVNB (Existing) | G15: CASE 3 | I15: =IF(Table1[[#This Row],[Payback]]=">25",26,Table1[[#This Row],[Payback]]) -> 22
C16: 451760.3761 | D16: 0.02461478383 | E16: 19 | F16: PVNB (Existing) | G16: CASE 4 | I16: =IF(Table1[[#This Row],[Payback]]=">25",26,Table1[[#This Row],[Payback]]) -> 19
C17: -678520.8312 | D17: -0.018922805 | E17: >25 | F17: PVNB (Existing) | G17: CASE 5 | I17: =IF(Table1[[#This Row],[Payback]]=">25",26,Table1[[#This Row],[Payback]]) -> 26
C18: -408209.1382 | D18: -0.009472244228 | E18: >25 | F18: PVNB (Existing) | G18: CASE 6 | I18: =IF(Table1[[#This Row],[Payback]]=">25",26,Table1[[#This Row],[Payback]]) -> 26
C19: -402367.7562 | D19: -0.0108399047 | E19: >25 | F19: PVNB (Existing) | G19: CASE 7 | I19: =IF(Table1[[#This Row],[Payback]]=">25",26,Table1[[#This Row],[Payback]]) -> 26
C20: -132056.0632 | D20: -0.001025598316 | E20: >25 | F20: PVNB (Existing) | G20: CASE 8 | I20: =IF(Table1[[#This Row],[Payback]]=">25",26,Table1[[#This Row],[Payback]]) -> 26
C21: 431467.0964 | D21: NA | E21: NA | F21: PVNB (Existing) | G21: CASE 9 | I21: =IF(Table1[[#This Row],[Payback]]=">25",26,Table1[[#This Row],[Payback]]) -> NA
C22: 687756.1087 | D22: NA | E22: NA | F22: PVNB (Existing) | G22: CASE 10 | I22: =IF(Table1[[#This Row],[Payback]]=">25",26,Table1[[#This Row],[Payback]]) -> NA
C23: ='PV(NB)_CBA'!AB14 -> -5865.504365 | D23: ='PV(NB)_CBA'!AB29 -> 0.003234618196 | E23: ='PV(NB)_CBA'!AB3 -> >25 | F23: PV Only | G23: CASE 1 | I23: =IF(Table1[[#This Row],[Payback]]=">25",26,Table1[[#This Row],[Payback]]) -> 26
C24: ='PV(NB)_CBA'!AB15 -> 264446.1886 | D24: ='PV(NB)_CBA'!AB30 -> 0.0149531563 | E24: ='PV(NB)_CBA'!AB4 -> 21 | F24: PV Only | G24: CASE 2 | I24: =IF(Table1[[#This Row],[Payback]]=">25",26,Table1[[#This Row],[Payback]]) -> 21
C25: ='PV(NB)_CBA'!AB16 -> 181448.6831 | D25: ='PV(NB)_CBA'!AB31 -> 0.01235765509 | E25: ='PV(NB)_CBA'!AB5 -> 22 | F25: PV Only | G25: CASE 3 | I25: =IF(Table1[[#This Row],[Payback]]=">25",26,Table1[[#This Row],[Payback]]) -> 22
C26: ='PV(NB)_CBA'!AB17 -> 451760.3761 | D26: ='PV(NB)_CBA'!AB32 -> 0.02461478383 | E26: ='PV(NB)_CBA'!AB6 -> 19 | F26: PV Only | G26: CASE 4 | I26: =IF(Table1[[#This Row],[Payback]]=">25",26,Table1[[#This Row],[Payback]]) -> 19
C27: ='PV(NB)_CBA'!AB18 -> -678520.8312 | D27: ='PV(NB)_CBA'!AB33 -> -0.018922805 | E27: ='PV(NB)_CBA'!AB7 -> >25 | F27: PV Only | G27: CASE 5 | I27: =IF(Table1[[#This Row],[Payback]]=">25",26,Table1[[#This Row],[Payback]]) -> 26
C28: ='PV(NB)_CBA'!AB19 -> -408209.1382 | D28: ='PV(NB)_CBA'!AB34 -> -0.009472244228 | E28: ='PV(NB)_CBA'!AB8 -> >25 | F28: PV Only | G28: CASE 6 | I28: =IF(Table1[[#This Row],[Payback]]=">25",26,Table1[[#This Row],[Payback]]) -> 26
C29: ='PV(NB)_CBA'!AB20 -> -402367.7562 | D29: ='PV(NB)_CBA'!AB35 -> -0.0108399047 | E29: ='PV(NB)_CBA'!AB9 -> >25 | F29: PV Only | G29: CASE 7 | I29: =IF(Table1[[#This Row],[Payback]]=">25",26,Table1[[#This Row],[Payback]]) -> 26
C30: ='PV(NB)_CBA'!AB21 -> -132056.0632 | D30: ='PV(NB)_CBA'!AB36 -> -0.001025598316 | E30: ='PV(NB)_CBA'!AB10 -> >25 | F30: PV Only | G30: CASE 8 | I30: =IF(Table1[[#This Row],[Payback]]=">25",26,Table1[[#This Row],[Payback]]) -> 26
C31: ='PV(NB)_CBA'!AB23 -> 431467.0964 | D31: ='PV(NB)_CBA'!AB38 -> NA | E31: NA | F31: PV Only | G31: CASE 9 | I31: =IF(Table1[[#This Row],[Payback]]=">25",26,Table1[[#This Row],[Payback]]) -> NA
C32: ='PV(NB)_CBA'!AB24 -> 687756.1087 | D32: ='PV(NB)_CBA'!AB39 -> NA | E32: NA | F32: PV Only | G32: CASE 10 | I32: =IF(Table1[[#This Row],[Payback]]=">25",26,Table1[[#This Row],[Payback]]) -> NA
C33: =NB_CBA!AH13 -> 2.002904549e+10 | D33: =NB_CBA!AI13 -> 185.3472222 | E33: =NB_CBA!AG14 -> 1 | F33: NB Only | G33: Noise Barrier
C35: Description of Case Scenarios
C36: Ownership | D36: Electricity | E36: Social Benefits | F36: Incentives | G36: Case Scenario
C37: Direct | D37: Sell | E37: No | F37: No | G37: CASE 1
C38: Direct | D38: Sell | E38: Yes | F38: No | G38: CASE 2
C39: Direct | D39: Sell | E39: No | F39: Yes | G39: CASE 3
C40: Direct | D40: Sell | E40: Yes | F40: Yes | G40: CASE 4
C41: Direct | D41: Self- Consumption | E41: No | F41: No | G41: CASE 5
C42: Direct | D42: Self-Consumption | E42: Yes | F42: No | G42: CASE 6
C43: Direct | D43: Self-Consumption | E43: No | F43: Yes | G43: CASE 7
C44: Direct | D44: Self-Consumption | E44: Yes | F44: Yes | G44: CASE 8
C45: Indirect | D45: Solar PPA | E45: No | F45: NA | G45: CASE 9
C46: Indirect | D46: Solar PPA | E46: Yes | F46: NA | G46: CASE 10

Sheet PVSF M2 (hidden)
A5: Step 3: Change the PV System Info if Known
A6: Note: Use PVWatts Calculator for more accurate calculation, leave it as default as unknown.
A8: Step 4: Change the Snow Fence Info if Known
A9: Note: Leave it as default if unknown.
A11: Step 5: Generate Outputs and Analysis of Results
A12: Note: Expand the results for more information.

Sheet PVSF(M1) Info (hidden)
A1: PVSF (Method 1) Inputs & Outputs | F1: Information Table
A2: General Info | C2: PV Info | F2: PV System Cost Inputs (2020 U.S. Dollars) | G2: Value | H2: Li-ion Standalone Storage System Inputs | I2: Value | J2: PV System Info | K2: Value
A3: Project Length (mi) | B3: ='PV(SF)(M2) Info'!F3 -> 1 | C3: Panel Capacity (Watt) | D3: ='PV(SF)(M2) Info'!F4 -> 100 | F3: Direct Capital Costs ($/W) | H3: Storage Duration (hr) | I3: ='PV(SF)(M2) Info'!D4 -> 2 | J3: Project Length (mi) | K3: =Table1213[[#This Row],[Value]] -> 1
A4: Real Discount Rate (%) | B4: ='PV(SF)(M2) Info'!B25 -> 0.0035 | C4: Tilt (deg) | D4: ='PV(SF)(M2) Info'!F10 -> 90 | F4: Module Price | G4: ='PV(SF)(M2) Info'!B4 -> 0.85 | H4: Li-ion battery Cost ($/kWh) | I4: ='PV(SF)(M2) Info'!D5 -> 209 | J4: Panel Capacity (Watt) | K4: =Table1213[[#This Row],[Value]] -> 100
A5: Sale & Use Tax (%) | B5: ='PV(SF)(M2) Info'!B14 -> 0.06875 | C5: Azimuth (deg) | D5: ='PV(SF)(M2) Info'!F11 -> 180 | F5: Inverter Price | G5: ='PV(SF)(M2) Info'!B5 -> 0.15 | H5: Battery Cost ($/W) | I5: ='PV(SF)(M2) Info'!D6 -> 0.418 | J5: Number of Panel/mi | K5: =Table1213[[#This Row],[Value]] -> 3520
A6: Utility Info | C6: SF Info | F6: BOS Equipment | G6: ='PV(SF)(M2) Info'!B6 -> 0.35 | H6: Battery central inverter ($/W) | I6: ='PV(SF)(M2) Info'!D7 -> 0.07 | J6: Panel Length (foot) | K6: =Table1213[[#This Row],[Value]] -> 12
A7: Utility Price ($/kWh) | B7: ='PV(SF)(M2) Info'!D19 -> 0.12 | C7: O&M Cost ($/mi-year) | D7: ='SF(M2) Info'!B10 -> 3000 | F7: Direct Installation Labor | G7: ='PV(SF)(M2) Info'!B7 -> 0.2 | H7: Structural BOS ($/W) | I7: ='PV(SF)(M2) Info'!D8 -> 0.03 | J7: Panel Width (foot) | K7: =Table1213[[#This Row],[Value]] -> 0.5
A8: Selling Price ($/kWh) | B8: ='PV(SF)(M2) Info'!D20 -> 0.11 | C8: Land Lease Cost ($/ft) | D8: ='SF(M2) Info'!B8 -> 1 | F8: Grid Interconnection and Transmission | G8: ='PV(SF)(M2) Info'!B8 -> 0.05 | H8: Electrical BOS ($/W) | I8: ='PV(SF)(M2) Info'!D9 -> 0.1 | J8: Degradation Rate | K8: =Table1213[[#This Row],[Value]] -> 0.008
A9: PPA Price for Indirect Ownership ($/kWh) | B9: ='PV(SF)(M2) Info'!D21 -> 0.1 | C9: Install & Material Cost ($/ft) | D9: ='SF(M2) Info'!B7 -> 72.1 | F9: Supply Chain Costs | G9: ='PV(SF)(M2) Info'!B9 -> 0.135 | H9: Installation labor & equipment ($/W) | I9: ='PV(SF)(M2) Info'!D10 -> 0.07 | J9: System Losses (%) | K9: =Table1213[[#This Row],[Value]] -> 0.1408
A10: PV System Costs Outputs ($/W） | C10: Snow Fence Efficiency (%) | D10: ='SF(M2) Info'!B20 -> 1 | F10: Indirect Capital Costs ($/W) | H10: EPC overhead ($/W) | I10: ='PV(SF)(M2) Info'!D11 -> 0.03 | J10: Tilt (deg) | K10: =Table1213[[#This Row],[Value]] -> 90
A11: Total Direct Capital Costs ($/W) | B11: ='PV(SF)(M2) Info'!H3 -> 1.735 | C11: Energy Outputs | F11: Permitting and Environmental Studies | G11: ='PV(SF)(M2) Info'!B11 -> 0.048 | H11: Land acquisition ($/W) | I11: ='PV(SF)(M2) Info'!D12 -> 0.01 | J11: Azimuth (deg) | K11: =Table1213[[#This Row],[Value]] -> 180
A12: Total Indirect Capital Costs ($/W) | B12: ='PV(SF)(M2) Info'!H4 -> 0.3908125 | C12: DC System Size (KW) | D12: ='PV(SF)(M2) Info'!H11 -> 352 | F12: Customer Acquisition and System Design | G12: ='PV(SF)(M2) Info'!B12 -> 0.05 | H12: Permitting fee ($/W) | I12: ='PV(SF)(M2) Info'!D13 -> 0.01 | J12: Inverter Efficiency (%) | K12: =Table1213[[#This Row],[Value]] -> 0.96
A13: Total O&M Costs ($/W) | B13: ='PV(SF)(M2) Info'!H5 -> 0.375 | C13: Base Energy Output (kWh) | D13: ='PV(SF)(M2) Info'!H12 -> 352367.0506 | F13: Other Overheads | G13: ='PV(SF)(M2) Info'!B13 -> 0.2 | H13: Interconnection fee ($/W) | I13: ='PV(SF)(M2) Info'!D14 -> 0.03 | J13: Average Peak Sun Hours for MN (hrs/day) | K13: =Table1213[[#This Row],[Value]] -> 4.53
A14: Li-ion Standalone Storage System Outputs ($/W) | C14: PVWatts Annual AC Energy Output (kWh) | D14: ='PV(SF)(M2) Info'!H13 -> 360000 | F14: Sales and Use Taxes (%) | G14: ='PV(SF)(M2) Info'!B14 -> 0.06875 | H14: Contingency ($/W) | I14: ='PV(SF)(M2) Info'!D15 -> 0.02 | J14: Snow Fence Info | K14: New Fence
A15: ∑ EPC cost | B15: ='PV(SF)(M2) Info'!H7 -> 0.7673625 | C15: Estimate Annual AC Energy Output (kWh) | D15: ='PV(SF)(M2) Info'!H14 -> 352367.0506 | F15: O&M Costs ($/W) | H15: Developer overhead ($/W) | I15: ='PV(SF)(M2) Info'!D16 -> 0.02 | J15: Unit Hight (ft) | K15: ='SF(M2) Info'!B3 -> 8
A16: ∑ Developer cost | B16: ='PV(SF)(M2) Info'!H8 -> 0.13 | C16: EPA Greenhouse Gas Equivalencies (Metric Tons CO2) | D16: ='PV(SF)(M2) Info'!H15 -> 249.8282388 | F16: Inverter Lifetime (years) | G16: ='PV(SF)(M2) Info'!B16 -> 13 | H16: EPC/developer net profit ($/W) | I16: ='PV(SF)(M2) Info'!D17 -> 0.04 | J16: Unit Length (ft) | K16: ='SF(M2) Info'!B4 -> 12
A17: ∑ Total energy storage system cost ($/W) | B17: ='PV(SF)(M2) Info'!H9 -> 0.8973625 | C17: Final Annual AC Energy Output (kWh) | D17: ='PV(SF)(M2) Info'!H18 -> 352367.0506 | F17: Inverter Replacement | G17: ='PV(SF)(M2) Info'!B17 -> 0.09 | H17: Social Cost Info (Per Short ton of Bituminous Coal) | I17: Value | J17: Life Span (years) | K17: ='SF(M2) Info'!B6 -> 30
F18: Insurance Cost by Capacity ($/kW-yr) | G18: ='PV(SF)(M2) Info'!B18 -> 5 | H18: Heating Value of Bituminous Coal (mmBtu) | I18: 24.93 | J18: Install & Material Costs ($/ft) | K18: ='SF(M2) Info'!B7 -> 72.1
F19: O&M Annual Cost by Capacity ($/kW-yr) | G19: ='PV(SF)(M2) Info'!B19 -> 10 | H19: 1 kWh to BTU | I19: 3412 | J19: Land lease Cost($/foot) | K19: ='SF(M2) Info'!B8 -> 1
F20: Recycling Cost ($/W) | G20: ='PV(SF)(M2) Info'!B21 -> 0.17 | H20: Electricity Output (kWh) | I20: =I18*1000000/I19 -> 7306.565064 | J20: Land Purchase Cost ($/acre) | K20: ='SF(M2) Info'!B9 -> 0
F21: System Salvage Value (% of module cost) | G21: ='PV(SF)(M2) Info'!B22 -> 0.15 | H21: kg CO2 | I21: 2325 | J21: O&M Cost ($/mi-Year) | K21: ='SF(M2) Info'!B10 -> 3000
F22: Financial Parameters and Incentive | H22: g CH4 | I22: 274 | J22: Drifting ($/mi-Year) | K22: ='SF(M2) Info'!B11 -> 34486.028
F23: Analysis Period (Effective Lifetime) | G23: ='PV(SF)(M2) Info'!B24 -> 25 | H23: g N2O | I23: 40 | J23: Blow Ice ($/mi-Year) | K23: ='SF(M2) Info'!B12 -> 10207.088
F24: Real Discount Rate (%/yr) | G24: ='PV(SF)(M2) Info'!B25 -> 0.0035 | H24: GHG Emission Social Cost (2020 U.S. Dollars) | I24: Value | J24: Crashes ($/mi-Year) | K24: ='SF(M2) Info'!B13 -> 29638
F25: Federal Income Tax Rate (%/yr) | G25: ='PV(SF)(M2) Info'!B26 -> 0 | H25: Per metric ton CO2 | I25: 42 | J25: Travel ($/mi-Year) | K25: ='SF(M2) Info'!B14 -> 12826.93333
F26: State Income Tax Rate (%/yr) | G26: ='PV(SF)(M2) Info'!B27 -> 0 | H26: Per metric ton CH4 | I26: 1200 | J26: Carbon ($/mi-Year) | K26: ='SF(M2) Info'!B15 -> 241.4
F27: Federal ITC Qualification | G27: ='PV(SF)(M2) Info'!B28 -> 0.1 | H27: Per metric ton N2O | I27: 15000 | J27: Recycling Cost ($/ft) | K27: ='SF(M2) Info'!B16 -> 0.25
F28: Other Incentives | G28: ='PV(SF)(M2) Info'!B29 -> 0 | H28: GHG Emission Ratio (Coal/Solar) | I28: 8.37 | J28: Salvage Value ($/ft) | K28: ='SF(M2) Info'!B17 -> 0.08541666667
F29: RECs ($/1MW) | G29: ='PV(SF)(M2) Info'!B30 -> 0.65 | H29: Electricity Rate (2020 U.S. Dollars) | I29: Value | J29: Snow Fence Efficiency (%) | K29: ='SF(M2) Info'!B20 -> 1
H30: Utility Price ($/kWh) | I30: ='PV(SF)(M2) Info'!D19 -> 0.12
H31: Selling Price ($/kWh) | I31: ='PV(SF)(M2) Info'!D20 -> 0.11
H32: PPA Price for Indirect Ownership ($/kWh) | I32: ='PV(SF)(M2) Info'!D21 -> 0.1
H33: Self-Consumption Utilization Rate (%) | I33: ='PV(SF)(M2) Info'!D22 -> 1

Sheet PV(SF)(M2) Info (hidden)
A1: PV &Finance Inputs | G1: PV Costs & Energy Outputs
A2: PV System Cost Inputs (2020 U.S. Dollars) | B2: Value | C2: Li-ion Standalone Storage System Costs Inputs ($/W) | D2: Value | E2: PV System Info | F2: Value | G2: PV System Costs Outputs ($/W） | H2: Value
A3: Direct Capital Costs ($/W) | C3: DC System Size (KW) | D3: =H11 -> 352 | E3: Project Length (mi) | F3: 1 | G3: Total Direct Capital Costs ($/W) | H3: =SUM(B4:B9) -> 1.735
A4: Module Price | B4: =0.85*F3^(-0.0505) -> 0.85 | C4: Storage Duration (hr) | D4: 2 | E4: Panel Capacity (Watt) | F4: 100 | G4: Total Indirect Capital Costs ($/W) | H4: =SUM(B11:B13)+B14*SUM(B4:B6) -> 0.3908125
A5: Inverter Price | B5: =0.15*F3^(-(0.0587)) -> 0.15 | C5: Li-ion battery Cost ($/kWh) | D5: 209 | E5: Number of Panel/mi | F5: =5280*8/F6 -> 3520 | G5: Total O&M Costs ($/W) | H5: =(B18+B19)*B24/1000 -> 0.375
A6: BOS Equipment | B6: =0.35*F3^(-(0.0487)) -> 0.35 | C6: Battery Cost ($/W) | D6: =D5*D4/1000 -> 0.418 | E6: Panel Length (foot) | F6: 12 | G6: Li-ion Storage System Costs Outputs ($/W) | H6: Value
A7: Direct Installation Labor | B7: =0.2*F3^(-(0.1004)) -> 0.2 | C7: Battery central inverter ($/W) | D7: 0.07 | E7: Panel Width (foot) | F7: =IF(F10=90,0.5,0.7) -> 0.5 | G7: ∑ EPC cost ($/W) | H7: =SUM(D6:D11)*(1+B14) -> 0.7673625
A8: Grid Interconnection and Transmission | B8: =0.05*F3^(-(0.0741)) -> 0.05 | C8: Structural BOS ($/W) | D8: 0.03 | E8: Degradation Rate | F8: =0.8% -> 0.008 | G8: ∑ Developer cost ($/W) | H8: =SUM(D12:D17) -> 0.13
A9: Supply Chain Costs | B9: =0.1*SUM(B4:B6) -> 0.135 | C9: Electrical BOS ($/W) | D9: 0.1 | E9: System Losses (%) | F9: =14.08% -> 0.1408 | G9: ∑ Total energy storage system cost ($/W) | H9: =H7+H8 -> 0.8973625
A10: Indirect Capital Costs ($/W) | C10: Installation labor & equipment ($/W) | D10: 0.07 | E10: Tilt (deg) | F10: 90 | G10: Energy Outputs | H10: Value
A11: Permitting and Environmental Studies | B11: =0.048*F3^(-(0.068)) -> 0.048 | C11: EPC overhead ($/W) | D11: 0.03 | E11: Azimuth (deg) | F11: 180 | G11: DC System Size (KW) | H11: =F4*F5*F3/1000 -> 352
A12: Customer Acquisition and System Design | B12: =0.05*F3^(-(0.1325)) -> 0.05 | C12: Land acquisition ($/W) | D12: 0.01 | E12: Inverter Efficiency (%) | F12: 0.96 | G12: Base Energy Output (kWh) | H12: =H11*F12*F13*(1-F9)*365*(IF(F10=90,0.734,1)) -> 352367.0506
A13: Other Overheads | B13: =0.2*F3^(-(0.1004)) -> 0.2 | C13: Permitting fee ($/W) | D13: 0.01 | E13: Average Peak Sun Hours for MN (hrs/day) | F13: 4.53 | G13: PVWatts Annual AC Energy Output (kWh) | H13: 360000
A14: Sales and Use Taxes (%) | B14: 0.06875 | C14: Interconnection fee ($/W) | D14: 0.03 | E14: Social Cost Info (Per Short ton of Bituminous Coal) | F14: Value | G14: Estimate Annual AC Energy Output (kWh) | H14: =IF(F11=90, 0.7308*H12, IF(F11=270,0.7363*H12,H12)) -> 352367.0506
A15: O&M Costs ($/W) | C15: Contingency ($/W) | D15: 0.02 | E15: Heating Value Per Short Ton (mmBtu) | F15: 24.93 | G15: EPA Greenhouse Gas Equivalencies (Metric Tons CO2) | H15: =0.709*H18/1000 -> 249.8282388
A16: Inverter Lifetime (years) | B16: 13 | C16: Developer overhead ($/W) | D16: 0.02 | E16: 1 kWh to BTU | F16: 3412 | G16: Choose Energy Output Options Below:
A17: Inverter Replacement | B17: =0.09*F3^(-(0.0587)) -> 0.09 | C17: EPC/developer net profit ($/W) | D17: 0.04 | E17: Electricity Output Per Short Ton (kWh) | F17: =F15*1000000/F16 -> 7306.565064 | G17: Estimate Annual AC Energy Output (KWH)
A18: Insurance Cost by Capacity ($/kW-yr) | B18: =5*F3^(-(0.074)) -> 5 | C18: Electricity Rate (2020 U.S. Dollars) | D18: Value | E18: kg CO2 | F18: 2325 | G18: Final Annual AC Energy Output (kWh) | H18: =IF(G17=G14,H14,H13) -> 352367.0506
A19: O&M Annual Cost by Capacity ($/kW-yr) | B19: =10*F3^(-(0.0516)) -> 10 | C19: Utility Price ($/kWh) | D19: 0.12 | E19: g CH4 | F19: 274
A20: Future Costs ($/W) | C20: Selling Price ($/kWh) | D20: 0.11 | E20: g N2O | F20: 40
A21: Recycling Cost | B21: 0.17 | C21: PPA Pricing for indirect ownership ($/kWh) | D21: 0.1 | E21: GHG Emission Social Cost (2020 U.S. Dollars) | F21: Value
A22: System Salvage Value (% of module cost) | B22: 0.15 | C22: Self-Consumption Utilization Rate (%) | D22: 1 | E22: Per metric ton CO2 | F22: 42
A23: Financial Parameters and Incentive | E23: Per metric ton CH4 | F23: 1200
A24: Analysis Period (Effective System Lifetime) | B24: 25 | E24: Per metric ton N2O | F24: 15000
A25: Real Discount Rate (%/yr) | B25: 0.0035 | E25: GHG Emission Ratio (Coal/Solar) | F25: 8.37
A26: Federal Income Tax Rate (%/yr) | B26: 0
A27: State Income Tax Rate (%/yr) | B27: 0
A28: Federal ITC Qualification | B28: 0.1
A29: Other Incentives | B29: 0
A30: RECs ($/1MW) | B30: 0.65

Sheet SF(M2) Info (hidden)
A1: Inputs
A2: Snow Fence Info | B2: New Fence | C2: Existing Fence
A3: Unit Height (ft) | B3: 8 | C3: =B3 -> 8
A4: Unit Length (ft) | B4: 12 | C4: =B4 -> 12
A5: Project Scale (ft) | B5: =5280*'PV(SF)(M2) Info'!F3 -> 5280 | C5: =B5 -> 5280
A6: Life Span (years) | B6: =30 -> 30 | C6: =B6 -> 30
A7: Install & Material Costs ($/ft) | B7: 72.1 | C7: HDPE
A8: Land lease Cost($/ft-Year) | B8: 1 | C8: Steel
A9: Land Purchase Cost ($/acre) | B9: =IF(B8=0,10000,0) -> 0 | C9: 0
A10: O&M Cost ($/mi-Year) | B10: 3000 | C10: =B8 -> 1
A11: Drifting ($/mi-Year) | B11: 34486.028 | C11: 0
A12: Blow Ice ($/mi-Year) | B12: =153106.32/15 -> 10207.088 | C12: 3000
A13: Crashes ($/mi-Year) | B13: =444570/15 -> 29638 | C13: 34486.028
A14: Travel ($/mi-Year) | B14: =192404/15 -> 12826.93333 | C14: 10207.088
A15: Carbon ($/mi-Year) | B15: =3621/15 -> 241.4 | C15: 29638
A16: Recycling Cost ($/ft) | B16: =3/B4 -> 0.25 | C16: 12826.93333
A17: Salvage Value ($/ft) | B17: =1.25*10*0.082/12 -> 0.08541666667 | C17: 241.4
A18: Grants & Incentives (%) | B18: 0 | C18: 2
A19: Real Discount Rate (%) | B19: ='PV(SF)(M2) Info'!B25 -> 0.0035 | C19: 0.59
A20: Snow Fence Efficiency (%) | B20: 1 | C20: =B18 -> 0
C21: =B19 -> 0.0035

Sheet SF_CBA (hidden)
A1: Snow Fence Efficiency (%) | B1: ='SF(M2) Info'!B20 -> 1
A2: Costs
A3: Year | B3: 0 | C3: 1 | D3: 2 | E3: 3 | F3: 4 | G3: 5 | H3: 6 | I3: 7 | J3: 8 | K3: 9 | L3: 10 | M3: 11 | N3: 12 | O3: 13 | P3: 14 | Q3: 15 | R3: 16 | S3: 17 | T3: 18 | U3: 19 | V3: 20 | W3: 21 | X3: 22 | Y3: 23 | Z3: 24 | AA3: 25 | AB3: 26 | AC3: 27 | AD3: 28 | AE3: 29 | AF3: 30 | AG3: Total
A4: Snow Fence Initial Installation Cost ($/mi) | B4: ='SF(M2) Info'!B5*'SF(M2) Info'!B7*(1-18%)/'PV(SF)(M2) Info'!F3 -> 312164.16 | C4: 0 | D4: 0 | E4: 0 | F4: 0 | G4: 0 | H4: 0 | I4: 0 | J4: 0 | K4: 0 | L4: 0 | M4: 0 | N4: 0 | O4: 0 | P4: 0 | Q4: 0 | R4: 0 | S4: 0 | T4: 0 | U4: 0 | V4: 0 | W4: 0 | X4: 0 | Y4: 0 | Z4: 0 | AA4: 0 | AB4: 0 | AC4: 0 | AD4: 0 | AE4: 0 | AF4: 0 | AG4: =SUM(B4:AF4) -> 312164.16
A5: Snow Fence Maintainance Cost ($/mi) | B5: 0 | C5: ='SF(M2) Info'!$B$10 -> 3000 | D5: ='SF(M2) Info'!$B$10 -> 3000 | E5: ='SF(M2) Info'!$B$10 -> 3000 | F5: ='SF(M2) Info'!$B$10 -> 3000 | G5: ='SF(M2) Info'!$B$10 -> 3000 | H5: ='SF(M2) Info'!$B$10 -> 3000 | I5: ='SF(M2) Info'!$B$10 -> 3000 | J5: ='SF(M2) Info'!$B$10 -> 3000 | K5: ='SF(M2) Info'!$B$10 -> 3000 | L5: ='SF(M2) Info'!$B$10 -> 3000 | M5: ='SF(M2) Info'!$B$10 -> 3000 | N5: ='SF(M2) Info'!$B$10 -> 3000 | O5: ='SF(M2) Info'!$B$10 -> 3000 | P5: ='SF(M2) Info'!$B$10 -> 3000 | Q5: ='SF(M2) Info'!$B$10 -> 3000 | R5: ='SF(M2) Info'!$B$10 -> 3000 | S5: ='SF(M2) Info'!$B$10 -> 3000 | T5: ='SF(M2) Info'!$B$10 -> 3000 | U5: ='SF(M2) Info'!$B$10 -> 3000 | V5: ='SF(M2) Info'!$B$10 -> 3000 | W5: ='SF(M2) Info'!$B$10 -> 3000 | X5: ='SF(M2) Info'!$B$10 -> 3000 | Y5: ='SF(M2) Info'!$B$10 -> 3000 | Z5: ='SF(M2) Info'!$B$10 -> 3000 | AA5: ='SF(M2) Info'!$B$10 -> 3000 | AB5: ='SF(M2) Info'!$B$10 -> 3000 | AC5: ='SF(M2) Info'!$B$10 -> 3000 | AD5: ='SF(M2) Info'!$B$10 -> 3000 | AE5: ='SF(M2) Info'!$B$10 -> 3000 | AF5: ='SF(M2) Info'!$B$10 -> 3000 | AG5: =SUM(B5:AF5) -> 90000
A6: Land Cost($/mi) | B6: ='SF(M2) Info'!B9*25/8.25 -> 0 | C6: ='SF(M2) Info'!$B$8*5280 -> 5280 | D6: ='SF(M2) Info'!$B$8*5280 -> 5280 | E6: ='SF(M2) Info'!$B$8*5280 -> 5280 | F6: ='SF(M2) Info'!$B$8*5280 -> 5280 | G6: ='SF(M2) Info'!$B$8*5280 -> 5280 | H6: ='SF(M2) Info'!$B$8*5280 -> 5280 | I6: ='SF(M2) Info'!$B$8*5280 -> 5280 | J6: ='SF(M2) Info'!$B$8*5280 -> 5280 | K6: ='SF(M2) Info'!$B$8*5280 -> 5280 | L6: ='SF(M2) Info'!$B$8*5280 -> 5280 | M6: ='SF(M2) Info'!$B$8*5280 -> 5280 | N6: ='SF(M2) Info'!$B$8*5280 -> 5280 | O6: ='SF(M2) Info'!$B$8*5280 -> 5280 | P6: ='SF(M2) Info'!$B$8*5280 -> 5280 | Q6: ='SF(M2) Info'!$B$8*5280 -> 5280 | R6: ='SF(M2) Info'!$B$8*5280 -> 5280 | S6: ='SF(M2) Info'!$B$8*5280 -> 5280 | T6: ='SF(M2) Info'!$B$8*5280 -> 5280 | U6: ='SF(M2) Info'!$B$8*5280 -> 5280 | V6: ='SF(M2) Info'!$B$8*5280 -> 5280 | W6: ='SF(M2) Info'!$B$8*5280 -> 5280 | X6: ='SF(M2) Info'!$B$8*5280 -> 5280 | Y6: ='SF(M2) Info'!$B$8*5280 -> 5280 | Z6: ='SF(M2) Info'!$B$8*5280 -> 5280 | AA6: ='SF(M2) Info'!$B$8*5280 -> 5280 | AB6: ='SF(M2) Info'!$B$8*5280 -> 5280 | AC6: ='SF(M2) Info'!$B$8*5280 -> 5280 | AD6: ='SF(M2) Info'!$B$8*5280 -> 5280 | AE6: ='SF(M2) Info'!$B$8*5280 -> 5280 | AF6: ='SF(M2) Info'!$B$8*5280 -> 5280 | AG6: =SUM(B6:AF6) -> 158400
A7: Snow Fence Recycling Cost (US dollars/mi) | B7: 0 | C7: 0 | D7: 0 | E7: 0 | F7: 0 | G7: 0 | H7: 0 | I7: 0 | J7: 0 | K7: 0 | L7: 0 | M7: 0 | N7: 0 | O7: 0 | P7: 0 | Q7: 0 | R7: 0 | S7: 0 | T7: 0 | U7: 0 | V7: 0 | W7: 0 | X7: 0 | Y7: 0 | Z7: 0 | AA7: 0 | AB7: 0 | AC7: 0 | AD7: 0 | AE7: 0 | AF7: ='SF(M2) Info'!B16*'SF(M2) Info'!B5/'PV(SF)(M2) Info'!F3 -> 1320 | AG7: =SUM(B7:AF7) -> 1320
A8: Total Snow Fence Costs (US dollars/mi) | B8: =SUM(B4:B7) -> 312164.16 | C8: 8280 | D8: 8280 | E8: 8280 | F8: 8280 | G8: 8280 | H8: 8280 | I8: 8280 | J8: 8280 | K8: 8280 | L8: 8280 | M8: 8280 | N8: 8280 | O8: 8280 | P8: 8280 | Q8: 8280 | R8: 8280 | S8: 8280 | T8: 8280 | U8: 8280 | V8: 8280 | W8: 8280 | X8: 8280 | Y8: 8280 | Z8: 8280 | AA8: 8280 | AB8: 8280 | AC8: 8280 | AD8: 8280 | AE8: 8280 | AF8: 9600 | AG8: 561884.16
A10: Benfits
A11: Snow Fence Traffic Delay Cost Saving (US dollars/mi) | B11: 0 | C11: ='SF(M2) Info'!$B$11 -> 34486.028 | D11: ='SF(M2) Info'!$B$11 -> 34486.028 | E11: ='SF(M2) Info'!$B$11 -> 34486.028 | F11: ='SF(M2) Info'!$B$11 -> 34486.028 | G11: ='SF(M2) Info'!$B$11 -> 34486.028 | H11: ='SF(M2) Info'!$B$11 -> 34486.028 | I11: ='SF(M2) Info'!$B$11 -> 34486.028 | J11: ='SF(M2) Info'!$B$11 -> 34486.028 | K11: ='SF(M2) Info'!$B$11 -> 34486.028 | L11: ='SF(M2) Info'!$B$11 -> 34486.028 | M11: ='SF(M2) Info'!$B$11 -> 34486.028 | N11: ='SF(M2) Info'!$B$11 -> 34486.028 | O11: ='SF(M2) Info'!$B$11 -> 34486.028 | P11: ='SF(M2) Info'!$B$11 -> 34486.028 | Q11: ='SF(M2) Info'!$B$11 -> 34486.028 | R11: ='SF(M2) Info'!$B$11 -> 34486.028 | S11: ='SF(M2) Info'!$B$11 -> 34486.028 | T11: ='SF(M2) Info'!$B$11 -> 34486.028 | U11: ='SF(M2) Info'!$B$11 -> 34486.028 | V11: ='SF(M2) Info'!$B$11 -> 34486.028 | W11: ='SF(M2) Info'!$B$11 -> 34486.028 | X11: ='SF(M2) Info'!$B$11 -> 34486.028 | Y11: ='SF(M2) Info'!$B$11 -> 34486.028 | Z11: ='SF(M2) Info'!$B$11 -> 34486.028 | AA11: ='SF(M2) Info'!$B$11 -> 34486.028 | AB11: ='SF(M2) Info'!$B$11 -> 34486.028 | AC11: ='SF(M2) Info'!$B$11 -> 34486.028 | AD11: ='SF(M2) Info'!$B$11 -> 34486.028 | AE11: ='SF(M2) Info'!$B$11 -> 34486.028 | AF11: ='SF(M2) Info'!$B$11 -> 34486.028 | AG11: =SUM(B11:AF11) -> 1034580.84
A12: Snow Fence Traffic Safety Cost Saving (US dollars/mi) | B12: 0 | C12: ='SF(M2) Info'!$B$12 -> 10207.088 | D12: ='SF(M2) Info'!$B$12 -> 10207.088 | E12: ='SF(M2) Info'!$B$12 -> 10207.088 | F12: ='SF(M2) Info'!$B$12 -> 10207.088 | G12: ='SF(M2) Info'!$B$12 -> 10207.088 | H12: ='SF(M2) Info'!$B$12 -> 10207.088 | I12: ='SF(M2) Info'!$B$12 -> 10207.088 | J12: ='SF(M2) Info'!$B$12 -> 10207.088 | K12: ='SF(M2) Info'!$B$12 -> 10207.088 | L12: ='SF(M2) Info'!$B$12 -> 10207.088 | M12: ='SF(M2) Info'!$B$12 -> 10207.088 | N12: ='SF(M2) Info'!$B$12 -> 10207.088 | O12: ='SF(M2) Info'!$B$12 -> 10207.088 | P12: ='SF(M2) Info'!$B$12 -> 10207.088 | Q12: ='SF(M2) Info'!$B$12 -> 10207.088 | R12: ='SF(M2) Info'!$B$12 -> 10207.088 | S12: ='SF(M2) Info'!$B$12 -> 10207.088 | T12: ='SF(M2) Info'!$B$12 -> 10207.088 | U12: ='SF(M2) Info'!$B$12 -> 10207.088 | V12: ='SF(M2) Info'!$B$12 -> 10207.088 | W12: ='SF(M2) Info'!$B$12 -> 10207.088 | X12: ='SF(M2) Info'!$B$12 -> 10207.088 | Y12: ='SF(M2) Info'!$B$12 -> 10207.088 | Z12: ='SF(M2) Info'!$B$12 -> 10207.088 | AA12: ='SF(M2) Info'!$B$12 -> 10207.088 | AB12: ='SF(M2) Info'!$B$12 -> 10207.088 | AC12: ='SF(M2) Info'!$B$12 -> 10207.088 | AD12: ='SF(M2) Info'!$B$12 -> 10207.088 | AE12: ='SF(M2) Info'!$B$12 -> 10207.088 | AF12: ='SF(M2) Info'!$B$12 -> 10207.088 | AG12: 306212.64
A13: Drifting Cost Saving (US dollars/mi) | B13: 0 | C13: ='SF(M2) Info'!$B$13 -> 29638 | D13: ='SF(M2) Info'!$B$13 -> 29638 | E13: ='SF(M2) Info'!$B$13 -> 29638 | F13: ='SF(M2) Info'!$B$13 -> 29638 | G13: ='SF(M2) Info'!$B$13 -> 29638 | H13: ='SF(M2) Info'!$B$13 -> 29638 | I13: ='SF(M2) Info'!$B$13 -> 29638 | J13: ='SF(M2) Info'!$B$13 -> 29638 | K13: ='SF(M2) Info'!$B$13 -> 29638 | L13: ='SF(M2) Info'!$B$13 -> 29638 | M13: ='SF(M2) Info'!$B$13 -> 29638 | N13: ='SF(M2) Info'!$B$13 -> 29638 | O13: ='SF(M2) Info'!$B$13 -> 29638 | P13: ='SF(M2) Info'!$B$13 -> 29638 | Q13: ='SF(M2) Info'!$B$13 -> 29638 | R13: ='SF(M2) Info'!$B$13 -> 29638 | S13: ='SF(M2) Info'!$B$13 -> 29638 | T13: ='SF(M2) Info'!$B$13 -> 29638 | U13: ='SF(M2) Info'!$B$13 -> 29638 | V13: ='SF(M2) Info'!$B$13 -> 29638 | W13: ='SF(M2) Info'!$B$13 -> 29638 | X13: ='SF(M2) Info'!$B$13 -> 29638 | Y13: ='SF(M2) Info'!$B$13 -> 29638 | Z13: ='SF(M2) Info'!$B$13 -> 29638 | AA13: ='SF(M2) Info'!$B$13 -> 29638 | AB13: ='SF(M2) Info'!$B$13 -> 29638 | AC13: ='SF(M2) Info'!$B$13 -> 29638 | AD13: ='SF(M2) Info'!$B$13 -> 29638 | AE13: ='SF(M2) Info'!$B$13 -> 29638 | AF13: ='SF(M2) Info'!$B$13 -> 29638 | AG13: 889140
A14: Blow Ice Cost Saving (US dollars/mi) | B14: 0 | C14: ='SF(M2) Info'!$B$14 -> 12826.93333 | D14: ='SF(M2) Info'!$B$14 -> 12826.93333 | E14: ='SF(M2) Info'!$B$14 -> 12826.93333 | F14: ='SF(M2) Info'!$B$14 -> 12826.93333 | G14: ='SF(M2) Info'!$B$14 -> 12826.93333 | H14: ='SF(M2) Info'!$B$14 -> 12826.93333 | I14: ='SF(M2) Info'!$B$14 -> 12826.93333 | J14: ='SF(M2) Info'!$B$14 -> 12826.93333 | K14: ='SF(M2) Info'!$B$14 -> 12826.93333 | L14: ='SF(M2) Info'!$B$14 -> 12826.93333 | M14: ='SF(M2) Info'!$B$14 -> 12826.93333 | N14: ='SF(M2) Info'!$B$14 -> 12826.93333 | O14: ='SF(M2) Info'!$B$14 -> 12826.93333 | P14: ='SF(M2) Info'!$B$14 -> 12826.93333 | Q14: ='SF(M2) Info'!$B$14 -> 12826.93333 | R14: ='SF(M2) Info'!$B$14 -> 12826.93333 | S14: ='SF(M2) Info'!$B$14 -> 12826.93333 | T14: ='SF(M2) Info'!$B$14 -> 12826.93333 | U14: ='SF(M2) Info'!$B$14 -> 12826.93333 | V14: ='SF(M2) Info'!$B$14 -> 12826.93333 | W14: ='SF(M2) Info'!$B$14 -> 12826.93333 | X14: ='SF(M2) Info'!$B$14 -> 12826.93333 | Y14: ='SF(M2) Info'!$B$14 -> 12826.93333 | Z14: ='SF(M2) Info'!$B$14 -> 12826.93333 | AA14: ='SF(M2) Info'!$B$14 -> 12826.93333 | AB14: ='SF(M2) Info'!$B$14 -> 12826.93333 | AC14: ='SF(M2) Info'!$B$14 -> 12826.93333 | AD14: ='SF(M2) Info'!$B$14 -> 12826.93333 | AE14: ='SF(M2) Info'!$B$14 -> 12826.93333 | AF14: ='SF(M2) Info'!$B$14 -> 12826.93333 | AG14: 384808
A15: Carbon Emission Cost Saving (US dollars/mi) | B15: 0 | C15: ='SF(M2) Info'!$B$15 -> 241.4 | D15: ='SF(M2) Info'!$B$15 -> 241.4 | E15: ='SF(M2) Info'!$B$15 -> 241.4 | F15: ='SF(M2) Info'!$B$15 -> 241.4 | G15: ='SF(M2) Info'!$B$15 -> 241.4 | H15: ='SF(M2) Info'!$B$15 -> 241.4 | I15: ='SF(M2) Info'!$B$15 -> 241.4 | J15: ='SF(M2) Info'!$B$15 -> 241.4 | K15: ='SF(M2) Info'!$B$15 -> 241.4 | L15: ='SF(M2) Info'!$B$15 -> 241.4 | M15: ='SF(M2) Info'!$B$15 -> 241.4 | N15: ='SF(M2) Info'!$B$15 -> 241.4 | O15: ='SF(M2) Info'!$B$15 -> 241.4 | P15: ='SF(M2) Info'!$B$15 -> 241.4 | Q15: ='SF(M2) Info'!$B$15 -> 241.4 | R15: ='SF(M2) Info'!$B$15 -> 241.4 | S15: ='SF(M2) Info'!$B$15 -> 241.4 | T15: ='SF(M2) Info'!$B$15 -> 241.4 | U15: ='SF(M2) Info'!$B$15 -> 241.4 | V15: ='SF(M2) Info'!$B$15 -> 241.4 | W15: ='SF(M2) Info'!$B$15 -> 241.4 | X15: ='SF(M2) Info'!$B$15 -> 241.4 | Y15: ='SF(M2) Info'!$B$15 -> 241.4 | Z15: ='SF(M2) Info'!$B$15 -> 241.4 | AA15: ='SF(M2) Info'!$B$15 -> 241.4 | AB15: ='SF(M2) Info'!$B$15 -> 241.4 | AC15: ='SF(M2) Info'!$B$15 -> 241.4 | AD15: ='SF(M2) Info'!$B$15 -> 241.4 | AE15: ='SF(M2) Info'!$B$15 -> 241.4 | AF15: ='SF(M2) Info'!$B$15 -> 241.4 | AG15: 7242
A16: Snow Fence Grant (US dollars/mi) | B16: ='SF(M2) Info'!B18*B4 -> 0 | C16: 0 | D16: 0 | E16: 0 | F16: 0 | G16: 0 | H16: 0 | I16: 0 | J16: 0 | K16: 0 | L16: 0 | M16: 0 | N16: 0 | O16: 0 | P16: 0 | Q16: 0 | R16: 0 | S16: 0 | T16: 0 | U16: 0 | V16: 0 | W16: 0 | X16: 0 | Y16: 0 | Z16: 0 | AA16: 0 | AB16: 0 | AC16: 0 | AD16: 0 | AE16: 0 | AF16: 0 | AG16: 0
A17: Salvage Value (US dollars/mi) | B17: =0 -> 0 | C17: =0 -> 0 | D17: =0 -> 0 | E17: =0 -> 0 | F17: =0 -> 0 | G17: =0 -> 0 | H17: =0 -> 0 | I17: =0 -> 0 | J17: =0 -> 0 | K17: =0 -> 0 | L17: =0 -> 0 | M17: =0 -> 0 | N17: =0 -> 0 | O17: =0 -> 0 | P17: =0 -> 0 | Q17: =0 -> 0 | R17: =0 -> 0 | S17: =0 -> 0 | T17: =0 -> 0 | U17: =0 -> 0 | V17: =0 -> 0 | W17: =0 -> 0 | X17: =0 -> 0 | Y17: =0 -> 0 | Z17: =0 -> 0 | AA17: =0 -> 0 | AB17: =0 -> 0 | AC17: =0 -> 0 | AD17: =0 -> 0 | AE17: =0 -> 0 | AF17: ='SF(M2) Info'!B17*'SF(M2) Info'!B5/'PV(SF)(M2) Info'!F3 -> 451 | AG17: 451
A18: Total Snow Fence Revenue (US dollars/mi) | B18: =SUM(B11:B17) -> 0 | C18: 87399.44933 | D18: 87399.44933 | E18: 87399.44933 | F18: 87399.44933 | G18: 87399.44933 | H18: 87399.44933 | I18: 87399.44933 | J18: 87399.44933 | K18: 87399.44933 | L18: 87399.44933 | M18: 87399.44933 | N18: 87399.44933 | O18: 87399.44933 | P18: 87399.44933 | Q18: 87399.44933 | R18: 87399.44933 | S18: 87399.44933 | T18: 87399.44933 | U18: 87399.44933 | V18: 87399.44933 | W18: 87399.44933 | X18: 87399.44933 | Y18: 87399.44933 | Z18: 87399.44933 | AA18: 87399.44933 | AB18: 87399.44933 | AC18: 87399.44933 | AD18: 87399.44933 | AE18: 87399.44933 | AF18: 87850.44933 | AG18: 2622434.48
A20: Cashflow
A21: Year | B21: 0 | C21: 1 | D21: 2 | E21: 3 | F21: 4 | G21: 5 | H21: 6 | I21: 7 | J21: 8 | K21: 9 | L21: 10 | M21: 11 | N21: 12 | O21: 13 | P21: 14 | Q21: 15 | R21: 16 | S21: 17 | T21: 18 | U21: 19 | V21: 20 | W21: 21 | X21: 22 | Y21: 23 | Z21: 24 | AA21: 25 | AB21: 26 | AC21: 27 | AD21: 28 | AE21: 29 | AF21: 30 | AG21: Payback | AH21: NPV | AI21: IRR
A22: Discount factor (End of year) | B22: =1 -> 1 | C22: =1/(1+'SF(M2) Info'!$B$19)^SF_CBA!C21 -> 0.9965122073 | D22: =1/(1+'SF(M2) Info'!$B$19)^SF_CBA!D21 -> 0.9930365792 | E22: =1/(1+'SF(M2) Info'!$B$19)^SF_CBA!E21 -> 0.9895730735 | F22: =1/(1+'SF(M2) Info'!$B$19)^SF_CBA!F21 -> 0.9861216477 | G22: =1/(1+'SF(M2) Info'!$B$19)^SF_CBA!G21 -> 0.9826822598 | H22: =1/(1+'SF(M2) Info'!$B$19)^SF_CBA!H21 -> 0.9792548678 | I22: =1/(1+'SF(M2) Info'!$B$19)^SF_CBA!I21 -> 0.9758394298 | J22: =1/(1+'SF(M2) Info'!$B$19)^SF_CBA!J21 -> 0.9724359041 | K22: =1/(1+'SF(M2) Info'!$B$19)^SF_CBA!K21 -> 0.9690442492 | L22: =1/(1+'SF(M2) Info'!$B$19)^SF_CBA!L21 -> 0.9656644238 | M22: =1/(1+'SF(M2) Info'!$B$19)^SF_CBA!M21 -> 0.9622963864 | N22: =1/(1+'SF(M2) Info'!$B$19)^SF_CBA!N21 -> 0.9589400961 | O22: =1/(1+'SF(M2) Info'!$B$19)^SF_CBA!O21 -> 0.9555955118 | P22: =1/(1+'SF(M2) Info'!$B$19)^SF_CBA!P21 -> 0.9522625927 | Q22: =1/(1+'SF(M2) Info'!$B$19)^SF_CBA!Q21 -> 0.9489412982 | R22: =1/(1+'SF(M2) Info'!$B$19)^SF_CBA!R21 -> 0.9456315876 | S22: =1/(1+'SF(M2) Info'!$B$19)^SF_CBA!S21 -> 0.9423334206 | T22: =1/(1+'SF(M2) Info'!$B$19)^SF_CBA!T21 -> 0.939046757 | U22: =1/(1+'SF(M2) Info'!$B$19)^SF_CBA!U21 -> 0.9357715565 | V22: =1/(1+'SF(M2) Info'!$B$19)^SF_CBA!V21 -> 0.9325077793 | W22: =1/(1+'SF(M2) Info'!$B$19)^SF_CBA!W21 -> 0.9292553855 | X22: =1/(1+'SF(M2) Info'!$B$19)^SF_CBA!X21 -> 0.9260143353 | Y22: =1/(1+'SF(M2) Info'!$B$19)^SF_CBA!Y21 -> 0.9227845892 | Z22: =1/(1+'SF(M2) Info'!$B$19)^SF_CBA!Z21 -> 0.9195661078 | AA22: =1/(1+'SF(M2) Info'!$B$19)^SF_CBA!AA21 -> 0.9163588519 | AB22: =1/(1+'SF(M2) Info'!$B$19)^SF_CBA!AB21 -> 0.9131627821 | AC22: =1/(1+'SF(M2) Info'!$B$19)^SF_CBA!AC21 -> 0.9099778596 | AD22: =1/(1+'SF(M2) Info'!$B$19)^SF_CBA!AD21 -> 0.9068040455 | AE22: =1/(1+'SF(M2) Info'!$B$19)^SF_CBA!AE21 -> 0.9036413009 | AF22: =1/(1+'SF(M2) Info'!$B$19)^SF_CBA!AF21 -> 0.9004895873
A23: Total Annual Network Cash Flow (US dollars/mi) | B23: =(B18*$B$1-B8)*'PV(SF)(M2) Info'!$F$3 -> -312164.16 | C23: =(C18*$B$1-C8)*'PV(SF)(M2) Info'!$F$3 -> 79119.44933 | D23: =(D18*$B$1-D8)*'PV(SF)(M2) Info'!$F$3 -> 79119.44933 | E23: =(E18*$B$1-E8)*'PV(SF)(M2) Info'!$F$3 -> 79119.44933 | F23: =(F18*$B$1-F8)*'PV(SF)(M2) Info'!$F$3 -> 79119.44933 | G23: =(G18*$B$1-G8)*'PV(SF)(M2) Info'!$F$3 -> 79119.44933 | H23: =(H18*$B$1-H8)*'PV(SF)(M2) Info'!$F$3 -> 79119.44933 | I23: =(I18*$B$1-I8)*'PV(SF)(M2) Info'!$F$3 -> 79119.44933 | J23: =(J18*$B$1-J8)*'PV(SF)(M2) Info'!$F$3 -> 79119.44933 | K23: =(K18*$B$1-K8)*'PV(SF)(M2) Info'!$F$3 -> 79119.44933 | L23: =(L18*$B$1-L8)*'PV(SF)(M2) Info'!$F$3 -> 79119.44933 | M23: =(M18*$B$1-M8)*'PV(SF)(M2) Info'!$F$3 -> 79119.44933 | N23: =(N18*$B$1-N8)*'PV(SF)(M2) Info'!$F$3 -> 79119.44933 | O23: =(O18*$B$1-O8)*'PV(SF)(M2) Info'!$F$3 -> 79119.44933 | P23: =(P18*$B$1-P8)*'PV(SF)(M2) Info'!$F$3 -> 79119.44933 | Q23: =(Q18*$B$1-Q8)*'PV(SF)(M2) Info'!$F$3 -> 79119.44933 | R23: =(R18*$B$1-R8)*'PV(SF)(M2) Info'!$F$3 -> 79119.44933 | S23: =(S18*$B$1-S8)*'PV(SF)(M2) Info'!$F$3 -> 79119.44933 | T23: =(T18*$B$1-T8)*'PV(SF)(M2) Info'!$F$3 -> 79119.44933 | U23: =(U18*$B$1-U8)*'PV(SF)(M2) Info'!$F$3 -> 79119.44933 | V23: =(V18*$B$1-V8)*'PV(SF)(M2) Info'!$F$3 -> 79119.44933 | W23: =(W18*$B$1-W8)*'PV(SF)(M2) Info'!$F$3 -> 79119.44933 | X23: =(X18*$B$1-X8)*'PV(SF)(M2) Info'!$F$3 -> 79119.44933 | Y23: =(Y18*$B$1-Y8)*'PV(SF)(M2) Info'!$F$3 -> 79119.44933 | Z23: =(Z18*$B$1-Z8)*'PV(SF)(M2) Info'!$F$3 -> 79119.44933 | AA23: =(AA18*$B$1-AA8)*'PV(SF)(M2) Info'!$F$3 -> 79119.44933 | AB23: =(AB18*$B$1-AB8)*'PV(SF)(M2) Info'!$F$3 -> 79119.44933 | AC23: =(AC18*$B$1-AC8)*'PV(SF)(M2) Info'!$F$3 -> 79119.44933 | AD23: =(AD18*$B$1-AD8)*'PV(SF)(M2) Info'!$F$3 -> 79119.44933 | AE23: =(AE18*$B$1-AE8)*'PV(SF)(M2) Info'!$F$3 -> 79119.44933 | AF23: =(AF18*$B$1-AF8)*'PV(SF)(M2) Info'!$F$3 -> 78250.44933 | AG23: =MATCH(TRUE,INDEX(C24:AF24>0,0),0) -> 4 | AH23: =AF24 -> 1936541.615 | AI23: =IRR(B23:AF23) -> 0.2531629607
A24: Present Value | B24: =B23*B22 -> -312164.16 | C24: =B24+C23*C22 -> -233320.6629 | D24: -154752.1556 | E24: -76457.67894 | F24: 1563.722805 | G24: 79313.00207 | H24: 156791.108 | I24: 233998.9863 | J24: 310937.5795 | K24: 387607.8269 | L24: 464010.6644 | M24: 540147.0245 | N24: 616017.8369 | O24: 691624.0276 | P24: 766966.5195 | Q24: 842046.2325 | R24: 916864.083 | S24: 991420.9843 | T24: 1065717.847 | U24: 1139755.577 | V24: 1213535.079 | W24: 1287057.253 | X24: 1360322.998 | Y24: 1433333.206 | Z24: 1506088.77 | AA24: 1578590.578 | AB24: 1650839.514 | AC24: 1722836.462 | AD24: 1794582.298 | AE24: 1866077.9 | AF24: 1936541.615
A25: Option (Existing Snow Fence)
A26: Total Annual Network Cash Flow (US dollars/mi) | B26: =('SF(M2) Info'!C19-'SF(M2) Info'!C18)*'SF(M2) Info'!C5-B6*'PV(SF)(M2) Info'!F3 -> -7444.8 | C26: =(C18*$B$1-C6-C5)*'PV(SF)(M2) Info'!$F$3 -> 79119.44933 | D26: =(D18*$B$1-D6-D5)*'PV(SF)(M2) Info'!$F$3 -> 79119.44933 | E26: =(E18*$B$1-E6-E5)*'PV(SF)(M2) Info'!$F$3 -> 79119.44933 | F26: =(F18*$B$1-F6-F5)*'PV(SF)(M2) Info'!$F$3 -> 79119.44933 | G26: =(G18*$B$1-G6-G5)*'PV(SF)(M2) Info'!$F$3 -> 79119.44933 | H26: =(H18*$B$1-H6-H5)*'PV(SF)(M2) Info'!$F$3 -> 79119.44933 | I26: =(I18*$B$1-I6-I5)*'PV(SF)(M2) Info'!$F$3 -> 79119.44933 | J26: =(J18*$B$1-J6-J5)*'PV(SF)(M2) Info'!$F$3 -> 79119.44933 | K26: =(K18*$B$1-K6-K5)*'PV(SF)(M2) Info'!$F$3 -> 79119.44933 | L26: =(L18*$B$1-L6-L5)*'PV(SF)(M2) Info'!$F$3 -> 79119.44933 | M26: =(M18*$B$1-M6-M5)*'PV(SF)(M2) Info'!$F$3 -> 79119.44933 | N26: =(N18*$B$1-N6-N5)*'PV(SF)(M2) Info'!$F$3 -> 79119.44933 | O26: =(O18*$B$1-O6-O5)*'PV(SF)(M2) Info'!$F$3 -> 79119.44933 | P26: =(P18*$B$1-P6-P5)*'PV(SF)(M2) Info'!$F$3 -> 79119.44933 | Q26: =(Q18*$B$1-Q6-Q5)*'PV(SF)(M2) Info'!$F$3 -> 79119.44933 | R26: =(R18*$B$1-R6-R5)*'PV(SF)(M2) Info'!$F$3 -> 79119.44933 | S26: =(S18*$B$1-S6-S5)*'PV(SF)(M2) Info'!$F$3 -> 79119.44933 | T26: =(T18*$B$1-T6-T5)*'PV(SF)(M2) Info'!$F$3 -> 79119.44933 | U26: =(U18*$B$1-U6-U5)*'PV(SF)(M2) Info'!$F$3 -> 79119.44933 | V26: =(V18*$B$1-V6-V5)*'PV(SF)(M2) Info'!$F$3 -> 79119.44933 | W26: =(W18*$B$1-W6-W5)*'PV(SF)(M2) Info'!$F$3 -> 79119.44933 | X26: =(X18*$B$1-X6-X5)*'PV(SF)(M2) Info'!$F$3 -> 79119.44933 | Y26: =(Y18*$B$1-Y6-Y5)*'PV(SF)(M2) Info'!$F$3 -> 79119.44933 | Z26: =(Z18*$B$1-Z6-Z5)*'PV(SF)(M2) Info'!$F$3 -> 79119.44933 | AA26: =(AA18*$B$1-AA6-AA5)*'PV(SF)(M2) Info'!$F$3 -> 79119.44933 | AB26: =(AB18*$B$1-AB6-AB5)*'PV(SF)(M2) Info'!$F$3 -> 79119.44933 | AC26: =(AC18*$B$1-AC6-AC5)*'PV(SF)(M2) Info'!$F$3 -> 79119.44933 | AD26: =(AD18*$B$1-AD6-AD5)*'PV(SF)(M2) Info'!$F$3 -> 79119.44933 | AE26: =(AE18*$B$1-AE6-AE5)*'PV(SF)(M2) Info'!$F$3 -> 79119.44933 | AF26: =(AF18*$B$1-AF6-AF5)*'PV(SF)(M2) Info'!$F$3 -> 79570.44933 | AG26: =MATCH(TRUE,INDEX(C27:AF27>0,0),0) -> 1 | AH26: =AF27 -> 2242449.621 | AI26: =IRR(B26:AF26) -> 10.62747815
A27: Present Value | B27: =B26*B22 -> -7444.8 | C27: =B27+C26*C22 -> 71398.69709 | D27: 149967.2044 | E27: 228261.6811 | F27: 306283.0828 | G27: 384032.3621 | H27: 461510.468 | I27: 538718.3463 | J27: 615656.9395 | K27: 692327.1869 | L27: 768730.0244 | M27: 844866.3845 | N27: 920737.1969 | O27: 996343.3876 | P27: 1071685.88 | Q27: 1146765.592 | R27: 1221583.443 | S27: 1296140.344 | T27: 1370437.207 | U27: 1444474.937 | V27: 1518254.439 | W27: 1591776.613 | X27: 1665042.358 | Y27: 1738052.566 | Z27: 1810808.13 | AA27: 1883309.938 | AB27: 1955558.874 | AC27: 2027555.822 | AD27: 2099301.658 | AE27: 2170797.26 | AF27: 2242449.621

Sheet PV(SF) Revenue_Base (hidden)
A1: Base Case: Utility Sell without social cost saving
A2: # of panels per mile | B2: ='PV(SF)(M2) Info'!F5 -> 3520
A3: Rated Maximum Power at STC (Watt) | B3: ='PV(SF)(M2) Info'!F4 -> 100
A4: Estimated AC Energy output (KWH/year) | B4: ='PV(SF)(M2) Info'!H18/'PV(SF)(M2) Info'!F3 -> 352367.0506
A5: Degradation Rate | B5: ='PV(SF)(M2) Info'!F8 -> 0.008
A6: GHG Emission Ratio (Coal/Solar) | B6: ='PV(SF)(M2) Info'!F25 -> 8.37
A8: Year | B8: 0 | C8: 1 | D8: 2 | E8: 3 | F8: 4 | G8: 5 | H8: 6 | I8: 7 | J8: 8 | K8: 9 | L8: 10 | M8: 11 | N8: 12 | O8: 13 | P8: 14 | Q8: 15 | R8: 16 | S8: 17 | T8: 18 | U8: 19 | V8: 20 | W8: 21 | X8: 22 | Y8: 23 | Z8: 24 | AA8: 25 | AB8: Total
A9: kwh output | B9: 0 | C9: =B4 -> 352367.0506 | D9: =C9*(1-$B$5) -> 349548.1142 | E9: 346751.7292 | F9: 343977.7154 | G9: 341225.8937 | H9: 338496.0865 | I9: 335788.1178 | J9: 333101.8129 | K9: 330436.9984 | L9: 327793.5024 | M9: 325171.1544 | N9: 322569.7852 | O9: 319989.2269 | P9: 317429.3131 | Q9: 314889.8786 | R9: 312370.7595 | S9: 309871.7935 | T9: 307392.8191 | U9: 304933.6766 | V9: 302494.2071 | W9: 300074.2535 | X9: 297673.6595 | Y9: 295292.2702 | Z9: 292929.932 | AA9: 290586.4926 | AB9: =SUM(B9:AA9) -> 8013156.243
A10: Estimated Selling Rate in Average ($/KWH) | B10: ='PV(SF)(M2) Info'!D20 -> 0.11 | C10: =Table718[[#This Row],[0]] -> 0.11 | D10: =Table718[[#This Row],[1]] -> 0.11 | E10: =Table718[[#This Row],[2]] -> 0.11 | F10: =Table718[[#This Row],[3]] -> 0.11 | G10: =Table718[[#This Row],[4]] -> 0.11 | H10: =Table718[[#This Row],[5]] -> 0.11 | I10: =Table718[[#This Row],[6]] -> 0.11 | J10: =Table718[[#This Row],[7]] -> 0.11 | K10: =Table718[[#This Row],[8]] -> 0.11 | L10: =Table718[[#This Row],[9]] -> 0.11 | M10: =Table718[[#This Row],[10]] -> 0.11 | N10: =Table718[[#This Row],[11]] -> 0.11 | O10: =Table718[[#This Row],[12]] -> 0.11 | P10: =Table718[[#This Row],[13]] -> 0.11 | Q10: =Table718[[#This Row],[14]] -> 0.11 | R10: =Table718[[#This Row],[15]] -> 0.11 | S10: =Table718[[#This Row],[16]] -> 0.11 | T10: =Table718[[#This Row],[17]] -> 0.11 | U10: =Table718[[#This Row],[18]] -> 0.11 | V10: =Table718[[#This Row],[19]] -> 0.11 | W10: =Table718[[#This Row],[20]] -> 0.11 | X10: =Table718[[#This Row],[21]] -> 0.11 | Y10: =Table718[[#This Row],[22]] -> 0.11 | Z10: =Table718[[#This Row],[23]] -> 0.11 | AA10: =Table718[[#This Row],[24]] -> 0.11
A11: Energy Revenue ($/mi) | B11: =B9*B10 -> 0 | C11: 38760.37556 | D11: 38450.29256 | E11: 38142.69022 | F11: 37837.54869 | G11: 37534.84831 | H11: 37234.56952 | I11: 36936.69296 | J11: 36641.19942 | K11: 36348.06982 | L11: 36057.28527 | M11: 35768.82698 | N11: 35482.67637 | O11: 35198.81496 | P11: 34917.22444 | Q11: 34637.88664 | R11: 34360.78355 | S11: 34085.89728 | T11: 33813.2101 | U11: 33542.70442 | V11: 33274.36279 | W11: 33008.16788 | X11: 32744.10254 | Y11: 32482.14972 | Z11: 32222.29252 | AA11: 31964.51418 | AB11: =SUM(B11:AA11) -> 881447.1867
A12: Equivalent to (Short Ton) of Bituminous Coal Burned | B12: 0 | C12: =C9/'PV(SF)(M2) Info'!$F$17 -> 48.22608811 | D12: =D9/'PV(SF)(M2) Info'!$F$17 -> 47.8402794 | E12: =E9/'PV(SF)(M2) Info'!$F$17 -> 47.45755717 | F12: =F9/'PV(SF)(M2) Info'!$F$17 -> 47.07789671 | G12: =G9/'PV(SF)(M2) Info'!$F$17 -> 46.70127354 | H12: =H9/'PV(SF)(M2) Info'!$F$17 -> 46.32766335 | I12: =I9/'PV(SF)(M2) Info'!$F$17 -> 45.95704204 | J12: =J9/'PV(SF)(M2) Info'!$F$17 -> 45.5893857 | K12: =K9/'PV(SF)(M2) Info'!$F$17 -> 45.22467062 | L12: =L9/'PV(SF)(M2) Info'!$F$17 -> 44.86287325 | M12: =M9/'PV(SF)(M2) Info'!$F$17 -> 44.50397027 | N12: =N9/'PV(SF)(M2) Info'!$F$17 -> 44.14793851 | O12: =O9/'PV(SF)(M2) Info'!$F$17 -> 43.794755 | P12: =P9/'PV(SF)(M2) Info'!$F$17 -> 43.44439696 | Q12: =Q9/'PV(SF)(M2) Info'!$F$17 -> 43.09684178 | R12: =R9/'PV(SF)(M2) Info'!$F$17 -> 42.75206705 | S12: =S9/'PV(SF)(M2) Info'!$F$17 -> 42.41005051 | T12: =T9/'PV(SF)(M2) Info'!$F$17 -> 42.07077011 | U12: =U9/'PV(SF)(M2) Info'!$F$17 -> 41.73420395 | V12: =V9/'PV(SF)(M2) Info'!$F$17 -> 41.40033032 | W12: =W9/'PV(SF)(M2) Info'!$F$17 -> 41.06912767 | X12: =X9/'PV(SF)(M2) Info'!$F$17 -> 40.74057465 | Y12: =Y9/'PV(SF)(M2) Info'!$F$17 -> 40.41465005 | Z12: =Z9/'PV(SF)(M2) Info'!$F$17 -> 40.09133285 | AA12: =AA9/'PV(SF)(M2) Info'!$F$17 -> 39.77060219
A13: CO2 Emission Social Cost Saving (US dollars) | B13: 0 | C13: =C12*'PV(SF)(M2) Info'!$F$18*'PV(SF)(M2) Info'!$F$22*(1-1/$B$6)/1000 -> 4146.639809 | D13: =D12*'PV(SF)(M2) Info'!$F$18*'PV(SF)(M2) Info'!$F$22*(1-1/$B$6)/1000 -> 4113.466691 | E13: =E12*'PV(SF)(M2) Info'!$F$18*'PV(SF)(M2) Info'!$F$22*(1-1/$B$6)/1000 -> 4080.558957 | F13: =F12*'PV(SF)(M2) Info'!$F$18*'PV(SF)(M2) Info'!$F$22*(1-1/$B$6)/1000 -> 4047.914485 | G13: =G12*'PV(SF)(M2) Info'!$F$18*'PV(SF)(M2) Info'!$F$22*(1-1/$B$6)/1000 -> 4015.53117 | H13: =H12*'PV(SF)(M2) Info'!$F$18*'PV(SF)(M2) Info'!$F$22*(1-1/$B$6)/1000 -> 3983.40692 | I13: =I12*'PV(SF)(M2) Info'!$F$18*'PV(SF)(M2) Info'!$F$22*(1-1/$B$6)/1000 -> 3951.539665 | J13: =J12*'PV(SF)(M2) Info'!$F$18*'PV(SF)(M2) Info'!$F$22*(1-1/$B$6)/1000 -> 3919.927348 | K13: =K12*'PV(SF)(M2) Info'!$F$18*'PV(SF)(M2) Info'!$F$22*(1-1/$B$6)/1000 -> 3888.567929 | L13: =L12*'PV(SF)(M2) Info'!$F$18*'PV(SF)(M2) Info'!$F$22*(1-1/$B$6)/1000 -> 3857.459385 | M13: =M12*'PV(SF)(M2) Info'!$F$18*'PV(SF)(M2) Info'!$F$22*(1-1/$B$6)/1000 -> 3826.59971 | N13: =N12*'PV(SF)(M2) Info'!$F$18*'PV(SF)(M2) Info'!$F$22*(1-1/$B$6)/1000 -> 3795.986913 | O13: =O12*'PV(SF)(M2) Info'!$F$18*'PV(SF)(M2) Info'!$F$22*(1-1/$B$6)/1000 -> 3765.619017 | P13: =P12*'PV(SF)(M2) Info'!$F$18*'PV(SF)(M2) Info'!$F$22*(1-1/$B$6)/1000 -> 3735.494065 | Q13: =Q12*'PV(SF)(M2) Info'!$F$18*'PV(SF)(M2) Info'!$F$22*(1-1/$B$6)/1000 -> 3705.610113 | R13: =R12*'PV(SF)(M2) Info'!$F$18*'PV(SF)(M2) Info'!$F$22*(1-1/$B$6)/1000 -> 3675.965232 | S13: =S12*'PV(SF)(M2) Info'!$F$18*'PV(SF)(M2) Info'!$F$22*(1-1/$B$6)/1000 -> 3646.55751 | T13: =T12*'PV(SF)(M2) Info'!$F$18*'PV(SF)(M2) Info'!$F$22*(1-1/$B$6)/1000 -> 3617.38505 | U13: =U12*'PV(SF)(M2) Info'!$F$18*'PV(SF)(M2) Info'!$F$22*(1-1/$B$6)/1000 -> 3588.445969 | V13: =V12*'PV(SF)(M2) Info'!$F$18*'PV(SF)(M2) Info'!$F$22*(1-1/$B$6)/1000 -> 3559.738402 | W13: =W12*'PV(SF)(M2) Info'!$F$18*'PV(SF)(M2) Info'!$F$22*(1-1/$B$6)/1000 -> 3531.260494 | X13: =X12*'PV(SF)(M2) Info'!$F$18*'PV(SF)(M2) Info'!$F$22*(1-1/$B$6)/1000 -> 3503.01041 | Y13: =Y12*'PV(SF)(M2) Info'!$F$18*'PV(SF)(M2) Info'!$F$22*(1-1/$B$6)/1000 -> 3474.986327 | Z13: =Z12*'PV(SF)(M2) Info'!$F$18*'PV(SF)(M2) Info'!$F$22*(1-1/$B$6)/1000 -> 3447.186437 | AA13: =AA12*'PV(SF)(M2) Info'!$F$18*'PV(SF)(M2) Info'!$F$22*(1-1/$B$6)/1000 -> 3419.608945 | AB13: =SUM(B13:AA13) -> 94298.46695
A14: CH4 Emission Social Cost Saving (US dollars) | B14: 0 | C14: =C12*'PV(SF)(M2) Info'!$F$19*'PV(SF)(M2) Info'!$F$23*(1-1/$B$6)/1000000 -> 13.96226492 | D14: =D12*'PV(SF)(M2) Info'!$F$19*'PV(SF)(M2) Info'!$F$23*(1-1/$B$6)/1000000 -> 13.8505668 | E14: =E12*'PV(SF)(M2) Info'!$F$19*'PV(SF)(M2) Info'!$F$23*(1-1/$B$6)/1000000 -> 13.73976226 | F14: =F12*'PV(SF)(M2) Info'!$F$19*'PV(SF)(M2) Info'!$F$23*(1-1/$B$6)/1000000 -> 13.62984417 | G14: =G12*'PV(SF)(M2) Info'!$F$19*'PV(SF)(M2) Info'!$F$23*(1-1/$B$6)/1000000 -> 13.52080541 | H14: =H12*'PV(SF)(M2) Info'!$F$19*'PV(SF)(M2) Info'!$F$23*(1-1/$B$6)/1000000 -> 13.41263897 | I14: =I12*'PV(SF)(M2) Info'!$F$19*'PV(SF)(M2) Info'!$F$23*(1-1/$B$6)/1000000 -> 13.30533786 | J14: =J12*'PV(SF)(M2) Info'!$F$19*'PV(SF)(M2) Info'!$F$23*(1-1/$B$6)/1000000 -> 13.19889515 | K14: =K12*'PV(SF)(M2) Info'!$F$19*'PV(SF)(M2) Info'!$F$23*(1-1/$B$6)/1000000 -> 13.09330399 | L14: =L12*'PV(SF)(M2) Info'!$F$19*'PV(SF)(M2) Info'!$F$23*(1-1/$B$6)/1000000 -> 12.98855756 | M14: =M12*'PV(SF)(M2) Info'!$F$19*'PV(SF)(M2) Info'!$F$23*(1-1/$B$6)/1000000 -> 12.8846491 | N14: =N12*'PV(SF)(M2) Info'!$F$19*'PV(SF)(M2) Info'!$F$23*(1-1/$B$6)/1000000 -> 12.78157191 | O14: =O12*'PV(SF)(M2) Info'!$F$19*'PV(SF)(M2) Info'!$F$23*(1-1/$B$6)/1000000 -> 12.67931933 | P14: =P12*'PV(SF)(M2) Info'!$F$19*'PV(SF)(M2) Info'!$F$23*(1-1/$B$6)/1000000 -> 12.57788478 | Q14: =Q12*'PV(SF)(M2) Info'!$F$19*'PV(SF)(M2) Info'!$F$23*(1-1/$B$6)/1000000 -> 12.4772617 | R14: =R12*'PV(SF)(M2) Info'!$F$19*'PV(SF)(M2) Info'!$F$23*(1-1/$B$6)/1000000 -> 12.37744361 | S14: =S12*'PV(SF)(M2) Info'!$F$19*'PV(SF)(M2) Info'!$F$23*(1-1/$B$6)/1000000 -> 12.27842406 | T14: =T12*'PV(SF)(M2) Info'!$F$19*'PV(SF)(M2) Info'!$F$23*(1-1/$B$6)/1000000 -> 12.18019667 | U14: =U12*'PV(SF)(M2) Info'!$F$19*'PV(SF)(M2) Info'!$F$23*(1-1/$B$6)/1000000 -> 12.08275509 | V14: =V12*'PV(SF)(M2) Info'!$F$19*'PV(SF)(M2) Info'!$F$23*(1-1/$B$6)/1000000 -> 11.98609305 | W14: =W12*'PV(SF)(M2) Info'!$F$19*'PV(SF)(M2) Info'!$F$23*(1-1/$B$6)/1000000 -> 11.89020431 | X14: =X12*'PV(SF)(M2) Info'!$F$19*'PV(SF)(M2) Info'!$F$23*(1-1/$B$6)/1000000 -> 11.79508267 | Y14: =Y12*'PV(SF)(M2) Info'!$F$19*'PV(SF)(M2) Info'!$F$23*(1-1/$B$6)/1000000 -> 11.70072201 | Z14: =Z12*'PV(SF)(M2) Info'!$F$19*'PV(SF)(M2) Info'!$F$23*(1-1/$B$6)/1000000 -> 11.60711623 | AA14: =AA12*'PV(SF)(M2) Info'!$F$19*'PV(SF)(M2) Info'!$F$23*(1-1/$B$6)/1000000 -> 11.5142593 | AB14: =SUM(B14:AA14) -> 317.5149609
A15: N2O Emission Social Cost Saving (US dollars) | B15: 0 | C15: =C12*'PV(SF)(M2) Info'!$F$20*'PV(SF)(M2) Info'!$F$24*(1-1/$B$6)/1000000 -> 25.47858562 | D15: =D12*'PV(SF)(M2) Info'!$F$20*'PV(SF)(M2) Info'!$F$24*(1-1/$B$6)/1000000 -> 25.27475693 | E15: =E12*'PV(SF)(M2) Info'!$F$20*'PV(SF)(M2) Info'!$F$24*(1-1/$B$6)/1000000 -> 25.07255888 | F15: =F12*'PV(SF)(M2) Info'!$F$20*'PV(SF)(M2) Info'!$F$24*(1-1/$B$6)/1000000 -> 24.87197841 | G15: =G12*'PV(SF)(M2) Info'!$F$20*'PV(SF)(M2) Info'!$F$24*(1-1/$B$6)/1000000 -> 24.67300258 | H15: =H12*'PV(SF)(M2) Info'!$F$20*'PV(SF)(M2) Info'!$F$24*(1-1/$B$6)/1000000 -> 24.47561856 | I15: =I12*'PV(SF)(M2) Info'!$F$20*'PV(SF)(M2) Info'!$F$24*(1-1/$B$6)/1000000 -> 24.27981361 | J15: =J12*'PV(SF)(M2) Info'!$F$20*'PV(SF)(M2) Info'!$F$24*(1-1/$B$6)/1000000 -> 24.0855751 | K15: =K12*'PV(SF)(M2) Info'!$F$20*'PV(SF)(M2) Info'!$F$24*(1-1/$B$6)/1000000 -> 23.8928905 | L15: =L12*'PV(SF)(M2) Info'!$F$20*'PV(SF)(M2) Info'!$F$24*(1-1/$B$6)/1000000 -> 23.70174738 | M15: =M12*'PV(SF)(M2) Info'!$F$20*'PV(SF)(M2) Info'!$F$24*(1-1/$B$6)/1000000 -> 23.5121334 | N15: =N12*'PV(SF)(M2) Info'!$F$20*'PV(SF)(M2) Info'!$F$24*(1-1/$B$6)/1000000 -> 23.32403633 | O15: =O12*'PV(SF)(M2) Info'!$F$20*'PV(SF)(M2) Info'!$F$24*(1-1/$B$6)/1000000 -> 23.13744404 | P15: =P12*'PV(SF)(M2) Info'!$F$20*'PV(SF)(M2) Info'!$F$24*(1-1/$B$6)/1000000 -> 22.95234449 | Q15: =Q12*'PV(SF)(M2) Info'!$F$20*'PV(SF)(M2) Info'!$F$24*(1-1/$B$6)/1000000 -> 22.76872573 | R15: =R12*'PV(SF)(M2) Info'!$F$20*'PV(SF)(M2) Info'!$F$24*(1-1/$B$6)/1000000 -> 22.58657592 | S15: =S12*'PV(SF)(M2) Info'!$F$20*'PV(SF)(M2) Info'!$F$24*(1-1/$B$6)/1000000 -> 22.40588332 | T15: =T12*'PV(SF)(M2) Info'!$F$20*'PV(SF)(M2) Info'!$F$24*(1-1/$B$6)/1000000 -> 22.22663625 | U15: =U12*'PV(SF)(M2) Info'!$F$20*'PV(SF)(M2) Info'!$F$24*(1-1/$B$6)/1000000 -> 22.04882316 | V15: =V12*'PV(SF)(M2) Info'!$F$20*'PV(SF)(M2) Info'!$F$24*(1-1/$B$6)/1000000 -> 21.87243258 | W15: =W12*'PV(SF)(M2) Info'!$F$20*'PV(SF)(M2) Info'!$F$24*(1-1/$B$6)/1000000 -> 21.69745311 | X15: =X12*'PV(SF)(M2) Info'!$F$20*'PV(SF)(M2) Info'!$F$24*(1-1/$B$6)/1000000 -> 21.52387349 | Y15: =Y12*'PV(SF)(M2) Info'!$F$20*'PV(SF)(M2) Info'!$F$24*(1-1/$B$6)/1000000 -> 21.3516825 | Z15: =Z12*'PV(SF)(M2) Info'!$F$20*'PV(SF)(M2) Info'!$F$24*(1-1/$B$6)/1000000 -> 21.18086904 | AA15: =AA12*'PV(SF)(M2) Info'!$F$20*'PV(SF)(M2) Info'!$F$24*(1-1/$B$6)/1000000 -> 21.01142209 | AB15: =SUM(B15:AA15) -> 579.406863
A16: RECs ($/mi) | B16: =0 -> 0 | C16: =C9*'PV(SF)(M2) Info'!$B$30/1000 -> 229.0385829 | D16: =D9*'PV(SF)(M2) Info'!$B$30/1000 -> 227.2062742 | E16: =E9*'PV(SF)(M2) Info'!$B$30/1000 -> 225.388624 | F16: =F9*'PV(SF)(M2) Info'!$B$30/1000 -> 223.585515 | G16: =G9*'PV(SF)(M2) Info'!$B$30/1000 -> 221.7968309 | H16: =H9*'PV(SF)(M2) Info'!$B$30/1000 -> 220.0224562 | I16: =I9*'PV(SF)(M2) Info'!$B$30/1000 -> 218.2622766 | J16: =J9*'PV(SF)(M2) Info'!$B$30/1000 -> 216.5161784 | K16: =K9*'PV(SF)(M2) Info'!$B$30/1000 -> 214.784049 | L16: =L9*'PV(SF)(M2) Info'!$B$30/1000 -> 213.0657766 | M16: =M9*'PV(SF)(M2) Info'!$B$30/1000 -> 211.3612504 | N16: =N9*'PV(SF)(M2) Info'!$B$30/1000 -> 209.6703604 | O16: =O9*'PV(SF)(M2) Info'!$B$30/1000 -> 207.9929975 | P16: =P9*'PV(SF)(M2) Info'!$B$30/1000 -> 206.3290535 | Q16: =Q9*'PV(SF)(M2) Info'!$B$30/1000 -> 204.6784211 | R16: =R9*'PV(SF)(M2) Info'!$B$30/1000 -> 203.0409937 | S16: =S9*'PV(SF)(M2) Info'!$B$30/1000 -> 201.4166657 | T16: =T9*'PV(SF)(M2) Info'!$B$30/1000 -> 199.8053324 | U16: =U9*'PV(SF)(M2) Info'!$B$30/1000 -> 198.2068898 | V16: =V9*'PV(SF)(M2) Info'!$B$30/1000 -> 196.6212346 | W16: =W9*'PV(SF)(M2) Info'!$B$30/1000 -> 195.0482648 | X16: =X9*'PV(SF)(M2) Info'!$B$30/1000 -> 193.4878786 | Y16: =Y9*'PV(SF)(M2) Info'!$B$30/1000 -> 191.9399756 | Z16: =Z9*'PV(SF)(M2) Info'!$B$30/1000 -> 190.4044558 | AA16: =AA9*'PV(SF)(M2) Info'!$B$30/1000 -> 188.8812202 | AB16: =AB9*'PV(SF)(M2) Info'!$B$30/1000 -> 5208.551558
A17: Module Salvage Value ($/mi) | B17: 0 | C17: 0 | D17: 0 | E17: 0 | F17: 0 | G17: 0 | H17: 0 | I17: 0 | J17: 0 | K17: 0 | L17: 0 | M17: 0 | N17: 0 | O17: 0 | P17: 0 | Q17: 0 | R17: 0 | S17: 0 | T17: 0 | U17: 0 | V17: 0 | W17: 0 | X17: 0 | Y17: 0 | Z17: 0 | AA17: =$B$3*$B$2*'PV(SF)(M2) Info'!$B$4*'PV(SF)(M2) Info'!$B$22 -> 44880 | AB17: =SUM(B17:AA17) -> 44880
A18: Network Revenue ($/mi) | B18: =SUM(B13:B17)+B11 -> 0 | C18: 43175.4948 | D18: 42830.09085 | E18: 42487.45012 | F18: 42147.55052 | G18: 41810.37011 | H18: 41475.88715 | I18: 41144.08006 | J18: 40814.92742 | K18: 40488.408 | L18: 40164.50073 | M18: 39843.18473 | N18: 39524.43925 | O18: 39208.24373 | P18: 38894.57778 | Q18: 38583.42116 | R18: 38274.75379 | S18: 37968.55576 | T18: 37664.80732 | U18: 37363.48886 | V18: 37064.58095 | W18: 36768.0643 | X18: 36473.91979 | Y18: 36182.12843 | Z18: 35892.6714 | AA18: 80485.53003 | AB18: =SUM(B18:AA18) -> 1026731.127
A19: Network Revenue without Social Benefits ($/mi) | B19: =B11++B17 -> 0 | C19: =C11+C17 -> 38760.37556 | D19: 38450.29256 | E19: 38142.69022 | F19: 37837.54869 | G19: 37534.84831 | H19: 37234.56952 | I19: 36936.69296 | J19: 36641.19942 | K19: 36348.06982 | L19: 36057.28527 | M19: 35768.82698 | N19: 35482.67637 | O19: 35198.81496 | P19: 34917.22444 | Q19: 34637.88664 | R19: 34360.78355 | S19: 34085.89728 | T19: 33813.2101 | U19: 33542.70442 | V19: 33274.36279 | W19: 33008.16788 | X19: 32744.10254 | Y19: 32482.14972 | Z19: 32222.29252 | AA19: 76844.51418 | AB19: =SUM(B19:AA19) -> 926327.1867

Sheet PV(SF) Cost_Base (hidden)
A1: Base Case: Utility Sell without social cost saving
A2: # of panels per mile | B2: ='PV(SF)(M2) Info'!F5 -> 3520
A3: Rated Maximum Power at STC (Watt) | B3: ='PV(SF)(M2) Info'!F4 -> 100
A4: Appraisal period (years) | B4: ='PV(SF)(M2) Info'!B24 -> 25
A5: Direct Capital Costs | B5: ='PV(SF)(M2) Info'!H3 -> 1.735
A6: Indirect Capital Costs | B6: ='PV(SF)(M2) Info'!H4 -> 0.3908125
A7: Energy Storage System Costs | B7: =B3*B2*'PV(SF)(M2) Info'!H9 -> 315871.6
A8: O&M Parameters and Costs | B8: ='PV(SF)(M2) Info'!H5*B3*B2 -> 132000
A9: Recycling Costs | B9: ='PV(SF)(M2) Info'!B21*B3*B2 -> 59840
A10: Inverter Replacement | B10: ='PV(SF)(M2) Info'!B17*B2*B3 -> 31680
A12: Year | B12: 0 | C12: 1 | D12: 2 | E12: 3 | F12: 4 | G12: 5 | H12: 6 | I12: 7 | J12: 8 | K12: 9 | L12: 10 | M12: 11 | N12: 12 | O12: 13 | P12: 14 | Q12: 15 | R12: 16 | S12: 17 | T12: 18 | U12: 19 | V12: 20 | W12: 21 | X12: 22 | Y12: 23 | Z12: 24 | AA12: 25 | AB12: Total
A13: Direct Capital Costs | B13: =$B$5 -> 1.735 | C13: 0 | D13: 0 | E13: 0 | F13: 0 | G13: 0 | H13: 0 | I13: 0 | J13: 0 | K13: 0 | L13: 0 | M13: 0 | N13: 0 | O13: 0 | P13: 0 | Q13: 0 | R13: 0 | S13: 0 | T13: 0 | U13: 0 | V13: 0 | W13: 0 | X13: 0 | Y13: 0 | Z13: 0 | AA13: 0 | AB13: =SUM(B13:AA13) -> 1.735
A14: Indirect Capital Costs | B14: =$B$6 -> 0.3908125 | C14: 0 | D14: 0 | E14: 0 | F14: 0 | G14: 0 | H14: 0 | I14: 0 | J14: 0 | K14: 0 | L14: 0 | M14: 0 | N14: 0 | O14: 0 | P14: 0 | Q14: 0 | R14: 0 | S14: 0 | T14: 0 | U14: 0 | V14: 0 | W14: 0 | X14: 0 | Y14: 0 | Z14: 0 | AA14: 0 | AB14: 0.3908125
A15: Energy Storage System Costs | B15: =B7 -> 315871.6 | AB15: 315871.6
A16: O&M Parameters and Costs | B16: 0 | C16: =$B$8/$B$4 -> 5280 | D16: 5280 | E16: 5280 | F16: 5280 | G16: 5280 | H16: 5280 | I16: 5280 | J16: 5280 | K16: 5280 | L16: 5280 | M16: 5280 | N16: 5280 | O16: 5280 | P16: 5280 | Q16: 5280 | R16: 5280 | S16: 5280 | T16: 5280 | U16: 5280 | V16: 5280 | W16: 5280 | X16: 5280 | Y16: 5280 | Z16: 5280 | AA16: 5280 | AB16: 132000
A17: Inverter Replacement | B17: 0 | C17: 0 | D17: 0 | E17: 0 | F17: 0 | G17: 0 | H17: 0 | I17: 0 | J17: 0 | K17: 0 | L17: 0 | M17: 0 | N17: 0 | O17: =B10 -> 31680 | P17: 0 | Q17: 0 | R17: 0 | S17: 0 | T17: 0 | U17: 0 | V17: 0 | W17: 0 | X17: 0 | Y17: 0 | Z17: 0 | AA17: 0 | AB17: 31680
A18: Recycling Cost | B18: 0 | C18: 0 | D18: 0 | E18: 0 | F18: 0 | G18: 0 | H18: 0 | I18: 0 | J18: 0 | K18: 0 | L18: 0 | M18: 0 | N18: 0 | O18: 0 | P18: 0 | Q18: 0 | R18: 0 | S18: 0 | T18: 0 | U18: 0 | V18: 0 | W18: 0 | X18: 0 | Y18: 0 | Z18: 0 | AA18: =B9 -> 59840 | AB18: 59840
A19: Total PV system expenses ($/mi) | B19: =SUM(B13:B18)-B15 -> 2.1258125 | C19: =SUM(C13:C18) -> 5280 | D19: 5280 | E19: 5280 | F19: 5280 | G19: 5280 | H19: 5280 | I19: 5280 | J19: 5280 | K19: 5280 | L19: 5280 | M19: 5280 | N19: 5280 | O19: 36960 | P19: 5280 | Q19: 5280 | R19: 5280 | S19: 5280 | T19: 5280 | U19: 5280 | V19: 5280 | W19: 5280 | X19: 5280 | Y19: 5280 | Z19: 5280 | AA19: 65120 | AB19: 223522.1258
A20: Total PV Costs_Self-Consumption ($/mi) | B20: =SUM(B13:B18) -> 315873.7258 | C20: 5280 | D20: 5280 | E20: 5280 | F20: 5280 | G20: 5280 | H20: 5280 | I20: 5280 | J20: 5280 | K20: 5280 | L20: 5280 | M20: 5280 | N20: 5280 | O20: 36960 | P20: 5280 | Q20: 5280 | R20: 5280 | S20: 5280 | T20: 5280 | U20: 5280 | V20: 5280 | W20: 5280 | X20: 5280 | Y20: 5280 | Z20: 5280 | AA20: 65120 | AB20: 539393.7258

Sheet General Finance Analysis (PVSF) (hidden)
A1: Panel Size (Watt) | B1: ='PV(SF)(M2) Info'!F4 -> 100
A2: Tax Credits | B2: ='PV(SF)(M2) Info'!B29+'PV(SF)(M2) Info'!B28 -> 0.1
A3: Real Discount Rate | B3: ='PV(SF)(M2) Info'!B25 -> 0.0035
A4: Self-Consumption Utilization Rate | B4: ='PV(SF)(M2) Info'!D22 -> 1
A6: Project Length | B6: Ownership | C6: Electricity | D6: Scenario | E6: Recycling | F6: Inverter Replacement | G6: Social Cost Saving | H6: Tax Credits & Incentives | I6: Unit Installed cost | J6: System Size | K6: Initial Cost | L6: Total Initial Cost | M6: Life Span | N6: Annunal Operation & Maintenance COST | O6: Recycling Cost | P6: Salvage Value | Q6: Inverter Replacement Cost | R6: AC Energy | S6: Revenue | T6: Profit | U6: Payback Years | V6: Average Rate of Return
A7: Mile | E7: $/W | F7: $/W | G7: $/Mile | H7: 0.1 | I7: $/W | J7: Watt/Mile | K7: $/Mile | L7: $ | M7: Years | N7: $/Mile | O7: $/Mile | P7: $/Mile | Q7: $/Mile | R7: Average kWh/mi-year | S7: $/mi-year | T7: $/mi-year | U7: Years | V7: %
A8: ='PV(SF)(M2) Info'!F3 -> 1 | B8: Direct | C8: Sell | D8: CASE 1 | E8: YES | F8: YES | G8: NO | H8: NO | I8: ='PV(SF)(M2) Info'!H3+'PV(SF)(M2) Info'!H4 -> 2.1258125 | J8: ='PV(SF)(M2) Info'!H11*1000/A8 -> 352000 | K8: =I8*J8-'PV(SF) Revenue_Base'!B19 -> 748286 | L8: =K8*A8 -> 748286 | M8: 25 | N8: ='PV(SF) Cost_Base'!C16 -> 5280 | O8: ='PV(SF) Cost_Base'!AA18 -> 59840 | P8: ='PV(SF) Revenue_Base'!AA17 -> 44880 | Q8: ='PV(SF) Cost_Base'!O17 -> 31680 | R8: ='PV(SF) Revenue_Base'!AB9/(M8*A8) -> 320526.2497 | S8: ='PV(SF) Revenue_Base'!AB19/(M8*A8) -> 37053.08747 | T8: =S8-N8 -> 31773.08747 | U8: =(K8+O8+Q8-P8)/T8 -> 25.01884656 | V8: =T8*100/(K8+O8+Q8-P8) -> 3.996986822
D9: CASE 2 | E9: YES | F9: YES | G9: YES | H9: NO | K9: =I8*J8-'PV(SF) Revenue_Base'!B18 -> 748286 | L9: =L8 -> 748286 | M9: 25 | N9: =N8 -> 5280 | O9: 59840 | P9: 44880 | Q9: 31680 | R9: 320526.2497 | S9: ='PV(SF) Revenue_Base'!AB18/(M9*A8) -> 41069.24508 | T9: 35789.24508 | U9: 22.21130952 | V9: 4.502210908
D10: CASE 3 | E10: YES | F10: YES | G10: NO | H10: YES | K10: =I8*J8-'PV(SF) Revenue_Base'!B19 -> 748286 | L10: =K10*A8*(1-$B$2) -> 673457.4 | M10: 25 | N10: 5280 | O10: 59840 | P10: 44880 | Q10: 31680 | R10: 320526.2497 | S10: ='PV(SF) Revenue_Base'!AB19/(M10*A8) -> 37053.08747 | T10: 31773.08747 | U10: 25.01884656 | V10: 3.996986822
D11: CASE 4 | E11: YES | F11: YES | G11: YES | H11: YES | K11: =I8*J8-'PV(SF) Revenue_Base'!B18 -> 748286 | L11: =A8*K11*(1-B2) -> 673457.4 | M11: 25 | N11: 5280 | O11: 59840 | P11: 44880 | Q11: 31680 | R11: 320526.2497 | S11: ='PV(SF) Revenue_Base'!AB18/(M11*A8) -> 41069.24508 | T11: 35789.24508 | U11: 22.21130952 | V11: 4.502210908
A12: ='PV(SF)(M2) Info'!F3 -> 1 | B12: Direct | C12: Self-Consumption | D12: CASE 5 | E12: YES | F12: YES | G12: NO | H12: NO | I12: ='PV(SF)(M2) Info'!H3+'PV(SF)(M2) Info'!H4+'PV(SF)(M2) Info'!H9 -> 3.023175 | J12: =J8 -> 352000 | K12: =I12*J12-'PV(SF) Revenue_Base'!B19 -> 1064157.6 | L12: =K12*A12 -> 1064157.6 | M12: 25 | N12: =N8*$J$12/$J$8 -> 5280 | O12: 59840 | P12: 44880 | Q12: =Q11 -> 31680 | R12: 320526.2497 | S12: =R12*('PV(SF)(M2) Info'!$D$19*$B$4+'PV(SF)(M2) Info'!$D$20*(1-$B$4)) -> 38463.14996 | T12: 33183.14996 | U12: 33.47474851 | V12: 2.987326401
D13: CASE 6 | E13: YES | F13: YES | G13: YES | H13: NO | K13: =I12*J12-'PV(SF) Revenue_Base'!B18 -> 1064157.6 | L13: =L12 -> 1064157.6 | M13: 25 | N13: 5280 | O13: 59840 | P13: 44880 | Q13: 31680 | R13: 320526.2497 | S13: =S12+S9-S8 -> 42479.30758 | T13: 37199.30758 | U13: 29.86070635 | V13: 3.348882603
D14: CASE 7 | E14: YES | F14: YES | G14: NO | H14: YES | K14: =K12 -> 1064157.6 | L14: =K14*A12*(1-B2) -> 957741.84 | M14: 25 | N14: 5280 | O14: 59840 | P14: 44880 | Q14: 31680 | R14: 320526.2497 | S14: =S12+S10-S8 -> 38463.14996 | T14: 33183.14996 | U14: 33.47474851 | V14: 2.987326401
D15: CASE 8 | E15: YES | F15: YES | G15: YES | H15: YES | K15: =K13 -> 1064157.6 | L15: =A12*K15*(1-B2) -> 957741.84 | M15: 25 | N15: 5280 | O15: 59840 | P15: 44880 | Q15: 31680 | R15: 320526.2497 | S15: =S12+S11-S8 -> 42479.30758 | T15: 37199.30758 | U15: 29.86070635 | V15: 3.348882603
A17: Project Length | B17: Ownership | C17: Electricity | D17: Scenario | E17: Recycling | F17: Inverter Replacement | G17: Social Cost Saving | H17: Tax Credits & Incentives | I17: Unit Installed cost | J17: Initial Cost | K17: Total Initial Cost | L17: Agreement Length (Years) | M17: Annunal O&M Costs | N17: Recycling Cost | O17: Salvage Value | P17: Inverter Replacement Cost | Q17: Annual AC Output (kWh/mi-Year) | R17: PPA Pricing ($/KWh) | S17: Annul PPA Electicity Costs Per Mile | T17: Current Pricing ($/kWh) | U17: Annual Electricity Cost Saving Per Mile | V17: Annul Social Cost Saving Per Mile | W17: Total Costs | X17: Total Cost Saving
A18: =A8 -> 1 | B18: Indirect | C18: Solar PPA | D18: Case 9 | E18: NA | F18: NA | G18: No | H18: NA | I18: 0 | J18: 0 | K18: 0 | L18: 25 | M18: 0 | N18: 0 | O18: 0 | P18: 0 | Q18: =R8 -> 320526.2497 | R18: ='PV(SF)(M2) Info'!D21 -> 0.1 | S18: =R18*Q18 -> 32052.62497 | T18: ='PV(SF)(M2) Info'!D19 -> 0.12 | U18: =Q18*(T18-R18) -> 6410.524994 | V18: 0 | W18: =S18*L18*A18 -> 801315.6243 | X18: =(U18+V18)*L18*A18 -> 160263.1249
A19: =A12 -> 1 | B19: Indirect | C19: Solar PPA | D19: Case 10 | E19: NA | F19: NA | G19: Yes | H19: NA | I19: 0 | J19: 0 | K19: 0 | L19: 25 | M19: 0 | N19: 0 | O19: 0 | P19: 0 | Q19: =Q18 -> 320526.2497 | R19: =R18 -> 0.1 | S19: =R19*Q19 -> 32052.62497 | T19: =T18 -> 0.12 | U19: =Q19*(T19-R19) -> 6410.524994 | V19: =SUM('PV(SF) Revenue_Base'!C13:C15)*'General Finance Analysis (PVSF)'!Q19/'PV(SF) Revenue_Base'!C9 -> 3807.815551 | W19: =S19*L19*A19 -> 801315.6243 | X19: =(U19+V19)*L19*A19 -> 255458.5136

Sheet PV(SF)_CBA (hidden)
A1: Year | B1: 0 | C1: 1 | D1: 2 | E1: 3 | F1: 4 | G1: 5 | H1: 6 | I1: 7 | J1: 8 | K1: 9 | L1: 10 | M1: 11 | N1: 12 | O1: 13 | P1: 14 | Q1: 15 | R1: 16 | S1: 17 | T1: 18 | U1: 19 | V1: 20 | W1: 21 | X1: 22 | Y1: 23 | Z1: 24 | AA1: 25 | AB1: Payback Period
A2: Discount factor (End of year) | B2: 1 | C2: =1/(1+'General Finance Analysis (PVSF)'!B3)^C1 -> 0.9965122073 | D2: =1/(1+'General Finance Analysis (PVSF)'!$B$3)^D1 -> 0.9930365792 | E2: =1/(1+'General Finance Analysis (PVSF)'!$B$3)^E1 -> 0.9895730735 | F2: =1/(1+'General Finance Analysis (PVSF)'!$B$3)^F1 -> 0.9861216477 | G2: =1/(1+'General Finance Analysis (PVSF)'!$B$3)^G1 -> 0.9826822598 | H2: =1/(1+'General Finance Analysis (PVSF)'!$B$3)^H1 -> 0.9792548678 | I2: =1/(1+'General Finance Analysis (PVSF)'!$B$3)^I1 -> 0.9758394298 | J2: =1/(1+'General Finance Analysis (PVSF)'!$B$3)^J1 -> 0.9724359041 | K2: =1/(1+'General Finance Analysis (PVSF)'!$B$3)^K1 -> 0.9690442492 | L2: =1/(1+'General Finance Analysis (PVSF)'!$B$3)^L1 -> 0.9656644238 | M2: =1/(1+'General Finance Analysis (PVSF)'!$B$3)^M1 -> 0.9622963864 | N2: =1/(1+'General Finance Analysis (PVSF)'!$B$3)^N1 -> 0.9589400961 | O2: =1/(1+'General Finance Analysis (PVSF)'!$B$3)^O1 -> 0.9555955118 | P2: =1/(1+'General Finance Analysis (PVSF)'!$B$3)^P1 -> 0.9522625927 | Q2: =1/(1+'General Finance Analysis (PVSF)'!$B$3)^Q1 -> 0.9489412982 | R2: =1/(1+'General Finance Analysis (PVSF)'!$B$3)^R1 -> 0.9456315876 | S2: =1/(1+'General Finance Analysis (PVSF)'!$B$3)^S1 -> 0.9423334206 | T2: =1/(1+'General Finance Analysis (PVSF)'!$B$3)^T1 -> 0.939046757 | U2: =1/(1+'General Finance Analysis (PVSF)'!$B$3)^U1 -> 0.9357715565 | V2: =1/(1+'General Finance Analysis (PVSF)'!$B$3)^V1 -> 0.9325077793 | W2: =1/(1+'General Finance Analysis (PVSF)'!$B$3)^W1 -> 0.9292553855 | X2: =1/(1+'General Finance Analysis (PVSF)'!$B$3)^X1 -> 0.9260143353 | Y2: =1/(1+'General Finance Analysis (PVSF)'!$B$3)^Y1 -> 0.9227845892 | Z2: =1/(1+'General Finance Analysis (PVSF)'!$B$3)^Z1 -> 0.9195661078 | AA2: =1/(1+'General Finance Analysis (PVSF)'!$B$3)^AA1 -> 0.9163588519
A3: CASE 1 | B3: =-'General Finance Analysis (PVSF)'!L8 -> -748286 | C3: =B3+('PV(SF) Revenue_Base'!C19-'PV(SF) Cost_Base'!C19)*C2*'PV(SF)(M2) Info'!$F$3 -> -714922.397 | D3: =C3+('PV(SF) Revenue_Base'!D19-'PV(SF) Cost_Base'!D19)*D2*'PV(SF)(M2) Info'!$F$3 -> -681983.0832 | E3: =D3+('PV(SF) Revenue_Base'!E19-'PV(SF) Cost_Base'!E19)*E2*'PV(SF)(M2) Info'!$F$3 -> -649463.0498 | F3: =E3+('PV(SF) Revenue_Base'!F19-'PV(SF) Cost_Base'!F19)*F2*'PV(SF)(M2) Info'!$F$3 -> -617357.3463 | G3: =F3+('PV(SF) Revenue_Base'!G19-'PV(SF) Cost_Base'!G19)*G2*'PV(SF)(M2) Info'!$F$3 -> -585661.079 | H3: =G3+('PV(SF) Revenue_Base'!H19-'PV(SF) Cost_Base'!H19)*H2*'PV(SF)(M2) Info'!$F$3 -> -554369.4113 | I3: =H3+('PV(SF) Revenue_Base'!I19-'PV(SF) Cost_Base'!I19)*I2*'PV(SF)(M2) Info'!$F$3 -> -523477.5621 | J3: =I3+('PV(SF) Revenue_Base'!J19-'PV(SF) Cost_Base'!J19)*J2*'PV(SF)(M2) Info'!$F$3 -> -492980.8058 | K3: =J3+('PV(SF) Revenue_Base'!K19-'PV(SF) Cost_Base'!K19)*K2*'PV(SF)(M2) Info'!$F$3 -> -462874.4714 | L3: =K3+('PV(SF) Revenue_Base'!L19-'PV(SF) Cost_Base'!L19)*L2*'PV(SF)(M2) Info'!$F$3 -> -433153.9419 | M3: =L3+('PV(SF) Revenue_Base'!M19-'PV(SF) Cost_Base'!M19)*M2*'PV(SF)(M2) Info'!$F$3 -> -403814.6539 | N3: =M3+('PV(SF) Revenue_Base'!N19-'PV(SF) Cost_Base'!N19)*N2*'PV(SF)(M2) Info'!$F$3 -> -374852.0965 | O3: =N3+('PV(SF) Revenue_Base'!O19-'PV(SF) Cost_Base'!O19)*O2*'PV(SF)(M2) Info'!$F$3 -> -376535.0771 | P3: =O3+('PV(SF) Revenue_Base'!P19-'PV(SF) Cost_Base'!P19)*P2*'PV(SF)(M2) Info'!$F$3 -> -348312.6569 | Q3: =P3+('PV(SF) Revenue_Base'!Q19-'PV(SF) Cost_Base'!Q19)*Q2*'PV(SF)(M2) Info'!$F$3 -> -320453.7458 | R3: =Q3+('PV(SF) Revenue_Base'!R19-'PV(SF) Cost_Base'!R19)*R2*'PV(SF)(M2) Info'!$F$3 -> -292954.0383 | S3: =R3+('PV(SF) Revenue_Base'!S19-'PV(SF) Cost_Base'!S19)*S2*'PV(SF)(M2) Info'!$F$3 -> -265809.2786 | T3: =S3+('PV(SF) Revenue_Base'!T19-'PV(SF) Cost_Base'!T19)*T2*'PV(SF)(M2) Info'!$F$3 -> -239015.2602 | U3: =T3+('PV(SF) Revenue_Base'!U19-'PV(SF) Cost_Base'!U19)*U2*'PV(SF)(M2) Info'!$F$3 -> -212567.8253 | V3: =U3+('PV(SF) Revenue_Base'!V19-'PV(SF) Cost_Base'!V19)*V2*'PV(SF)(M2) Info'!$F$3 -> -186462.8642 | W3: =V3+('PV(SF) Revenue_Base'!W19-'PV(SF) Cost_Base'!W19)*W2*'PV(SF)(M2) Info'!$F$3 -> -160696.3149 | X3: =W3+('PV(SF) Revenue_Base'!X19-'PV(SF) Cost_Base'!X19)*X2*'PV(SF)(M2) Info'!$F$3 -> -135264.1622 | Y3: =X3+('PV(SF) Revenue_Base'!Y19-'PV(SF) Cost_Base'!Y19)*Y2*'PV(SF)(M2) Info'!$F$3 -> -110162.4376 | Z3: =Y3+('PV(SF) Revenue_Base'!Z19-'PV(SF) Cost_Base'!Z19)*Z2*'PV(SF)(M2) Info'!$F$3 -> -85387.21857 | AA3: =Z3+('PV(SF) Revenue_Base'!AA19-'PV(SF) Cost_Base'!AA19)*AA2*'PV(SF)(M2) Info'!$F$3 -> -74643.35622 | AB3: =IFERROR(AB40,">25") -> >25
A4: CASE 2 | B4: =-'General Finance Analysis (PVSF)'!L9 -> -748286 | C4: =B4+('PV(SF) Revenue_Base'!C18-'PV(SF) Cost_Base'!C19)*C2*'PV(SF)(M2) Info'!$F$3 -> -710522.6768 | D4: =C4+('PV(SF) Revenue_Base'!D18-'PV(SF) Cost_Base'!D19)*D2*'PV(SF)(M2) Info'!$F$3 -> -673234.0631 | E4: =D4+('PV(SF) Revenue_Base'!E18-'PV(SF) Cost_Base'!E19)*E2*'PV(SF)(M2) Info'!$F$3 -> -636414.5723 | F4: =E4+('PV(SF) Revenue_Base'!F18-'PV(SF) Cost_Base'!F19)*F2*'PV(SF)(M2) Info'!$F$3 -> -600058.6826 | G4: =F4+('PV(SF) Revenue_Base'!G18-'PV(SF) Cost_Base'!G19)*G2*'PV(SF)(M2) Info'!$F$3 -> -564160.936 | H4: =G4+('PV(SF) Revenue_Base'!H18-'PV(SF) Cost_Base'!H19)*H2*'PV(SF)(M2) Info'!$F$3 -> -528715.9373 | I4: =H4+('PV(SF) Revenue_Base'!I18-'PV(SF) Cost_Base'!I19)*I2*'PV(SF)(M2) Info'!$F$3 -> -493718.3539 | J4: =I4+('PV(SF) Revenue_Base'!J18-'PV(SF) Cost_Base'!J19)*J2*'PV(SF)(M2) Info'!$F$3 -> -459162.9146 | K4: =J4+('PV(SF) Revenue_Base'!K18-'PV(SF) Cost_Base'!K19)*K2*'PV(SF)(M2) Info'!$F$3 -> -425044.4093 | L4: =K4+('PV(SF) Revenue_Base'!L18-'PV(SF) Cost_Base'!L19)*L2*'PV(SF)(M2) Info'!$F$3 -> -391357.688 | M4: =L4+('PV(SF) Revenue_Base'!M18-'PV(SF) Cost_Base'!M19)*M2*'PV(SF)(M2) Info'!$F$3 -> -358097.6602 | N4: =M4+('PV(SF) Revenue_Base'!N18-'PV(SF) Cost_Base'!N19)*N2*'PV(SF)(M2) Info'!$F$3 -> -325259.2944 | O4: =N4+('PV(SF) Revenue_Base'!O18-'PV(SF) Cost_Base'!O19)*O2*'PV(SF)(M2) Info'!$F$3 -> -323110.8827 | P4: =O4+('PV(SF) Revenue_Base'!P18-'PV(SF) Cost_Base'!P19)*P2*'PV(SF)(M2) Info'!$F$3 -> -291100.9778 | Q4: =P4+('PV(SF) Revenue_Base'!Q18-'PV(SF) Cost_Base'!Q19)*Q2*'PV(SF)(M2) Info'!$F$3 -> -259497.986 | R4: =Q4+('PV(SF) Revenue_Base'!R18-'PV(SF) Cost_Base'!R19)*R2*'PV(SF)(M2) Info'!$F$3 -> -228297.1046 | S4: =R4+('PV(SF) Revenue_Base'!S18-'PV(SF) Cost_Base'!S19)*S2*'PV(SF)(M2) Info'!$F$3 -> -197493.5861 | T4: =S4+('PV(SF) Revenue_Base'!T18-'PV(SF) Cost_Base'!T19)*T2*'PV(SF)(M2) Info'!$F$3 -> -167082.7378 | U4: =T4+('PV(SF) Revenue_Base'!U18-'PV(SF) Cost_Base'!U19)*U2*'PV(SF)(M2) Info'!$F$3 -> -137059.9215 | V4: =U4+('PV(SF) Revenue_Base'!V18-'PV(SF) Cost_Base'!V19)*V2*'PV(SF)(M2) Info'!$F$3 -> -107420.5525 | W4: =V4+('PV(SF) Revenue_Base'!W18-'PV(SF) Cost_Base'!W19)*W2*'PV(SF)(M2) Info'!$F$3 -> -78160.09915 | X4: =W4+('PV(SF) Revenue_Base'!X18-'PV(SF) Cost_Base'!X19)*X2*'PV(SF)(M2) Info'!$F$3 -> -49274.08225 | Y4: =X4+('PV(SF) Revenue_Base'!Y18-'PV(SF) Cost_Base'!Y19)*Y2*'PV(SF)(M2) Info'!$F$3 -> -20758.07437 | Z4: =Y4+('PV(SF) Revenue_Base'!Z18-'PV(SF) Cost_Base'!Z19)*Z2*'PV(SF)(M2) Info'!$F$3 -> 7392.300722 | AA4: =Z4+('PV(SF) Revenue_Base'!AA18-'PV(SF) Cost_Base'!AA19)*AA2*'PV(SF)(M2) Info'!$F$3 -> 21472.64018 | AB4: 24
A5: CASE 3 | B5: =-'General Finance Analysis (PVSF)'!L10 -> -673457.4 | C5: =B5+('PV(SF) Revenue_Base'!C19-'PV(SF) Cost_Base'!C19)*C2*'PV(SF)(M2) Info'!$F$3 -> -640093.797 | D5: =C5+('PV(SF) Revenue_Base'!D19-'PV(SF) Cost_Base'!D19)*D2*'PV(SF)(M2) Info'!$F$3 -> -607154.4832 | E5: =D5+('PV(SF) Revenue_Base'!E19-'PV(SF) Cost_Base'!E19)*E2*'PV(SF)(M2) Info'!$F$3 -> -574634.4498 | F5: =E5+('PV(SF) Revenue_Base'!F19-'PV(SF) Cost_Base'!F19)*F2*'PV(SF)(M2) Info'!$F$3 -> -542528.7463 | G5: =F5+('PV(SF) Revenue_Base'!G19-'PV(SF) Cost_Base'!G19)*G2*'PV(SF)(M2) Info'!$F$3 -> -510832.479 | H5: =G5+('PV(SF) Revenue_Base'!H19-'PV(SF) Cost_Base'!H19)*H2*'PV(SF)(M2) Info'!$F$3 -> -479540.8113 | I5: =H5+('PV(SF) Revenue_Base'!I19-'PV(SF) Cost_Base'!I19)*I2*'PV(SF)(M2) Info'!$F$3 -> -448648.9621 | J5: =I5+('PV(SF) Revenue_Base'!J19-'PV(SF) Cost_Base'!J19)*J2*'PV(SF)(M2) Info'!$F$3 -> -418152.2058 | K5: =J5+('PV(SF) Revenue_Base'!K19-'PV(SF) Cost_Base'!K19)*K2*'PV(SF)(M2) Info'!$F$3 -> -388045.8714 | L5: =K5+('PV(SF) Revenue_Base'!L19-'PV(SF) Cost_Base'!L19)*L2*'PV(SF)(M2) Info'!$F$3 -> -358325.3419 | M5: =L5+('PV(SF) Revenue_Base'!M19-'PV(SF) Cost_Base'!M19)*M2*'PV(SF)(M2) Info'!$F$3 -> -328986.0539 | N5: =M5+('PV(SF) Revenue_Base'!N19-'PV(SF) Cost_Base'!N19)*N2*'PV(SF)(M2) Info'!$F$3 -> -300023.4965 | O5: =N5+('PV(SF) Revenue_Base'!O19-'PV(SF) Cost_Base'!O19)*O2*'PV(SF)(M2) Info'!$F$3 -> -301706.4771 | P5: =O5+('PV(SF) Revenue_Base'!P19-'PV(SF) Cost_Base'!P19)*P2*'PV(SF)(M2) Info'!$F$3 -> -273484.0569 | Q5: =P5+('PV(SF) Revenue_Base'!Q19-'PV(SF) Cost_Base'!Q19)*Q2*'PV(SF)(M2) Info'!$F$3 -> -245625.1458 | R5: =Q5+('PV(SF) Revenue_Base'!R19-'PV(SF) Cost_Base'!R19)*R2*'PV(SF)(M2) Info'!$F$3 -> -218125.4383 | S5: =R5+('PV(SF) Revenue_Base'!S19-'PV(SF) Cost_Base'!S19)*S2*'PV(SF)(M2) Info'!$F$3 -> -190980.6786 | T5: =S5+('PV(SF) Revenue_Base'!T19-'PV(SF) Cost_Base'!T19)*T2*'PV(SF)(M2) Info'!$F$3 -> -164186.6602 | U5: =T5+('PV(SF) Revenue_Base'!U19-'PV(SF) Cost_Base'!U19)*U2*'PV(SF)(M2) Info'!$F$3 -> -137739.2253 | V5: =U5+('PV(SF) Revenue_Base'!V19-'PV(SF) Cost_Base'!V19)*V2*'PV(SF)(M2) Info'!$F$3 -> -111634.2642 | W5: =V5+('PV(SF) Revenue_Base'!W19-'PV(SF) Cost_Base'!W19)*W2*'PV(SF)(M2) Info'!$F$3 -> -85867.71485 | X5: =W5+('PV(SF) Revenue_Base'!X19-'PV(SF) Cost_Base'!X19)*X2*'PV(SF)(M2) Info'!$F$3 -> -60435.5622 | Y5: =X5+('PV(SF) Revenue_Base'!Y19-'PV(SF) Cost_Base'!Y19)*Y2*'PV(SF)(M2) Info'!$F$3 -> -35333.83764 | Z5: =Y5+('PV(SF) Revenue_Base'!Z19-'PV(SF) Cost_Base'!Z19)*Z2*'PV(SF)(M2) Info'!$F$3 -> -10558.61857 | AA5: =Z5+('PV(SF) Revenue_Base'!AA19-'PV(SF) Cost_Base'!AA19)*AA2*'PV(SF)(M2) Info'!$F$3 -> 185.2437842 | AB5: 25
A6: CASE 4 | B6: =-'General Finance Analysis (PVSF)'!L11 -> -673457.4 | C6: =B6+('PV(SF) Revenue_Base'!C18-'PV(SF) Cost_Base'!C19)*C2*'PV(SF)(M2) Info'!$F$3 -> -635694.0768 | D6: =C6+('PV(SF) Revenue_Base'!D18-'PV(SF) Cost_Base'!D19)*D2*'PV(SF)(M2) Info'!$F$3 -> -598405.4631 | E6: =D6+('PV(SF) Revenue_Base'!E18-'PV(SF) Cost_Base'!E19)*E2*'PV(SF)(M2) Info'!$F$3 -> -561585.9723 | F6: =E6+('PV(SF) Revenue_Base'!F18-'PV(SF) Cost_Base'!F19)*F2*'PV(SF)(M2) Info'!$F$3 -> -525230.0826 | G6: =F6+('PV(SF) Revenue_Base'!G18-'PV(SF) Cost_Base'!G19)*G2*'PV(SF)(M2) Info'!$F$3 -> -489332.336 | H6: =G6+('PV(SF) Revenue_Base'!H18-'PV(SF) Cost_Base'!H19)*H2*'PV(SF)(M2) Info'!$F$3 -> -453887.3373 | I6: =H6+('PV(SF) Revenue_Base'!I18-'PV(SF) Cost_Base'!I19)*I2*'PV(SF)(M2) Info'!$F$3 -> -418889.7539 | J6: =I6+('PV(SF) Revenue_Base'!J18-'PV(SF) Cost_Base'!J19)*J2*'PV(SF)(M2) Info'!$F$3 -> -384334.3146 | K6: =J6+('PV(SF) Revenue_Base'!K18-'PV(SF) Cost_Base'!K19)*K2*'PV(SF)(M2) Info'!$F$3 -> -350215.8093 | L6: =K6+('PV(SF) Revenue_Base'!L18-'PV(SF) Cost_Base'!L19)*L2*'PV(SF)(M2) Info'!$F$3 -> -316529.088 | M6: =L6+('PV(SF) Revenue_Base'!M18-'PV(SF) Cost_Base'!M19)*M2*'PV(SF)(M2) Info'!$F$3 -> -283269.0602 | N6: =M6+('PV(SF) Revenue_Base'!N18-'PV(SF) Cost_Base'!N19)*N2*'PV(SF)(M2) Info'!$F$3 -> -250430.6944 | O6: =N6+('PV(SF) Revenue_Base'!O18-'PV(SF) Cost_Base'!O19)*O2*'PV(SF)(M2) Info'!$F$3 -> -248282.2827 | P6: =O6+('PV(SF) Revenue_Base'!P18-'PV(SF) Cost_Base'!P19)*P2*'PV(SF)(M2) Info'!$F$3 -> -216272.3778 | Q6: =P6+('PV(SF) Revenue_Base'!Q18-'PV(SF) Cost_Base'!Q19)*Q2*'PV(SF)(M2) Info'!$F$3 -> -184669.386 | R6: =Q6+('PV(SF) Revenue_Base'!R18-'PV(SF) Cost_Base'!R19)*R2*'PV(SF)(M2) Info'!$F$3 -> -153468.5046 | S6: =R6+('PV(SF) Revenue_Base'!S18-'PV(SF) Cost_Base'!S19)*S2*'PV(SF)(M2) Info'!$F$3 -> -122664.9861 | T6: =S6+('PV(SF) Revenue_Base'!T18-'PV(SF) Cost_Base'!T19)*T2*'PV(SF)(M2) Info'!$F$3 -> -92254.13778 | U6: =T6+('PV(SF) Revenue_Base'!U18-'PV(SF) Cost_Base'!U19)*U2*'PV(SF)(M2) Info'!$F$3 -> -62231.32147 | V6: =U6+('PV(SF) Revenue_Base'!V18-'PV(SF) Cost_Base'!V19)*V2*'PV(SF)(M2) Info'!$F$3 -> -32591.95248 | W6: =V6+('PV(SF) Revenue_Base'!W18-'PV(SF) Cost_Base'!W19)*W2*'PV(SF)(M2) Info'!$F$3 -> -3331.499148 | X6: =W6+('PV(SF) Revenue_Base'!X18-'PV(SF) Cost_Base'!X19)*X2*'PV(SF)(M2) Info'!$F$3 -> 25554.51775 | Y6: =X6+('PV(SF) Revenue_Base'!Y18-'PV(SF) Cost_Base'!Y19)*Y2*'PV(SF)(M2) Info'!$F$3 -> 54070.52563 | Z6: =Y6+('PV(SF) Revenue_Base'!Z18-'PV(SF) Cost_Base'!Z19)*Z2*'PV(SF)(M2) Info'!$F$3 -> 82220.90072 | AA6: =Z6+('PV(SF) Revenue_Base'!AA18-'PV(SF) Cost_Base'!AA19)*AA2*'PV(SF)(M2) Info'!$F$3 -> 96301.24018 | AB6: 22
A7: CASE 5 | B7: =-'General Finance Analysis (PVSF)'!L12 -> -1064157.6 | C7: =B7+('PV(SF) Revenue_Base'!C9*('General Finance Analysis (PVSF)'!$B$4*'PV(SF)(M2) Info'!$D$19+(1-'General Finance Analysis (PVSF)'!$B$4)*'PV(SF)(M2) Info'!$D$20)+'PV(SF) Revenue_Base'!C19-'PV(SF) Revenue_Base'!C11-'PV(SF) Cost_Base'!C20)*C2*'PV(SF)(M2) Info'!$F$3 -> -1027282.616 | D7: =C7+('PV(SF) Revenue_Base'!D9*('General Finance Analysis (PVSF)'!$B$4*'PV(SF)(M2) Info'!$D$19+(1-'General Finance Analysis (PVSF)'!$B$4)*'PV(SF)(M2) Info'!$D$20)+'PV(SF) Revenue_Base'!D19-'PV(SF) Revenue_Base'!D11-'PV(SF) Cost_Base'!D20)*D2*'PV(SF)(M2) Info'!$F$3 -> -990872.1619 | E7: =D7+('PV(SF) Revenue_Base'!E9*('General Finance Analysis (PVSF)'!$B$4*'PV(SF)(M2) Info'!$D$19+(1-'General Finance Analysis (PVSF)'!$B$4)*'PV(SF)(M2) Info'!$D$20)+'PV(SF) Revenue_Base'!E19-'PV(SF) Revenue_Base'!E11-'PV(SF) Cost_Base'!E20)*E2*'PV(SF)(M2) Info'!$F$3 -> -954920.7668 | F7: =E7+('PV(SF) Revenue_Base'!F9*('General Finance Analysis (PVSF)'!$B$4*'PV(SF)(M2) Info'!$D$19+(1-'General Finance Analysis (PVSF)'!$B$4)*'PV(SF)(M2) Info'!$D$20)+'PV(SF) Revenue_Base'!F19-'PV(SF) Revenue_Base'!F11-'PV(SF) Cost_Base'!F20)*F2*'PV(SF)(M2) Info'!$F$3 -> -919423.0245 | G7: =F7+('PV(SF) Revenue_Base'!G9*('General Finance Analysis (PVSF)'!$B$4*'PV(SF)(M2) Info'!$D$19+(1-'General Finance Analysis (PVSF)'!$B$4)*'PV(SF)(M2) Info'!$D$20)+'PV(SF) Revenue_Base'!G19-'PV(SF) Revenue_Base'!G11-'PV(SF) Cost_Base'!G20)*G2*'PV(SF)(M2) Info'!$F$3 -> -884373.591 | H7: =G7+('PV(SF) Revenue_Base'!H9*('General Finance Analysis (PVSF)'!$B$4*'PV(SF)(M2) Info'!$D$19+(1-'General Finance Analysis (PVSF)'!$B$4)*'PV(SF)(M2) Info'!$D$20)+'PV(SF) Revenue_Base'!H19-'PV(SF) Revenue_Base'!H11-'PV(SF) Cost_Base'!H20)*H2*'PV(SF)(M2) Info'!$F$3 -> -849767.1838 | I7: =H7+('PV(SF) Revenue_Base'!I9*('General Finance Analysis (PVSF)'!$B$4*'PV(SF)(M2) Info'!$D$19+(1-'General Finance Analysis (PVSF)'!$B$4)*'PV(SF)(M2) Info'!$D$20)+'PV(SF) Revenue_Base'!I19-'PV(SF) Revenue_Base'!I11-'PV(SF) Cost_Base'!I20)*I2*'PV(SF)(M2) Info'!$F$3 -> -815598.5817 | J7: =I7+('PV(SF) Revenue_Base'!J9*('General Finance Analysis (PVSF)'!$B$4*'PV(SF)(M2) Info'!$D$19+(1-'General Finance Analysis (PVSF)'!$B$4)*'PV(SF)(M2) Info'!$D$20)+'PV(SF) Revenue_Base'!J19-'PV(SF) Revenue_Base'!J11-'PV(SF) Cost_Base'!J20)*J2*'PV(SF)(M2) Info'!$F$3 -> -781862.6238 | K7: =J7+('PV(SF) Revenue_Base'!K9*('General Finance Analysis (PVSF)'!$B$4*'PV(SF)(M2) Info'!$D$19+(1-'General Finance Analysis (PVSF)'!$B$4)*'PV(SF)(M2) Info'!$D$20)+'PV(SF) Revenue_Base'!K19-'PV(SF) Revenue_Base'!K11-'PV(SF) Cost_Base'!K20)*K2*'PV(SF)(M2) Info'!$F$3 -> -748554.2087 | L7: =K7+('PV(SF) Revenue_Base'!L9*('General Finance Analysis (PVSF)'!$B$4*'PV(SF)(M2) Info'!$D$19+(1-'General Finance Analysis (PVSF)'!$B$4)*'PV(SF)(M2) Info'!$D$20)+'PV(SF) Revenue_Base'!L19-'PV(SF) Revenue_Base'!L11-'PV(SF) Cost_Base'!L20)*L2*'PV(SF)(M2) Info'!$F$3 -> -715668.294 | M7: =L7+('PV(SF) Revenue_Base'!M9*('General Finance Analysis (PVSF)'!$B$4*'PV(SF)(M2) Info'!$D$19+(1-'General Finance Analysis (PVSF)'!$B$4)*'PV(SF)(M2) Info'!$D$20)+'PV(SF) Revenue_Base'!M19-'PV(SF) Revenue_Base'!M11-'PV(SF) Cost_Base'!M20)*M2*'PV(SF)(M2) Info'!$F$3 -> -683199.8957 | N7: =M7+('PV(SF) Revenue_Base'!N9*('General Finance Analysis (PVSF)'!$B$4*'PV(SF)(M2) Info'!$D$19+(1-'General Finance Analysis (PVSF)'!$B$4)*'PV(SF)(M2) Info'!$D$20)+'PV(SF) Revenue_Base'!N19-'PV(SF) Revenue_Base'!N11-'PV(SF) Cost_Base'!N20)*N2*'PV(SF)(M2) Info'!$F$3 -> -651144.0873 | O7: =N7+('PV(SF) Revenue_Base'!O9*('General Finance Analysis (PVSF)'!$B$4*'PV(SF)(M2) Info'!$D$19+(1-'General Finance Analysis (PVSF)'!$B$4)*'PV(SF)(M2) Info'!$D$20)+'PV(SF) Revenue_Base'!O19-'PV(SF) Revenue_Base'!O11-'PV(SF) Cost_Base'!O20)*O2*'PV(SF)(M2) Info'!$F$3 -> -649769.2651 | P7: =O7+('PV(SF) Revenue_Base'!P9*('General Finance Analysis (PVSF)'!$B$4*'PV(SF)(M2) Info'!$D$19+(1-'General Finance Analysis (PVSF)'!$B$4)*'PV(SF)(M2) Info'!$D$20)+'PV(SF) Revenue_Base'!P19-'PV(SF) Revenue_Base'!P11-'PV(SF) Cost_Base'!P20)*P2*'PV(SF)(M2) Info'!$F$3 -> -618524.0844 | Q7: =P7+('PV(SF) Revenue_Base'!Q9*('General Finance Analysis (PVSF)'!$B$4*'PV(SF)(M2) Info'!$D$19+(1-'General Finance Analysis (PVSF)'!$B$4)*'PV(SF)(M2) Info'!$D$20)+'PV(SF) Revenue_Base'!Q19-'PV(SF) Revenue_Base'!Q11-'PV(SF) Cost_Base'!Q20)*Q2*'PV(SF)(M2) Info'!$F$3 -> -587677.0532 | R7: =Q7+('PV(SF) Revenue_Base'!R9*('General Finance Analysis (PVSF)'!$B$4*'PV(SF)(M2) Info'!$D$19+(1-'General Finance Analysis (PVSF)'!$B$4)*'PV(SF)(M2) Info'!$D$20)+'PV(SF) Revenue_Base'!R19-'PV(SF) Revenue_Base'!R11-'PV(SF) Cost_Base'!R20)*R2*'PV(SF)(M2) Info'!$F$3 -> -557223.4691 | S7: =R7+('PV(SF) Revenue_Base'!S9*('General Finance Analysis (PVSF)'!$B$4*'PV(SF)(M2) Info'!$D$19+(1-'General Finance Analysis (PVSF)'!$B$4)*'PV(SF)(M2) Info'!$D$20)+'PV(SF) Revenue_Base'!S19-'PV(SF) Revenue_Base'!S11-'PV(SF) Cost_Base'!S20)*S2*'PV(SF)(M2) Info'!$F$3 -> -527158.6839 | T7: =S7+('PV(SF) Revenue_Base'!T9*('General Finance Analysis (PVSF)'!$B$4*'PV(SF)(M2) Info'!$D$19+(1-'General Finance Analysis (PVSF)'!$B$4)*'PV(SF)(M2) Info'!$D$20)+'PV(SF) Revenue_Base'!T19-'PV(SF) Revenue_Base'!T11-'PV(SF) Cost_Base'!T20)*T2*'PV(SF)(M2) Info'!$F$3 -> -497478.1032 | U7: =T7+('PV(SF) Revenue_Base'!U9*('General Finance Analysis (PVSF)'!$B$4*'PV(SF)(M2) Info'!$D$19+(1-'General Finance Analysis (PVSF)'!$B$4)*'PV(SF)(M2) Info'!$D$20)+'PV(SF) Revenue_Base'!U19-'PV(SF) Revenue_Base'!U11-'PV(SF) Cost_Base'!U20)*U2*'PV(SF)(M2) Info'!$F$3 -> -468177.1857 | V7: =U7+('PV(SF) Revenue_Base'!V9*('General Finance Analysis (PVSF)'!$B$4*'PV(SF)(M2) Info'!$D$19+(1-'General Finance Analysis (PVSF)'!$B$4)*'PV(SF)(M2) Info'!$D$20)+'PV(SF) Revenue_Base'!V19-'PV(SF) Revenue_Base'!V11-'PV(SF) Cost_Base'!V20)*V2*'PV(SF)(M2) Info'!$F$3 -> -439251.4426 | W7: =V7+('PV(SF) Revenue_Base'!W9*('General Finance Analysis (PVSF)'!$B$4*'PV(SF)(M2) Info'!$D$19+(1-'General Finance Analysis (PVSF)'!$B$4)*'PV(SF)(M2) Info'!$D$20)+'PV(SF) Revenue_Base'!W19-'PV(SF) Revenue_Base'!W11-'PV(SF) Cost_Base'!W20)*W2*'PV(SF)(M2) Info'!$F$3 -> -410696.4371 | X7: =W7+('PV(SF) Revenue_Base'!X9*('General Finance Analysis (PVSF)'!$B$4*'PV(SF)(M2) Info'!$D$19+(1-'General Finance Analysis (PVSF)'!$B$4)*'PV(SF)(M2) Info'!$D$20)+'PV(SF) Revenue_Base'!X19-'PV(SF) Revenue_Base'!X11-'PV(SF) Cost_Base'!X20)*X2*'PV(SF)(M2) Info'!$F$3 -> -382507.7837 | Y7: =X7+('PV(SF) Revenue_Base'!Y9*('General Finance Analysis (PVSF)'!$B$4*'PV(SF)(M2) Info'!$D$19+(1-'General Finance Analysis (PVSF)'!$B$4)*'PV(SF)(M2) Info'!$D$20)+'PV(SF) Revenue_Base'!Y19-'PV(SF) Revenue_Base'!Y11-'PV(SF) Cost_Base'!Y20)*Y2*'PV(SF)(M2) Info'!$F$3 -> -354681.1476 | Z7: =Y7+('PV(SF) Revenue_Base'!Z9*('General Finance Analysis (PVSF)'!$B$4*'PV(SF)(M2) Info'!$D$19+(1-'General Finance Analysis (PVSF)'!$B$4)*'PV(SF)(M2) Info'!$D$20)+'PV(SF) Revenue_Base'!Z19-'PV(SF) Revenue_Base'!Z11-'PV(SF) Cost_Base'!Z20)*Z2*'PV(SF)(M2) Info'!$F$3 -> -327212.2441 | AA7: =Z7+('PV(SF) Revenue_Base'!AA9*('General Finance Analysis (PVSF)'!$B$4*'PV(SF)(M2) Info'!$D$19+(1-'General Finance Analysis (PVSF)'!$B$4)*'PV(SF)(M2) Info'!$D$20)+'PV(SF) Revenue_Base'!AA19-'PV(SF) Revenue_Base'!AA11-'PV(SF) Cost_Base'!AA20)*AA2*'PV(SF)(M2) Info'!$F$3 -> -313805.5667 | AB7: >25
A8: CASE 6 | B8: =-'General Finance Analysis (PVSF)'!L13 -> -1064157.6 | C8: =B8+('PV(SF) Revenue_Base'!C9*('General Finance Analysis (PVSF)'!$B$4*'PV(SF)(M2) Info'!$D$19+(1-'General Finance Analysis (PVSF)'!$B$4)*'PV(SF)(M2) Info'!$D$20)+'PV(SF) Revenue_Base'!C18-'PV(SF) Revenue_Base'!C11-'PV(SF) Cost_Base'!C20)*C2*'PV(SF)(M2) Info'!$F$3 -> -1022882.896 | D8: =C8+('PV(SF) Revenue_Base'!D9*('General Finance Analysis (PVSF)'!$B$4*'PV(SF)(M2) Info'!$D$19+(1-'General Finance Analysis (PVSF)'!$B$4)*'PV(SF)(M2) Info'!$D$20)+'PV(SF) Revenue_Base'!D18-'PV(SF) Revenue_Base'!D11-'PV(SF) Cost_Base'!D20)*D2*'PV(SF)(M2) Info'!$F$3 -> -982123.1418 | E8: =D8+('PV(SF) Revenue_Base'!E9*('General Finance Analysis (PVSF)'!$B$4*'PV(SF)(M2) Info'!$D$19+(1-'General Finance Analysis (PVSF)'!$B$4)*'PV(SF)(M2) Info'!$D$20)+'PV(SF) Revenue_Base'!E18-'PV(SF) Revenue_Base'!E11-'PV(SF) Cost_Base'!E20)*E2*'PV(SF)(M2) Info'!$F$3 -> -941872.2892 | F8: =E8+('PV(SF) Revenue_Base'!F9*('General Finance Analysis (PVSF)'!$B$4*'PV(SF)(M2) Info'!$D$19+(1-'General Finance Analysis (PVSF)'!$B$4)*'PV(SF)(M2) Info'!$D$20)+'PV(SF) Revenue_Base'!F18-'PV(SF) Revenue_Base'!F11-'PV(SF) Cost_Base'!F20)*F2*'PV(SF)(M2) Info'!$F$3 -> -902124.3609 | G8: =F8+('PV(SF) Revenue_Base'!G9*('General Finance Analysis (PVSF)'!$B$4*'PV(SF)(M2) Info'!$D$19+(1-'General Finance Analysis (PVSF)'!$B$4)*'PV(SF)(M2) Info'!$D$20)+'PV(SF) Revenue_Base'!G18-'PV(SF) Revenue_Base'!G11-'PV(SF) Cost_Base'!G20)*G2*'PV(SF)(M2) Info'!$F$3 -> -862873.4479 | H8: =G8+('PV(SF) Revenue_Base'!H9*('General Finance Analysis (PVSF)'!$B$4*'PV(SF)(M2) Info'!$D$19+(1-'General Finance Analysis (PVSF)'!$B$4)*'PV(SF)(M2) Info'!$D$20)+'PV(SF) Revenue_Base'!H18-'PV(SF) Revenue_Base'!H11-'PV(SF) Cost_Base'!H20)*H2*'PV(SF)(M2) Info'!$F$3 -> -824113.7098 | I8: =H8+('PV(SF) Revenue_Base'!I9*('General Finance Analysis (PVSF)'!$B$4*'PV(SF)(M2) Info'!$D$19+(1-'General Finance Analysis (PVSF)'!$B$4)*'PV(SF)(M2) Info'!$D$20)+'PV(SF) Revenue_Base'!I18-'PV(SF) Revenue_Base'!I11-'PV(SF) Cost_Base'!I20)*I2*'PV(SF)(M2) Info'!$F$3 -> -785839.3735 | J8: =I8+('PV(SF) Revenue_Base'!J9*('General Finance Analysis (PVSF)'!$B$4*'PV(SF)(M2) Info'!$D$19+(1-'General Finance Analysis (PVSF)'!$B$4)*'PV(SF)(M2) Info'!$D$20)+'PV(SF) Revenue_Base'!J18-'PV(SF) Revenue_Base'!J11-'PV(SF) Cost_Base'!J20)*J2*'PV(SF)(M2) Info'!$F$3 -> -748044.7326 | K8: =J8+('PV(SF) Revenue_Base'!K9*('General Finance Analysis (PVSF)'!$B$4*'PV(SF)(M2) Info'!$D$19+(1-'General Finance Analysis (PVSF)'!$B$4)*'PV(SF)(M2) Info'!$D$20)+'PV(SF) Revenue_Base'!K18-'PV(SF) Revenue_Base'!K11-'PV(SF) Cost_Base'!K20)*K2*'PV(SF)(M2) Info'!$F$3 -> -710724.1466 | L8: =K8+('PV(SF) Revenue_Base'!L9*('General Finance Analysis (PVSF)'!$B$4*'PV(SF)(M2) Info'!$D$19+(1-'General Finance Analysis (PVSF)'!$B$4)*'PV(SF)(M2) Info'!$D$20)+'PV(SF) Revenue_Base'!L18-'PV(SF) Revenue_Base'!L11-'PV(SF) Cost_Base'!L20)*L2*'PV(SF)(M2) Info'!$F$3 -> -673872.0401 | M8: =L8+('PV(SF) Revenue_Base'!M9*('General Finance Analysis (PVSF)'!$B$4*'PV(SF)(M2) Info'!$D$19+(1-'General Finance Analysis (PVSF)'!$B$4)*'PV(SF)(M2) Info'!$D$20)+'PV(SF) Revenue_Base'!M18-'PV(SF) Revenue_Base'!M11-'PV(SF) Cost_Base'!M20)*M2*'PV(SF)(M2) Info'!$F$3 -> -637482.902 | N8: =M8+('PV(SF) Revenue_Base'!N9*('General Finance Analysis (PVSF)'!$B$4*'PV(SF)(M2) Info'!$D$19+(1-'General Finance Analysis (PVSF)'!$B$4)*'PV(SF)(M2) Info'!$D$20)+'PV(SF) Revenue_Base'!N18-'PV(SF) Revenue_Base'!N11-'PV(SF) Cost_Base'!N20)*N2*'PV(SF)(M2) Info'!$F$3 -> -601551.2851 | O8: =N8+('PV(SF) Revenue_Base'!O9*('General Finance Analysis (PVSF)'!$B$4*'PV(SF)(M2) Info'!$D$19+(1-'General Finance Analysis (PVSF)'!$B$4)*'PV(SF)(M2) Info'!$D$20)+'PV(SF) Revenue_Base'!O18-'PV(SF) Revenue_Base'!O11-'PV(SF) Cost_Base'!O20)*O2*'PV(SF)(M2) Info'!$F$3 -> -596345.0708 | P8: =O8+('PV(SF) Revenue_Base'!P9*('General Finance Analysis (PVSF)'!$B$4*'PV(SF)(M2) Info'!$D$19+(1-'General Finance Analysis (PVSF)'!$B$4)*'PV(SF)(M2) Info'!$D$20)+'PV(SF) Revenue_Base'!P18-'PV(SF) Revenue_Base'!P11-'PV(SF) Cost_Base'!P20)*P2*'PV(SF)(M2) Info'!$F$3 -> -561312.4052 | Q8: =P8+('PV(SF) Revenue_Base'!Q9*('General Finance Analysis (PVSF)'!$B$4*'PV(SF)(M2) Info'!$D$19+(1-'General Finance Analysis (PVSF)'!$B$4)*'PV(SF)(M2) Info'!$D$20)+'PV(SF) Revenue_Base'!Q18-'PV(SF) Revenue_Base'!Q11-'PV(SF) Cost_Base'!Q20)*Q2*'PV(SF)(M2) Info'!$F$3 -> -526721.2934 | R8: =Q8+('PV(SF) Revenue_Base'!R9*('General Finance Analysis (PVSF)'!$B$4*'PV(SF)(M2) Info'!$D$19+(1-'General Finance Analysis (PVSF)'!$B$4)*'PV(SF)(M2) Info'!$D$20)+'PV(SF) Revenue_Base'!R18-'PV(SF) Revenue_Base'!R11-'PV(SF) Cost_Base'!R20)*R2*'PV(SF)(M2) Info'!$F$3 -> -492566.5354 | S8: =R8+('PV(SF) Revenue_Base'!S9*('General Finance Analysis (PVSF)'!$B$4*'PV(SF)(M2) Info'!$D$19+(1-'General Finance Analysis (PVSF)'!$B$4)*'PV(SF)(M2) Info'!$D$20)+'PV(SF) Revenue_Base'!S18-'PV(SF) Revenue_Base'!S11-'PV(SF) Cost_Base'!S20)*S2*'PV(SF)(M2) Info'!$F$3 -> -458842.9914 | T8: =S8+('PV(SF) Revenue_Base'!T9*('General Finance Analysis (PVSF)'!$B$4*'PV(SF)(M2) Info'!$D$19+(1-'General Finance Analysis (PVSF)'!$B$4)*'PV(SF)(M2) Info'!$D$20)+'PV(SF) Revenue_Base'!T18-'PV(SF) Revenue_Base'!T11-'PV(SF) Cost_Base'!T20)*T2*'PV(SF)(M2) Info'!$F$3 -> -425545.5808 | U8: =T8+('PV(SF) Revenue_Base'!U9*('General Finance Analysis (PVSF)'!$B$4*'PV(SF)(M2) Info'!$D$19+(1-'General Finance Analysis (PVSF)'!$B$4)*'PV(SF)(M2) Info'!$D$20)+'PV(SF) Revenue_Base'!U18-'PV(SF) Revenue_Base'!U11-'PV(SF) Cost_Base'!U20)*U2*'PV(SF)(M2) Info'!$F$3 -> -392669.2819 | V8: =U8+('PV(SF) Revenue_Base'!V9*('General Finance Analysis (PVSF)'!$B$4*'PV(SF)(M2) Info'!$D$19+(1-'General Finance Analysis (PVSF)'!$B$4)*'PV(SF)(M2) Info'!$D$20)+'PV(SF) Revenue_Base'!V18-'PV(SF) Revenue_Base'!V11-'PV(SF) Cost_Base'!V20)*V2*'PV(SF)(M2) Info'!$F$3 -> -360209.1309 | W8: =V8+('PV(SF) Revenue_Base'!W9*('General Finance Analysis (PVSF)'!$B$4*'PV(SF)(M2) Info'!$D$19+(1-'General Finance Analysis (PVSF)'!$B$4)*'PV(SF)(M2) Info'!$D$20)+'PV(SF) Revenue_Base'!W18-'PV(SF) Revenue_Base'!W11-'PV(SF) Cost_Base'!W20)*W2*'PV(SF)(M2) Info'!$F$3 -> -328160.2214 | X8: =W8+('PV(SF) Revenue_Base'!X9*('General Finance Analysis (PVSF)'!$B$4*'PV(SF)(M2) Info'!$D$19+(1-'General Finance Analysis (PVSF)'!$B$4)*'PV(SF)(M2) Info'!$D$20)+'PV(SF) Revenue_Base'!X18-'PV(SF) Revenue_Base'!X11-'PV(SF) Cost_Base'!X20)*X2*'PV(SF)(M2) Info'!$F$3 -> -296517.7037 | Y8: =X8+('PV(SF) Revenue_Base'!Y9*('General Finance Analysis (PVSF)'!$B$4*'PV(SF)(M2) Info'!$D$19+(1-'General Finance Analysis (PVSF)'!$B$4)*'PV(SF)(M2) Info'!$D$20)+'PV(SF) Revenue_Base'!Y18-'PV(SF) Revenue_Base'!Y11-'PV(SF) Cost_Base'!Y20)*Y2*'PV(SF)(M2) Info'!$F$3 -> -265276.7843 | Z8: =Y8+('PV(SF) Revenue_Base'!Z9*('General Finance Analysis (PVSF)'!$B$4*'PV(SF)(M2) Info'!$D$19+(1-'General Finance Analysis (PVSF)'!$B$4)*'PV(SF)(M2) Info'!$D$20)+'PV(SF) Revenue_Base'!Z18-'PV(SF) Revenue_Base'!Z11-'PV(SF) Cost_Base'!Z20)*Z2*'PV(SF)(M2) Info'!$F$3 -> -234432.7248 | AA8: =Z8+('PV(SF) Revenue_Base'!AA9*('General Finance Analysis (PVSF)'!$B$4*'PV(SF)(M2) Info'!$D$19+(1-'General Finance Analysis (PVSF)'!$B$4)*'PV(SF)(M2) Info'!$D$20)+'PV(SF) Revenue_Base'!AA18-'PV(SF) Revenue_Base'!AA11-'PV(SF) Cost_Base'!AA20)*AA2*'PV(SF)(M2) Info'!$F$3 -> -217689.5703 | AB8: >25
A9: CASE 7 | B9: =-'General Finance Analysis (PVSF)'!L14 -> -957741.84 | C9: =B9+C7-B7 -> -920866.8564 | D9: -884456.4019 | E9: -848505.0068 | F9: -813007.2645 | G9: -777957.831 | H9: -743351.4238 | I9: -709182.8217 | J9: -675446.8638 | K9: -642138.4487 | L9: -609252.534 | M9: -576784.1357 | N9: -544728.3273 | O9: -543353.5051 | P9: -512108.3244 | Q9: -481261.2932 | R9: -450807.7091 | S9: -420742.9239 | T9: -391062.3432 | U9: -361761.4257 | V9: -332835.6826 | W9: -304280.6771 | X9: -276092.0237 | Y9: -248265.3876 | Z9: -220796.4841 | AA9: -207389.8067 | AB9: >25
A10: CASE 8 | B10: =-'General Finance Analysis (PVSF)'!L15 -> -957741.84 | C10: =B10+C8-B8 -> -916467.1362 | D10: -875707.3818 | E10: -835456.5292 | F10: -795708.6009 | G10: -756457.6879 | H10: -717697.9498 | I10: -679423.6135 | J10: -641628.9726 | K10: -604308.3866 | L10: -567456.2801 | M10: -531067.142 | N10: -495135.5251 | O10: -489929.3108 | P10: -454896.6452 | Q10: -420305.5334 | R10: -386150.7754 | S10: -352427.2314 | T10: -319129.8208 | U10: -286253.5219 | V10: -253793.3709 | W10: -221744.4614 | X10: -190101.9437 | Y10: -158861.0243 | Z10: -128016.9648 | AA10: -111273.8103 | AB10: >25
A11: Case 9 | B11: 0 | C11: =C36 -> 7047.341011 | D11: 6990.962283 | E11: 6935.034585 | F11: 6879.554308 | G11: 6824.517874 | H11: 6769.921731 | I11: 6715.762357 | J11: 6662.036258 | K11: 6608.739968 | L11: 6555.870048 | M11: 6503.423088 | N11: 6451.395703 | O11: 6399.784537 | P11: 6348.586261 | Q11: 6297.797571 | R11: 6247.415191 | S11: 6197.435869 | T11: 6147.856382 | U11: 6098.673531 | V11: 6049.884143 | W11: 6001.48507 | X11: 5953.473189 | Y11: 5905.845404 | Z11: 5858.59864 | AA11: 5811.729851 | AB11: NA
A12: Case 10 | B12: 0 | C12: =C37 -> 11233.42167 | D12: 11143.5543 | E12: 11054.40586 | F12: 10965.97062 | G12: 10878.24285 | H12: 10791.21691 | I12: 10704.88717 | J12: 10619.24808 | K12: 10534.29409 | L12: 10450.01974 | M12: 10366.41958 | N12: 10283.48822 | O12: 10201.22032 | P12: 10119.61056 | Q12: 10038.65367 | R12: 9958.344442 | S12: 9878.677686 | T12: 9799.648265 | U12: 9721.251079 | V12: 9643.48107 | W12: 9566.333221 | X12: 9489.802556 | Y12: 9413.884135 | Z12: 9338.573062 | AA12: 9263.864478 | AB12: NA
A14: Year | B14: 0 | C14: 1 | D14: 2 | E14: 3 | F14: 4 | G14: 5 | H14: 6 | I14: 7 | J14: 8 | K14: 9 | L14: 10 | M14: 11 | N14: 12 | O14: 13 | P14: 14 | Q14: 15 | R14: 16 | S14: 17 | T14: 18 | U14: 19 | V14: 20 | W14: 21 | X14: 22 | Y14: 23 | Z14: 24 | AA14: 25
A15: Discount factor (End of year) | B15: 1 | C15: =C2 -> 0.9965122073 | D15: 0.9930365792 | E15: 0.9895730735 | F15: 0.9861216477 | G15: 0.9826822598 | H15: 0.9792548678 | I15: 0.9758394298 | J15: 0.9724359041 | K15: 0.9690442492 | L15: 0.9656644238 | M15: 0.9622963864 | N15: 0.9589400961 | O15: 0.9555955118 | P15: 0.9522625927 | Q15: 0.9489412982 | R15: 0.9456315876 | S15: 0.9423334206 | T15: 0.939046757 | U15: 0.9357715565 | V15: 0.9325077793 | W15: 0.9292553855 | X15: 0.9260143353 | Y15: 0.9227845892 | Z15: 0.9195661078 | AA15: 0.9163588519 | AB15: NPV
A16: CASE 1 | B16: =B3 -> -748286 | C16: =C3-B3 -> 33363.60295 | D16: 32939.31385 | E16: 32520.03336 | F16: 32105.70356 | G16: 31696.26722 | H16: 31291.66775 | I16: 30891.84921 | J16: 30496.75631 | K16: 30106.3344 | L16: 29720.52944 | M16: 29339.28803 | N16: 28962.55738 | O16: -1682.980523 | P16: 28222.42018 | Q16: 27858.91106 | R16: 27499.70752 | S16: 27144.75972 | T16: 26794.01841 | U16: 26447.43491 | V16: 26104.96107 | W16: 25766.54933 | X16: 25432.15266 | Y16: 25101.72455 | Z16: 24775.21907 | AA16: 10743.86235 | AB16: =SUM(B16:AA16) -> -74643.35622
A17: CASE 2 | B17: -748286 | C17: =C4-B4 -> 37763.32317 | D17: 37288.61376 | E17: 36819.49077 | F17: 36355.88966 | G17: 35897.74666 | H17: 35444.99869 | I17: 34997.58343 | J17: 34555.43927 | K17: 34118.50529 | L17: 33686.7213 | M17: 33260.02776 | N17: 32838.36586 | O17: 2148.411622 | P17: 32009.90499 | Q17: 31602.99171 | R17: 31200.88141 | S17: 30803.51857 | T17: 30410.84829 | U17: 30022.81631 | V17: 29639.36899 | W17: 29260.45333 | X17: 28886.01689 | Y17: 28516.00789 | Z17: 28150.37509 | AA17: 14080.33945 | AB17: 21472.64018
A18: CASE 3 | B18: -673457.4 | C18: =C5-B5 -> 33363.60295 | D18: 32939.31385 | E18: 32520.03336 | F18: 32105.70356 | G18: 31696.26722 | H18: 31291.66775 | I18: 30891.84921 | J18: 30496.75631 | K18: 30106.3344 | L18: 29720.52944 | M18: 29339.28803 | N18: 28962.55738 | O18: -1682.980523 | P18: 28222.42018 | Q18: 27858.91106 | R18: 27499.70752 | S18: 27144.75972 | T18: 26794.01841 | U18: 26447.43491 | V18: 26104.96107 | W18: 25766.54933 | X18: 25432.15266 | Y18: 25101.72455 | Z18: 24775.21907 | AA18: 10743.86235 | AB18: 185.2437842
A19: CASE 4 | B19: -673457.4 | C19: =C6-B6 -> 37763.32317 | D19: 37288.61376 | E19: 36819.49077 | F19: 36355.88966 | G19: 35897.74666 | H19: 35444.99869 | I19: 34997.58343 | J19: 34555.43927 | K19: 34118.50529 | L19: 33686.7213 | M19: 33260.02776 | N19: 32838.36586 | O19: 2148.411622 | P19: 32009.90499 | Q19: 31602.99171 | R19: 31200.88141 | S19: 30803.51857 | T19: 30410.84829 | U19: 30022.81631 | V19: 29639.36899 | W19: 29260.45333 | X19: 28886.01689 | Y19: 28516.00789 | Z19: 28150.37509 | AA19: 14080.33945 | AB19: 96301.24018
A20: CASE 5 | B20: -1064157.6 | C20: =C7-B7 -> 36874.98362 | D20: 36410.45449 | E20: 35951.39511 | F20: 35497.74228 | G20: 35049.43355 | H20: 34606.40715 | I20: 34168.60206 | J20: 33735.95794 | K20: 33308.41513 | L20: 32885.91468 | M20: 32468.3983 | N20: 32055.80838 | O20: 1374.822167 | P20: 31245.18079 | Q20: 30847.03116 | R20: 30453.58409 | S20: 30064.78519 | T20: 29680.58071 | U20: 29300.91752 | V20: 28925.74309 | W20: 28555.00549 | X20: 28188.65342 | Y20: 27826.63612 | Z20: 27468.90345 | AA20: 13406.6774 | AB20: -313805.5667
A21: CASE 6 | B21: -1064157.6 | C21: =C8-B8 -> 41274.70385 | D21: 40759.7544 | E21: 40250.85252 | F21: 39747.92838 | G21: 39250.91298 | H21: 38759.73809 | I21: 38274.33629 | J21: 37794.64089 | K21: 37320.58602 | L21: 36852.10653 | M21: 36389.13803 | N21: 35931.61687 | O21: 5206.214312 | P21: 35032.6656 | Q21: 34591.11181 | R21: 34154.75798 | S21: 33723.54404 | T21: 33297.41058 | U21: 32876.29892 | V21: 32460.15101 | W21: 32048.90949 | X21: 31642.51765 | Y21: 31240.91945 | Z21: 30844.05946 | AA21: 16743.1545 | AB21: -217689.5703
A22: CASE 7 | B22: -957741.84 | C22: =C9-B9 -> 36874.98362 | D22: 36410.45449 | E22: 35951.39511 | F22: 35497.74228 | G22: 35049.43355 | H22: 34606.40715 | I22: 34168.60206 | J22: 33735.95794 | K22: 33308.41513 | L22: 32885.91468 | M22: 32468.3983 | N22: 32055.80838 | O22: 1374.822167 | P22: 31245.18079 | Q22: 30847.03116 | R22: 30453.58409 | S22: 30064.78519 | T22: 29680.58071 | U22: 29300.91752 | V22: 28925.74309 | W22: 28555.00549 | X22: 28188.65342 | Y22: 27826.63612 | Z22: 27468.90345 | AA22: 13406.6774 | AB22: -207389.8067
A23: CASE 8 | B23: -957741.84 | C23: =C10-B10 -> 41274.70385 | D23: 40759.7544 | E23: 40250.85252 | F23: 39747.92838 | G23: 39250.91298 | H23: 38759.73809 | I23: 38274.33629 | J23: 37794.64089 | K23: 37320.58602 | L23: 36852.10653 | M23: 36389.13803 | N23: 35931.61687 | O23: 5206.214312 | P23: 35032.6656 | Q23: 34591.11181 | R23: 34154.75798 | S23: 33723.54404 | T23: 33297.41058 | U23: 32876.29892 | V23: 32460.15101 | W23: 32048.90949 | X23: 31642.51765 | Y23: 31240.91945 | Z23: 30844.05946 | AA23: 16743.1545 | AB23: -111273.8103
A24: Case 9 | B24: 0 | C24: ='PV(SF) Revenue_Base'!C9*('PV(SF)(M2) Info'!$D$19-'PV(SF)(M2) Info'!$D$21)*C15*'PV(SF)(M2) Info'!$F$3 -> 7022.761346 | D24: ='PV(SF) Revenue_Base'!D9*('PV(SF)(M2) Info'!$D$19-'PV(SF)(M2) Info'!$D$21)*D15*'PV(SF)(M2) Info'!$F$3 -> 6942.281271 | E24: ='PV(SF) Revenue_Base'!E9*('PV(SF)(M2) Info'!$D$19-'PV(SF)(M2) Info'!$D$21)*E15*'PV(SF)(M2) Info'!$F$3 -> 6862.723489 | F24: ='PV(SF) Revenue_Base'!F9*('PV(SF)(M2) Info'!$D$19-'PV(SF)(M2) Info'!$D$21)*F15*'PV(SF)(M2) Info'!$F$3 -> 6784.07743 | G24: ='PV(SF) Revenue_Base'!G9*('PV(SF)(M2) Info'!$D$19-'PV(SF)(M2) Info'!$D$21)*G15*'PV(SF)(M2) Info'!$F$3 -> 6706.332646 | H24: ='PV(SF) Revenue_Base'!H9*('PV(SF)(M2) Info'!$D$19-'PV(SF)(M2) Info'!$D$21)*H15*'PV(SF)(M2) Info'!$F$3 -> 6629.478809 | I24: ='PV(SF) Revenue_Base'!I9*('PV(SF)(M2) Info'!$D$19-'PV(SF)(M2) Info'!$D$21)*I15*'PV(SF)(M2) Info'!$F$3 -> 6553.505709 | J24: ='PV(SF) Revenue_Base'!J9*('PV(SF)(M2) Info'!$D$19-'PV(SF)(M2) Info'!$D$21)*J15*'PV(SF)(M2) Info'!$F$3 -> 6478.403252 | K24: ='PV(SF) Revenue_Base'!K9*('PV(SF)(M2) Info'!$D$19-'PV(SF)(M2) Info'!$D$21)*K15*'PV(SF)(M2) Info'!$F$3 -> 6404.161461 | L24: ='PV(SF) Revenue_Base'!L9*('PV(SF)(M2) Info'!$D$19-'PV(SF)(M2) Info'!$D$21)*L15*'PV(SF)(M2) Info'!$F$3 -> 6330.770472 | M24: ='PV(SF) Revenue_Base'!M9*('PV(SF)(M2) Info'!$D$19-'PV(SF)(M2) Info'!$D$21)*M15*'PV(SF)(M2) Info'!$F$3 -> 6258.220537 | N24: ='PV(SF) Revenue_Base'!N9*('PV(SF)(M2) Info'!$D$19-'PV(SF)(M2) Info'!$D$21)*N15*'PV(SF)(M2) Info'!$F$3 -> 6186.502015 | O24: ='PV(SF) Revenue_Base'!O9*('PV(SF)(M2) Info'!$D$19-'PV(SF)(M2) Info'!$D$21)*O15*'PV(SF)(M2) Info'!$F$3 -> 6115.60538 | P24: ='PV(SF) Revenue_Base'!P9*('PV(SF)(M2) Info'!$D$19-'PV(SF)(M2) Info'!$D$21)*P15*'PV(SF)(M2) Info'!$F$3 -> 6045.521213 | Q24: ='PV(SF) Revenue_Base'!Q9*('PV(SF)(M2) Info'!$D$19-'PV(SF)(M2) Info'!$D$21)*Q15*'PV(SF)(M2) Info'!$F$3 -> 5976.240203 | R24: ='PV(SF) Revenue_Base'!R9*('PV(SF)(M2) Info'!$D$19-'PV(SF)(M2) Info'!$D$21)*R15*'PV(SF)(M2) Info'!$F$3 -> 5907.753145 | S24: ='PV(SF) Revenue_Base'!S9*('PV(SF)(M2) Info'!$D$19-'PV(SF)(M2) Info'!$D$21)*S15*'PV(SF)(M2) Info'!$F$3 -> 5840.050942 | T24: ='PV(SF) Revenue_Base'!T9*('PV(SF)(M2) Info'!$D$19-'PV(SF)(M2) Info'!$D$21)*T15*'PV(SF)(M2) Info'!$F$3 -> 5773.124598 | U24: ='PV(SF) Revenue_Base'!U9*('PV(SF)(M2) Info'!$D$19-'PV(SF)(M2) Info'!$D$21)*U15*'PV(SF)(M2) Info'!$F$3 -> 5706.965223 | V24: ='PV(SF) Revenue_Base'!V9*('PV(SF)(M2) Info'!$D$19-'PV(SF)(M2) Info'!$D$21)*V15*'PV(SF)(M2) Info'!$F$3 -> 5641.564027 | W24: ='PV(SF) Revenue_Base'!W9*('PV(SF)(M2) Info'!$D$19-'PV(SF)(M2) Info'!$D$21)*W15*'PV(SF)(M2) Info'!$F$3 -> 5576.912322 | X24: ='PV(SF) Revenue_Base'!X9*('PV(SF)(M2) Info'!$D$19-'PV(SF)(M2) Info'!$D$21)*X15*'PV(SF)(M2) Info'!$F$3 -> 5513.001518 | Y24: ='PV(SF) Revenue_Base'!Y9*('PV(SF)(M2) Info'!$D$19-'PV(SF)(M2) Info'!$D$21)*Y15*'PV(SF)(M2) Info'!$F$3 -> 5449.823125 | Z24: ='PV(SF) Revenue_Base'!Z9*('PV(SF)(M2) Info'!$D$19-'PV(SF)(M2) Info'!$D$21)*Z15*'PV(SF)(M2) Info'!$F$3 -> 5387.368749 | AA24: ='PV(SF) Revenue_Base'!AA9*('PV(SF)(M2) Info'!$D$19-'PV(SF)(M2) Info'!$D$21)*AA15*'PV(SF)(M2) Info'!$F$3 -> 5325.630094 | AB24: 153418.779
A25: Case 10 | B25: 0 | C25: =(SUM('PV(SF) Revenue_Base'!C13:C15)+'PV(SF) Revenue_Base'!C9*('PV(SF)(M2) Info'!$D$19-'PV(SF)(M2) Info'!$D$21))*C15*'PV(SF)(M2) Info'!$F$3 -> 11194.24182 | D25: =(SUM('PV(SF) Revenue_Base'!D13:D15)+'PV(SF) Revenue_Base'!D9*('PV(SF)(M2) Info'!$D$19-'PV(SF)(M2) Info'!$D$21))*D15*'PV(SF)(M2) Info'!$F$3 -> 11065.95704 | E25: =(SUM('PV(SF) Revenue_Base'!E13:E15)+'PV(SF) Revenue_Base'!E9*('PV(SF)(M2) Info'!$D$19-'PV(SF)(M2) Info'!$D$21))*E15*'PV(SF)(M2) Info'!$F$3 -> 10939.14239 | F25: =(SUM('PV(SF) Revenue_Base'!F13:F15)+'PV(SF) Revenue_Base'!F9*('PV(SF)(M2) Info'!$D$19-'PV(SF)(M2) Info'!$D$21))*F15*'PV(SF)(M2) Info'!$F$3 -> 10813.78101 | G25: =(SUM('PV(SF) Revenue_Base'!G13:G15)+'PV(SF) Revenue_Base'!G9*('PV(SF)(M2) Info'!$D$19-'PV(SF)(M2) Info'!$D$21))*G15*'PV(SF)(M2) Info'!$F$3 -> 10689.85627 | H25: =(SUM('PV(SF) Revenue_Base'!H13:H15)+'PV(SF) Revenue_Base'!H9*('PV(SF)(M2) Info'!$D$19-'PV(SF)(M2) Info'!$D$21))*H15*'PV(SF)(M2) Info'!$F$3 -> 10567.35169 | I25: =(SUM('PV(SF) Revenue_Base'!I13:I15)+'PV(SF) Revenue_Base'!I9*('PV(SF)(M2) Info'!$D$19-'PV(SF)(M2) Info'!$D$21))*I15*'PV(SF)(M2) Info'!$F$3 -> 10446.25099 | J25: =(SUM('PV(SF) Revenue_Base'!J13:J15)+'PV(SF) Revenue_Base'!J9*('PV(SF)(M2) Info'!$D$19-'PV(SF)(M2) Info'!$D$21))*J15*'PV(SF)(M2) Info'!$F$3 -> 10326.5381 | K25: =(SUM('PV(SF) Revenue_Base'!K13:K15)+'PV(SF) Revenue_Base'!K9*('PV(SF)(M2) Info'!$D$19-'PV(SF)(M2) Info'!$D$21))*K15*'PV(SF)(M2) Info'!$F$3 -> 10208.19711 | L25: =(SUM('PV(SF) Revenue_Base'!L13:L15)+'PV(SF) Revenue_Base'!L9*('PV(SF)(M2) Info'!$D$19-'PV(SF)(M2) Info'!$D$21))*L15*'PV(SF)(M2) Info'!$F$3 -> 10091.21229 | M25: =(SUM('PV(SF) Revenue_Base'!M13:M15)+'PV(SF) Revenue_Base'!M9*('PV(SF)(M2) Info'!$D$19-'PV(SF)(M2) Info'!$D$21))*M15*'PV(SF)(M2) Info'!$F$3 -> 9975.568102 | N25: =(SUM('PV(SF) Revenue_Base'!N13:N15)+'PV(SF) Revenue_Base'!N9*('PV(SF)(M2) Info'!$D$19-'PV(SF)(M2) Info'!$D$21))*N15*'PV(SF)(M2) Info'!$F$3 -> 9861.249185 | O25: =(SUM('PV(SF) Revenue_Base'!O13:O15)+'PV(SF) Revenue_Base'!O9*('PV(SF)(M2) Info'!$D$19-'PV(SF)(M2) Info'!$D$21))*O15*'PV(SF)(M2) Info'!$F$3 -> 9748.240351 | P25: =(SUM('PV(SF) Revenue_Base'!P13:P15)+'PV(SF) Revenue_Base'!P9*('PV(SF)(M2) Info'!$D$19-'PV(SF)(M2) Info'!$D$21))*P15*'PV(SF)(M2) Info'!$F$3 -> 9636.526585 | Q25: =(SUM('PV(SF) Revenue_Base'!Q13:Q15)+'PV(SF) Revenue_Base'!Q9*('PV(SF)(M2) Info'!$D$19-'PV(SF)(M2) Info'!$D$21))*Q15*'PV(SF)(M2) Info'!$F$3 -> 9526.093046 | R25: =(SUM('PV(SF) Revenue_Base'!R13:R15)+'PV(SF) Revenue_Base'!R9*('PV(SF)(M2) Info'!$D$19-'PV(SF)(M2) Info'!$D$21))*R15*'PV(SF)(M2) Info'!$F$3 -> 9416.925064 | S25: =(SUM('PV(SF) Revenue_Base'!S13:S15)+'PV(SF) Revenue_Base'!S9*('PV(SF)(M2) Info'!$D$19-'PV(SF)(M2) Info'!$D$21))*S15*'PV(SF)(M2) Info'!$F$3 -> 9309.008135 | T25: =(SUM('PV(SF) Revenue_Base'!T13:T15)+'PV(SF) Revenue_Base'!T9*('PV(SF)(M2) Info'!$D$19-'PV(SF)(M2) Info'!$D$21))*T15*'PV(SF)(M2) Info'!$F$3 -> 9202.327922 | U25: =(SUM('PV(SF) Revenue_Base'!U13:U15)+'PV(SF) Revenue_Base'!U9*('PV(SF)(M2) Info'!$D$19-'PV(SF)(M2) Info'!$D$21))*U15*'PV(SF)(M2) Info'!$F$3 -> 9096.870253 | V25: =(SUM('PV(SF) Revenue_Base'!V13:V15)+'PV(SF) Revenue_Base'!V9*('PV(SF)(M2) Info'!$D$19-'PV(SF)(M2) Info'!$D$21))*V15*'PV(SF)(M2) Info'!$F$3 -> 8992.621117 | W25: =(SUM('PV(SF) Revenue_Base'!W13:W15)+'PV(SF) Revenue_Base'!W9*('PV(SF)(M2) Info'!$D$19-'PV(SF)(M2) Info'!$D$21))*W15*'PV(SF)(M2) Info'!$F$3 -> 8889.566665 | X25: =(SUM('PV(SF) Revenue_Base'!X13:X15)+'PV(SF) Revenue_Base'!X9*('PV(SF)(M2) Info'!$D$19-'PV(SF)(M2) Info'!$D$21))*X15*'PV(SF)(M2) Info'!$F$3 -> 8787.693205 | Y25: =(SUM('PV(SF) Revenue_Base'!Y13:Y15)+'PV(SF) Revenue_Base'!Y9*('PV(SF)(M2) Info'!$D$19-'PV(SF)(M2) Info'!$D$21))*Y15*'PV(SF)(M2) Info'!$F$3 -> 8686.987205 | Z25: =(SUM('PV(SF) Revenue_Base'!Z13:Z15)+'PV(SF) Revenue_Base'!Z9*('PV(SF)(M2) Info'!$D$19-'PV(SF)(M2) Info'!$D$21))*Z15*'PV(SF)(M2) Info'!$F$3 -> 8587.435283 | AA25: =(SUM('PV(SF) Revenue_Base'!AA13:AA15)+'PV(SF) Revenue_Base'!AA9*('PV(SF)(M2) Info'!$D$19-'PV(SF)(M2) Info'!$D$21))*AA15*'PV(SF)(M2) Info'!$F$3 -> 8489.024216 | AB25: 244548.6651
A27: Year | B27: 0 | C27: 1 | D27: 2 | E27: 3 | F27: 4 | G27: 5 | H27: 6 | I27: 7 | J27: 8 | K27: 9 | L27: 10 | M27: 11 | N27: 12 | O27: 13 | P27: 14 | Q27: 15 | R27: 16 | S27: 17 | T27: 18 | U27: 19 | V27: 20 | W27: 21 | X27: 22 | Y27: 23 | Z27: 24 | AA27: 25
A28: CASE 1 | B28: =B16/$B$2 -> -748286 | C28: =C16/$C$2 -> 33480.37556 | D28: =D16/$D$2 -> 33170.29256 | E28: =E16/$E$2 -> 32862.69022 | F28: =F16/$F$2 -> 32557.54869 | G28: =G16/$G$2 -> 32254.84831 | H28: =H16/$H$2 -> 31954.56952 | I28: =I16/$I$2 -> 31656.69296 | J28: =J16/$J$2 -> 31361.19942 | K28: =K16/$K$2 -> 31068.06982 | L28: =L16/$L$2 -> 30777.28527 | M28: =M16/$M$2 -> 30488.82698 | N28: =N16/$N$2 -> 30202.67637 | O28: =O16/$O$2 -> -1761.185044 | P28: =P16/$P$2 -> 29637.22444 | Q28: =Q16/$Q$2 -> 29357.88664 | R28: =R16/$R$2 -> 29080.78355 | S28: =S16/$S$2 -> 28805.89728 | T28: =T16/$T$2 -> 28533.2101 | U28: =U16/$U$2 -> 28262.70442 | V28: =V16/$V$2 -> 27994.36279 | W28: =W16/$W$2 -> 27728.16788 | X28: =X16/$X$2 -> 27464.10254 | Y28: =Y16/$Y$2 -> 27202.14972 | Z28: =Z16/$Z$2 -> 26942.29252 | AA28: =AA16/$AA$2 -> 11724.51418 | AB28: =IRR(B28:AA28) -> -0.005063106155
A29: CASE 2 | B29: -748286 | C29: 37895.4948 | D29: 37550.09085 | E29: 37207.45012 | F29: 36867.55052 | G29: 36530.37011 | H29: 36195.88715 | I29: 35864.08006 | J29: 35534.92742 | K29: 35208.408 | L29: 34884.50073 | M29: 34563.18473 | N29: 34244.43925 | O29: 2248.243734 | P29: 33614.57778 | Q29: 33303.42116 | R29: 32994.75379 | S29: 32688.55576 | T29: 32384.80732 | U29: 32083.48886 | V29: 31784.58095 | W29: 31488.0643 | X29: 31193.91979 | Y29: 30902.12843 | Z29: 30612.6714 | AA29: 15365.53003 | AB29: 0.005863875386
A30: CASE 3 | B30: -673457.4 | C30: 33480.37556 | D30: 33170.29256 | E30: 32862.69022 | F30: 32557.54869 | G30: 32254.84831 | H30: 31954.56952 | I30: 31656.69296 | J30: 31361.19942 | K30: 31068.06982 | L30: 30777.28527 | M30: 30488.82698 | N30: 30202.67637 | O30: -1761.185044 | P30: 29637.22444 | Q30: 29357.88664 | R30: 29080.78355 | S30: 28805.89728 | T30: 28533.2101 | U30: 28262.70442 | V30: 27994.36279 | W30: 27728.16788 | X30: 27464.10254 | Y30: 27202.14972 | Z30: 26942.29252 | AA30: 11724.51418 | AB30: 0.003522923816
A31: CASE 4 | B31: -673457.4 | C31: 37895.4948 | D31: 37550.09085 | E31: 37207.45012 | F31: 36867.55052 | G31: 36530.37011 | H31: 36195.88715 | I31: 35864.08006 | J31: 35534.92742 | K31: 35208.408 | L31: 34884.50073 | M31: 34563.18473 | N31: 34244.43925 | O31: 2248.243734 | P31: 33614.57778 | Q31: 33303.42116 | R31: 32994.75379 | S31: 32688.55576 | T31: 32384.80732 | U31: 32083.48886 | V31: 31784.58095 | W31: 31488.0643 | X31: 31193.91979 | Y31: 30902.12843 | Z31: 30612.6714 | AA31: 15365.53003 | AB31: 0.01493731424
A32: CASE 5 | B32: -1064157.6 | C32: 37004.04607 | D32: 36665.7737 | E32: 36330.20751 | F32: 35997.32585 | G32: 35667.10724 | H32: 35339.53038 | I32: 35014.57414 | J32: 34692.21755 | K32: 34372.43981 | L32: 34055.22029 | M32: 33740.53853 | N32: 33428.37422 | O32: 1438.707225 | P32: 32811.51757 | Q32: 32506.78543 | R32: 32204.49114 | S32: 31904.61521 | T32: 31607.13829 | U32: 31312.04119 | V32: 31019.30486 | W32: 30728.91042 | X32: 30440.83913 | Y32: 30155.07242 | Z32: 29871.59184 | AA32: 14630.37911 | AB32: -0.02354905792
A33: CASE 6 | B33: -1064157.6 | C33: 41419.16531 | D33: 41045.57199 | E33: 40674.96741 | F33: 40307.32767 | G33: 39942.62905 | H33: 39580.84802 | I33: 39221.96123 | J33: 38865.94554 | K33: 38512.77798 | L33: 38162.43576 | M33: 37814.89627 | N33: 37470.1371 | O33: 5448.136003 | P33: 36788.87092 | Q33: 36452.31995 | R33: 36118.46139 | S33: 35787.2737 | T33: 35458.73551 | U33: 35132.82562 | V33: 34809.52302 | W33: 34488.80683 | X33: 34170.65638 | Y33: 33855.05113 | Z33: 33541.97072 | AA33: 18271.39495 | AB33: -0.01458277199
A34: CASE 7 | B34: -957741.84 | C34: 37004.04607 | D34: 36665.7737 | E34: 36330.20751 | F34: 35997.32585 | G34: 35667.10724 | H34: 35339.53038 | I34: 35014.57414 | J34: 34692.21755 | K34: 34372.43981 | L34: 34055.22029 | M34: 33740.53853 | N34: 33428.37422 | O34: 1438.707225 | P34: 32811.51757 | Q34: 32506.78543 | R34: 32204.49114 | S34: 31904.61521 | T34: 31607.13829 | U34: 31312.04119 | V34: 31019.30486 | W34: 30728.91042 | X34: 30440.83913 | Y34: 30155.07242 | Z34: 29871.59184 | AA34: 14630.37911 | AB34: -0.01577786525
A35: CASE 8 | B35: -957741.84 | C35: 41419.16531 | D35: 41045.57199 | E35: 40674.96741 | F35: 40307.32767 | G35: 39942.62905 | H35: 39580.84802 | I35: 39221.96123 | J35: 38865.94554 | K35: 38512.77798 | L35: 38162.43576 | M35: 37814.89627 | N35: 37470.1371 | O35: 5448.136003 | P35: 36788.87092 | Q35: 36452.31995 | R35: 36118.46139 | S35: 35787.2737 | T35: 35458.73551 | U35: 35132.82562 | V35: 34809.52302 | W35: 34488.80683 | X35: 34170.65638 | Y35: 33855.05113 | Z35: 33541.97072 | AA35: 18271.39495 | AB35: -0.006467138389
A36: Case 9 | B36: 0 | C36: =C24/C2 -> 7047.341011 | D36: 6990.962283 | E36: 6935.034585 | F36: 6879.554308 | G36: 6824.517874 | H36: 6769.921731 | I36: 6715.762357 | J36: 6662.036258 | K36: 6608.739968 | L36: 6555.870048 | M36: 6503.423088 | N36: 6451.395703 | O36: 6399.784537 | P36: 6348.586261 | Q36: 6297.797571 | R36: 6247.415191 | S36: 6197.435869 | T36: 6147.856382 | U36: 6098.673531 | V36: 6049.884143 | W36: 6001.48507 | X36: 5953.473189 | Y36: 5905.845404 | Z36: 5858.59864 | AA36: 5811.729851 | AB36: NA
A37: Case 10 | B37: 0 | C37: =C25/C2 -> 11233.42167 | D37: 11143.5543 | E37: 11054.40586 | F37: 10965.97062 | G37: 10878.24285 | H37: 10791.21691 | I37: 10704.88717 | J37: 10619.24808 | K37: 10534.29409 | L37: 10450.01974 | M37: 10366.41958 | N37: 10283.48822 | O37: 10201.22032 | P37: 10119.61056 | Q37: 10038.65367 | R37: 9958.344442 | S37: 9878.677686 | T37: 9799.648265 | U37: 9721.251079 | V37: 9643.48107 | W37: 9566.333221 | X37: 9489.802556 | Y37: 9413.884135 | Z37: 9338.573062 | AA37: 9263.864478 | AB37: NA
A39: Case | AB39: Payback
A40: CASE 1 | B40: =IF(B3>=0,B1,0) -> 0 | C40: 0 | D40: 0 | E40: 0 | F40: 0 | G40: 0 | H40: 0 | I40: 0 | J40: 0 | K40: 0 | L40: 0 | M40: 0 | N40: 0 | O40: 0 | P40: 0 | Q40: 0 | R40: 0 | S40: 0 | T40: 0 | U40: 0 | V40: 0 | W40: 0 | X40: 0 | Y40: 0 | Z40: 0 | AA40: 0 | AB40: =MATCH(TRUE,INDEX(C40:AA40>0,0),0) -> 
A41: CASE 2 | B41: =IF(B4>=0,B1,0) -> 0 | C41: 0 | D41: 0 | E41: 0 | F41: 0 | G41: 0 | H41: 0 | I41: 0 | J41: 0 | K41: 0 | L41: 0 | M41: 0 | N41: 0 | O41: 0 | P41: 0 | Q41: 0 | R41: 0 | S41: 0 | T41: 0 | U41: 0 | V41: 0 | W41: 0 | X41: 0 | Y41: 0 | Z41: 24 | AA41: 25 | AB41: =MATCH(TRUE,INDEX(C41:AA41>0,0),0) -> 24
A42: CASE 3 | B42: =IF(B5>=0,B1,0) -> 0 | C42: 0 | D42: 0 | E42: 0 | F42: 0 | G42: 0 | H42: 0 | I42: 0 | J42: 0 | K42: 0 | L42: 0 | M42: 0 | N42: 0 | O42: 0 | P42: 0 | Q42: 0 | R42: 0 | S42: 0 | T42: 0 | U42: 0 | V42: 0 | W42: 0 | X42: 0 | Y42: 0 | Z42: 0 | AA42: 25 | AB42: =MATCH(TRUE,INDEX(C42:AA42>0,0),0) -> 25
A43: CASE 4 | B43: =IF(B6>=0,B1,0) -> 0 | C43: 0 | D43: 0 | E43: 0 | F43: 0 | G43: 0 | H43: 0 | I43: 0 | J43: 0 | K43: 0 | L43: 0 | M43: 0 | N43: 0 | O43: 0 | P43: 0 | Q43: 0 | R43: 0 | S43: 0 | T43: 0 | U43: 0 | V43: 0 | W43: 0 | X43: 22 | Y43: 23 | Z43: 24 | AA43: 25 | AB43: =MATCH(TRUE,INDEX(C43:AA43>0,0),0) -> 22
A44: CASE 5 | B44: =IF(B7>=0,B1,0) -> 0 | C44: 0 | D44: 0 | E44: 0 | F44: 0 | G44: 0 | H44: 0 | I44: 0 | J44: 0 | K44: 0 | L44: 0 | M44: 0 | N44: 0 | O44: 0 | P44: 0 | Q44: 0 | R44: 0 | S44: 0 | T44: 0 | U44: 0 | V44: 0 | W44: 0 | X44: 0 | Y44: 0 | Z44: 0 | AA44: 0 | AB44: =MATCH(TRUE,INDEX(C44:AA44>0,0),0) -> 
A45: CASE 6 | B45: =IF(B8>=0,B1,0) -> 0 | C45: 0 | D45: 0 | E45: 0 | F45: 0 | G45: 0 | H45: 0 | I45: 0 | J45: 0 | K45: 0 | L45: 0 | M45: 0 | N45: 0 | O45: 0 | P45: 0 | Q45: 0 | R45: 0 | S45: 0 | T45: 0 | U45: 0 | V45: 0 | W45: 0 | X45: 0 | Y45: 0 | Z45: 0 | AA45: 0 | AB45: =MATCH(TRUE,INDEX(C45:AA45>0,0),0) -> 
A46: CASE 7 | B46: =IF(B9>=0,B1,0) -> 0 | C46: 0 | D46: 0 | E46: 0 | F46: 0 | G46: 0 | H46: 0 | I46: 0 | J46: 0 | K46: 0 | L46: 0 | M46: 0 | N46: 0 | O46: 0 | P46: 0 | Q46: 0 | R46: 0 | S46: 0 | T46: 0 | U46: 0 | V46: 0 | W46: 0 | X46: 0 | Y46: 0 | Z46: 0 | AA46: 0 | AB46: =MATCH(TRUE,INDEX(C46:AA46>0,0),0) -> 
A47: CASE 8 | B47: =IF(B10>=0,B1,0) -> 0 | C47: 0 | D47: 0 | E47: 0 | F47: 0 | G47: 0 | H47: 0 | I47: 0 | J47: 0 | K47: 0 | L47: 0 | M47: 0 | N47: 0 | O47: 0 | P47: 0 | Q47: 0 | R47: 0 | S47: 0 | T47: 0 | U47: 0 | V47: 0 | W47: 0 | X47: 0 | Y47: 0 | Z47: 0 | AA47: 0 | AB47: =MATCH(TRUE,INDEX(C47:AA47>0,0),0) -> 

Sheet PVSF(Existing)_CBA (hidden)
A1: Year | B1: 0 | C1: 1 | D1: 2 | E1: 3 | F1: 4 | G1: 5 | H1: 6 | I1: 7 | J1: 8 | K1: 9 | L1: 10 | M1: 11 | N1: 12 | O1: 13 | P1: 14 | Q1: 15 | R1: 16 | S1: 17 | T1: 18 | U1: 19 | V1: 20 | W1: 21 | X1: 22 | Y1: 23 | Z1: 24 | AA1: 25
A2: Discount factor (End of year) | B2: 1 | C2: ='PV(SF)_CBA'!C2 -> 0.9965122073 | D2: ='PV(SF)_CBA'!D2 -> 0.9930365792 | E2: ='PV(SF)_CBA'!E2 -> 0.9895730735 | F2: ='PV(SF)_CBA'!F2 -> 0.9861216477 | G2: ='PV(SF)_CBA'!G2 -> 0.9826822598 | H2: ='PV(SF)_CBA'!H2 -> 0.9792548678 | I2: ='PV(SF)_CBA'!I2 -> 0.9758394298 | J2: ='PV(SF)_CBA'!J2 -> 0.9724359041 | K2: ='PV(SF)_CBA'!K2 -> 0.9690442492 | L2: ='PV(SF)_CBA'!L2 -> 0.9656644238 | M2: ='PV(SF)_CBA'!M2 -> 0.9622963864 | N2: ='PV(SF)_CBA'!N2 -> 0.9589400961 | O2: ='PV(SF)_CBA'!O2 -> 0.9555955118 | P2: ='PV(SF)_CBA'!P2 -> 0.9522625927 | Q2: ='PV(SF)_CBA'!Q2 -> 0.9489412982 | R2: ='PV(SF)_CBA'!R2 -> 0.9456315876 | S2: ='PV(SF)_CBA'!S2 -> 0.9423334206 | T2: ='PV(SF)_CBA'!T2 -> 0.939046757 | U2: ='PV(SF)_CBA'!U2 -> 0.9357715565 | V2: ='PV(SF)_CBA'!V2 -> 0.9325077793 | W2: ='PV(SF)_CBA'!W2 -> 0.9292553855 | X2: ='PV(SF)_CBA'!X2 -> 0.9260143353 | Y2: ='PV(SF)_CBA'!Y2 -> 0.9227845892 | Z2: ='PV(SF)_CBA'!Z2 -> 0.9195661078 | AA2: ='PV(SF)_CBA'!AA2 -> 0.9163588519 | AB2: NPV
A3: CASE 1 | B3: =(SF_CBA!B26)*B2+'PV(SF)_CBA'!B16 -> -755730.8 | C3: =(SF_CBA!C26)*C2+'PV(SF)_CBA'!C16 -> 112207.1 | D3: =(SF_CBA!D26)*D2+'PV(SF)_CBA'!D16 -> 111507.8212 | E3: =(SF_CBA!E26)*E2+'PV(SF)_CBA'!E16 -> 110814.51 | F3: =(SF_CBA!F26)*F2+'PV(SF)_CBA'!F16 -> 110127.1053 | G3: =(SF_CBA!G26)*G2+'PV(SF)_CBA'!G16 -> 109445.5465 | H3: =(SF_CBA!H26)*H2+'PV(SF)_CBA'!H16 -> 108769.7736 | I3: =(SF_CBA!I26)*I2+'PV(SF)_CBA'!I16 -> 108099.7275 | J3: =(SF_CBA!J26)*J2+'PV(SF)_CBA'!J16 -> 107435.3496 | K3: =(SF_CBA!K26)*K2+'PV(SF)_CBA'!K16 -> 106776.5818 | L3: =(SF_CBA!L26)*L2+'PV(SF)_CBA'!L16 -> 106123.3669 | M3: =(SF_CBA!M26)*M2+'PV(SF)_CBA'!M16 -> 105475.6482 | N3: =(SF_CBA!N26)*N2+'PV(SF)_CBA'!N16 -> 104833.3697 | O3: =(SF_CBA!O26)*O2+'PV(SF)_CBA'!O16 -> 73923.21015 | P3: =(SF_CBA!P26)*P2+'PV(SF)_CBA'!P16 -> 103564.9121 | Q3: =(SF_CBA!Q26)*Q2+'PV(SF)_CBA'!Q16 -> 102938.624 | R3: =(SF_CBA!R26)*R2+'PV(SF)_CBA'!R16 -> 102317.558 | S3: =(SF_CBA!S26)*S2+'PV(SF)_CBA'!S16 -> 101701.661 | T3: =(SF_CBA!T26)*T2+'PV(SF)_CBA'!T16 -> 101090.8807 | U3: =(SF_CBA!U26)*U2+'PV(SF)_CBA'!U16 -> 100485.1652 | V3: =(SF_CBA!V26)*V2+'PV(SF)_CBA'!V16 -> 99884.46307 | W3: =(SF_CBA!W26)*W2+'PV(SF)_CBA'!W16 -> 99288.72372 | X3: =(SF_CBA!X26)*X2+'PV(SF)_CBA'!X16 -> 98697.89694 | Y3: =(SF_CBA!Y26)*Y2+'PV(SF)_CBA'!Y16 -> 98111.93311 | Z3: =(SF_CBA!Z26)*Z2+'PV(SF)_CBA'!Z16 -> 97530.78315 | AA3: =(SF_CBA!AA26)*AA2+'PV(SF)_CBA'!AA16 -> 83245.6701 | AB3: =SUM(B3:AA3) -> 1808666.582
A4: CASE 2 | B4: =(SF_CBA!B26)*B2+'PV(SF)_CBA'!B17 -> -755730.8 | C4: =(SF_CBA!C26)*C2+'PV(SF)_CBA'!C17 -> 116606.8203 | D4: =(SF_CBA!D26)*D2+'PV(SF)_CBA'!D17 -> 115857.1211 | E4: =(SF_CBA!E26)*E2+'PV(SF)_CBA'!E17 -> 115113.9674 | F4: =(SF_CBA!F26)*F2+'PV(SF)_CBA'!F17 -> 114377.2914 | G4: =(SF_CBA!G26)*G2+'PV(SF)_CBA'!G17 -> 113647.0259 | H4: =(SF_CBA!H26)*H2+'PV(SF)_CBA'!H17 -> 112923.1046 | I4: =(SF_CBA!I26)*I2+'PV(SF)_CBA'!I17 -> 112205.4618 | J4: =(SF_CBA!J26)*J2+'PV(SF)_CBA'!J17 -> 111494.0325 | K4: =(SF_CBA!K26)*K2+'PV(SF)_CBA'!K17 -> 110788.7527 | L4: =(SF_CBA!L26)*L2+'PV(SF)_CBA'!L17 -> 110089.5587 | M4: =(SF_CBA!M26)*M2+'PV(SF)_CBA'!M17 -> 109396.388 | N4: =(SF_CBA!N26)*N2+'PV(SF)_CBA'!N17 -> 108709.1782 | O4: =(SF_CBA!O26)*O2+'PV(SF)_CBA'!O17 -> 77754.6023 | P4: =(SF_CBA!P26)*P2+'PV(SF)_CBA'!P17 -> 107352.3969 | Q4: =(SF_CBA!Q26)*Q2+'PV(SF)_CBA'!Q17 -> 106682.7047 | R4: =(SF_CBA!R26)*R2+'PV(SF)_CBA'!R17 -> 106018.7319 | S4: =(SF_CBA!S26)*S2+'PV(SF)_CBA'!S17 -> 105360.4199 | T4: =(SF_CBA!T26)*T2+'PV(SF)_CBA'!T17 -> 104707.7106 | U4: =(SF_CBA!U26)*U2+'PV(SF)_CBA'!U17 -> 104060.5466 | V4: =(SF_CBA!V26)*V2+'PV(SF)_CBA'!V17 -> 103418.871 | W4: =(SF_CBA!W26)*W2+'PV(SF)_CBA'!W17 -> 102782.6277 | X4: =(SF_CBA!X26)*X2+'PV(SF)_CBA'!X17 -> 102151.7612 | Y4: =(SF_CBA!Y26)*Y2+'PV(SF)_CBA'!Y17 -> 101526.2164 | Z4: =(SF_CBA!Z26)*Z2+'PV(SF)_CBA'!Z17 -> 100905.9392 | AA4: =(SF_CBA!AA26)*AA2+'PV(SF)_CBA'!AA17 -> 86582.14721 | AB4: 1904782.578
A5: CASE 3 | B5: =(SF_CBA!B26)*B2+'PV(SF)_CBA'!B18 -> -680902.2 | C5: =(SF_CBA!C26)*C2+'PV(SF)_CBA'!C18 -> 112207.1 | D5: =(SF_CBA!D26)*D2+'PV(SF)_CBA'!D18 -> 111507.8212 | E5: =(SF_CBA!E26)*E2+'PV(SF)_CBA'!E18 -> 110814.51 | F5: =(SF_CBA!F26)*F2+'PV(SF)_CBA'!F18 -> 110127.1053 | G5: =(SF_CBA!G26)*G2+'PV(SF)_CBA'!G18 -> 109445.5465 | H5: =(SF_CBA!H26)*H2+'PV(SF)_CBA'!H18 -> 108769.7736 | I5: =(SF_CBA!I26)*I2+'PV(SF)_CBA'!I18 -> 108099.7275 | J5: =(SF_CBA!J26)*J2+'PV(SF)_CBA'!J18 -> 107435.3496 | K5: =(SF_CBA!K26)*K2+'PV(SF)_CBA'!K18 -> 106776.5818 | L5: =(SF_CBA!L26)*L2+'PV(SF)_CBA'!L18 -> 106123.3669 | M5: =(SF_CBA!M26)*M2+'PV(SF)_CBA'!M18 -> 105475.6482 | N5: =(SF_CBA!N26)*N2+'PV(SF)_CBA'!N18 -> 104833.3697 | O5: =(SF_CBA!O26)*O2+'PV(SF)_CBA'!O18 -> 73923.21015 | P5: =(SF_CBA!P26)*P2+'PV(SF)_CBA'!P18 -> 103564.9121 | Q5: =(SF_CBA!Q26)*Q2+'PV(SF)_CBA'!Q18 -> 102938.624 | R5: =(SF_CBA!R26)*R2+'PV(SF)_CBA'!R18 -> 102317.558 | S5: =(SF_CBA!S26)*S2+'PV(SF)_CBA'!S18 -> 101701.661 | T5: =(SF_CBA!T26)*T2+'PV(SF)_CBA'!T18 -> 101090.8807 | U5: =(SF_CBA!U26)*U2+'PV(SF)_CBA'!U18 -> 100485.1652 | V5: =(SF_CBA!V26)*V2+'PV(SF)_CBA'!V18 -> 99884.46307 | W5: =(SF_CBA!W26)*W2+'PV(SF)_CBA'!W18 -> 99288.72372 | X5: =(SF_CBA!X26)*X2+'PV(SF)_CBA'!X18 -> 98697.89694 | Y5: =(SF_CBA!Y26)*Y2+'PV(SF)_CBA'!Y18 -> 98111.93311 | Z5: =(SF_CBA!Z26)*Z2+'PV(SF)_CBA'!Z18 -> 97530.78315 | AA5: =(SF_CBA!AA26)*AA2+'PV(SF)_CBA'!AA18 -> 83245.6701 | AB5: 1883495.182
A6: CASE 4 | B6: =(SF_CBA!B26)*B2+'PV(SF)_CBA'!B19 -> -680902.2 | C6: =(SF_CBA!C26)*C2+'PV(SF)_CBA'!C19 -> 116606.8203 | D6: =(SF_CBA!D26)*D2+'PV(SF)_CBA'!D19 -> 115857.1211 | E6: =(SF_CBA!E26)*E2+'PV(SF)_CBA'!E19 -> 115113.9674 | F6: =(SF_CBA!F26)*F2+'PV(SF)_CBA'!F19 -> 114377.2914 | G6: =(SF_CBA!G26)*G2+'PV(SF)_CBA'!G19 -> 113647.0259 | H6: =(SF_CBA!H26)*H2+'PV(SF)_CBA'!H19 -> 112923.1046 | I6: =(SF_CBA!I26)*I2+'PV(SF)_CBA'!I19 -> 112205.4618 | J6: =(SF_CBA!J26)*J2+'PV(SF)_CBA'!J19 -> 111494.0325 | K6: =(SF_CBA!K26)*K2+'PV(SF)_CBA'!K19 -> 110788.7527 | L6: =(SF_CBA!L26)*L2+'PV(SF)_CBA'!L19 -> 110089.5587 | M6: =(SF_CBA!M26)*M2+'PV(SF)_CBA'!M19 -> 109396.388 | N6: =(SF_CBA!N26)*N2+'PV(SF)_CBA'!N19 -> 108709.1782 | O6: =(SF_CBA!O26)*O2+'PV(SF)_CBA'!O19 -> 77754.6023 | P6: =(SF_CBA!P26)*P2+'PV(SF)_CBA'!P19 -> 107352.3969 | Q6: =(SF_CBA!Q26)*Q2+'PV(SF)_CBA'!Q19 -> 106682.7047 | R6: =(SF_CBA!R26)*R2+'PV(SF)_CBA'!R19 -> 106018.7319 | S6: =(SF_CBA!S26)*S2+'PV(SF)_CBA'!S19 -> 105360.4199 | T6: =(SF_CBA!T26)*T2+'PV(SF)_CBA'!T19 -> 104707.7106 | U6: =(SF_CBA!U26)*U2+'PV(SF)_CBA'!U19 -> 104060.5466 | V6: =(SF_CBA!V26)*V2+'PV(SF)_CBA'!V19 -> 103418.871 | W6: =(SF_CBA!W26)*W2+'PV(SF)_CBA'!W19 -> 102782.6277 | X6: =(SF_CBA!X26)*X2+'PV(SF)_CBA'!X19 -> 102151.7612 | Y6: =(SF_CBA!Y26)*Y2+'PV(SF)_CBA'!Y19 -> 101526.2164 | Z6: =(SF_CBA!Z26)*Z2+'PV(SF)_CBA'!Z19 -> 100905.9392 | AA6: =(SF_CBA!AA26)*AA2+'PV(SF)_CBA'!AA19 -> 86582.14721 | AB6: 1979611.178
A7: CASE 5 | B7: =(SF_CBA!B26)*B2+'PV(SF)_CBA'!B20 -> -1071602.4 | C7: =(SF_CBA!C26)*C2+'PV(SF)_CBA'!C20 -> 115718.4807 | D7: =(SF_CBA!D26)*D2+'PV(SF)_CBA'!D20 -> 114978.9618 | E7: =(SF_CBA!E26)*E2+'PV(SF)_CBA'!E20 -> 114245.8718 | F7: =(SF_CBA!F26)*F2+'PV(SF)_CBA'!F20 -> 113519.144 | G7: =(SF_CBA!G26)*G2+'PV(SF)_CBA'!G20 -> 112798.7128 | H7: =(SF_CBA!H26)*H2+'PV(SF)_CBA'!H20 -> 112084.513 | I7: =(SF_CBA!I26)*I2+'PV(SF)_CBA'!I20 -> 111376.4804 | J7: =(SF_CBA!J26)*J2+'PV(SF)_CBA'!J20 -> 110674.5512 | K7: =(SF_CBA!K26)*K2+'PV(SF)_CBA'!K20 -> 109978.6625 | L7: =(SF_CBA!L26)*L2+'PV(SF)_CBA'!L20 -> 109288.7521 | M7: =(SF_CBA!M26)*M2+'PV(SF)_CBA'!M20 -> 108604.7585 | N7: =(SF_CBA!N26)*N2+'PV(SF)_CBA'!N20 -> 107926.6207 | O7: =(SF_CBA!O26)*O2+'PV(SF)_CBA'!O20 -> 76981.01284 | P7: =(SF_CBA!P26)*P2+'PV(SF)_CBA'!P20 -> 106587.6727 | Q7: =(SF_CBA!Q26)*Q2+'PV(SF)_CBA'!Q20 -> 105926.7441 | R7: =(SF_CBA!R26)*R2+'PV(SF)_CBA'!R20 -> 105271.4346 | S7: =(SF_CBA!S26)*S2+'PV(SF)_CBA'!S20 -> 104621.6865 | T7: =(SF_CBA!T26)*T2+'PV(SF)_CBA'!T20 -> 103977.443 | U7: =(SF_CBA!U26)*U2+'PV(SF)_CBA'!U20 -> 103338.6478 | V7: =(SF_CBA!V26)*V2+'PV(SF)_CBA'!V20 -> 102705.2451 | W7: =(SF_CBA!W26)*W2+'PV(SF)_CBA'!W20 -> 102077.1799 | X7: =(SF_CBA!X26)*X2+'PV(SF)_CBA'!X20 -> 101454.3977 | Y7: =(SF_CBA!Y26)*Y2+'PV(SF)_CBA'!Y20 -> 100836.8447 | Z7: =(SF_CBA!Z26)*Z2+'PV(SF)_CBA'!Z20 -> 100224.4675 | AA7: =(SF_CBA!AA26)*AA2+'PV(SF)_CBA'!AA20 -> 85908.48515 | AB7: 1569504.371
A8: CASE 6 | B8: =(SF_CBA!B26)*B2+'PV(SF)_CBA'!B21 -> -1071602.4 | C8: =(SF_CBA!C26)*C2+'PV(SF)_CBA'!C21 -> 120118.2009 | D8: =(SF_CBA!D26)*D2+'PV(SF)_CBA'!D21 -> 119328.2617 | E8: =(SF_CBA!E26)*E2+'PV(SF)_CBA'!E21 -> 118545.3292 | F8: =(SF_CBA!F26)*F2+'PV(SF)_CBA'!F21 -> 117769.3301 | G8: =(SF_CBA!G26)*G2+'PV(SF)_CBA'!G21 -> 117000.1922 | H8: =(SF_CBA!H26)*H2+'PV(SF)_CBA'!H21 -> 116237.844 | I8: =(SF_CBA!I26)*I2+'PV(SF)_CBA'!I21 -> 115482.2146 | J8: =(SF_CBA!J26)*J2+'PV(SF)_CBA'!J21 -> 114733.2341 | K8: =(SF_CBA!K26)*K2+'PV(SF)_CBA'!K21 -> 113990.8334 | L8: =(SF_CBA!L26)*L2+'PV(SF)_CBA'!L21 -> 113254.944 | M8: =(SF_CBA!M26)*M2+'PV(SF)_CBA'!M21 -> 112525.4982 | N8: =(SF_CBA!N26)*N2+'PV(SF)_CBA'!N21 -> 111802.4292 | O8: =(SF_CBA!O26)*O2+'PV(SF)_CBA'!O21 -> 80812.40499 | P8: =(SF_CBA!P26)*P2+'PV(SF)_CBA'!P21 -> 110375.1576 | Q8: =(SF_CBA!Q26)*Q2+'PV(SF)_CBA'!Q21 -> 109670.8248 | R8: =(SF_CBA!R26)*R2+'PV(SF)_CBA'!R21 -> 108972.6085 | S8: =(SF_CBA!S26)*S2+'PV(SF)_CBA'!S21 -> 108280.4454 | T8: =(SF_CBA!T26)*T2+'PV(SF)_CBA'!T21 -> 107594.2729 | U8: =(SF_CBA!U26)*U2+'PV(SF)_CBA'!U21 -> 106914.0292 | V8: =(SF_CBA!V26)*V2+'PV(SF)_CBA'!V21 -> 106239.653 | W8: =(SF_CBA!W26)*W2+'PV(SF)_CBA'!W21 -> 105571.0839 | X8: =(SF_CBA!X26)*X2+'PV(SF)_CBA'!X21 -> 104908.2619 | Y8: =(SF_CBA!Y26)*Y2+'PV(SF)_CBA'!Y21 -> 104251.128 | Z8: =(SF_CBA!Z26)*Z2+'PV(SF)_CBA'!Z21 -> 103599.6235 | AA8: =(SF_CBA!AA26)*AA2+'PV(SF)_CBA'!AA21 -> 89244.96225 | AB8: 1665620.368
A9: CASE 7 | B9: =(SF_CBA!B26)*B2+'PV(SF)_CBA'!B22 -> -965186.64 | C9: =(SF_CBA!C26)*C2+'PV(SF)_CBA'!C22 -> 115718.4807 | D9: =(SF_CBA!D26)*D2+'PV(SF)_CBA'!D22 -> 114978.9618 | E9: =(SF_CBA!E26)*E2+'PV(SF)_CBA'!E22 -> 114245.8718 | F9: =(SF_CBA!F26)*F2+'PV(SF)_CBA'!F22 -> 113519.144 | G9: =(SF_CBA!G26)*G2+'PV(SF)_CBA'!G22 -> 112798.7128 | H9: =(SF_CBA!H26)*H2+'PV(SF)_CBA'!H22 -> 112084.513 | I9: =(SF_CBA!I26)*I2+'PV(SF)_CBA'!I22 -> 111376.4804 | J9: =(SF_CBA!J26)*J2+'PV(SF)_CBA'!J22 -> 110674.5512 | K9: =(SF_CBA!K26)*K2+'PV(SF)_CBA'!K22 -> 109978.6625 | L9: =(SF_CBA!L26)*L2+'PV(SF)_CBA'!L22 -> 109288.7521 | M9: =(SF_CBA!M26)*M2+'PV(SF)_CBA'!M22 -> 108604.7585 | N9: =(SF_CBA!N26)*N2+'PV(SF)_CBA'!N22 -> 107926.6207 | O9: =(SF_CBA!O26)*O2+'PV(SF)_CBA'!O22 -> 76981.01284 | P9: =(SF_CBA!P26)*P2+'PV(SF)_CBA'!P22 -> 106587.6727 | Q9: =(SF_CBA!Q26)*Q2+'PV(SF)_CBA'!Q22 -> 105926.7441 | R9: =(SF_CBA!R26)*R2+'PV(SF)_CBA'!R22 -> 105271.4346 | S9: =(SF_CBA!S26)*S2+'PV(SF)_CBA'!S22 -> 104621.6865 | T9: =(SF_CBA!T26)*T2+'PV(SF)_CBA'!T22 -> 103977.443 | U9: =(SF_CBA!U26)*U2+'PV(SF)_CBA'!U22 -> 103338.6478 | V9: =(SF_CBA!V26)*V2+'PV(SF)_CBA'!V22 -> 102705.2451 | W9: =(SF_CBA!W26)*W2+'PV(SF)_CBA'!W22 -> 102077.1799 | X9: =(SF_CBA!X26)*X2+'PV(SF)_CBA'!X22 -> 101454.3977 | Y9: =(SF_CBA!Y26)*Y2+'PV(SF)_CBA'!Y22 -> 100836.8447 | Z9: =(SF_CBA!Z26)*Z2+'PV(SF)_CBA'!Z22 -> 100224.4675 | AA9: =(SF_CBA!AA26)*AA2+'PV(SF)_CBA'!AA22 -> 85908.48515 | AB9: 1675920.131
A10: CASE 8 | B10: =(SF_CBA!B26)*B2+'PV(SF)_CBA'!B23 -> -965186.64 | C10: =(SF_CBA!C26)*C2+'PV(SF)_CBA'!C23 -> 120118.2009 | D10: =(SF_CBA!D26)*D2+'PV(SF)_CBA'!D23 -> 119328.2617 | E10: =(SF_CBA!E26)*E2+'PV(SF)_CBA'!E23 -> 118545.3292 | F10: =(SF_CBA!F26)*F2+'PV(SF)_CBA'!F23 -> 117769.3301 | G10: =(SF_CBA!G26)*G2+'PV(SF)_CBA'!G23 -> 117000.1922 | H10: =(SF_CBA!H26)*H2+'PV(SF)_CBA'!H23 -> 116237.844 | I10: =(SF_CBA!I26)*I2+'PV(SF)_CBA'!I23 -> 115482.2146 | J10: =(SF_CBA!J26)*J2+'PV(SF)_CBA'!J23 -> 114733.2341 | K10: =(SF_CBA!K26)*K2+'PV(SF)_CBA'!K23 -> 113990.8334 | L10: =(SF_CBA!L26)*L2+'PV(SF)_CBA'!L23 -> 113254.944 | M10: =(SF_CBA!M26)*M2+'PV(SF)_CBA'!M23 -> 112525.4982 | N10: =(SF_CBA!N26)*N2+'PV(SF)_CBA'!N23 -> 111802.4292 | O10: =(SF_CBA!O26)*O2+'PV(SF)_CBA'!O23 -> 80812.40499 | P10: =(SF_CBA!P26)*P2+'PV(SF)_CBA'!P23 -> 110375.1576 | Q10: =(SF_CBA!Q26)*Q2+'PV(SF)_CBA'!Q23 -> 109670.8248 | R10: =(SF_CBA!R26)*R2+'PV(SF)_CBA'!R23 -> 108972.6085 | S10: =(SF_CBA!S26)*S2+'PV(SF)_CBA'!S23 -> 108280.4454 | T10: =(SF_CBA!T26)*T2+'PV(SF)_CBA'!T23 -> 107594.2729 | U10: =(SF_CBA!U26)*U2+'PV(SF)_CBA'!U23 -> 106914.0292 | V10: =(SF_CBA!V26)*V2+'PV(SF)_CBA'!V23 -> 106239.653 | W10: =(SF_CBA!W26)*W2+'PV(SF)_CBA'!W23 -> 105571.0839 | X10: =(SF_CBA!X26)*X2+'PV(SF)_CBA'!X23 -> 104908.2619 | Y10: =(SF_CBA!Y26)*Y2+'PV(SF)_CBA'!Y23 -> 104251.128 | Z10: =(SF_CBA!Z26)*Z2+'PV(SF)_CBA'!Z23 -> 103599.6235 | AA10: =(SF_CBA!AA26)*AA2+'PV(SF)_CBA'!AA23 -> 89244.96225 | AB10: 1772036.128
A11: Special Cases
A12: Case 9 | B12: =(SF_CBA!B26)*B2+'PV(SF)_CBA'!B24 -> -7444.8 | C12: =(SF_CBA!C26)*C2+'PV(SF)_CBA'!C24 -> 85866.25844 | D12: =(SF_CBA!D26)*D2+'PV(SF)_CBA'!D24 -> 85510.78859 | E12: =(SF_CBA!E26)*E2+'PV(SF)_CBA'!E24 -> 85157.20014 | F12: =(SF_CBA!F26)*F2+'PV(SF)_CBA'!F24 -> 84805.47917 | G12: =(SF_CBA!G26)*G2+'PV(SF)_CBA'!G24 -> 84455.61191 | H12: =(SF_CBA!H26)*H2+'PV(SF)_CBA'!H24 -> 84107.5847 | I12: =(SF_CBA!I26)*I2+'PV(SF)_CBA'!I24 -> 83761.38403 | J12: =(SF_CBA!J26)*J2+'PV(SF)_CBA'!J24 -> 83416.9965 | K12: =(SF_CBA!K26)*K2+'PV(SF)_CBA'!K24 -> 83074.40884 | L12: =(SF_CBA!L26)*L2+'PV(SF)_CBA'!L24 -> 82733.60792 | M12: =(SF_CBA!M26)*M2+'PV(SF)_CBA'!M24 -> 82394.58072 | N12: =(SF_CBA!N26)*N2+'PV(SF)_CBA'!N24 -> 82057.31436 | O12: =(SF_CBA!O26)*O2+'PV(SF)_CBA'!O24 -> 81721.79606 | P12: =(SF_CBA!P26)*P2+'PV(SF)_CBA'!P24 -> 81388.01317 | Q12: =(SF_CBA!Q26)*Q2+'PV(SF)_CBA'!Q24 -> 81055.95316 | R12: =(SF_CBA!R26)*R2+'PV(SF)_CBA'!R24 -> 80725.60363 | S12: =(SF_CBA!S26)*S2+'PV(SF)_CBA'!S24 -> 80396.95227 | T12: =(SF_CBA!T26)*T2+'PV(SF)_CBA'!T24 -> 80069.98691 | U12: =(SF_CBA!U26)*U2+'PV(SF)_CBA'!U24 -> 79744.69548 | V12: =(SF_CBA!V26)*V2+'PV(SF)_CBA'!V24 -> 79421.06602 | W12: =(SF_CBA!W26)*W2+'PV(SF)_CBA'!W24 -> 79099.08671 | X12: =(SF_CBA!X26)*X2+'PV(SF)_CBA'!X24 -> 78778.7458 | Y12: =(SF_CBA!Y26)*Y2+'PV(SF)_CBA'!Y24 -> 78460.03168 | Z12: =(SF_CBA!Z26)*Z2+'PV(SF)_CBA'!Z24 -> 78142.93283 | AA12: =(SF_CBA!AA26)*AA2+'PV(SF)_CBA'!AA24 -> 77827.43784 | AB12: =SUM(B12:AA12) -> 2036728.717
A13: Case 10 | B13: =(SF_CBA!B26)*B2+'PV(SF)_CBA'!B25 -> -7444.8 | C13: =(SF_CBA!C26)*C2+'PV(SF)_CBA'!C25 -> 90037.73892 | D13: =(SF_CBA!D26)*D2+'PV(SF)_CBA'!D25 -> 89634.46436 | E13: =(SF_CBA!E26)*E2+'PV(SF)_CBA'!E25 -> 89233.61904 | F13: =(SF_CBA!F26)*F2+'PV(SF)_CBA'!F25 -> 88835.18276 | G13: =(SF_CBA!G26)*G2+'PV(SF)_CBA'!G25 -> 88439.13553 | H13: =(SF_CBA!H26)*H2+'PV(SF)_CBA'!H25 -> 88045.45758 | I13: =(SF_CBA!I26)*I2+'PV(SF)_CBA'!I25 -> 87654.12932 | J13: =(SF_CBA!J26)*J2+'PV(SF)_CBA'!J25 -> 87265.13135 | K13: =(SF_CBA!K26)*K2+'PV(SF)_CBA'!K25 -> 86878.44449 | L13: =(SF_CBA!L26)*L2+'PV(SF)_CBA'!L25 -> 86494.04974 | M13: =(SF_CBA!M26)*M2+'PV(SF)_CBA'!M25 -> 86111.92829 | N13: =(SF_CBA!N26)*N2+'PV(SF)_CBA'!N25 -> 85732.06153 | O13: =(SF_CBA!O26)*O2+'PV(SF)_CBA'!O25 -> 85354.43103 | P13: =(SF_CBA!P26)*P2+'PV(SF)_CBA'!P25 -> 84979.01854 | Q13: =(SF_CBA!Q26)*Q2+'PV(SF)_CBA'!Q25 -> 84605.80601 | R13: =(SF_CBA!R26)*R2+'PV(SF)_CBA'!R25 -> 84234.77555 | S13: =(SF_CBA!S26)*S2+'PV(SF)_CBA'!S25 -> 83865.90946 | T13: =(SF_CBA!T26)*T2+'PV(SF)_CBA'!T25 -> 83499.19023 | U13: =(SF_CBA!U26)*U2+'PV(SF)_CBA'!U25 -> 83134.60051 | V13: =(SF_CBA!V26)*V2+'PV(SF)_CBA'!V25 -> 82772.12311 | W13: =(SF_CBA!W26)*W2+'PV(SF)_CBA'!W25 -> 82411.74105 | X13: =(SF_CBA!X26)*X2+'PV(SF)_CBA'!X25 -> 82053.43749 | Y13: =(SF_CBA!Y26)*Y2+'PV(SF)_CBA'!Y25 -> 81697.19576 | Z13: =(SF_CBA!Z26)*Z2+'PV(SF)_CBA'!Z25 -> 81342.99936 | AA13: =(SF_CBA!AA26)*AA2+'PV(SF)_CBA'!AA25 -> 80990.83197 | AB13: =SUM(B13:AA13) -> 2127858.603
A15: Year | B15: 0 | C15: 1 | D15: 2 | E15: 3 | F15: 4 | G15: 5 | H15: 6 | I15: 7 | J15: 8 | K15: 9 | L15: 10 | M15: 11 | N15: 12 | O15: 13 | P15: 14 | Q15: 15 | R15: 16 | S15: 17 | T15: 18 | U15: 19 | V15: 20 | W15: 21 | X15: 22 | Y15: 23 | Z15: 24 | AA15: 25 | AB15: IRR
A16: CASE 1 | B16: =B3/B2 -> -755730.8 | C16: 112599.8249 | D16: 112289.7419 | E16: 111982.1396 | F16: 111676.998 | G16: 111374.2976 | H16: 111074.0189 | I16: 110776.1423 | J16: 110480.6488 | K16: 110187.5192 | L16: 109896.7346 | M16: 109608.2763 | N16: 109322.1257 | O16: 77358.26429 | P16: 108756.6738 | Q16: 108477.336 | R16: 108200.2329 | S16: 107925.3466 | T16: 107652.6594 | U16: 107382.1538 | V16: 107113.8121 | W16: 106847.6172 | X16: 106583.5519 | Y16: 106321.5991 | Z16: 106061.7419 | AA16: 90843.96351 | AB16: =IRR(B16:AA16) -> 0.1398338116
A17: CASE 2 | B17: =B4/B2 -> -755730.8 | C17: 117014.9441 | D17: 116669.5402 | E17: 116326.8995 | F17: 115986.9999 | G17: 115649.8194 | H17: 115315.3365 | I17: 114983.5294 | J17: 114654.3767 | K17: 114327.8573 | L17: 114003.9501 | M17: 113682.6341 | N17: 113363.8886 | O17: 81367.69307 | P17: 112734.0271 | Q17: 112422.8705 | R17: 112114.2031 | S17: 111808.0051 | T17: 111504.2566 | U17: 111202.9382 | V17: 110904.0303 | W17: 110607.5136 | X17: 110313.3691 | Y17: 110021.5778 | Z17: 109732.1207 | AA17: 94484.97936 | AB17: 0.1460293948
A18: CASE 3 | B18: =B5/B2 -> -680902.2 | C18: 112599.8249 | D18: 112289.7419 | E18: 111982.1396 | F18: 111676.998 | G18: 111374.2976 | H18: 111074.0189 | I18: 110776.1423 | J18: 110480.6488 | K18: 110187.5192 | L18: 109896.7346 | M18: 109608.2763 | N18: 109322.1257 | O18: 77358.26429 | P18: 108756.6738 | Q18: 108477.336 | R18: 108200.2329 | S18: 107925.3466 | T18: 107652.6594 | U18: 107382.1538 | V18: 107113.8121 | W18: 106847.6172 | X18: 106583.5519 | Y18: 106321.5991 | Z18: 106061.7419 | AA18: 90843.96351 | AB18: 0.1574872291
A19: CASE 4 | B19: =B6/B2 -> -680902.2 | C19: 117014.9441 | D19: 116669.5402 | E19: 116326.8995 | F19: 115986.9999 | G19: 115649.8194 | H19: 115315.3365 | I19: 114983.5294 | J19: 114654.3767 | K19: 114327.8573 | L19: 114003.9501 | M19: 113682.6341 | N19: 113363.8886 | O19: 81367.69307 | P19: 112734.0271 | Q19: 112422.8705 | R19: 112114.2031 | S19: 111808.0051 | T19: 111504.2566 | U19: 111202.9382 | V19: 110904.0303 | W19: 110607.5136 | X19: 110313.3691 | Y19: 110021.5778 | Z19: 109732.1207 | AA19: 94484.97936 | AB19: 0.1642424817
A20: CASE 5 | B20: =B7/B2 -> -1071602.4 | C20: 116123.4954 | D20: 115785.223 | E20: 115449.6568 | F20: 115116.7752 | G20: 114786.5566 | H20: 114458.9797 | I20: 114134.0235 | J20: 113811.6669 | K20: 113491.8891 | L20: 113174.6696 | M20: 112859.9879 | N20: 112547.8236 | O20: 80558.15656 | P20: 111930.9669 | Q20: 111626.2348 | R20: 111323.9405 | S20: 111024.0645 | T20: 110726.5876 | U20: 110431.4905 | V20: 110138.7542 | W20: 109848.3598 | X20: 109560.2885 | Y20: 109274.5218 | Z20: 108991.0412 | AA20: 93749.82844 | AB20: 0.09376289994
A21: CASE 6 | B21: =B8/B2 -> -1071602.4 | C21: 120538.6146 | D21: 120165.0213 | E21: 119794.4167 | F21: 119426.777 | G21: 119062.0784 | H21: 118700.2974 | I21: 118341.4106 | J21: 117985.3949 | K21: 117632.2273 | L21: 117281.8851 | M21: 116934.3456 | N21: 116589.5864 | O21: 84567.58534 | P21: 115908.3202 | Q21: 115571.7693 | R21: 115237.9107 | S21: 114906.723 | T21: 114578.1848 | U21: 114252.275 | V21: 113928.9724 | W21: 113608.2562 | X21: 113290.1057 | Y21: 112974.5005 | Z21: 112661.4201 | AA21: 97390.84429 | AB21: 0.09848895969
A22: CASE 7 | B22: =B9/B2 -> -965186.64 | C22: 116123.4954 | D22: 115785.223 | E22: 115449.6568 | F22: 115116.7752 | G22: 114786.5566 | H22: 114458.9797 | I22: 114134.0235 | J22: 113811.6669 | K22: 113491.8891 | L22: 113174.6696 | M22: 112859.9879 | N22: 112547.8236 | O22: 80558.15656 | P22: 111930.9669 | Q22: 111626.2348 | R22: 111323.9405 | S22: 111024.0645 | T22: 110726.5876 | U22: 110431.4905 | V22: 110138.7542 | W22: 109848.3598 | X22: 109560.2885 | Y22: 109274.5218 | Z22: 108991.0412 | AA22: 93749.82844 | AB22: 0.1077011781
A23: CASE 8 | B23: =B10/B2 -> -965186.64 | C23: 120538.6146 | D23: 120165.0213 | E23: 119794.4167 | F23: 119426.777 | G23: 119062.0784 | H23: 118700.2974 | I23: 118341.4106 | J23: 117985.3949 | K23: 117632.2273 | L23: 117281.8851 | M23: 116934.3456 | N23: 116589.5864 | O23: 84567.58534 | P23: 115908.3202 | Q23: 115571.7693 | R23: 115237.9107 | S23: 114906.723 | T23: 114578.1848 | U23: 114252.275 | V23: 113928.9724 | W23: 113608.2562 | X23: 113290.1057 | Y23: 112974.5005 | Z23: 112661.4201 | AA23: 97390.84429 | AB23: 0.1127957295
A24: Special Cases
A25: Case 9 | B25: =B12/B2 -> -7444.8 | C25: 86166.79034 | D25: 86110.41162 | E25: 86054.48392 | F25: 85999.00364 | G25: 85943.96721 | H25: 85889.37106 | I25: 85835.21169 | J25: 85781.48559 | K25: 85728.1893 | L25: 85675.31938 | M25: 85622.87242 | N25: 85570.84504 | O25: 85519.23387 | P25: 85468.03559 | Q25: 85417.2469 | R25: 85366.86452 | S25: 85316.8852 | T25: 85267.30572 | U25: 85218.12286 | V25: 85169.33348 | W25: 85120.9344 | X25: 85072.92252 | Y25: 85025.29474 | Z25: 84978.04797 | AA25: 84931.17918 | AB25: =IRR(B25:AA25) -> 11.5734368
A26: Case 10 | B26: =B13/B2 -> -7444.8 | C26: 90352.871 | D26: 90263.00363 | E26: 90173.8552 | F26: 90085.41995 | G26: 89997.69218 | H26: 89910.66624 | I26: 89824.33651 | J26: 89738.69741 | K26: 89653.74342 | L26: 89569.46907 | M26: 89485.86891 | N26: 89402.93756 | O26: 89320.66965 | P26: 89239.05989 | Q26: 89158.103 | R26: 89077.79378 | S26: 88998.12702 | T26: 88919.0976 | U26: 88840.70041 | V26: 88762.9304 | W26: 88685.78255 | X26: 88609.25189 | Y26: 88533.33347 | Z26: 88458.0224 | AA26: 88383.31381 | AB26: =IRR(B26:AA26) -> 12.13537912
A28: Year | B28: 0 | C28: 1 | D28: 2 | E28: 3 | F28: 4 | G28: 5 | H28: 6 | I28: 7 | J28: 8 | K28: 9 | L28: 10 | M28: 11 | N28: 12 | O28: 13 | P28: 14 | Q28: 15 | R28: 16 | S28: 17 | T28: 18 | U28: 19 | V28: 20 | W28: 21 | X28: 22 | Y28: 23 | Z28: 24 | AA28: 25 | AB28: Payback
A29: CASE 1 | B29: =B3 -> -755730.8 | C29: =B29+C3 -> -643523.7 | D29: -532015.8788 | E29: -421201.3688 | F29: -311074.2635 | G29: -201628.717 | H29: -92858.94333 | I29: 15240.7842 | J29: 122676.1338 | K29: 229452.7155 | L29: 335576.0824 | M29: 441051.7306 | N29: 545885.1004 | O29: 619808.3105 | P29: 723373.2227 | Q29: 826311.8467 | R29: 928629.4047 | S29: 1030331.066 | T29: 1131421.946 | U29: 1231907.112 | V29: 1331791.575 | W29: 1431080.298 | X29: 1529778.195 | Y29: 1627890.128 | Z29: 1725420.912 | AA29: 1808666.582 | AB29: =IFERROR(AB42,">25") -> 7
A30: CASE 2 | B30: -755730.8 | C30: =B30+C4 -> -639123.9797 | D30: -523266.8587 | E30: -408152.8912 | F30: -293775.5998 | G30: -180128.5739 | H30: -67205.46932 | I30: 44999.99243 | J30: 156494.0249 | K30: 267282.7776 | L30: 377372.3364 | M30: 486768.7243 | N30: 595477.9025 | O30: 673232.5048 | P30: 780584.9018 | Q30: 887267.6064 | R30: 993286.3383 | S30: 1098646.758 | T30: 1203354.469 | U30: 1307415.015 | V30: 1410833.886 | W30: 1513616.514 | X30: 1615768.275 | Y30: 1717294.492 | Z30: 1818200.431 | AA30: 1904782.578 | AB30: 7
A31: CASE 3 | B31: -680902.2 | C31: =B31+C5 -> -568695.1 | D31: -457187.2788 | E31: -346372.7688 | F31: -236245.6635 | G31: -126800.117 | H31: -18030.34333 | I31: 90069.3842 | J31: 197504.7338 | K31: 304281.3155 | L31: 410404.6824 | M31: 515880.3306 | N31: 620713.7004 | O31: 694636.9105 | P31: 798201.8227 | Q31: 901140.4467 | R31: 1003458.005 | S31: 1105159.666 | T31: 1206250.546 | U31: 1306735.712 | V31: 1406620.175 | W31: 1505908.898 | X31: 1604606.795 | Y31: 1702718.728 | Z31: 1800249.512 | AA31: 1883495.182 | AB31: 7
A32: CASE 4 | B32: -680902.2 | C32: =B32+C6 -> -564295.3797 | D32: -448438.2587 | E32: -333324.2912 | F32: -218946.9998 | G32: -105299.9739 | H32: 7623.130681 | I32: 119828.5924 | J32: 231322.6249 | K32: 342111.3776 | L32: 452200.9364 | M32: 561597.3243 | N32: 670306.5025 | O32: 748061.1048 | P32: 855413.5018 | Q32: 962096.2064 | R32: 1068114.938 | S32: 1173475.358 | T32: 1278183.069 | U32: 1382243.615 | V32: 1485662.486 | W32: 1588445.114 | X32: 1690596.875 | Y32: 1792123.092 | Z32: 1893029.031 | AA32: 1979611.178 | AB32: 6
A33: CASE 5 | B33: -1071602.4 | C33: =B33+C7 -> -955883.9193 | D33: -840904.9575 | E33: -726659.0857 | F33: -613139.9417 | G33: -500341.2289 | H33: -388256.7158 | I33: -276880.2355 | J33: -166205.6843 | K33: -56227.02176 | L33: 53061.73036 | M33: 161666.4889 | N33: 269593.1096 | O33: 346574.1224 | P33: 453161.7952 | Q33: 559088.5393 | R33: 664359.9739 | S33: 768981.6604 | T33: 872959.1034 | U33: 976297.7512 | V33: 1079002.996 | W33: 1181080.176 | X33: 1282534.574 | Y33: 1383371.419 | Z33: 1483595.886 | AA33: 1569504.371 | AB33: 10
A34: CASE 6 | B34: -1071602.4 | C34: =B34+C8 -> -951484.1991 | D34: -832155.9373 | E34: -713610.6082 | F34: -595841.2781 | G34: -478841.0858 | H34: -362603.2418 | I34: -247121.0272 | J34: -132387.7931 | K34: -18396.95967 | L34: 94857.98431 | M34: 207383.4825 | N34: 319185.9117 | O34: 399998.3167 | P34: 510373.4743 | Q34: 620044.2991 | R34: 729016.9075 | S34: 837297.3529 | T34: 944891.6258 | U34: 1051805.655 | V34: 1158045.308 | W34: 1263616.392 | X34: 1368524.654 | Y34: 1472775.782 | Z34: 1576375.405 | AA34: 1665620.368 | AB34: 10
A35: CASE 7 | B35: -965186.64 | C35: =B35+C9 -> -849468.1593 | D35: -734489.1975 | E35: -620243.3257 | F35: -506724.1817 | G35: -393925.4689 | H35: -281840.9558 | I35: -170464.4755 | J35: -59789.92427 | K35: 50188.73824 | L35: 159477.4904 | M35: 268082.2489 | N35: 376008.8696 | O35: 452989.8824 | P35: 559577.5552 | Q35: 665504.2993 | R35: 770775.7339 | S35: 875397.4204 | T35: 979374.8634 | U35: 1082713.511 | V35: 1185418.756 | W35: 1287495.936 | X35: 1388950.334 | Y35: 1489787.179 | Z35: 1590011.646 | AA35: 1675920.131 | AB35: 9
A36: CASE 8 | B36: -965186.64 | C36: =B36+C10 -> -845068.4391 | D36: -725740.1773 | E36: -607194.8482 | F36: -489425.5181 | G36: -372425.3258 | H36: -256187.4818 | I36: -140705.2672 | J36: -25972.03308 | K36: 88018.80033 | L36: 201273.7443 | M36: 313799.2425 | N36: 425601.6717 | O36: 506414.0767 | P36: 616789.2343 | Q36: 726460.0591 | R36: 835432.6675 | S36: 943713.1129 | T36: 1051307.386 | U36: 1158221.415 | V36: 1264461.068 | W36: 1370032.152 | X36: 1474940.414 | Y36: 1579191.542 | Z36: 1682791.165 | AA36: 1772036.128 | AB36: 9
A37: Special Cases | AB37: 0
A38: Case 9 | B38: =B12 -> -7444.8 | C38: =B38+C12 -> 78421.45844 | D38: 163932.247 | E38: 249089.4472 | F38: 333894.9263 | G38: 418350.5383 | H38: 502458.123 | I38: 586219.507 | J38: 669636.5035 | K38: 752710.9123 | L38: 835444.5202 | M38: 917839.101 | N38: 999896.4153 | O38: 1081618.211 | P38: 1163006.225 | Q38: 1244062.178 | R38: 1324787.781 | S38: 1405184.734 | T38: 1485254.721 | U38: 1564999.416 | V38: 1644420.482 | W38: 1723519.569 | X38: 1802298.315 | Y38: 1880758.346 | Z38: 1958901.279 | AA38: 2036728.717 | AB38: 1
A39: Case 10 | B39: =B13 -> -7444.8 | C39: =B39+C13 -> 82592.93892 | D39: 172227.4033 | E39: 261461.0223 | F39: 350296.2051 | G39: 438735.3406 | H39: 526780.7982 | I39: 614434.9275 | J39: 701700.0588 | K39: 788578.5033 | L39: 875072.5531 | M39: 961184.4814 | N39: 1046916.543 | O39: 1132270.974 | P39: 1217249.992 | Q39: 1301855.798 | R39: 1386090.574 | S39: 1469956.483 | T39: 1553455.674 | U39: 1636590.274 | V39: 1719362.397 | W39: 1801774.138 | X39: 1883827.576 | Y39: 1965524.772 | Z39: 2046867.771 | AA39: 2127858.603 | AB39: 1
AB41: Payback
A42: CASE 1 | B42: =IF(B29>=0,B28,0) -> 0 | C42: 0 | D42: 0 | E42: 0 | F42: 0 | G42: 0 | H42: 0 | I42: 7 | J42: 8 | K42: 9 | L42: 10 | M42: 11 | N42: 12 | O42: 13 | P42: 14 | Q42: 15 | R42: 16 | S42: 17 | T42: 18 | U42: 19 | V42: 20 | W42: 21 | X42: 22 | Y42: 23 | Z42: 24 | AA42: 25 | AB42: =MATCH(TRUE,INDEX(C42:AA42>0,0),0) -> 7
A43: CASE 2 | B43: =IF(B30>=0,B28,0) -> 0 | C43: 0 | D43: 0 | E43: 0 | F43: 0 | G43: 0 | H43: 0 | I43: 7 | J43: 8 | K43: 9 | L43: 10 | M43: 11 | N43: 12 | O43: 13 | P43: 14 | Q43: 15 | R43: 16 | S43: 17 | T43: 18 | U43: 19 | V43: 20 | W43: 21 | X43: 22 | Y43: 23 | Z43: 24 | AA43: 25 | AB43: =MATCH(TRUE,INDEX(C43:AA43>0,0),0) -> 7
A44: CASE 3 | B44: =IF(B31>=0,B28,0) -> 0 | C44: 0 | D44: 0 | E44: 0 | F44: 0 | G44: 0 | H44: 0 | I44: 7 | J44: 8 | K44: 9 | L44: 10 | M44: 11 | N44: 12 | O44: 13 | P44: 14 | Q44: 15 | R44: 16 | S44: 17 | T44: 18 | U44: 19 | V44: 20 | W44: 21 | X44: 22 | Y44: 23 | Z44: 24 | AA44: 25 | AB44: =MATCH(TRUE,INDEX(C44:AA44>0,0),0) -> 7
A45: CASE 4 | B45: =IF(B32>=0,B28,0) -> 0 | C45: 0 | D45: 0 | E45: 0 | F45: 0 | G45: 0 | H45: 6 | I45: 7 | J45: 8 | K45: 9 | L45: 10 | M45: 11 | N45: 12 | O45: 13 | P45: 14 | Q45: 15 | R45: 16 | S45: 17 | T45: 18 | U45: 19 | V45: 20 | W45: 21 | X45: 22 | Y45: 23 | Z45: 24 | AA45: 25 | AB45: =MATCH(TRUE,INDEX(C45:AA45>0,0),0) -> 6
A46: CASE 5 | B46: =IF(B33>=0,B28,0) -> 0 | C46: 0 | D46: 0 | E46: 0 | F46: 0 | G46: 0 | H46: 0 | I46: 0 | J46: 0 | K46: 0 | L46: 10 | M46: 11 | N46: 12 | O46: 13 | P46: 14 | Q46: 15 | R46: 16 | S46: 17 | T46: 18 | U46: 19 | V46: 20 | W46: 21 | X46: 22 | Y46: 23 | Z46: 24 | AA46: 25 | AB46: =MATCH(TRUE,INDEX(C46:AA46>0,0),0) -> 10
A47: CASE 6 | B47: =IF(B34>=0,B28,0) -> 0 | C47: 0 | D47: 0 | E47: 0 | F47: 0 | G47: 0 | H47: 0 | I47: 0 | J47: 0 | K47: 0 | L47: 10 | M47: 11 | N47: 12 | O47: 13 | P47: 14 | Q47: 15 | R47: 16 | S47: 17 | T47: 18 | U47: 19 | V47: 20 | W47: 21 | X47: 22 | Y47: 23 | Z47: 24 | AA47: 25 | AB47: =MATCH(TRUE,INDEX(C47:AA47>0,0),0) -> 10
A48: CASE 7 | B48: =IF(B35>=0,B28,0) -> 0 | C48: 0 | D48: 0 | E48: 0 | F48: 0 | G48: 0 | H48: 0 | I48: 0 | J48: 0 | K48: 9 | L48: 10 | M48: 11 | N48: 12 | O48: 13 | P48: 14 | Q48: 15 | R48: 16 | S48: 17 | T48: 18 | U48: 19 | V48: 20 | W48: 21 | X48: 22 | Y48: 23 | Z48: 24 | AA48: 25 | AB48: =MATCH(TRUE,INDEX(C48:AA48>0,0),0) -> 9
A49: CASE 8 | B49: =IF(B36>=0,B28,0) -> 0 | C49: 0 | D49: 0 | E49: 0 | F49: 0 | G49: 0 | H49: 0 | I49: 0 | J49: 0 | K49: 9 | L49: 10 | M49: 11 | N49: 12 | O49: 13 | P49: 14 | Q49: 15 | R49: 16 | S49: 17 | T49: 18 | U49: 19 | V49: 20 | W49: 21 | X49: 22 | Y49: 23 | Z49: 24 | AA49: 25 | AB49: =MATCH(TRUE,INDEX(C49:AA49>0,0),0) -> 9
A51: Case 9 | B51: =IF(B38>=0,B28,0) -> 0 | C51: 1 | D51: 2 | E51: 3 | F51: 4 | G51: 5 | H51: 6 | I51: 7 | J51: 8 | K51: 9 | L51: 10 | M51: 11 | N51: 12 | O51: 13 | P51: 14 | Q51: 15 | R51: 16 | S51: 17 | T51: 18 | U51: 19 | V51: 20 | W51: 21 | X51: 22 | Y51: 23 | Z51: 24 | AA51: 25 | AB51: =MATCH(TRUE,INDEX(C51:AA51>0,0),0) -> 1
A52: Case 10 | B52: =IF(B39>=0,B28,0) -> 0 | C52: 1 | D52: 2 | E52: 3 | F52: 4 | G52: 5 | H52: 6 | I52: 7 | J52: 8 | K52: 9 | L52: 10 | M52: 11 | N52: 12 | O52: 13 | P52: 14 | Q52: 15 | R52: 16 | S52: 17 | T52: 18 | U52: 19 | V52: 20 | W52: 21 | X52: 22 | Y52: 23 | Z52: 24 | AA52: 25 | AB52: =MATCH(TRUE,INDEX(C52:AA52>0,0),0) -> 1

Sheet PVSF_CBA (hidden)
A1: Year | B1: 0 | C1: 1 | D1: 2 | E1: 3 | F1: 4 | G1: 5 | H1: 6 | I1: 7 | J1: 8 | K1: 9 | L1: 10 | M1: 11 | N1: 12 | O1: 13 | P1: 14 | Q1: 15 | R1: 16 | S1: 17 | T1: 18 | U1: 19 | V1: 20 | W1: 21 | X1: 22 | Y1: 23 | Z1: 24 | AA1: 25
A2: Discount factor (End of year) | B2: 1 | C2: ='PV(SF)_CBA'!C2 -> 0.9965122073 | D2: ='PV(SF)_CBA'!D2 -> 0.9930365792 | E2: ='PV(SF)_CBA'!E2 -> 0.9895730735 | F2: ='PV(SF)_CBA'!F2 -> 0.9861216477 | G2: ='PV(SF)_CBA'!G2 -> 0.9826822598 | H2: ='PV(SF)_CBA'!H2 -> 0.9792548678 | I2: ='PV(SF)_CBA'!I2 -> 0.9758394298 | J2: ='PV(SF)_CBA'!J2 -> 0.9724359041 | K2: ='PV(SF)_CBA'!K2 -> 0.9690442492 | L2: ='PV(SF)_CBA'!L2 -> 0.9656644238 | M2: ='PV(SF)_CBA'!M2 -> 0.9622963864 | N2: ='PV(SF)_CBA'!N2 -> 0.9589400961 | O2: ='PV(SF)_CBA'!O2 -> 0.9555955118 | P2: ='PV(SF)_CBA'!P2 -> 0.9522625927 | Q2: ='PV(SF)_CBA'!Q2 -> 0.9489412982 | R2: ='PV(SF)_CBA'!R2 -> 0.9456315876 | S2: ='PV(SF)_CBA'!S2 -> 0.9423334206 | T2: ='PV(SF)_CBA'!T2 -> 0.939046757 | U2: ='PV(SF)_CBA'!U2 -> 0.9357715565 | V2: ='PV(SF)_CBA'!V2 -> 0.9325077793 | W2: ='PV(SF)_CBA'!W2 -> 0.9292553855 | X2: ='PV(SF)_CBA'!X2 -> 0.9260143353 | Y2: ='PV(SF)_CBA'!Y2 -> 0.9227845892 | Z2: ='PV(SF)_CBA'!Z2 -> 0.9195661078 | AA2: ='PV(SF)_CBA'!AA2 -> 0.9163588519 | AB2: NPV
A3: CASE 1 | B3: =(SF_CBA!B23)*B2+'PV(SF)_CBA'!B16 -> -1060450.16 | C3: =(SF_CBA!C23)*C2+'PV(SF)_CBA'!C16 -> 112207.1 | D3: =(SF_CBA!D23)*D2+'PV(SF)_CBA'!D16 -> 111507.8212 | E3: =(SF_CBA!E23)*E2+'PV(SF)_CBA'!E16 -> 110814.51 | F3: =(SF_CBA!F23)*F2+'PV(SF)_CBA'!F16 -> 110127.1053 | G3: =(SF_CBA!G23)*G2+'PV(SF)_CBA'!G16 -> 109445.5465 | H3: =(SF_CBA!H23)*H2+'PV(SF)_CBA'!H16 -> 108769.7736 | I3: =(SF_CBA!I23)*I2+'PV(SF)_CBA'!I16 -> 108099.7275 | J3: =(SF_CBA!J23)*J2+'PV(SF)_CBA'!J16 -> 107435.3496 | K3: =(SF_CBA!K23)*K2+'PV(SF)_CBA'!K16 -> 106776.5818 | L3: =(SF_CBA!L23)*L2+'PV(SF)_CBA'!L16 -> 106123.3669 | M3: =(SF_CBA!M23)*M2+'PV(SF)_CBA'!M16 -> 105475.6482 | N3: =(SF_CBA!N23)*N2+'PV(SF)_CBA'!N16 -> 104833.3697 | O3: =(SF_CBA!O23)*O2+'PV(SF)_CBA'!O16 -> 73923.21015 | P3: =(SF_CBA!P23)*P2+'PV(SF)_CBA'!P16 -> 103564.9121 | Q3: =(SF_CBA!Q23)*Q2+'PV(SF)_CBA'!Q16 -> 102938.624 | R3: =(SF_CBA!R23)*R2+'PV(SF)_CBA'!R16 -> 102317.558 | S3: =(SF_CBA!S23)*S2+'PV(SF)_CBA'!S16 -> 101701.661 | T3: =(SF_CBA!T23)*T2+'PV(SF)_CBA'!T16 -> 101090.8807 | U3: =(SF_CBA!U23)*U2+'PV(SF)_CBA'!U16 -> 100485.1652 | V3: =(SF_CBA!V23)*V2+'PV(SF)_CBA'!V16 -> 99884.46307 | W3: =(SF_CBA!W23)*W2+'PV(SF)_CBA'!W16 -> 99288.72372 | X3: =(SF_CBA!X23)*X2+'PV(SF)_CBA'!X16 -> 98697.89694 | Y3: =(SF_CBA!Y23)*Y2+'PV(SF)_CBA'!Y16 -> 98111.93311 | Z3: =(SF_CBA!Z23)*Z2+'PV(SF)_CBA'!Z16 -> 97530.78315 | AA3: =(SF_CBA!AA23)*AA2+'PV(SF)_CBA'!AA16 -> 83245.6701 | AB3: =SUM(B3:AA3) -> 1503947.222
A4: CASE 2 | B4: =(SF_CBA!B23)*B2+'PV(SF)_CBA'!B17 -> -1060450.16 | C4: =(SF_CBA!C23)*C2+'PV(SF)_CBA'!C17 -> 116606.8203 | D4: =(SF_CBA!D23)*D2+'PV(SF)_CBA'!D17 -> 115857.1211 | E4: =(SF_CBA!E23)*E2+'PV(SF)_CBA'!E17 -> 115113.9674 | F4: =(SF_CBA!F23)*F2+'PV(SF)_CBA'!F17 -> 114377.2914 | G4: =(SF_CBA!G23)*G2+'PV(SF)_CBA'!G17 -> 113647.0259 | H4: =(SF_CBA!H23)*H2+'PV(SF)_CBA'!H17 -> 112923.1046 | I4: =(SF_CBA!I23)*I2+'PV(SF)_CBA'!I17 -> 112205.4618 | J4: =(SF_CBA!J23)*J2+'PV(SF)_CBA'!J17 -> 111494.0325 | K4: =(SF_CBA!K23)*K2+'PV(SF)_CBA'!K17 -> 110788.7527 | L4: =(SF_CBA!L23)*L2+'PV(SF)_CBA'!L17 -> 110089.5587 | M4: =(SF_CBA!M23)*M2+'PV(SF)_CBA'!M17 -> 109396.388 | N4: =(SF_CBA!N23)*N2+'PV(SF)_CBA'!N17 -> 108709.1782 | O4: =(SF_CBA!O23)*O2+'PV(SF)_CBA'!O17 -> 77754.6023 | P4: =(SF_CBA!P23)*P2+'PV(SF)_CBA'!P17 -> 107352.3969 | Q4: =(SF_CBA!Q23)*Q2+'PV(SF)_CBA'!Q17 -> 106682.7047 | R4: =(SF_CBA!R23)*R2+'PV(SF)_CBA'!R17 -> 106018.7319 | S4: =(SF_CBA!S23)*S2+'PV(SF)_CBA'!S17 -> 105360.4199 | T4: =(SF_CBA!T23)*T2+'PV(SF)_CBA'!T17 -> 104707.7106 | U4: =(SF_CBA!U23)*U2+'PV(SF)_CBA'!U17 -> 104060.5466 | V4: =(SF_CBA!V23)*V2+'PV(SF)_CBA'!V17 -> 103418.871 | W4: =(SF_CBA!W23)*W2+'PV(SF)_CBA'!W17 -> 102782.6277 | X4: =(SF_CBA!X23)*X2+'PV(SF)_CBA'!X17 -> 102151.7612 | Y4: =(SF_CBA!Y23)*Y2+'PV(SF)_CBA'!Y17 -> 101526.2164 | Z4: =(SF_CBA!Z23)*Z2+'PV(SF)_CBA'!Z17 -> 100905.9392 | AA4: =(SF_CBA!AA23)*AA2+'PV(SF)_CBA'!AA17 -> 86582.14721 | AB4: 1600063.218
A5: CASE 3 | B5: =(SF_CBA!B23)*B2+'PV(SF)_CBA'!B18 -> -985621.56 | C5: =(SF_CBA!C23)*C2+'PV(SF)_CBA'!C18 -> 112207.1 | D5: =(SF_CBA!D23)*D2+'PV(SF)_CBA'!D18 -> 111507.8212 | E5: =(SF_CBA!E23)*E2+'PV(SF)_CBA'!E18 -> 110814.51 | F5: =(SF_CBA!F23)*F2+'PV(SF)_CBA'!F18 -> 110127.1053 | G5: =(SF_CBA!G23)*G2+'PV(SF)_CBA'!G18 -> 109445.5465 | H5: =(SF_CBA!H23)*H2+'PV(SF)_CBA'!H18 -> 108769.7736 | I5: =(SF_CBA!I23)*I2+'PV(SF)_CBA'!I18 -> 108099.7275 | J5: =(SF_CBA!J23)*J2+'PV(SF)_CBA'!J18 -> 107435.3496 | K5: =(SF_CBA!K23)*K2+'PV(SF)_CBA'!K18 -> 106776.5818 | L5: =(SF_CBA!L23)*L2+'PV(SF)_CBA'!L18 -> 106123.3669 | M5: =(SF_CBA!M23)*M2+'PV(SF)_CBA'!M18 -> 105475.6482 | N5: =(SF_CBA!N23)*N2+'PV(SF)_CBA'!N18 -> 104833.3697 | O5: =(SF_CBA!O23)*O2+'PV(SF)_CBA'!O18 -> 73923.21015 | P5: =(SF_CBA!P23)*P2+'PV(SF)_CBA'!P18 -> 103564.9121 | Q5: =(SF_CBA!Q23)*Q2+'PV(SF)_CBA'!Q18 -> 102938.624 | R5: =(SF_CBA!R23)*R2+'PV(SF)_CBA'!R18 -> 102317.558 | S5: =(SF_CBA!S23)*S2+'PV(SF)_CBA'!S18 -> 101701.661 | T5: =(SF_CBA!T23)*T2+'PV(SF)_CBA'!T18 -> 101090.8807 | U5: =(SF_CBA!U23)*U2+'PV(SF)_CBA'!U18 -> 100485.1652 | V5: =(SF_CBA!V23)*V2+'PV(SF)_CBA'!V18 -> 99884.46307 | W5: =(SF_CBA!W23)*W2+'PV(SF)_CBA'!W18 -> 99288.72372 | X5: =(SF_CBA!X23)*X2+'PV(SF)_CBA'!X18 -> 98697.89694 | Y5: =(SF_CBA!Y23)*Y2+'PV(SF)_CBA'!Y18 -> 98111.93311 | Z5: =(SF_CBA!Z23)*Z2+'PV(SF)_CBA'!Z18 -> 97530.78315 | AA5: =(SF_CBA!AA23)*AA2+'PV(SF)_CBA'!AA18 -> 83245.6701 | AB5: 1578775.822
A6: CASE 4 | B6: =(SF_CBA!B23)*B2+'PV(SF)_CBA'!B19 -> -985621.56 | C6: =(SF_CBA!C23)*C2+'PV(SF)_CBA'!C19 -> 116606.8203 | D6: =(SF_CBA!D23)*D2+'PV(SF)_CBA'!D19 -> 115857.1211 | E6: =(SF_CBA!E23)*E2+'PV(SF)_CBA'!E19 -> 115113.9674 | F6: =(SF_CBA!F23)*F2+'PV(SF)_CBA'!F19 -> 114377.2914 | G6: =(SF_CBA!G23)*G2+'PV(SF)_CBA'!G19 -> 113647.0259 | H6: =(SF_CBA!H23)*H2+'PV(SF)_CBA'!H19 -> 112923.1046 | I6: =(SF_CBA!I23)*I2+'PV(SF)_CBA'!I19 -> 112205.4618 | J6: =(SF_CBA!J23)*J2+'PV(SF)_CBA'!J19 -> 111494.0325 | K6: =(SF_CBA!K23)*K2+'PV(SF)_CBA'!K19 -> 110788.7527 | L6: =(SF_CBA!L23)*L2+'PV(SF)_CBA'!L19 -> 110089.5587 | M6: =(SF_CBA!M23)*M2+'PV(SF)_CBA'!M19 -> 109396.388 | N6: =(SF_CBA!N23)*N2+'PV(SF)_CBA'!N19 -> 108709.1782 | O6: =(SF_CBA!O23)*O2+'PV(SF)_CBA'!O19 -> 77754.6023 | P6: =(SF_CBA!P23)*P2+'PV(SF)_CBA'!P19 -> 107352.3969 | Q6: =(SF_CBA!Q23)*Q2+'PV(SF)_CBA'!Q19 -> 106682.7047 | R6: =(SF_CBA!R23)*R2+'PV(SF)_CBA'!R19 -> 106018.7319 | S6: =(SF_CBA!S23)*S2+'PV(SF)_CBA'!S19 -> 105360.4199 | T6: =(SF_CBA!T23)*T2+'PV(SF)_CBA'!T19 -> 104707.7106 | U6: =(SF_CBA!U23)*U2+'PV(SF)_CBA'!U19 -> 104060.5466 | V6: =(SF_CBA!V23)*V2+'PV(SF)_CBA'!V19 -> 103418.871 | W6: =(SF_CBA!W23)*W2+'PV(SF)_CBA'!W19 -> 102782.6277 | X6: =(SF_CBA!X23)*X2+'PV(SF)_CBA'!X19 -> 102151.7612 | Y6: =(SF_CBA!Y23)*Y2+'PV(SF)_CBA'!Y19 -> 101526.2164 | Z6: =(SF_CBA!Z23)*Z2+'PV(SF)_CBA'!Z19 -> 100905.9392 | AA6: =(SF_CBA!AA23)*AA2+'PV(SF)_CBA'!AA19 -> 86582.14721 | AB6: 1674891.818
A7: CASE 5 | B7: =(SF_CBA!B23)*B2+'PV(SF)_CBA'!B20 -> -1376321.76 | C7: =(SF_CBA!C23)*C2+'PV(SF)_CBA'!C20 -> 115718.4807 | D7: =(SF_CBA!D23)*D2+'PV(SF)_CBA'!D20 -> 114978.9618 | E7: =(SF_CBA!E23)*E2+'PV(SF)_CBA'!E20 -> 114245.8718 | F7: =(SF_CBA!F23)*F2+'PV(SF)_CBA'!F20 -> 113519.144 | G7: =(SF_CBA!G23)*G2+'PV(SF)_CBA'!G20 -> 112798.7128 | H7: =(SF_CBA!H23)*H2+'PV(SF)_CBA'!H20 -> 112084.513 | I7: =(SF_CBA!I23)*I2+'PV(SF)_CBA'!I20 -> 111376.4804 | J7: =(SF_CBA!J23)*J2+'PV(SF)_CBA'!J20 -> 110674.5512 | K7: =(SF_CBA!K23)*K2+'PV(SF)_CBA'!K20 -> 109978.6625 | L7: =(SF_CBA!L23)*L2+'PV(SF)_CBA'!L20 -> 109288.7521 | M7: =(SF_CBA!M23)*M2+'PV(SF)_CBA'!M20 -> 108604.7585 | N7: =(SF_CBA!N23)*N2+'PV(SF)_CBA'!N20 -> 107926.6207 | O7: =(SF_CBA!O23)*O2+'PV(SF)_CBA'!O20 -> 76981.01284 | P7: =(SF_CBA!P23)*P2+'PV(SF)_CBA'!P20 -> 106587.6727 | Q7: =(SF_CBA!Q23)*Q2+'PV(SF)_CBA'!Q20 -> 105926.7441 | R7: =(SF_CBA!R23)*R2+'PV(SF)_CBA'!R20 -> 105271.4346 | S7: =(SF_CBA!S23)*S2+'PV(SF)_CBA'!S20 -> 104621.6865 | T7: =(SF_CBA!T23)*T2+'PV(SF)_CBA'!T20 -> 103977.443 | U7: =(SF_CBA!U23)*U2+'PV(SF)_CBA'!U20 -> 103338.6478 | V7: =(SF_CBA!V23)*V2+'PV(SF)_CBA'!V20 -> 102705.2451 | W7: =(SF_CBA!W23)*W2+'PV(SF)_CBA'!W20 -> 102077.1799 | X7: =(SF_CBA!X23)*X2+'PV(SF)_CBA'!X20 -> 101454.3977 | Y7: =(SF_CBA!Y23)*Y2+'PV(SF)_CBA'!Y20 -> 100836.8447 | Z7: =(SF_CBA!Z23)*Z2+'PV(SF)_CBA'!Z20 -> 100224.4675 | AA7: =(SF_CBA!AA23)*AA2+'PV(SF)_CBA'!AA20 -> 85908.48515 | AB7: 1264785.011
A8: CASE 6 | B8: =(SF_CBA!B23)*B2+'PV(SF)_CBA'!B21 -> -1376321.76 | C8: =(SF_CBA!C23)*C2+'PV(SF)_CBA'!C21 -> 120118.2009 | D8: =(SF_CBA!D23)*D2+'PV(SF)_CBA'!D21 -> 119328.2617 | E8: =(SF_CBA!E23)*E2+'PV(SF)_CBA'!E21 -> 118545.3292 | F8: =(SF_CBA!F23)*F2+'PV(SF)_CBA'!F21 -> 117769.3301 | G8: =(SF_CBA!G23)*G2+'PV(SF)_CBA'!G21 -> 117000.1922 | H8: =(SF_CBA!H23)*H2+'PV(SF)_CBA'!H21 -> 116237.844 | I8: =(SF_CBA!I23)*I2+'PV(SF)_CBA'!I21 -> 115482.2146 | J8: =(SF_CBA!J23)*J2+'PV(SF)_CBA'!J21 -> 114733.2341 | K8: =(SF_CBA!K23)*K2+'PV(SF)_CBA'!K21 -> 113990.8334 | L8: =(SF_CBA!L23)*L2+'PV(SF)_CBA'!L21 -> 113254.944 | M8: =(SF_CBA!M23)*M2+'PV(SF)_CBA'!M21 -> 112525.4982 | N8: =(SF_CBA!N23)*N2+'PV(SF)_CBA'!N21 -> 111802.4292 | O8: =(SF_CBA!O23)*O2+'PV(SF)_CBA'!O21 -> 80812.40499 | P8: =(SF_CBA!P23)*P2+'PV(SF)_CBA'!P21 -> 110375.1576 | Q8: =(SF_CBA!Q23)*Q2+'PV(SF)_CBA'!Q21 -> 109670.8248 | R8: =(SF_CBA!R23)*R2+'PV(SF)_CBA'!R21 -> 108972.6085 | S8: =(SF_CBA!S23)*S2+'PV(SF)_CBA'!S21 -> 108280.4454 | T8: =(SF_CBA!T23)*T2+'PV(SF)_CBA'!T21 -> 107594.2729 | U8: =(SF_CBA!U23)*U2+'PV(SF)_CBA'!U21 -> 106914.0292 | V8: =(SF_CBA!V23)*V2+'PV(SF)_CBA'!V21 -> 106239.653 | W8: =(SF_CBA!W23)*W2+'PV(SF)_CBA'!W21 -> 105571.0839 | X8: =(SF_CBA!X23)*X2+'PV(SF)_CBA'!X21 -> 104908.2619 | Y8: =(SF_CBA!Y23)*Y2+'PV(SF)_CBA'!Y21 -> 104251.128 | Z8: =(SF_CBA!Z23)*Z2+'PV(SF)_CBA'!Z21 -> 103599.6235 | AA8: =(SF_CBA!AA23)*AA2+'PV(SF)_CBA'!AA21 -> 89244.96225 | AB8: 1360901.008
A9: CASE 7 | B9: =(SF_CBA!B23)*B2+'PV(SF)_CBA'!B22 -> -1269906 | C9: =(SF_CBA!C23)*C2+'PV(SF)_CBA'!C22 -> 115718.4807 | D9: =(SF_CBA!D23)*D2+'PV(SF)_CBA'!D22 -> 114978.9618 | E9: =(SF_CBA!E23)*E2+'PV(SF)_CBA'!E22 -> 114245.8718 | F9: =(SF_CBA!F23)*F2+'PV(SF)_CBA'!F22 -> 113519.144 | G9: =(SF_CBA!G23)*G2+'PV(SF)_CBA'!G22 -> 112798.7128 | H9: =(SF_CBA!H23)*H2+'PV(SF)_CBA'!H22 -> 112084.513 | I9: =(SF_CBA!I23)*I2+'PV(SF)_CBA'!I22 -> 111376.4804 | J9: =(SF_CBA!J23)*J2+'PV(SF)_CBA'!J22 -> 110674.5512 | K9: =(SF_CBA!K23)*K2+'PV(SF)_CBA'!K22 -> 109978.6625 | L9: =(SF_CBA!L23)*L2+'PV(SF)_CBA'!L22 -> 109288.7521 | M9: =(SF_CBA!M23)*M2+'PV(SF)_CBA'!M22 -> 108604.7585 | N9: =(SF_CBA!N23)*N2+'PV(SF)_CBA'!N22 -> 107926.6207 | O9: =(SF_CBA!O23)*O2+'PV(SF)_CBA'!O22 -> 76981.01284 | P9: =(SF_CBA!P23)*P2+'PV(SF)_CBA'!P22 -> 106587.6727 | Q9: =(SF_CBA!Q23)*Q2+'PV(SF)_CBA'!Q22 -> 105926.7441 | R9: =(SF_CBA!R23)*R2+'PV(SF)_CBA'!R22 -> 105271.4346 | S9: =(SF_CBA!S23)*S2+'PV(SF)_CBA'!S22 -> 104621.6865 | T9: =(SF_CBA!T23)*T2+'PV(SF)_CBA'!T22 -> 103977.443 | U9: =(SF_CBA!U23)*U2+'PV(SF)_CBA'!U22 -> 103338.6478 | V9: =(SF_CBA!V23)*V2+'PV(SF)_CBA'!V22 -> 102705.2451 | W9: =(SF_CBA!W23)*W2+'PV(SF)_CBA'!W22 -> 102077.1799 | X9: =(SF_CBA!X23)*X2+'PV(SF)_CBA'!X22 -> 101454.3977 | Y9: =(SF_CBA!Y23)*Y2+'PV(SF)_CBA'!Y22 -> 100836.8447 | Z9: =(SF_CBA!Z23)*Z2+'PV(SF)_CBA'!Z22 -> 100224.4675 | AA9: =(SF_CBA!AA23)*AA2+'PV(SF)_CBA'!AA22 -> 85908.48515 | AB9: 1371200.771
A10: CASE 8 | B10: =(SF_CBA!B23)*B2+'PV(SF)_CBA'!B23 -> -1269906 | C10: =(SF_CBA!C23)*C2+'PV(SF)_CBA'!C23 -> 120118.2009 | D10: =(SF_CBA!D23)*D2+'PV(SF)_CBA'!D23 -> 119328.2617 | E10: =(SF_CBA!E23)*E2+'PV(SF)_CBA'!E23 -> 118545.3292 | F10: =(SF_CBA!F23)*F2+'PV(SF)_CBA'!F23 -> 117769.3301 | G10: =(SF_CBA!G23)*G2+'PV(SF)_CBA'!G23 -> 117000.1922 | H10: =(SF_CBA!H23)*H2+'PV(SF)_CBA'!H23 -> 116237.844 | I10: =(SF_CBA!I23)*I2+'PV(SF)_CBA'!I23 -> 115482.2146 | J10: =(SF_CBA!J23)*J2+'PV(SF)_CBA'!J23 -> 114733.2341 | K10: =(SF_CBA!K23)*K2+'PV(SF)_CBA'!K23 -> 113990.8334 | L10: =(SF_CBA!L23)*L2+'PV(SF)_CBA'!L23 -> 113254.944 | M10: =(SF_CBA!M23)*M2+'PV(SF)_CBA'!M23 -> 112525.4982 | N10: =(SF_CBA!N23)*N2+'PV(SF)_CBA'!N23 -> 111802.4292 | O10: =(SF_CBA!O23)*O2+'PV(SF)_CBA'!O23 -> 80812.40499 | P10: =(SF_CBA!P23)*P2+'PV(SF)_CBA'!P23 -> 110375.1576 | Q10: =(SF_CBA!Q23)*Q2+'PV(SF)_CBA'!Q23 -> 109670.8248 | R10: =(SF_CBA!R23)*R2+'PV(SF)_CBA'!R23 -> 108972.6085 | S10: =(SF_CBA!S23)*S2+'PV(SF)_CBA'!S23 -> 108280.4454 | T10: =(SF_CBA!T23)*T2+'PV(SF)_CBA'!T23 -> 107594.2729 | U10: =(SF_CBA!U23)*U2+'PV(SF)_CBA'!U23 -> 106914.0292 | V10: =(SF_CBA!V23)*V2+'PV(SF)_CBA'!V23 -> 106239.653 | W10: =(SF_CBA!W23)*W2+'PV(SF)_CBA'!W23 -> 105571.0839 | X10: =(SF_CBA!X23)*X2+'PV(SF)_CBA'!X23 -> 104908.2619 | Y10: =(SF_CBA!Y23)*Y2+'PV(SF)_CBA'!Y23 -> 104251.128 | Z10: =(SF_CBA!Z23)*Z2+'PV(SF)_CBA'!Z23 -> 103599.6235 | AA10: =(SF_CBA!AA23)*AA2+'PV(SF)_CBA'!AA23 -> 89244.96225 | AB10: 1467316.768
A11: Special Cases
A12: Case 9 | B12: =(SF_CBA!B23)*B2+'PV(SF)_CBA'!B24 -> -312164.16 | C12: =(SF_CBA!C23)*C2+'PV(SF)_CBA'!C24 -> 85866.25844 | D12: =(SF_CBA!D23)*D2+'PV(SF)_CBA'!D24 -> 85510.78859 | E12: =(SF_CBA!E23)*E2+'PV(SF)_CBA'!E24 -> 85157.20014 | F12: =(SF_CBA!F23)*F2+'PV(SF)_CBA'!F24 -> 84805.47917 | G12: =(SF_CBA!G23)*G2+'PV(SF)_CBA'!G24 -> 84455.61191 | H12: =(SF_CBA!H23)*H2+'PV(SF)_CBA'!H24 -> 84107.5847 | I12: =(SF_CBA!I23)*I2+'PV(SF)_CBA'!I24 -> 83761.38403 | J12: =(SF_CBA!J23)*J2+'PV(SF)_CBA'!J24 -> 83416.9965 | K12: =(SF_CBA!K23)*K2+'PV(SF)_CBA'!K24 -> 83074.40884 | L12: =(SF_CBA!L23)*L2+'PV(SF)_CBA'!L24 -> 82733.60792 | M12: =(SF_CBA!M23)*M2+'PV(SF)_CBA'!M24 -> 82394.58072 | N12: =(SF_CBA!N23)*N2+'PV(SF)_CBA'!N24 -> 82057.31436 | O12: =(SF_CBA!O23)*O2+'PV(SF)_CBA'!O24 -> 81721.79606 | P12: =(SF_CBA!P23)*P2+'PV(SF)_CBA'!P24 -> 81388.01317 | Q12: =(SF_CBA!Q23)*Q2+'PV(SF)_CBA'!Q24 -> 81055.95316 | R12: =(SF_CBA!R23)*R2+'PV(SF)_CBA'!R24 -> 80725.60363 | S12: =(SF_CBA!S23)*S2+'PV(SF)_CBA'!S24 -> 80396.95227 | T12: =(SF_CBA!T23)*T2+'PV(SF)_CBA'!T24 -> 80069.98691 | U12: =(SF_CBA!U23)*U2+'PV(SF)_CBA'!U24 -> 79744.69548 | V12: =(SF_CBA!V23)*V2+'PV(SF)_CBA'!V24 -> 79421.06602 | W12: =(SF_CBA!W23)*W2+'PV(SF)_CBA'!W24 -> 79099.08671 | X12: =(SF_CBA!X23)*X2+'PV(SF)_CBA'!X24 -> 78778.7458 | Y12: =(SF_CBA!Y23)*Y2+'PV(SF)_CBA'!Y24 -> 78460.03168 | Z12: =(SF_CBA!Z23)*Z2+'PV(SF)_CBA'!Z24 -> 78142.93283 | AA12: =(SF_CBA!AA23)*AA2+'PV(SF)_CBA'!AA24 -> 77827.43784 | AB12: =SUM(B12:AA12) -> 1732009.357
A13: Case 10 | B13: =(SF_CBA!B23)*B2+'PV(SF)_CBA'!B25 -> -312164.16 | C13: =(SF_CBA!C23)*C2+'PV(SF)_CBA'!C25 -> 90037.73892 | D13: =(SF_CBA!D23)*D2+'PV(SF)_CBA'!D25 -> 89634.46436 | E13: =(SF_CBA!E23)*E2+'PV(SF)_CBA'!E25 -> 89233.61904 | F13: =(SF_CBA!F23)*F2+'PV(SF)_CBA'!F25 -> 88835.18276 | G13: =(SF_CBA!G23)*G2+'PV(SF)_CBA'!G25 -> 88439.13553 | H13: =(SF_CBA!H23)*H2+'PV(SF)_CBA'!H25 -> 88045.45758 | I13: =(SF_CBA!I23)*I2+'PV(SF)_CBA'!I25 -> 87654.12932 | J13: =(SF_CBA!J23)*J2+'PV(SF)_CBA'!J25 -> 87265.13135 | K13: =(SF_CBA!K23)*K2+'PV(SF)_CBA'!K25 -> 86878.44449 | L13: =(SF_CBA!L23)*L2+'PV(SF)_CBA'!L25 -> 86494.04974 | M13: =(SF_CBA!M23)*M2+'PV(SF)_CBA'!M25 -> 86111.92829 | N13: =(SF_CBA!N23)*N2+'PV(SF)_CBA'!N25 -> 85732.06153 | O13: =(SF_CBA!O23)*O2+'PV(SF)_CBA'!O25 -> 85354.43103 | P13: =(SF_CBA!P23)*P2+'PV(SF)_CBA'!P25 -> 84979.01854 | Q13: =(SF_CBA!Q23)*Q2+'PV(SF)_CBA'!Q25 -> 84605.80601 | R13: =(SF_CBA!R23)*R2+'PV(SF)_CBA'!R25 -> 84234.77555 | S13: =(SF_CBA!S23)*S2+'PV(SF)_CBA'!S25 -> 83865.90946 | T13: =(SF_CBA!T23)*T2+'PV(SF)_CBA'!T25 -> 83499.19023 | U13: =(SF_CBA!U23)*U2+'PV(SF)_CBA'!U25 -> 83134.60051 | V13: =(SF_CBA!V23)*V2+'PV(SF)_CBA'!V25 -> 82772.12311 | W13: =(SF_CBA!W23)*W2+'PV(SF)_CBA'!W25 -> 82411.74105 | X13: =(SF_CBA!X23)*X2+'PV(SF)_CBA'!X25 -> 82053.43749 | Y13: =(SF_CBA!Y23)*Y2+'PV(SF)_CBA'!Y25 -> 81697.19576 | Z13: =(SF_CBA!Z23)*Z2+'PV(SF)_CBA'!Z25 -> 81342.99936 | AA13: =(SF_CBA!AA23)*AA2+'PV(SF)_CBA'!AA25 -> 80990.83197 | AB13: =SUM(B13:AA13) -> 1823139.243
A15: Year | B15: 0 | C15: 1 | D15: 2 | E15: 3 | F15: 4 | G15: 5 | H15: 6 | I15: 7 | J15: 8 | K15: 9 | L15: 10 | M15: 11 | N15: 12 | O15: 13 | P15: 14 | Q15: 15 | R15: 16 | S15: 17 | T15: 18 | U15: 19 | V15: 20 | W15: 21 | X15: 22 | Y15: 23 | Z15: 24 | AA15: 25 | AB15: IRR
A16: CASE 1 | B16: =B3/B2 -> -1060450.16 | C16: 112599.8249 | D16: 112289.7419 | E16: 111982.1396 | F16: 111676.998 | G16: 111374.2976 | H16: 111074.0189 | I16: 110776.1423 | J16: 110480.6488 | K16: 110187.5192 | L16: 109896.7346 | M16: 109608.2763 | N16: 109322.1257 | O16: 77358.26429 | P16: 108756.6738 | Q16: 108477.336 | R16: 108200.2329 | S16: 107925.3466 | T16: 107652.6594 | U16: 107382.1538 | V16: 107113.8121 | W16: 106847.6172 | X16: 106583.5519 | Y16: 106321.5991 | Z16: 106061.7419 | AA16: 90843.96351 | AB16: =IRR(B16:AA16) -> 0.0912765251
A17: CASE 2 | B17: =B4/B2 -> -1060450.16 | C17: 117014.9441 | D17: 116669.5402 | E17: 116326.8995 | F17: 115986.9999 | G17: 115649.8194 | H17: 115315.3365 | I17: 114983.5294 | J17: 114654.3767 | K17: 114327.8573 | L17: 114003.9501 | M17: 113682.6341 | N17: 113363.8886 | O17: 81367.69307 | P17: 112734.0271 | Q17: 112422.8705 | R17: 112114.2031 | S17: 111808.0051 | T17: 111504.2566 | U17: 111202.9382 | V17: 110904.0303 | W17: 110607.5136 | X17: 110313.3691 | Y17: 110021.5778 | Z17: 109732.1207 | AA17: 94484.97936 | AB17: 0.09607746489
A18: CASE 3 | B18: =B5/B2 -> -985621.56 | C18: 112599.8249 | D18: 112289.7419 | E18: 111982.1396 | F18: 111676.998 | G18: 111374.2976 | H18: 111074.0189 | I18: 110776.1423 | J18: 110480.6488 | K18: 110187.5192 | L18: 109896.7346 | M18: 109608.2763 | N18: 109322.1257 | O18: 77358.26429 | P18: 108756.6738 | Q18: 108477.336 | R18: 108200.2329 | S18: 107925.3466 | T18: 107652.6594 | U18: 107382.1538 | V18: 107113.8121 | W18: 106847.6172 | X18: 106583.5519 | Y18: 106321.5991 | Z18: 106061.7419 | AA18: 90843.96351 | AB18: 0.1007882833
A19: CASE 4 | B19: =B6/B2 -> -985621.56 | C19: 117014.9441 | D19: 116669.5402 | E19: 116326.8995 | F19: 115986.9999 | G19: 115649.8194 | H19: 115315.3365 | I19: 114983.5294 | J19: 114654.3767 | K19: 114327.8573 | L19: 114003.9501 | M19: 113682.6341 | N19: 113363.8886 | O19: 81367.69307 | P19: 112734.0271 | Q19: 112422.8705 | R19: 112114.2031 | S19: 111808.0051 | T19: 111504.2566 | U19: 111202.9382 | V19: 110904.0303 | W19: 110607.5136 | X19: 110313.3691 | Y19: 110021.5778 | Z19: 109732.1207 | AA19: 94484.97936 | AB19: 0.105843693
A20: CASE 5 | B20: =B7/B2 -> -1376321.76 | C20: 116123.4954 | D20: 115785.223 | E20: 115449.6568 | F20: 115116.7752 | G20: 114786.5566 | H20: 114458.9797 | I20: 114134.0235 | J20: 113811.6669 | K20: 113491.8891 | L20: 113174.6696 | M20: 112859.9879 | N20: 112547.8236 | O20: 80558.15656 | P20: 111930.9669 | Q20: 111626.2348 | R20: 111323.9405 | S20: 111024.0645 | T20: 110726.5876 | U20: 110431.4905 | V20: 110138.7542 | W20: 109848.3598 | X20: 109560.2885 | Y20: 109274.5218 | Z20: 108991.0412 | AA20: 93749.82844 | AB20: 0.06406680341
A21: CASE 6 | B21: =B8/B2 -> -1376321.76 | C21: 120538.6146 | D21: 120165.0213 | E21: 119794.4167 | F21: 119426.777 | G21: 119062.0784 | H21: 118700.2974 | I21: 118341.4106 | J21: 117985.3949 | K21: 117632.2273 | L21: 117281.8851 | M21: 116934.3456 | N21: 116589.5864 | O21: 84567.58534 | P21: 115908.3202 | Q21: 115571.7693 | R21: 115237.9107 | S21: 114906.723 | T21: 114578.1848 | U21: 114252.275 | V21: 113928.9724 | W21: 113608.2562 | X21: 113290.1057 | Y21: 112974.5005 | Z21: 112661.4201 | AA21: 97390.84429 | AB21: 0.0680776445
A22: CASE 7 | B22: =B9/B2 -> -1269906 | C22: 116123.4954 | D22: 115785.223 | E22: 115449.6568 | F22: 115116.7752 | G22: 114786.5566 | H22: 114458.9797 | I22: 114134.0235 | J22: 113811.6669 | K22: 113491.8891 | L22: 113174.6696 | M22: 112859.9879 | N22: 112547.8236 | O22: 80558.15656 | P22: 111930.9669 | Q22: 111626.2348 | R22: 111323.9405 | S22: 111024.0645 | T22: 110726.5876 | U22: 110431.4905 | V22: 110138.7542 | W22: 109848.3598 | X22: 109560.2885 | Y22: 109274.5218 | Z22: 108991.0412 | AA22: 93749.82844 | AB22: 0.07311219433
A23: CASE 8 | B23: =B10/B2 -> -1269906 | C23: 120538.6146 | D23: 120165.0213 | E23: 119794.4167 | F23: 119426.777 | G23: 119062.0784 | H23: 118700.2974 | I23: 118341.4106 | J23: 117985.3949 | K23: 117632.2273 | L23: 117281.8851 | M23: 116934.3456 | N23: 116589.5864 | O23: 84567.58534 | P23: 115908.3202 | Q23: 115571.7693 | R23: 115237.9107 | S23: 114906.723 | T23: 114578.1848 | U23: 114252.275 | V23: 113928.9724 | W23: 113608.2562 | X23: 113290.1057 | Y23: 112974.5005 | Z23: 112661.4201 | AA23: 97390.84429 | AB23: 0.0773304253
A24: Special Cases
A25: Case 9 | B25: =B12/B2 -> -312164.16 | C25: 86166.79034 | D25: 86110.41162 | E25: 86054.48392 | F25: 85999.00364 | G25: 85943.96721 | H25: 85889.37106 | I25: 85835.21169 | J25: 85781.48559 | K25: 85728.1893 | L25: 85675.31938 | M25: 85622.87242 | N25: 85570.84504 | O25: 85519.23387 | P25: 85468.03559 | Q25: 85417.2469 | R25: 85366.86452 | S25: 85316.8852 | T25: 85267.30572 | U25: 85218.12286 | V25: 85169.33348 | W25: 85120.9344 | X25: 85072.92252 | Y25: 85025.29474 | Z25: 84978.04797 | AA25: 84931.17918 | AB25: =IRR(B25:AA25) -> 0.2747637912
A26: Case 10 | B26: =B13/B2 -> -312164.16 | C26: 90352.871 | D26: 90263.00363 | E26: 90173.8552 | F26: 90085.41995 | G26: 89997.69218 | H26: 89910.66624 | I26: 89824.33651 | J26: 89738.69741 | K26: 89653.74342 | L26: 89569.46907 | M26: 89485.86891 | N26: 89402.93756 | O26: 89320.66965 | P26: 89239.05989 | Q26: 89158.103 | R26: 89077.79378 | S26: 88998.12702 | T26: 88919.0976 | U26: 88840.70041 | V26: 88762.9304 | W26: 88685.78255 | X26: 88609.25189 | Y26: 88533.33347 | Z26: 88458.0224 | AA26: 88383.31381 | AB26: =IRR(B26:AA26) -> 0.2879630942
A28: Year | B28: 0 | C28: 1 | D28: 2 | E28: 3 | F28: 4 | G28: 5 | H28: 6 | I28: 7 | J28: 8 | K28: 9 | L28: 10 | M28: 11 | N28: 12 | O28: 13 | P28: 14 | Q28: 15 | R28: 16 | S28: 17 | T28: 18 | U28: 19 | V28: 20 | W28: 21 | X28: 22 | Y28: 23 | Z28: 24 | AA28: 25 | AB28: Payback
A29: CASE 1 | B29: =B3 -> -1060450.16 | C29: =B29+C3 -> -948243.06 | D29: -836735.2388 | E29: -725920.7288 | F29: -615793.6235 | G29: -506348.077 | H29: -397578.3033 | I29: -289478.5758 | J29: -182043.2262 | K29: -75266.64447 | L29: 30856.72242 | M29: 136332.3706 | N29: 241165.7404 | O29: 315088.9505 | P29: 418653.8627 | Q29: 521592.4867 | R29: 623910.0447 | S29: 725611.7057 | T29: 826702.5864 | U29: 927187.7516 | V29: 1027072.215 | W29: 1126360.938 | X29: 1225058.835 | Y29: 1323170.768 | Z29: 1420701.552 | AA29: 1503947.222 | AB29: =IFERROR(AB42,">25") -> 10
A30: CASE 2 | B30: -1060450.16 | C30: =B30+C4 -> -943843.3397 | D30: -827986.2187 | E30: -712872.2512 | F30: -598494.9598 | G30: -484847.9339 | H30: -371924.8293 | I30: -259719.3676 | J30: -148225.3351 | K30: -37436.58238 | L30: 72652.97636 | M30: 182049.3643 | N30: 290758.5425 | O30: 368513.1448 | P30: 475865.5418 | Q30: 582548.2464 | R30: 688566.9783 | S30: 793927.3982 | T30: 898635.1088 | U30: 1002695.655 | V30: 1106114.526 | W30: 1208897.154 | X30: 1311048.915 | Y30: 1412575.132 | Z30: 1513481.071 | AA30: 1600063.218 | AB30: 10
A31: CASE 3 | B31: -985621.56 | C31: =B31+C5 -> -873414.46 | D31: -761906.6388 | E31: -651092.1288 | F31: -540965.0235 | G31: -431519.477 | H31: -322749.7033 | I31: -214649.9758 | J31: -107214.6262 | K31: -438.0444682 | L31: 105685.3224 | M31: 211160.9706 | N31: 315994.3404 | O31: 389917.5505 | P31: 493482.4627 | Q31: 596421.0867 | R31: 698738.6447 | S31: 800440.3057 | T31: 901531.1864 | U31: 1002016.352 | V31: 1101900.815 | W31: 1201189.538 | X31: 1299887.435 | Y31: 1397999.368 | Z31: 1495530.152 | AA31: 1578775.822 | AB31: 10
A32: CASE 4 | B32: -985621.56 | C32: =B32+C6 -> -869014.7397 | D32: -753157.6187 | E32: -638043.6512 | F32: -523666.3598 | G32: -410019.3339 | H32: -297096.2293 | I32: -184890.7676 | J32: -73396.73505 | K32: 37392.01762 | L32: 147481.5764 | M32: 256877.9643 | N32: 365587.1425 | O32: 443341.7448 | P32: 550694.1418 | Q32: 657376.8464 | R32: 763395.5783 | S32: 868755.9982 | T32: 973463.7088 | U32: 1077524.255 | V32: 1180943.126 | W32: 1283725.754 | X32: 1385877.515 | Y32: 1487403.732 | Z32: 1588309.671 | AA32: 1674891.818 | AB32: 9
A33: CASE 5 | B33: -1376321.76 | C33: =B33+C7 -> -1260603.279 | D33: -1145624.317 | E33: -1031378.446 | F33: -917859.3017 | G33: -805060.5889 | H33: -692976.0758 | I33: -581599.5955 | J33: -470925.0443 | K33: -360946.3818 | L33: -251657.6296 | M33: -143052.8711 | N33: -35126.25042 | O33: 41854.76242 | P33: 148442.4352 | Q33: 254369.1793 | R33: 359640.6139 | S33: 464262.3004 | T33: 568239.7434 | U33: 671578.3912 | V33: 774283.6363 | W33: 876360.8161 | X33: 977815.2138 | Y33: 1078652.059 | Z33: 1178876.526 | AA33: 1264785.011 | AB33: 13
A34: CASE 6 | B34: -1376321.76 | C34: =B34+C8 -> -1256203.559 | D34: -1136875.297 | E34: -1018329.968 | F34: -900560.6381 | G34: -783560.4458 | H34: -667322.6018 | I34: -551840.3872 | J34: -437107.1531 | K34: -323116.3197 | L34: -209861.3757 | M34: -97335.87747 | N34: 14466.55174 | O34: 95278.95673 | P34: 205654.1143 | Q34: 315324.9391 | R34: 424297.5475 | S34: 532577.9929 | T34: 640172.2658 | U34: 747086.295 | V34: 853325.948 | W34: 958897.0318 | X34: 1063805.294 | Y34: 1168056.422 | Z34: 1271656.045 | AA34: 1360901.008 | AB34: 12
A35: CASE 7 | B35: -1269906 | C35: =B35+C9 -> -1154187.519 | D35: -1039208.557 | E35: -924962.6857 | F35: -811443.5417 | G35: -698644.8289 | H35: -586560.3158 | I35: -475183.8355 | J35: -364509.2843 | K35: -254530.6218 | L35: -145241.8696 | M35: -36637.11115 | N35: 71289.50958 | O35: 148270.5224 | P35: 254858.1952 | Q35: 360784.9393 | R35: 466056.3739 | S35: 570678.0604 | T35: 674655.5034 | U35: 777994.1512 | V35: 880699.3963 | W35: 982776.5761 | X35: 1084230.974 | Y35: 1185067.819 | Z35: 1285292.286 | AA35: 1371200.771 | AB35: 12
A36: CASE 8 | B36: -1269906 | C36: =B36+C10 -> -1149787.799 | D36: -1030459.537 | E36: -911914.2082 | F36: -794144.8781 | G36: -677144.6858 | H36: -560906.8418 | I36: -445424.6272 | J36: -330691.3931 | K36: -216700.5597 | L36: -103445.6157 | M36: 9079.882528 | N36: 120882.3117 | O36: 201694.7167 | P36: 312069.8743 | Q36: 421740.6991 | R36: 530713.3075 | S36: 638993.7529 | T36: 746588.0258 | U36: 853502.055 | V36: 959741.708 | W36: 1065312.792 | X36: 1170221.054 | Y36: 1274472.182 | Z36: 1378071.805 | AA36: 1467316.768 | AB36: 11
A37: Special Cases
A38: Case 9 | B38: =B12 -> -312164.16 | C38: =B38+C12 -> -226297.9016 | D38: -140787.113 | E38: -55629.91283 | F38: 29175.56634 | G38: 113631.1783 | H38: 197738.763 | I38: 281500.147 | J38: 364917.1435 | K38: 447991.5523 | L38: 530725.1602 | M38: 613119.741 | N38: 695177.0553 | O38: 776898.8514 | P38: 858286.8646 | Q38: 939342.8177 | R38: 1020068.421 | S38: 1100465.374 | T38: 1180535.361 | U38: 1260280.056 | V38: 1339701.122 | W38: 1418800.209 | X38: 1497578.955 | Y38: 1576038.986 | Z38: 1654181.919 | AA38: 1732009.357 | AB38: =IFERROR(AB51,">25") -> 4
A39: Case 10 | B39: =B13 -> -312164.16 | C39: =B39+C13 -> -222126.4211 | D39: -132491.9567 | E39: -43258.33769 | F39: 45576.84507 | G39: 134015.9806 | H39: 222061.4382 | I39: 309715.5675 | J39: 396980.6988 | K39: 483859.1433 | L39: 570353.1931 | M39: 656465.1214 | N39: 742197.1829 | O39: 827551.6139 | P39: 912530.6325 | Q39: 997136.4385 | R39: 1081371.214 | S39: 1165237.123 | T39: 1248736.314 | U39: 1331870.914 | V39: 1414643.037 | W39: 1497054.778 | X39: 1579108.216 | Y39: 1660805.412 | Z39: 1742148.411 | AA39: 1823139.243 | AB39: =IFERROR(AB52,">25") -> 4
AB41: Payback
A42: CASE 1 | B42: =IF(B29>=0,B28,0) -> 0 | C42: 0 | D42: 0 | E42: 0 | F42: 0 | G42: 0 | H42: 0 | I42: 0 | J42: 0 | K42: 0 | L42: 10 | M42: 11 | N42: 12 | O42: 13 | P42: 14 | Q42: 15 | R42: 16 | S42: 17 | T42: 18 | U42: 19 | V42: 20 | W42: 21 | X42: 22 | Y42: 23 | Z42: 24 | AA42: 25 | AB42: =MATCH(TRUE,INDEX(C42:AA42>0,0),0) -> 10
A43: CASE 2 | B43: =IF(B30>=0,B28,0) -> 0 | C43: 0 | D43: 0 | E43: 0 | F43: 0 | G43: 0 | H43: 0 | I43: 0 | J43: 0 | K43: 0 | L43: 10 | M43: 11 | N43: 12 | O43: 13 | P43: 14 | Q43: 15 | R43: 16 | S43: 17 | T43: 18 | U43: 19 | V43: 20 | W43: 21 | X43: 22 | Y43: 23 | Z43: 24 | AA43: 25 | AB43: =MATCH(TRUE,INDEX(C43:AA43>0,0),0) -> 10
A44: CASE 3 | B44: =IF(B31>=0,B28,0) -> 0 | C44: 0 | D44: 0 | E44: 0 | F44: 0 | G44: 0 | H44: 0 | I44: 0 | J44: 0 | K44: 0 | L44: 10 | M44: 11 | N44: 12 | O44: 13 | P44: 14 | Q44: 15 | R44: 16 | S44: 17 | T44: 18 | U44: 19 | V44: 20 | W44: 21 | X44: 22 | Y44: 23 | Z44: 24 | AA44: 25 | AB44: =MATCH(TRUE,INDEX(C44:AA44>0,0),0) -> 10
A45: CASE 4 | B45: =IF(B32>=0,B28,0) -> 0 | C45: 0 | D45: 0 | E45: 0 | F45: 0 | G45: 0 | H45: 0 | I45: 0 | J45: 0 | K45: 9 | L45: 10 | M45: 11 | N45: 12 | O45: 13 | P45: 14 | Q45: 15 | R45: 16 | S45: 17 | T45: 18 | U45: 19 | V45: 20 | W45: 21 | X45: 22 | Y45: 23 | Z45: 24 | AA45: 25 | AB45: =MATCH(TRUE,INDEX(C45:AA45>0,0),0) -> 9
A46: CASE 5 | B46: =IF(B33>=0,B28,0) -> 0 | C46: 0 | D46: 0 | E46: 0 | F46: 0 | G46: 0 | H46: 0 | I46: 0 | J46: 0 | K46: 0 | L46: 0 | M46: 0 | N46: 0 | O46: 13 | P46: 14 | Q46: 15 | R46: 16 | S46: 17 | T46: 18 | U46: 19 | V46: 20 | W46: 21 | X46: 22 | Y46: 23 | Z46: 24 | AA46: 25 | AB46: =MATCH(TRUE,INDEX(C46:AA46>0,0),0) -> 13
A47: CASE 6 | B47: =IF(B34>=0,B28,0) -> 0 | C47: 0 | D47: 0 | E47: 0 | F47: 0 | G47: 0 | H47: 0 | I47: 0 | J47: 0 | K47: 0 | L47: 0 | M47: 0 | N47: 12 | O47: 13 | P47: 14 | Q47: 15 | R47: 16 | S47: 17 | T47: 18 | U47: 19 | V47: 20 | W47: 21 | X47: 22 | Y47: 23 | Z47: 24 | AA47: 25 | AB47: =MATCH(TRUE,INDEX(C47:AA47>0,0),0) -> 12
A48: CASE 7 | B48: =IF(B35>=0,B28,0) -> 0 | C48: 0 | D48: 0 | E48: 0 | F48: 0 | G48: 0 | H48: 0 | I48: 0 | J48: 0 | K48: 0 | L48: 0 | M48: 0 | N48: 12 | O48: 13 | P48: 14 | Q48: 15 | R48: 16 | S48: 17 | T48: 18 | U48: 19 | V48: 20 | W48: 21 | X48: 22 | Y48: 23 | Z48: 24 | AA48: 25 | AB48: =MATCH(TRUE,INDEX(C48:AA48>0,0),0) -> 12
A49: CASE 8 | B49: =IF(B36>=0,B28,0) -> 0 | C49: 0 | D49: 0 | E49: 0 | F49: 0 | G49: 0 | H49: 0 | I49: 0 | J49: 0 | K49: 0 | L49: 0 | M49: 11 | N49: 12 | O49: 13 | P49: 14 | Q49: 15 | R49: 16 | S49: 17 | T49: 18 | U49: 19 | V49: 20 | W49: 21 | X49: 22 | Y49: 23 | Z49: 24 | AA49: 25 | AB49: =MATCH(TRUE,INDEX(C49:AA49>0,0),0) -> 11
A51: Case 9 | B51: =IF(B38>=0,B28,0) -> 0 | C51: 0 | D51: 0 | E51: 0 | F51: 4 | G51: 5 | H51: 6 | I51: 7 | J51: 8 | K51: 9 | L51: 10 | M51: 11 | N51: 12 | O51: 13 | P51: 14 | Q51: 15 | R51: 16 | S51: 17 | T51: 18 | U51: 19 | V51: 20 | W51: 21 | X51: 22 | Y51: 23 | Z51: 24 | AA51: 25 | AB51: =MATCH(TRUE,INDEX(C51:AA51>0,0),0) -> 4
A52: Case 10 | B52: =IF(B39>=0,B28,0) -> 0 | C52: 0 | D52: 0 | E52: 0 | F52: 4 | G52: 5 | H52: 6 | I52: 7 | J52: 8 | K52: 9 | L52: 10 | M52: 11 | N52: 12 | O52: 13 | P52: 14 | Q52: 15 | R52: 16 | S52: 17 | T52: 18 | U52: 19 | V52: 20 | W52: 21 | X52: 22 | Y52: 23 | Z52: 24 | AA52: 25 | AB52: =MATCH(TRUE,INDEX(C52:AA52>0,0),0) -> 4

Sheet PVSF Results Summary (hidden)
C1: CBA Results
C2: NPV | D2: IRR | E2: Payback | F2: Option | G2: Case Scenario
C3: =PVSF_CBA!AB3 -> 1503947.222 | D3: =PVSF_CBA!AB16 -> 0.0912765251 | E3: =PVSF_CBA!AB29 -> 10 | F3: PVSF | G3: CASE 1 | I3: =IF(Table124[[#This Row],[Payback]]=">25", 26, Table124[[#This Row],[Payback]]) -> 10
C4: =PVSF_CBA!AB4 -> 1600063.218 | D4: =PVSF_CBA!AB17 -> 0.09607746489 | E4: =PVSF_CBA!AB30 -> 10 | F4: PVSF | G4: CASE 2 | I4: =IF(Table124[[#This Row],[Payback]]=">25", 26, Table124[[#This Row],[Payback]]) -> 10
C5: =PVSF_CBA!AB5 -> 1578775.822 | D5: =PVSF_CBA!AB18 -> 0.1007882833 | E5: =PVSF_CBA!AB31 -> 10 | F5: PVSF | G5: CASE 3 | I5: =IF(Table124[[#This Row],[Payback]]=">25", 26, Table124[[#This Row],[Payback]]) -> 10
C6: =PVSF_CBA!AB6 -> 1674891.818 | D6: =PVSF_CBA!AB19 -> 0.105843693 | E6: =PVSF_CBA!AB32 -> 9 | F6: PVSF | G6: CASE 4 | I6: =IF(Table124[[#This Row],[Payback]]=">25", 26, Table124[[#This Row],[Payback]]) -> 9
C7: =PVSF_CBA!AB7 -> 1264785.011 | D7: =PVSF_CBA!AB20 -> 0.06406680341 | E7: =PVSF_CBA!AB33 -> 13 | F7: PVSF | G7: CASE 5 | I7: =IF(Table124[[#This Row],[Payback]]=">25", 26, Table124[[#This Row],[Payback]]) -> 13
C8: =PVSF_CBA!AB8 -> 1360901.008 | D8: =PVSF_CBA!AB21 -> 0.0680776445 | E8: =PVSF_CBA!AB34 -> 12 | F8: PVSF | G8: CASE 6 | I8: =IF(Table124[[#This Row],[Payback]]=">25", 26, Table124[[#This Row],[Payback]]) -> 12
C9: =PVSF_CBA!AB9 -> 1371200.771 | D9: =PVSF_CBA!AB22 -> 0.07311219433 | E9: =PVSF_CBA!AB35 -> 12 | F9: PVSF | G9: CASE 7 | I9: =IF(Table124[[#This Row],[Payback]]=">25", 26, Table124[[#This Row],[Payback]]) -> 12
C10: =PVSF_CBA!AB10 -> 1467316.768 | D10: =PVSF_CBA!AB23 -> 0.0773304253 | E10: =PVSF_CBA!AB36 -> 11 | F10: PVSF | G10: CASE 8 | I10: =IF(Table124[[#This Row],[Payback]]=">25", 26, Table124[[#This Row],[Payback]]) -> 11
C11: =PVSF_CBA!AB12 -> 1732009.357 | D11: =PVSF_CBA!AB25 -> 0.2747637912 | E11: =PVSF_CBA!AB38 -> 4 | F11: PVSF | G11: CASE 9 | I11: =IF(Table124[[#This Row],[Payback]]=">25", 26, Table124[[#This Row],[Payback]]) -> 4
C12: =PVSF_CBA!AB13 -> 1823139.243 | D12: =PVSF_CBA!AB26 -> 0.2879630942 | E12: =PVSF_CBA!AB39 -> 4 | F12: PVSF | G12: CASE 10 | I12: =IF(Table124[[#This Row],[Payback]]=">25", 26, Table124[[#This Row],[Payback]]) -> 4
C13: ='PVSF(Existing)_CBA'!AB3 -> 1808666.582 | D13: ='PVSF(Existing)_CBA'!AB16 -> 0.1398338116 | E13: ='PVSF(Existing)_CBA'!AB29 -> 7 | F13: PVSF (Existing) | G13: CASE 1 | I13: =IF(Table124[[#This Row],[Payback]]=">25", 26, Table124[[#This Row],[Payback]]) -> 7
C14: ='PVSF(Existing)_CBA'!AB4 -> 1904782.578 | D14: ='PVSF(Existing)_CBA'!AB17 -> 0.1460293948 | E14: ='PVSF(Existing)_CBA'!AB30 -> 7 | F14: PVSF (Existing) | G14: CASE 2 | I14: =IF(Table124[[#This Row],[Payback]]=">25", 26, Table124[[#This Row],[Payback]]) -> 7
C15: ='PVSF(Existing)_CBA'!AB5 -> 1883495.182 | D15: ='PVSF(Existing)_CBA'!AB18 -> 0.1574872291 | E15: ='PVSF(Existing)_CBA'!AB31 -> 7 | F15: PVSF (Existing) | G15: CASE 3 | I15: =IF(Table124[[#This Row],[Payback]]=">25", 26, Table124[[#This Row],[Payback]]) -> 7
C16: ='PVSF(Existing)_CBA'!AB6 -> 1979611.178 | D16: ='PVSF(Existing)_CBA'!AB19 -> 0.1642424817 | E16: ='PVSF(Existing)_CBA'!AB32 -> 6 | F16: PVSF (Existing) | G16: CASE 4 | I16: =IF(Table124[[#This Row],[Payback]]=">25", 26, Table124[[#This Row],[Payback]]) -> 6
C17: ='PVSF(Existing)_CBA'!AB7 -> 1569504.371 | D17: ='PVSF(Existing)_CBA'!AB20 -> 0.09376289994 | E17: ='PVSF(Existing)_CBA'!AB33 -> 10 | F17: PVSF (Existing) | G17: CASE 5 | I17: =IF(Table124[[#This Row],[Payback]]=">25", 26, Table124[[#This Row],[Payback]]) -> 10
C18: ='PVSF(Existing)_CBA'!AB8 -> 1665620.368 | D18: ='PVSF(Existing)_CBA'!AB21 -> 0.09848895969 | E18: ='PVSF(Existing)_CBA'!AB34 -> 10 | F18: PVSF (Existing) | G18: CASE 6 | I18: =IF(Table124[[#This Row],[Payback]]=">25", 26, Table124[[#This Row],[Payback]]) -> 10
C19: ='PVSF(Existing)_CBA'!AB9 -> 1675920.131 | D19: ='PVSF(Existing)_CBA'!AB22 -> 0.1077011781 | E19: ='PVSF(Existing)_CBA'!AB35 -> 9 | F19: PVSF (Existing) | G19: CASE 7 | I19: =IF(Table124[[#This Row],[Payback]]=">25", 26, Table124[[#This Row],[Payback]]) -> 9
C20: ='PVSF(Existing)_CBA'!AB10 -> 1772036.128 | D20: ='PVSF(Existing)_CBA'!AB23 -> 0.1127957295 | E20: ='PVSF(Existing)_CBA'!AB36 -> 9 | F20: PVSF (Existing) | G20: CASE 8 | I20: =IF(Table124[[#This Row],[Payback]]=">25", 26, Table124[[#This Row],[Payback]]) -> 9
C21: ='PVSF(Existing)_CBA'!AB12 -> 2036728.717 | D21: ='PVSF(Existing)_CBA'!AB25 -> 11.5734368 | E21: ='PVSF(Existing)_CBA'!AB38 -> 1 | F21: PVSF (Existing) | G21: CASE 9 | I21: =IF(Table124[[#This Row],[Payback]]=">25", 26, Table124[[#This Row],[Payback]]) -> 1
C22: ='PVSF(Existing)_CBA'!AB13 -> 2127858.603 | D22: ='PVSF(Existing)_CBA'!AB26 -> 12.13537912 | E22: ='PVSF(Existing)_CBA'!AB39 -> 1 | F22: PVSF (Existing) | G22: CASE 10 | I22: =IF(Table124[[#This Row],[Payback]]=">25", 26, Table124[[#This Row],[Payback]]) -> 1
C23: ='PV(SF)_CBA'!AB16 -> -74643.35622 | D23: ='PV(SF)_CBA'!AB28 -> -0.005063106155 | E23: ='PV(SF)_CBA'!AB3 -> >25 | F23: PV Only | G23: CASE 1 | I23: =IF(Table124[[#This Row],[Payback]]=">25", 26, Table124[[#This Row],[Payback]]) -> 26
C24: ='PV(SF)_CBA'!AB17 -> 21472.64018 | D24: ='PV(SF)_CBA'!AB29 -> 0.005863875386 | E24: ='PV(SF)_CBA'!AB4 -> 24 | F24: PV Only | G24: CASE 2 | I24: =IF(Table124[[#This Row],[Payback]]=">25", 26, Table124[[#This Row],[Payback]]) -> 24
C25: ='PV(SF)_CBA'!AB18 -> 185.2437842 | D25: ='PV(SF)_CBA'!AB30 -> 0.003522923816 | E25: ='PV(SF)_CBA'!AB5 -> 25 | F25: PV Only | G25: CASE 3 | I25: =IF(Table124[[#This Row],[Payback]]=">25", 26, Table124[[#This Row],[Payback]]) -> 25
C26: ='PV(SF)_CBA'!AB19 -> 96301.24018 | D26: ='PV(SF)_CBA'!AB31 -> 0.01493731424 | E26: ='PV(SF)_CBA'!AB6 -> 22 | F26: PV Only | G26: CASE 4 | I26: =IF(Table124[[#This Row],[Payback]]=">25", 26, Table124[[#This Row],[Payback]]) -> 22
C27: ='PV(SF)_CBA'!AB20 -> -313805.5667 | D27: ='PV(SF)_CBA'!AB32 -> -0.02354905792 | E27: ='PV(SF)_CBA'!AB7 -> >25 | F27: PV Only | G27: CASE 5 | I27: =IF(Table124[[#This Row],[Payback]]=">25", 26, Table124[[#This Row],[Payback]]) -> 26
C28: ='PV(SF)_CBA'!AB21 -> -217689.5703 | D28: ='PV(SF)_CBA'!AB33 -> -0.01458277199 | E28: ='PV(SF)_CBA'!AB8 -> >25 | F28: PV Only | G28: CASE 6 | I28: =IF(Table124[[#This Row],[Payback]]=">25", 26, Table124[[#This Row],[Payback]]) -> 26
C29: ='PV(SF)_CBA'!AB22 -> -207389.8067 | D29: ='PV(SF)_CBA'!AB34 -> -0.01577786525 | E29: ='PV(SF)_CBA'!AB9 -> >25 | F29: PV Only | G29: CASE 7 | I29: =IF(Table124[[#This Row],[Payback]]=">25", 26, Table124[[#This Row],[Payback]]) -> 26
C30: ='PV(SF)_CBA'!AB23 -> -111273.8103 | D30: ='PV(SF)_CBA'!AB35 -> -0.006467138389 | E30: ='PV(SF)_CBA'!AB10 -> >25 | F30: PV Only | G30: CASE 8 | I30: =IF(Table124[[#This Row],[Payback]]=">25", 26, Table124[[#This Row],[Payback]]) -> 26
C31: ='PV(SF)_CBA'!AB24 -> 153418.779 | D31: ='PV(SF)_CBA'!AB36 -> NA | E31: ='PV(SF)_CBA'!AB11 -> NA | F31: PV Only | G31: CASE 9 | I31: =IF(Table124[[#This Row],[Payback]]=">25", 26, Table124[[#This Row],[Payback]]) -> NA
C32: ='PV(SF)_CBA'!AB25 -> 244548.6651 | D32: ='PV(SF)_CBA'!AB37 -> NA | E32: ='PV(SF)_CBA'!AB12 -> NA | F32: PV Only | G32: CASE 10 | I32: =IF(Table124[[#This Row],[Payback]]=">25", 26, Table124[[#This Row],[Payback]]) -> NA
C33: =SF_CBA!AH23 -> 1936541.615 | D33: =SF_CBA!AI23 -> 0.2531629607 | E33: =SF_CBA!AG23 -> 4 | F33: SF Only | G33: Snow Fence
C35: Description of Case Scenarios
C36: Ownership | D36: Electricity | E36: Social Benefits | F36: Incentives | G36: Case Scenario
C37: Direct | D37: Sell | E37: No | F37: No | G37: CASE 1
C38: Direct | D38: Sell | E38: Yes | F38: No | G38: CASE 2
C39: Direct | D39: Sell | E39: No | F39: Yes | G39: CASE 3
C40: Direct | D40: Sell | E40: Yes | F40: Yes | G40: CASE 4
C41: Direct | D41: Self- Consumption | E41: No | F41: No | G41: CASE 5
C42: Direct | D42: Self-Consumption | E42: Yes | F42: No | G42: CASE 6
C43: Direct | D43: Self-Consumption | E43: No | F43: Yes | G43: CASE 7
C44: Direct | D44: Self-Consumption | E44: Yes | F44: Yes | G44: CASE 8
C45: Indirect | D45: Solar PPA | E45: No | F45: NA | G45: CASE 9
C46: Indirect | D46: Solar PPA | E46: Yes | F46: NA | G46: CASE 10

Sheet PV(NB) Revenue_Base (hidden)
A1: Base Case: Utility Sell without social cost saving
A2: # of panels per mile | B2: ='PV(NB)(M2) Info'!F5 -> 2640
A3: Rated Maximum Power at STC (Watt) | B3: ='PV(NB)(M2) Info'!F4 -> 375
A4: Estimated AC Energy output (KWH/year) | B4: ='PV(NB)(M2) Info'!H18/'PVNB(M1) Info'!B3 -> 990979
A5: Degradation Rate | B5: ='PV(NB)(M2) Info'!F8 -> 0.008
A6: GHG Emission Ratio (Coal/Solar) | B6: ='PV(NB)(M2) Info'!F25 -> 8.37
A8: Year | B8: 0 | C8: 1 | D8: 2 | E8: 3 | F8: 4 | G8: 5 | H8: 6 | I8: 7 | J8: 8 | K8: 9 | L8: 10 | M8: 11 | N8: 12 | O8: 13 | P8: 14 | Q8: 15 | R8: 16 | S8: 17 | T8: 18 | U8: 19 | V8: 20 | W8: 21 | X8: 22 | Y8: 23 | Z8: 24 | AA8: 25 | AB8: Total
A9: KWH Output Per Mile | B9: 0 | C9: =B4 -> 990979 | D9: =C9*(1-$B$5) -> 983051.168 | E9: 975186.7587 | F9: 967385.2646 | G9: 959646.1825 | H9: 951969.013 | I9: 944353.2609 | J9: 936798.4348 | K9: 929304.0473 | L9: 921869.615 | M9: 914494.658 | N9: 907178.7008 | O9: 899921.2712 | P9: 892721.901 | Q9: 885580.1258 | R9: 878495.4848 | S9: 871467.5209 | T9: 864495.7807 | U9: 857579.8145 | V9: 850719.176 | W9: 843913.4226 | X9: 837162.1152 | Y9: 830464.8183 | Z9: 823821.0997 | AA9: 817230.5309 | AB9: =SUM(B9:AA9) -> 22535789.17
A10: Estimated Selling Rate in Average ($/KWH) | B10: ='PV(NB)(M2) Info'!D20 -> 0.11 | C10: =Table7[[#This Row],[0]] -> 0.11 | D10: =Table7[[#This Row],[1]] -> 0.11 | E10: =Table7[[#This Row],[2]] -> 0.11 | F10: =Table7[[#This Row],[3]] -> 0.11 | G10: =Table7[[#This Row],[4]] -> 0.11 | H10: =Table7[[#This Row],[5]] -> 0.11 | I10: =Table7[[#This Row],[6]] -> 0.11 | J10: =Table7[[#This Row],[7]] -> 0.11 | K10: =Table7[[#This Row],[8]] -> 0.11 | L10: =Table7[[#This Row],[9]] -> 0.11 | M10: =Table7[[#This Row],[10]] -> 0.11 | N10: =Table7[[#This Row],[11]] -> 0.11 | O10: =Table7[[#This Row],[12]] -> 0.11 | P10: =Table7[[#This Row],[13]] -> 0.11 | Q10: =Table7[[#This Row],[14]] -> 0.11 | R10: =Table7[[#This Row],[15]] -> 0.11 | S10: =Table7[[#This Row],[16]] -> 0.11 | T10: =Table7[[#This Row],[17]] -> 0.11 | U10: =Table7[[#This Row],[18]] -> 0.11 | V10: =Table7[[#This Row],[19]] -> 0.11 | W10: =Table7[[#This Row],[20]] -> 0.11 | X10: =Table7[[#This Row],[21]] -> 0.11 | Y10: =Table7[[#This Row],[22]] -> 0.11 | Z10: =Table7[[#This Row],[23]] -> 0.11 | AA10: =Table7[[#This Row],[24]] -> 0.11
A11: Energy Revenue ($/mi) | B11: =B9*B10 -> 0 | C11: =C9*C10 -> 109007.69 | D11: 108135.6285 | E11: 107270.5435 | F11: 106412.3791 | G11: 105561.0801 | H11: 104716.5914 | I11: 103878.8587 | J11: 103047.8278 | K11: 102223.4452 | L11: 101405.6576 | M11: 100594.4124 | N11: 99789.65709 | O11: 98991.33983 | P11: 98199.40911 | Q11: 97413.81384 | R11: 96634.50333 | S11: 95861.4273 | T11: 95094.53588 | U11: 94333.77959 | V11: 93579.10936 | W11: 92830.47648 | X11: 92087.83267 | Y11: 91351.13001 | Z11: 90620.32097 | AA11: 89895.3584 | AB11: =SUM(B11:AA11) -> 2478936.808
A12: Equivalent to (Short Ton) of Bituminous Coal Burned | B12: 0 | C12: =C9/'PV(NB)(M2) Info'!$F$17 -> 135.6285739 | D12: =D9/'PV(NB)(M2) Info'!$F$17 -> 134.5435453 | E12: =E9/'PV(NB)(M2) Info'!$F$17 -> 133.467197 | F12: =F9/'PV(NB)(M2) Info'!$F$17 -> 132.3994594 | G12: =G9/'PV(NB)(M2) Info'!$F$17 -> 131.3402637 | H12: =H9/'PV(NB)(M2) Info'!$F$17 -> 130.2895416 | I12: =I9/'PV(NB)(M2) Info'!$F$17 -> 129.2472253 | J12: =J9/'PV(NB)(M2) Info'!$F$17 -> 128.2132475 | K12: =K9/'PV(NB)(M2) Info'!$F$17 -> 127.1875415 | L12: =L9/'PV(NB)(M2) Info'!$F$17 -> 126.1700412 | M12: =M9/'PV(NB)(M2) Info'!$F$17 -> 125.1606808 | N12: =N9/'PV(NB)(M2) Info'!$F$17 -> 124.1593954 | O12: =O9/'PV(NB)(M2) Info'!$F$17 -> 123.1661202 | P12: =P9/'PV(NB)(M2) Info'!$F$17 -> 122.1807913 | Q12: =Q9/'PV(NB)(M2) Info'!$F$17 -> 121.2033449 | R12: =R9/'PV(NB)(M2) Info'!$F$17 -> 120.2337182 | S12: =S9/'PV(NB)(M2) Info'!$F$17 -> 119.2718484 | T12: =T9/'PV(NB)(M2) Info'!$F$17 -> 118.3176736 | U12: =U9/'PV(NB)(M2) Info'!$F$17 -> 117.3711323 | V12: =V9/'PV(NB)(M2) Info'!$F$17 -> 116.4321632 | W12: =W9/'PV(NB)(M2) Info'!$F$17 -> 115.5007059 | X12: =X9/'PV(NB)(M2) Info'!$F$17 -> 114.5767002 | Y12: =Y9/'PV(NB)(M2) Info'!$F$17 -> 113.6600866 | Z12: =Z9/'PV(NB)(M2) Info'!$F$17 -> 112.7508059 | AA12: =AA9/'PV(NB)(M2) Info'!$F$17 -> 111.8487995
A13: CO2 Emission Social Cost Saving ($/mi) | B13: 0 | C13: =C12*'PV(NB)(M2) Info'!$F$18*'PV(NB)(M2) Info'!$F$22*(1-1/$B$6)/1000 -> 11661.79688 | D13: =D12*'PV(NB)(M2) Info'!$F$18*'PV(NB)(M2) Info'!$F$22*(1-1/$B$6)/1000 -> 11568.50251 | E13: =E12*'PV(NB)(M2) Info'!$F$18*'PV(NB)(M2) Info'!$F$22*(1-1/$B$6)/1000 -> 11475.95449 | F13: =F12*'PV(NB)(M2) Info'!$F$18*'PV(NB)(M2) Info'!$F$22*(1-1/$B$6)/1000 -> 11384.14685 | G13: =G12*'PV(NB)(M2) Info'!$F$18*'PV(NB)(M2) Info'!$F$22*(1-1/$B$6)/1000 -> 11293.07368 | H13: =H12*'PV(NB)(M2) Info'!$F$18*'PV(NB)(M2) Info'!$F$22*(1-1/$B$6)/1000 -> 11202.72909 | I13: =I12*'PV(NB)(M2) Info'!$F$18*'PV(NB)(M2) Info'!$F$22*(1-1/$B$6)/1000 -> 11113.10725 | J13: =J12*'PV(NB)(M2) Info'!$F$18*'PV(NB)(M2) Info'!$F$22*(1-1/$B$6)/1000 -> 11024.2024 | K13: =K12*'PV(NB)(M2) Info'!$F$18*'PV(NB)(M2) Info'!$F$22*(1-1/$B$6)/1000 -> 10936.00878 | L13: =L12*'PV(NB)(M2) Info'!$F$18*'PV(NB)(M2) Info'!$F$22*(1-1/$B$6)/1000 -> 10848.52071 | M13: =M12*'PV(NB)(M2) Info'!$F$18*'PV(NB)(M2) Info'!$F$22*(1-1/$B$6)/1000 -> 10761.73254 | N13: =N12*'PV(NB)(M2) Info'!$F$18*'PV(NB)(M2) Info'!$F$22*(1-1/$B$6)/1000 -> 10675.63868 | O13: =O12*'PV(NB)(M2) Info'!$F$18*'PV(NB)(M2) Info'!$F$22*(1-1/$B$6)/1000 -> 10590.23357 | P13: =P12*'PV(NB)(M2) Info'!$F$18*'PV(NB)(M2) Info'!$F$22*(1-1/$B$6)/1000 -> 10505.5117 | Q13: =Q12*'PV(NB)(M2) Info'!$F$18*'PV(NB)(M2) Info'!$F$22*(1-1/$B$6)/1000 -> 10421.46761 | R13: =R12*'PV(NB)(M2) Info'!$F$18*'PV(NB)(M2) Info'!$F$22*(1-1/$B$6)/1000 -> 10338.09587 | S13: =S12*'PV(NB)(M2) Info'!$F$18*'PV(NB)(M2) Info'!$F$22*(1-1/$B$6)/1000 -> 10255.3911 | T13: =T12*'PV(NB)(M2) Info'!$F$18*'PV(NB)(M2) Info'!$F$22*(1-1/$B$6)/1000 -> 10173.34797 | U13: =U12*'PV(NB)(M2) Info'!$F$18*'PV(NB)(M2) Info'!$F$22*(1-1/$B$6)/1000 -> 10091.96119 | V13: =V12*'PV(NB)(M2) Info'!$F$18*'PV(NB)(M2) Info'!$F$22*(1-1/$B$6)/1000 -> 10011.2255 | W13: =W12*'PV(NB)(M2) Info'!$F$18*'PV(NB)(M2) Info'!$F$22*(1-1/$B$6)/1000 -> 9931.135695 | X13: =X12*'PV(NB)(M2) Info'!$F$18*'PV(NB)(M2) Info'!$F$22*(1-1/$B$6)/1000 -> 9851.686609 | Y13: =Y12*'PV(NB)(M2) Info'!$F$18*'PV(NB)(M2) Info'!$F$22*(1-1/$B$6)/1000 -> 9772.873116 | Z13: =Z12*'PV(NB)(M2) Info'!$F$18*'PV(NB)(M2) Info'!$F$22*(1-1/$B$6)/1000 -> 9694.690131 | AA13: =AA12*'PV(NB)(M2) Info'!$F$18*'PV(NB)(M2) Info'!$F$22*(1-1/$B$6)/1000 -> 9617.13261 | AB13: =SUM(B13:AA13) -> 265200.1665
A14: CH4 Emission Social Cost Saving ($/mi) | B14: 0 | C14: =C12*'PV(NB)(M2) Info'!$F$19*'PV(NB)(M2) Info'!$F$23*(1-1/$B$6)/1000000 -> 39.26675693 | D14: =D12*'PV(NB)(M2) Info'!$F$19*'PV(NB)(M2) Info'!$F$23*(1-1/$B$6)/1000000 -> 38.95262288 | E14: =E12*'PV(NB)(M2) Info'!$F$19*'PV(NB)(M2) Info'!$F$23*(1-1/$B$6)/1000000 -> 38.6410019 | F14: =F12*'PV(NB)(M2) Info'!$F$19*'PV(NB)(M2) Info'!$F$23*(1-1/$B$6)/1000000 -> 38.33187388 | G14: =G12*'PV(NB)(M2) Info'!$F$19*'PV(NB)(M2) Info'!$F$23*(1-1/$B$6)/1000000 -> 38.02521889 | H14: =H12*'PV(NB)(M2) Info'!$F$19*'PV(NB)(M2) Info'!$F$23*(1-1/$B$6)/1000000 -> 37.72101714 | I14: =I12*'PV(NB)(M2) Info'!$F$19*'PV(NB)(M2) Info'!$F$23*(1-1/$B$6)/1000000 -> 37.419249 | J14: =J12*'PV(NB)(M2) Info'!$F$19*'PV(NB)(M2) Info'!$F$23*(1-1/$B$6)/1000000 -> 37.11989501 | K14: =K12*'PV(NB)(M2) Info'!$F$19*'PV(NB)(M2) Info'!$F$23*(1-1/$B$6)/1000000 -> 36.82293585 | L14: =L12*'PV(NB)(M2) Info'!$F$19*'PV(NB)(M2) Info'!$F$23*(1-1/$B$6)/1000000 -> 36.52835236 | M14: =M12*'PV(NB)(M2) Info'!$F$19*'PV(NB)(M2) Info'!$F$23*(1-1/$B$6)/1000000 -> 36.23612554 | N14: =N12*'PV(NB)(M2) Info'!$F$19*'PV(NB)(M2) Info'!$F$23*(1-1/$B$6)/1000000 -> 35.94623654 | O14: =O12*'PV(NB)(M2) Info'!$F$19*'PV(NB)(M2) Info'!$F$23*(1-1/$B$6)/1000000 -> 35.65866665 | P14: =P12*'PV(NB)(M2) Info'!$F$19*'PV(NB)(M2) Info'!$F$23*(1-1/$B$6)/1000000 -> 35.37339731 | Q14: =Q12*'PV(NB)(M2) Info'!$F$19*'PV(NB)(M2) Info'!$F$23*(1-1/$B$6)/1000000 -> 35.09041014 | R14: =R12*'PV(NB)(M2) Info'!$F$19*'PV(NB)(M2) Info'!$F$23*(1-1/$B$6)/1000000 -> 34.80968685 | S14: =S12*'PV(NB)(M2) Info'!$F$19*'PV(NB)(M2) Info'!$F$23*(1-1/$B$6)/1000000 -> 34.53120936 | T14: =T12*'PV(NB)(M2) Info'!$F$19*'PV(NB)(M2) Info'!$F$23*(1-1/$B$6)/1000000 -> 34.25495968 | U14: =U12*'PV(NB)(M2) Info'!$F$19*'PV(NB)(M2) Info'!$F$23*(1-1/$B$6)/1000000 -> 33.98092001 | V14: =V12*'PV(NB)(M2) Info'!$F$19*'PV(NB)(M2) Info'!$F$23*(1-1/$B$6)/1000000 -> 33.70907265 | W14: =W12*'PV(NB)(M2) Info'!$F$19*'PV(NB)(M2) Info'!$F$23*(1-1/$B$6)/1000000 -> 33.43940007 | X14: =X12*'PV(NB)(M2) Info'!$F$19*'PV(NB)(M2) Info'!$F$23*(1-1/$B$6)/1000000 -> 33.17188487 | Y14: =Y12*'PV(NB)(M2) Info'!$F$19*'PV(NB)(M2) Info'!$F$23*(1-1/$B$6)/1000000 -> 32.90650979 | Z14: =Z12*'PV(NB)(M2) Info'!$F$19*'PV(NB)(M2) Info'!$F$23*(1-1/$B$6)/1000000 -> 32.64325771 | AA14: =AA12*'PV(NB)(M2) Info'!$F$19*'PV(NB)(M2) Info'!$F$23*(1-1/$B$6)/1000000 -> 32.38211165 | AB14: 892.9627726
A15: N2O Emission Social Cost Saving ($/mi) | B15: 0 | C15: =C12*'PV(NB)(M2) Info'!$F$20*'PV(NB)(M2) Info'!$F$24*(1-1/$B$6)/1000000 -> 71.65466594 | D15: =D12*'PV(NB)(M2) Info'!$F$20*'PV(NB)(M2) Info'!$F$24*(1-1/$B$6)/1000000 -> 71.08142861 | E15: =E12*'PV(NB)(M2) Info'!$F$20*'PV(NB)(M2) Info'!$F$24*(1-1/$B$6)/1000000 -> 70.51277718 | F15: =F12*'PV(NB)(M2) Info'!$F$20*'PV(NB)(M2) Info'!$F$24*(1-1/$B$6)/1000000 -> 69.94867496 | G15: =G12*'PV(NB)(M2) Info'!$F$20*'PV(NB)(M2) Info'!$F$24*(1-1/$B$6)/1000000 -> 69.38908556 | H15: =H12*'PV(NB)(M2) Info'!$F$20*'PV(NB)(M2) Info'!$F$24*(1-1/$B$6)/1000000 -> 68.83397288 | I15: =I12*'PV(NB)(M2) Info'!$F$20*'PV(NB)(M2) Info'!$F$24*(1-1/$B$6)/1000000 -> 68.2833011 | J15: =J12*'PV(NB)(M2) Info'!$F$20*'PV(NB)(M2) Info'!$F$24*(1-1/$B$6)/1000000 -> 67.73703469 | K15: =K12*'PV(NB)(M2) Info'!$F$20*'PV(NB)(M2) Info'!$F$24*(1-1/$B$6)/1000000 -> 67.19513841 | L15: =L12*'PV(NB)(M2) Info'!$F$20*'PV(NB)(M2) Info'!$F$24*(1-1/$B$6)/1000000 -> 66.6575773 | M15: =M12*'PV(NB)(M2) Info'!$F$20*'PV(NB)(M2) Info'!$F$24*(1-1/$B$6)/1000000 -> 66.12431669 | N15: =N12*'PV(NB)(M2) Info'!$F$20*'PV(NB)(M2) Info'!$F$24*(1-1/$B$6)/1000000 -> 65.59532215 | O15: =O12*'PV(NB)(M2) Info'!$F$20*'PV(NB)(M2) Info'!$F$24*(1-1/$B$6)/1000000 -> 65.07055957 | P15: =P12*'PV(NB)(M2) Info'!$F$20*'PV(NB)(M2) Info'!$F$24*(1-1/$B$6)/1000000 -> 64.5499951 | Q15: =Q12*'PV(NB)(M2) Info'!$F$20*'PV(NB)(M2) Info'!$F$24*(1-1/$B$6)/1000000 -> 64.03359514 | R15: =R12*'PV(NB)(M2) Info'!$F$20*'PV(NB)(M2) Info'!$F$24*(1-1/$B$6)/1000000 -> 63.52132638 | S15: =S12*'PV(NB)(M2) Info'!$F$20*'PV(NB)(M2) Info'!$F$24*(1-1/$B$6)/1000000 -> 63.01315577 | T15: =T12*'PV(NB)(M2) Info'!$F$20*'PV(NB)(M2) Info'!$F$24*(1-1/$B$6)/1000000 -> 62.50905052 | U15: =U12*'PV(NB)(M2) Info'!$F$20*'PV(NB)(M2) Info'!$F$24*(1-1/$B$6)/1000000 -> 62.00897811 | V15: =V12*'PV(NB)(M2) Info'!$F$20*'PV(NB)(M2) Info'!$F$24*(1-1/$B$6)/1000000 -> 61.51290629 | W15: =W12*'PV(NB)(M2) Info'!$F$20*'PV(NB)(M2) Info'!$F$24*(1-1/$B$6)/1000000 -> 61.02080304 | X15: =X12*'PV(NB)(M2) Info'!$F$20*'PV(NB)(M2) Info'!$F$24*(1-1/$B$6)/1000000 -> 60.53263662 | Y15: =Y12*'PV(NB)(M2) Info'!$F$20*'PV(NB)(M2) Info'!$F$24*(1-1/$B$6)/1000000 -> 60.04837552 | Z15: =Z12*'PV(NB)(M2) Info'!$F$20*'PV(NB)(M2) Info'!$F$24*(1-1/$B$6)/1000000 -> 59.56798852 | AA15: =AA12*'PV(NB)(M2) Info'!$F$20*'PV(NB)(M2) Info'!$F$24*(1-1/$B$6)/1000000 -> 59.09144461 | AB15: 1629.494111
A16: RECs ($/mi) | B16: ='PV(NB)(M2) Info'!$B$30*'PV(NB) Revenue_Base'!B9/1000 -> 0 | C16: ='PV(NB)(M2) Info'!$B$30*'PV(NB) Revenue_Base'!C9/1000 -> 644.13635 | D16: ='PV(NB)(M2) Info'!$B$30*'PV(NB) Revenue_Base'!D9/1000 -> 638.9832592 | E16: ='PV(NB)(M2) Info'!$B$30*'PV(NB) Revenue_Base'!E9/1000 -> 633.8713931 | F16: ='PV(NB)(M2) Info'!$B$30*'PV(NB) Revenue_Base'!F9/1000 -> 628.800422 | G16: ='PV(NB)(M2) Info'!$B$30*'PV(NB) Revenue_Base'!G9/1000 -> 623.7700186 | H16: ='PV(NB)(M2) Info'!$B$30*'PV(NB) Revenue_Base'!H9/1000 -> 618.7798585 | I16: ='PV(NB)(M2) Info'!$B$30*'PV(NB) Revenue_Base'!I9/1000 -> 613.8296196 | J16: ='PV(NB)(M2) Info'!$B$30*'PV(NB) Revenue_Base'!J9/1000 -> 608.9189826 | K16: ='PV(NB)(M2) Info'!$B$30*'PV(NB) Revenue_Base'!K9/1000 -> 604.0476308 | L16: ='PV(NB)(M2) Info'!$B$30*'PV(NB) Revenue_Base'!L9/1000 -> 599.2152497 | M16: ='PV(NB)(M2) Info'!$B$30*'PV(NB) Revenue_Base'!M9/1000 -> 594.4215277 | N16: ='PV(NB)(M2) Info'!$B$30*'PV(NB) Revenue_Base'!N9/1000 -> 589.6661555 | O16: ='PV(NB)(M2) Info'!$B$30*'PV(NB) Revenue_Base'!O9/1000 -> 584.9488263 | P16: ='PV(NB)(M2) Info'!$B$30*'PV(NB) Revenue_Base'!P9/1000 -> 580.2692357 | Q16: ='PV(NB)(M2) Info'!$B$30*'PV(NB) Revenue_Base'!Q9/1000 -> 575.6270818 | R16: ='PV(NB)(M2) Info'!$B$30*'PV(NB) Revenue_Base'!R9/1000 -> 571.0220651 | S16: ='PV(NB)(M2) Info'!$B$30*'PV(NB) Revenue_Base'!S9/1000 -> 566.4538886 | T16: ='PV(NB)(M2) Info'!$B$30*'PV(NB) Revenue_Base'!T9/1000 -> 561.9222575 | U16: ='PV(NB)(M2) Info'!$B$30*'PV(NB) Revenue_Base'!U9/1000 -> 557.4268794 | V16: ='PV(NB)(M2) Info'!$B$30*'PV(NB) Revenue_Base'!V9/1000 -> 552.9674644 | W16: ='PV(NB)(M2) Info'!$B$30*'PV(NB) Revenue_Base'!W9/1000 -> 548.5437247 | X16: ='PV(NB)(M2) Info'!$B$30*'PV(NB) Revenue_Base'!X9/1000 -> 544.1553749 | Y16: ='PV(NB)(M2) Info'!$B$30*'PV(NB) Revenue_Base'!Y9/1000 -> 539.8021319 | Z16: ='PV(NB)(M2) Info'!$B$30*'PV(NB) Revenue_Base'!Z9/1000 -> 535.4837148 | AA16: ='PV(NB)(M2) Info'!$B$30*'PV(NB) Revenue_Base'!AA9/1000 -> 531.1998451 | AB16: =SUM(B16:AA16) -> 14648.26296
A17: Module Salvage Value ($/mi) | B17: 0 | C17: 0 | D17: 0 | E17: 0 | F17: 0 | G17: 0 | H17: 0 | I17: 0 | J17: 0 | K17: 0 | L17: 0 | M17: 0 | N17: 0 | O17: 0 | P17: 0 | Q17: 0 | R17: 0 | S17: 0 | T17: 0 | U17: 0 | V17: 0 | W17: 0 | X17: 0 | Y17: 0 | Z17: 0 | AA17: ='PV(NB)(M2) Info'!B4*B3*B2*'PV(NB)(M2) Info'!B22 -> 96525 | AB17: 96525
A18: Network Revenue ($/mi) | B18: =SUM(B13:B17)+B11 -> 0 | C18: 121424.5447 | D18: 120453.1483 | E18: 119489.5231 | F18: 118533.6069 | G18: 117585.3381 | H18: 116644.6554 | I18: 115711.4981 | J18: 114785.8061 | K18: 113867.5197 | L18: 112956.5795 | M18: 112052.9269 | N18: 111156.5035 | O18: 110267.2515 | P18: 109385.1134 | Q18: 108510.0325 | R18: 107641.9523 | S18: 106780.8167 | T18: 105926.5701 | U18: 105079.1576 | V18: 104238.5243 | W18: 103404.6161 | X18: 102577.3792 | Y18: 101756.7601 | Z18: 100942.7061 | AA18: 196660.1644 | AB18: 2857832.695
A19: Network Revenue without Social Cost Saving ($/mi) | B19: =B11+B17 -> 0 | C19: =C11+C17 -> 109007.69 | D19: =D11+D17 -> 108135.6285 | E19: 107270.5435 | F19: 106412.3791 | G19: 105561.0801 | H19: 104716.5914 | I19: 103878.8587 | J19: 103047.8278 | K19: 102223.4452 | L19: 101405.6576 | M19: 100594.4124 | N19: 99789.65709 | O19: 98991.33983 | P19: 98199.40911 | Q19: 97413.81384 | R19: 96634.50333 | S19: 95861.4273 | T19: 95094.53588 | U19: 94333.77959 | V19: 93579.10936 | W19: 92830.47648 | X19: 92087.83267 | Y19: 91351.13001 | Z19: 90620.32097 | AA19: 186420.3584 | AB19: 2575461.808

Sheet PV(NB) Cost_Base (hidden)
A1: Base Case: Utility Sell without social cost saving
A2: # of panels per mile | B2: ='PV(NB)(M2) Info'!F5 -> 2640
A3: Rated Maximum Power at STC (Watt) | B3: ='PV(NB)(M2) Info'!F4 -> 375
A4: Appraisal period (years) | B4: ='PV(NB)(M2) Info'!B24 -> 25
A5: Direct Capital Costs | B5: ='PV(NB)(M2) Info'!H3*B3*B2 -> 1499850
A6: Indirect Capital Costs | B6: ='PV(NB)(M2) Info'!H4*B3*B2 -> 373291.875
A7: Energy Storage System Costs | B7: =B3*B2*'PV(NB)(M2) Info'!H9 -> 888388.875
A8: O&M Parameters and Costs | B8: ='PV(NB)(M2) Info'!H5*B3*B2 -> 371250
A9: Recycling Costs | B9: ='PV(NB)(M2) Info'!B21*B3*B2 -> 168300
A10: Inverter Replacement | B10: ='PV(NB)(M2) Info'!B17*B3*B2 -> 89100
A12: Year | B12: 0 | C12: 1 | D12: 2 | E12: 3 | F12: 4 | G12: 5 | H12: 6 | I12: 7 | J12: 8 | K12: 9 | L12: 10 | M12: 11 | N12: 12 | O12: 13 | P12: 14 | Q12: 15 | R12: 16 | S12: 17 | T12: 18 | U12: 19 | V12: 20 | W12: 21 | X12: 22 | Y12: 23 | Z12: 24 | AA12: 25 | AB12: Total
A13: Direct Capital Costs ($/mi) | B13: =$B$5 -> 1499850 | C13: 0 | D13: 0 | E13: 0 | F13: 0 | G13: 0 | H13: 0 | I13: 0 | J13: 0 | K13: 0 | L13: 0 | M13: 0 | N13: 0 | O13: 0 | P13: 0 | Q13: 0 | R13: 0 | S13: 0 | T13: 0 | U13: 0 | V13: 0 | W13: 0 | X13: 0 | Y13: 0 | Z13: 0 | AA13: 0 | AB13: =SUM(B13:AA13) -> 1499850
A14: Indirect Capital Costs ($/mi) | B14: =$B$6 -> 373291.875 | C14: 0 | D14: 0 | E14: 0 | F14: 0 | G14: 0 | H14: 0 | I14: 0 | J14: 0 | K14: 0 | L14: 0 | M14: 0 | N14: 0 | O14: 0 | P14: 0 | Q14: 0 | R14: 0 | S14: 0 | T14: 0 | U14: 0 | V14: 0 | W14: 0 | X14: 0 | Y14: 0 | Z14: 0 | AA14: 0 | AB14: 373291.875
A15: Energy Storage System Costs ($/mi) | B15: =B7 -> 888388.875 | AB15: =SUM(B15:AA15) -> 888388.875
A16: O&M Parameters and Costs ($/mi) | B16: 0 | C16: =$B$8/$B$4 -> 14850 | D16: 14850 | E16: 14850 | F16: 14850 | G16: 14850 | H16: 14850 | I16: 14850 | J16: 14850 | K16: 14850 | L16: 14850 | M16: 14850 | N16: 14850 | O16: 14850 | P16: 14850 | Q16: 14850 | R16: 14850 | S16: 14850 | T16: 14850 | U16: 14850 | V16: 14850 | W16: 14850 | X16: 14850 | Y16: 14850 | Z16: 14850 | AA16: 14850 | AB16: 371250
A17: Inverter Replacement ($/mi) | B17: 0 | C17: 0 | D17: 0 | E17: 0 | F17: 0 | G17: 0 | H17: 0 | I17: 0 | J17: 0 | K17: 0 | L17: 0 | M17: 0 | N17: 0 | O17: =B10 -> 89100 | P17: 0 | Q17: 0 | R17: 0 | S17: 0 | T17: 0 | U17: 0 | V17: 0 | W17: 0 | X17: 0 | Y17: 0 | Z17: 0 | AA17: 0 | AB17: =SUM(B17:AA17) -> 89100
A18: Recycling Cost ($/mi) | B18: 0 | C18: 0 | D18: 0 | E18: 0 | F18: 0 | G18: 0 | H18: 0 | I18: 0 | J18: 0 | K18: 0 | L18: 0 | M18: 0 | N18: 0 | O18: 0 | P18: 0 | Q18: 0 | R18: 0 | S18: 0 | T18: 0 | U18: 0 | V18: 0 | W18: 0 | X18: 0 | Y18: 0 | Z18: 0 | AA18: =B9 -> 168300 | AB18: 168300
A19: Total PV system expenses ($/mi) | B19: =SUM(B13:B18)-B15 -> 1873141.875 | C19: =SUM(C13:C18)-C15 -> 14850 | D19: 14850 | E19: 14850 | F19: 14850 | G19: 14850 | H19: 14850 | I19: 14850 | J19: 14850 | K19: 14850 | L19: 14850 | M19: 14850 | N19: 14850 | O19: 103950 | P19: 14850 | Q19: 14850 | R19: 14850 | S19: 14850 | T19: 14850 | U19: 14850 | V19: 14850 | W19: 14850 | X19: 14850 | Y19: 14850 | Z19: 14850 | AA19: 183150 | AB19: 2501791.875
A20: Total PV Costs_Self-Consumption ($/mi) | B20: =SUM(B13:B18) -> 2761530.75 | C20: =SUM(C13:C18) -> 14850 | D20: 14850 | E20: 14850 | F20: 14850 | G20: 14850 | H20: 14850 | I20: 14850 | J20: 14850 | K20: 14850 | L20: 14850 | M20: 14850 | N20: 14850 | O20: 103950 | P20: 14850 | Q20: 14850 | R20: 14850 | S20: 14850 | T20: 14850 | U20: 14850 | V20: 14850 | W20: 14850 | X20: 14850 | Y20: 14850 | Z20: 14850 | AA20: 183150 | AB20: =SUM(B20:AA20) -> 3390180.75

Sheet General Finance Analysis (PVNB) (hidden)
A1: Panel Capacity | B1: ='PV(NB)(M2) Info'!F4 -> 375
A2: Tax Credits & Incentives | B2: ='PV(NB)(M2) Info'!B28+'PV(NB)(M2) Info'!B29 -> 0.1
A3: Real Discount Rate | B3: ='PV(NB)(M2) Info'!B25 -> 0.0035
A4: Self-Consumption Utilization Rate | B4: ='PV(NB)(M2) Info'!D22 -> 1
A6: Project Length | B6: Ownership | C6: Electricity | D6: Scenario | E6: Recycling | F6: Inverter Replacement | G6: Social Cost Saving | H6: Tax Credits & Incentives | I6: Unit Installed cost | J6: System Size | K6: Initial Cost | L6: Total Initial Cost | M6: Life Span | N6: Annunal Operation & Maintenance COST | O6: Recycling Cost | P6: Salvage Value | Q6: Inverter Replacement Cost | R6: AC Energy | S6: Revenue | T6: Profit | U6: Payback Years | V6: Average Rate of Return
A7: Mile | E7: $/W | F7: $/W | G7: $/Mile | H7: =B2 -> 0.1 | I7: $/W | J7: Watt/Mile | K7: $/Mile | L7: $ | M7: Years | N7: $/Mile | O7: $/Mile | P7: $/Mile | Q7: $/Mile | R7: Average kWh/year | S7: $/year | T7: $/year | U7: Years | V7: %
A8: ='PV(NB)(M2) Info'!F3 -> 1 | B8: Direct | C8: Sell | D8: CASE 1 | E8: YES | F8: YES | G8: NO | H8: NO | I8: ='PV(NB)(M2) Info'!H3+'PV(NB)(M2) Info'!H4 -> 1.8920625 | J8: =B1*'PV(NB)(M2) Info'!F5 -> 990000 | K8: =I8*J8-'PV(NB) Revenue_Base'!B19 -> 1873141.875 | L8: =K8*A8 -> 1873141.875 | M8: 25 | N8: ='PV(NB) Cost_Base'!C16 -> 14850 | O8: ='PV(NB) Cost_Base'!AA18 -> 168300 | P8: ='PV(NB) Revenue_Base'!AA17 -> 96525 | Q8: ='PV(NB) Cost_Base'!O17 -> 89100 | R8: ='PV(NB) Revenue_Base'!AB9/25 -> 901431.5666 | S8: ='PV(NB) Revenue_Base'!AB19/M8 -> 103018.4723 | T8: =S8-N8 -> 88168.47233 | U8: =(K8+O8+Q8-P8)/T8 -> 23.06966222 | V8: =T8*100/(K8+O8+Q8-P8) -> 4.33469719
D9: CASE 2 | E9: YES | F9: YES | G9: YES | H9: NO | K9: =I8*J8-'PV(NB) Revenue_Base'!B18 -> 1873141.875 | L9: =K9*A8 -> 1873141.875 | M9: 25 | N9: =N8 -> 14850 | O9: =O8 -> 168300 | P9: 96525 | Q9: 89100 | R9: =R8 -> 901431.5666 | S9: ='PV(NB) Revenue_Base'!AB18/M9 -> 114313.3078 | T9: 99463.30778 | U9: =(K9+O9+Q9-P9)/T9 -> 20.44992189 | V9: =T9*100/(K9+O9+Q9-P9) -> 4.889994228
D10: CASE 3 | E10: YES | F10: YES | G10: NO | H10: YES | K10: =K8 -> 1873141.875 | L10: =K10*A8*(1-B2) -> 1685827.688 | M10: 25 | N10: 14850 | O10: 168300 | P10: 96525 | Q10: 89100 | R10: 901431.5666 | S10: =S8 -> 103018.4723 | T10: 88168.47233 | U10: 23.06966222 | V10: 4.33469719
D11: CASE 4 | E11: YES | F11: YES | G11: YES | H11: YES | K11: =K9 -> 1873141.875 | L11: =K11*A8*(1-B2) -> 1685827.688 | M11: 25 | N11: 14850 | O11: 168300 | P11: 96525 | Q11: 89100 | R11: =R10 -> 901431.5666 | S11: =S9 -> 114313.3078 | T11: 99463.30778 | U11: 20.44992189 | V11: 4.889994228
A12: =A8 -> 1 | B12: Direct | C12: Self-Consumption | D12: CASE 5 | E12: YES | F12: YES | G12: NO | H12: NO | I12: ='PV(NB)(M2) Info'!H3+'PV(NB)(M2) Info'!H4+'PV(NB)(M2) Info'!H9 -> 2.789425 | J12: =J8 -> 990000 | K12: =I12*J12-'PV(NB) Revenue_Base'!B19 -> 2761530.75 | L12: =K12*A12 -> 2761530.75 | M12: 25 | N12: =N8*$J$12/$J$8 -> 14850 | O12: 168300 | P12: 96525 | Q12: 89100 | R12: =R11 -> 901431.5666 | S12: =R12*('PV(NB)(M2) Info'!$D$19*$B$4+'PV(NB)(M2) Info'!$D$20*(1-$B$4)) -> 108171.788 | T12: 93321.78799 | U12: =(K12+O12+Q12-P12)/T12 -> 31.31536389 | V12: =T12*100/(K12+O12+Q12-P12) -> 3.193320708
D13: CASE 6 | E13: YES | F13: YES | G13: YES | H13: NO | K13: =I12*J12-'PV(NB) Revenue_Base'!B18 -> 2761530.75 | L13: =K13*A12 -> 2761530.75 | M13: 25 | N13: =N9*$J$12/$J$8 -> 14850 | O13: 168300 | P13: 96525 | Q13: 89100 | R13: =R12 -> 901431.5666 | S13: =S12+(S9-S8) -> 119466.6234 | T13: 104616.6234 | U13: =(K13+O13+Q13-P13)/T13 -> 27.93443005 | V13: =T13*100/(K13+O13+Q13-P13) -> 3.579811717
D14: CASE 7 | E14: YES | F14: YES | G14: NO | H14: YES | K14: =K12 -> 2761530.75 | L14: =K14*A12*(1-B2) -> 2485377.675 | M14: 25 | N14: 14850 | O14: 168300 | P14: 96525 | Q14: 89100 | R14: 901431.5666 | S14: =S12+(S10-S8) -> 108171.788 | T14: 93321.78799 | U14: 31.31536389 | V14: 3.193320708
D15: CASE 8 | E15: YES | F15: YES | G15: YES | H15: YES | K15: =K13 -> 2761530.75 | L15: =K15*A12*(1-B2) -> 2485377.675 | M15: 25 | N15: 14850 | O15: 168300 | P15: 96525 | Q15: 89100 | R15: 901431.5666 | S15: =S12+(S11-S8) -> 119466.6234 | T15: 104616.6234 | U15: 27.93443005 | V15: 3.579811717
A17: Project Length | B17: Ownership | C17: Electricity | D17: Scenario | E17: Recycling | F17: Inverter Replacement | G17: Social Cost Saving | H17: Tax Credits & Incentives | I17: Unit Installed cost | J17: Initial Cost | K17: Total Initial Cost | L17: Agreement Length (Years) | M17: Annunal O&M Costs | N17: Recycling Cost | O17: Salvage Value | P17: Inverter Replacement Cost | Q17: Annual AC Output (kWh/Year) | R17: PPA Pricing ($/KWh) | S17: Annul PPA Electicity Costs | T17: Current Pricing ($/kWh) | U17: Annual Electricity Cost Saving | V17: Annul Social Cost Saving | W17: Total Costs | X17: Total Cost Saving
A18: =A8 -> 1 | B18: Indirect | C18: Solar PPA | D18: Case 9 | E18: NA | F18: NA | G18: No | H18: NA | I18: 0 | J18: 0 | K18: 0 | L18: ='PV(NB)(M2) Info'!B24 -> 25 | M18: 0 | N18: 0 | O18: 0 | P18: 0 | Q18: =R8 -> 901431.5666 | R18: ='PV(NB)(M2) Info'!D21 -> 0.1 | S18: =R18*Q18 -> 90143.15666 | T18: ='PV(NB)(M2) Info'!D19 -> 0.12 | U18: =Q18*(T18-R18) -> 18028.63133 | V18: 0 | W18: =S18*L18 -> 2253578.917 | X18: =(U18+V18)*L18 -> 450715.7833
A19: =A8 -> 1 | B19: Indirect | C19: Solar PPA | D19: Case 10 | E19: NA | F19: NA | G19: Yes | H19: NA | I19: 0 | J19: 0 | K19: 0 | L19: =L18 -> 25 | M19: 0 | N19: 0 | O19: 0 | P19: 0 | Q19: =Q18 -> 901431.5666 | R19: =R18 -> 0.1 | S19: =R19*Q19 -> 90143.15666 | T19: =T18 -> 0.12 | U19: =Q19*(T19-R19) -> 18028.63133 | V19: =SUM('PV(NB) Revenue_Base'!AB13:AB15)/L19 -> 10708.90494 | W19: =S19*L19 -> 2253578.917 | X19: =(U19+V19)*L19 -> 718438.4067

Sheet PV(NB)_CBA (hidden)
A1: Year | B1: 0 | C1: 1 | D1: 2 | E1: 3 | F1: 4 | G1: 5 | H1: 6 | I1: 7 | J1: 8 | K1: 9 | L1: 10 | M1: 11 | N1: 12 | O1: 13 | P1: 14 | Q1: 15 | R1: 16 | S1: 17 | T1: 18 | U1: 19 | V1: 20 | W1: 21 | X1: 22 | Y1: 23 | Z1: 24 | AA1: 25 | AB1: Payback Period
A2: Discount factor (End of year) | B2: 1 | C2: =1/(1+'General Finance Analysis (PVNB)'!B3)^C1 -> 0.9965122073 | D2: =1/(1+'General Finance Analysis (PVNB)'!$B$3)^D1 -> 0.9930365792 | E2: =1/(1+'General Finance Analysis (PVNB)'!$B$3)^E1 -> 0.9895730735 | F2: =1/(1+'General Finance Analysis (PVNB)'!$B$3)^F1 -> 0.9861216477 | G2: =1/(1+'General Finance Analysis (PVNB)'!$B$3)^G1 -> 0.9826822598 | H2: =1/(1+'General Finance Analysis (PVNB)'!$B$3)^H1 -> 0.9792548678 | I2: =1/(1+'General Finance Analysis (PVNB)'!$B$3)^I1 -> 0.9758394298 | J2: =1/(1+'General Finance Analysis (PVNB)'!$B$3)^J1 -> 0.9724359041 | K2: =1/(1+'General Finance Analysis (PVNB)'!$B$3)^K1 -> 0.9690442492 | L2: =1/(1+'General Finance Analysis (PVNB)'!$B$3)^L1 -> 0.9656644238 | M2: =1/(1+'General Finance Analysis (PVNB)'!$B$3)^M1 -> 0.9622963864 | N2: =1/(1+'General Finance Analysis (PVNB)'!$B$3)^N1 -> 0.9589400961 | O2: =1/(1+'General Finance Analysis (PVNB)'!$B$3)^O1 -> 0.9555955118 | P2: =1/(1+'General Finance Analysis (PVNB)'!$B$3)^P1 -> 0.9522625927 | Q2: =1/(1+'General Finance Analysis (PVNB)'!$B$3)^Q1 -> 0.9489412982 | R2: =1/(1+'General Finance Analysis (PVNB)'!$B$3)^R1 -> 0.9456315876 | S2: =1/(1+'General Finance Analysis (PVNB)'!$B$3)^S1 -> 0.9423334206 | T2: =1/(1+'General Finance Analysis (PVNB)'!$B$3)^T1 -> 0.939046757 | U2: =1/(1+'General Finance Analysis (PVNB)'!$B$3)^U1 -> 0.9357715565 | V2: =1/(1+'General Finance Analysis (PVNB)'!$B$3)^V1 -> 0.9325077793 | W2: =1/(1+'General Finance Analysis (PVNB)'!$B$3)^W1 -> 0.9292553855 | X2: =1/(1+'General Finance Analysis (PVNB)'!$B$3)^X1 -> 0.9260143353 | Y2: =1/(1+'General Finance Analysis (PVNB)'!$B$3)^Y1 -> 0.9227845892 | Z2: =1/(1+'General Finance Analysis (PVNB)'!$B$3)^Z1 -> 0.9195661078 | AA2: =1/(1+'General Finance Analysis (PVNB)'!$B$3)^AA1 -> 0.9163588519
A3: CASE 1 | B3: =-'General Finance Analysis (PVNB)'!L8 -> -1873141.875 | C3: =B3+('PV(NB) Revenue_Base'!C19-'PV(NB) Cost_Base'!C19)*C2*'PV(NB)(M2) Info'!F3 -> -1779312.588 | D3: =C3+('PV(NB) Revenue_Base'!D19-'PV(NB) Cost_Base'!D19)*D2*'PV(NB)(M2) Info'!F3 -> -1686676.546 | E3: =D3+('PV(NB) Revenue_Base'!E19-'PV(NB) Cost_Base'!E19)*E2*'PV(NB)(M2) Info'!F3 -> -1595219.665 | F3: =E3+('PV(NB) Revenue_Base'!F19-'PV(NB) Cost_Base'!F19)*F2*'PV(NB)(M2) Info'!F3 -> -1504928.021 | G3: =F3+('PV(NB) Revenue_Base'!G19-'PV(NB) Cost_Base'!G19)*G2*'PV(NB)(M2) Info'!F3 -> -1415787.852 | H3: =G3+('PV(NB) Revenue_Base'!H19-'PV(NB) Cost_Base'!H19)*H2*'PV(NB)(M2) Info'!F3 -> -1327785.554 | I3: =H3+('PV(NB) Revenue_Base'!I19-'PV(NB) Cost_Base'!I19)*I2*'PV(NB)(M2) Info'!F3 -> -1240907.684 | J3: =I3+('PV(NB) Revenue_Base'!J19-'PV(NB) Cost_Base'!J19)*J2*'PV(NB)(M2) Info'!F3 -> -1155140.949 | K3: =J3+('PV(NB) Revenue_Base'!K19-'PV(NB) Cost_Base'!K19)*K2*'PV(NB)(M2) Info'!F3 -> -1070472.215 | L3: =K3+('PV(NB) Revenue_Base'!L19-'PV(NB) Cost_Base'!L19)*L2*'PV(NB)(M2) Info'!F3 -> -986888.4954 | M3: =L3+('PV(NB) Revenue_Base'!M19-'PV(NB) Cost_Base'!M19)*M2*'PV(NB)(M2) Info'!F3 -> -904376.9572 | N3: =M3+('PV(NB) Revenue_Base'!N19-'PV(NB) Cost_Base'!N19)*N2*'PV(NB)(M2) Info'!F3 -> -822924.9143 | O3: =N3+('PV(NB) Revenue_Base'!O19-'PV(NB) Cost_Base'!O19)*O2*'PV(NB)(M2) Info'!F3 -> -827663.3877 | P3: =O3+('PV(NB) Revenue_Base'!P19-'PV(NB) Cost_Base'!P19)*P2*'PV(NB)(M2) Info'!F3 -> -748292.8633 | Q3: =P3+('PV(NB) Revenue_Base'!Q19-'PV(NB) Cost_Base'!Q19)*Q2*'PV(NB)(M2) Info'!F3 -> -669944.6506 | R3: =Q3+('PV(NB) Revenue_Base'!R19-'PV(NB) Cost_Base'!R19)*R2*'PV(NB)(M2) Info'!F3 -> -592606.6409 | S3: =R3+('PV(NB) Revenue_Base'!S19-'PV(NB) Cost_Base'!S19)*S2*'PV(NB)(M2) Info'!F3 -> -516266.8655 | T3: =S3+('PV(NB) Revenue_Base'!T19-'PV(NB) Cost_Base'!T19)*T2*'PV(NB)(M2) Info'!F3 -> -440913.4943 | U3: =T3+('PV(NB) Revenue_Base'!U19-'PV(NB) Cost_Base'!U19)*U2*'PV(NB)(M2) Info'!F3 -> -366534.8342 | V3: =U3+('PV(NB) Revenue_Base'!V19-'PV(NB) Cost_Base'!V19)*V2*'PV(NB)(M2) Info'!F3 -> -293119.3272 | W3: =V3+('PV(NB) Revenue_Base'!W19-'PV(NB) Cost_Base'!W19)*W2*'PV(NB)(M2) Info'!F3 -> -220655.5495 | X3: =W3+('PV(NB) Revenue_Base'!X19-'PV(NB) Cost_Base'!X19)*X2*'PV(NB)(M2) Info'!F3 -> -149132.2092 | Y3: =X3+('PV(NB) Revenue_Base'!Y19-'PV(NB) Cost_Base'!Y19)*Y2*'PV(NB)(M2) Info'!F3 -> -78538.14538 | Z3: =Y3+('PV(NB) Revenue_Base'!Z19-'PV(NB) Cost_Base'!Z19)*Z2*'PV(NB)(M2) Info'!F3 -> -8862.326235 | AA3: =Z3+('PV(NB) Revenue_Base'!AA19-'PV(NB) Cost_Base'!AA19)*AA2*'PV(NB)(M2) Info'!F3 -> -5865.504365 | AB3: =IFERROR(AB42,">25") -> >25
A4: CASE 2 | B4: =-'General Finance Analysis (PVNB)'!L9 -> -1873141.875 | C4: =B4+('PV(NB) Revenue_Base'!C18-'PV(NB) Cost_Base'!C19)*C2*'PV(NB)(M2) Info'!F3 -> -1766939.04 | D4: =C4+('PV(NB) Revenue_Base'!D18-'PV(NB) Cost_Base'!D19)*D2*'PV(NB)(M2) Info'!F3 -> -1662071.251 | E4: =D4+('PV(NB) Revenue_Base'!E18-'PV(NB) Cost_Base'!E19)*E2*'PV(NB)(M2) Info'!F3 -> -1558522.797 | F4: =E4+('PV(NB) Revenue_Base'!F18-'PV(NB) Cost_Base'!F19)*F2*'PV(NB)(M2) Info'!F3 -> -1456278.147 | G4: =F4+('PV(NB) Revenue_Base'!G18-'PV(NB) Cost_Base'!G19)*G2*'PV(NB)(M2) Info'!F3 -> -1355321.953 | H4: =G4+('PV(NB) Revenue_Base'!H18-'PV(NB) Cost_Base'!H19)*H2*'PV(NB)(M2) Info'!F3 -> -1255639.041 | I4: =H4+('PV(NB) Revenue_Base'!I18-'PV(NB) Cost_Base'!I19)*I2*'PV(NB)(M2) Info'!F3 -> -1157214.415 | J4: =I4+('PV(NB) Revenue_Base'!J18-'PV(NB) Cost_Base'!J19)*J2*'PV(NB)(M2) Info'!F3 -> -1060033.249 | K4: =J4+('PV(NB) Revenue_Base'!K18-'PV(NB) Cost_Base'!K19)*K2*'PV(NB)(M2) Info'!F3 -> -964080.8905 | L4: =K4+('PV(NB) Revenue_Base'!L18-'PV(NB) Cost_Base'!L19)*L2*'PV(NB)(M2) Info'!F3 -> -869342.8569 | M4: =L4+('PV(NB) Revenue_Base'!M18-'PV(NB) Cost_Base'!M19)*M2*'PV(NB)(M2) Info'!F3 -> -775804.8316 | N4: =M4+('PV(NB) Revenue_Base'!N18-'PV(NB) Cost_Base'!N19)*N2*'PV(NB)(M2) Info'!F3 -> -683452.6639 | O4: =N4+('PV(NB) Revenue_Base'!O18-'PV(NB) Cost_Base'!O19)*O2*'PV(NB)(M2) Info'!F3 -> -677415.9268 | P4: =O4+('PV(NB) Revenue_Base'!P18-'PV(NB) Cost_Base'!P19)*P2*'PV(NB)(M2) Info'!F3 -> -587393.6746 | Q4: =P4+('PV(NB) Revenue_Base'!Q18-'PV(NB) Cost_Base'!Q19)*Q2*'PV(NB)(M2) Info'!F3 -> -498515.8017 | R4: =Q4+('PV(NB) Revenue_Base'!R18-'PV(NB) Cost_Base'!R19)*R2*'PV(NB)(M2) Info'!F3 -> -410768.8006 | S4: =R4+('PV(NB) Revenue_Base'!S18-'PV(NB) Cost_Base'!S19)*S2*'PV(NB)(M2) Info'!F3 -> -324139.3197 | T4: =S4+('PV(NB) Revenue_Base'!T18-'PV(NB) Cost_Base'!T19)*T2*'PV(NB)(M2) Info'!F3 -> -238614.1619 | U4: =T4+('PV(NB) Revenue_Base'!U18-'PV(NB) Cost_Base'!U19)*U2*'PV(NB)(M2) Info'!F3 -> -154180.2826 | V4: =U4+('PV(NB) Revenue_Base'!V18-'PV(NB) Cost_Base'!V19)*V2*'PV(NB)(M2) Info'!F3 -> -70824.78835 | W4: =V4+('PV(NB) Revenue_Base'!W18-'PV(NB) Cost_Base'!W19)*W2*'PV(NB)(M2) Info'!F3 -> 11465.06557 | X4: =W4+('PV(NB) Revenue_Base'!X18-'PV(NB) Cost_Base'!X19)*X2*'PV(NB)(M2) Info'!F3 -> 92701.87628 | Y4: =X4+('PV(NB) Revenue_Base'!Y18-'PV(NB) Cost_Base'!Y19)*Y2*'PV(NB)(M2) Info'!F3 -> 172898.0952 | Z4: =Y4+('PV(NB) Revenue_Base'!Z18-'PV(NB) Cost_Base'!Z19)*Z2*'PV(NB)(M2) Info'!F3 -> 252066.0299 | AA4: =Z4+('PV(NB) Revenue_Base'!AA18-'PV(NB) Cost_Base'!AA19)*AA2*'PV(NB)(M2) Info'!F3 -> 264446.1886 | AB4: =IFERROR(AB43,">25") -> 21
A5: CASE 3 | B5: =-'General Finance Analysis (PVNB)'!L10 -> -1685827.688 | C5: =B5+('PV(NB) Revenue_Base'!C19-'PV(NB) Cost_Base'!C19)*C2*'PV(NB)(M2) Info'!F3 -> -1591998.4 | D5: =C5+('PV(NB) Revenue_Base'!D19-'PV(NB) Cost_Base'!D19)*D2*'PV(NB)(M2) Info'!F3 -> -1499362.359 | E5: =D5+('PV(NB) Revenue_Base'!E19-'PV(NB) Cost_Base'!E19)*E2*'PV(NB)(M2) Info'!F3 -> -1407905.477 | F5: =E5+('PV(NB) Revenue_Base'!F19-'PV(NB) Cost_Base'!F19)*F2*'PV(NB)(M2) Info'!F3 -> -1317613.833 | G5: =F5+('PV(NB) Revenue_Base'!G19-'PV(NB) Cost_Base'!G19)*G2*'PV(NB)(M2) Info'!F3 -> -1228473.664 | H5: =G5+('PV(NB) Revenue_Base'!H19-'PV(NB) Cost_Base'!H19)*H2*'PV(NB)(M2) Info'!F3 -> -1140471.367 | I5: =H5+('PV(NB) Revenue_Base'!I19-'PV(NB) Cost_Base'!I19)*I2*'PV(NB)(M2) Info'!F3 -> -1053593.496 | J5: =I5+('PV(NB) Revenue_Base'!J19-'PV(NB) Cost_Base'!J19)*J2*'PV(NB)(M2) Info'!F3 -> -967826.7618 | K5: =J5+('PV(NB) Revenue_Base'!K19-'PV(NB) Cost_Base'!K19)*K2*'PV(NB)(M2) Info'!F3 -> -883158.0272 | L5: =K5+('PV(NB) Revenue_Base'!L19-'PV(NB) Cost_Base'!L19)*L2*'PV(NB)(M2) Info'!F3 -> -799574.3079 | M5: =L5+('PV(NB) Revenue_Base'!M19-'PV(NB) Cost_Base'!M19)*M2*'PV(NB)(M2) Info'!F3 -> -717062.7697 | N5: =M5+('PV(NB) Revenue_Base'!N19-'PV(NB) Cost_Base'!N19)*N2*'PV(NB)(M2) Info'!F3 -> -635610.7268 | O5: =N5+('PV(NB) Revenue_Base'!O19-'PV(NB) Cost_Base'!O19)*O2*'PV(NB)(M2) Info'!F3 -> -640349.2002 | P5: =O5+('PV(NB) Revenue_Base'!P19-'PV(NB) Cost_Base'!P19)*P2*'PV(NB)(M2) Info'!F3 -> -560978.6758 | Q5: =P5+('PV(NB) Revenue_Base'!Q19-'PV(NB) Cost_Base'!Q19)*Q2*'PV(NB)(M2) Info'!F3 -> -482630.4631 | R5: =Q5+('PV(NB) Revenue_Base'!R19-'PV(NB) Cost_Base'!R19)*R2*'PV(NB)(M2) Info'!F3 -> -405292.4534 | S5: =R5+('PV(NB) Revenue_Base'!S19-'PV(NB) Cost_Base'!S19)*S2*'PV(NB)(M2) Info'!F3 -> -328952.678 | T5: =S5+('PV(NB) Revenue_Base'!T19-'PV(NB) Cost_Base'!T19)*T2*'PV(NB)(M2) Info'!F3 -> -253599.3068 | U5: =T5+('PV(NB) Revenue_Base'!U19-'PV(NB) Cost_Base'!U19)*U2*'PV(NB)(M2) Info'!F3 -> -179220.6467 | V5: =U5+('PV(NB) Revenue_Base'!V19-'PV(NB) Cost_Base'!V19)*V2*'PV(NB)(M2) Info'!F3 -> -105805.1397 | W5: =V5+('PV(NB) Revenue_Base'!W19-'PV(NB) Cost_Base'!W19)*W2*'PV(NB)(M2) Info'!F3 -> -33341.36199 | X5: =W5+('PV(NB) Revenue_Base'!X19-'PV(NB) Cost_Base'!X19)*X2*'PV(NB)(M2) Info'!F3 -> 38181.97829 | Y5: =X5+('PV(NB) Revenue_Base'!Y19-'PV(NB) Cost_Base'!Y19)*Y2*'PV(NB)(M2) Info'!F3 -> 108776.0421 | Z5: =Y5+('PV(NB) Revenue_Base'!Z19-'PV(NB) Cost_Base'!Z19)*Z2*'PV(NB)(M2) Info'!F3 -> 178451.8613 | AA5: =Z5+('PV(NB) Revenue_Base'!AA19-'PV(NB) Cost_Base'!AA19)*AA2*'PV(NB)(M2) Info'!F3 -> 181448.6831 | AB5: 22
A6: CASE 4 | B6: =-'General Finance Analysis (PVNB)'!L11 -> -1685827.688 | C6: =B6+('PV(NB) Revenue_Base'!C18-'PV(NB) Cost_Base'!C19)*C2*'PV(NB)(M2) Info'!F3 -> -1579624.853 | D6: =C6+('PV(NB) Revenue_Base'!D18-'PV(NB) Cost_Base'!D19)*D2*'PV(NB)(M2) Info'!F3 -> -1474757.064 | E6: =D6+('PV(NB) Revenue_Base'!E18-'PV(NB) Cost_Base'!E19)*E2*'PV(NB)(M2) Info'!F3 -> -1371208.609 | F6: =E6+('PV(NB) Revenue_Base'!F18-'PV(NB) Cost_Base'!F19)*F2*'PV(NB)(M2) Info'!F3 -> -1268963.96 | G6: =F6+('PV(NB) Revenue_Base'!G18-'PV(NB) Cost_Base'!G19)*G2*'PV(NB)(M2) Info'!F3 -> -1168007.766 | H6: =G6+('PV(NB) Revenue_Base'!H18-'PV(NB) Cost_Base'!H19)*H2*'PV(NB)(M2) Info'!F3 -> -1068324.854 | I6: =H6+('PV(NB) Revenue_Base'!I18-'PV(NB) Cost_Base'!I19)*I2*'PV(NB)(M2) Info'!F3 -> -969900.2271 | J6: =I6+('PV(NB) Revenue_Base'!J18-'PV(NB) Cost_Base'!J19)*J2*'PV(NB)(M2) Info'!F3 -> -872719.0611 | K6: =J6+('PV(NB) Revenue_Base'!K18-'PV(NB) Cost_Base'!K19)*K2*'PV(NB)(M2) Info'!F3 -> -776766.703 | L6: =K6+('PV(NB) Revenue_Base'!L18-'PV(NB) Cost_Base'!L19)*L2*'PV(NB)(M2) Info'!F3 -> -682028.6694 | M6: =L6+('PV(NB) Revenue_Base'!M18-'PV(NB) Cost_Base'!M19)*M2*'PV(NB)(M2) Info'!F3 -> -588490.6441 | N6: =M6+('PV(NB) Revenue_Base'!N18-'PV(NB) Cost_Base'!N19)*N2*'PV(NB)(M2) Info'!F3 -> -496138.4764 | O6: =N6+('PV(NB) Revenue_Base'!O18-'PV(NB) Cost_Base'!O19)*O2*'PV(NB)(M2) Info'!F3 -> -490101.7393 | P6: =O6+('PV(NB) Revenue_Base'!P18-'PV(NB) Cost_Base'!P19)*P2*'PV(NB)(M2) Info'!F3 -> -400079.4871 | Q6: =P6+('PV(NB) Revenue_Base'!Q18-'PV(NB) Cost_Base'!Q19)*Q2*'PV(NB)(M2) Info'!F3 -> -311201.6142 | R6: =Q6+('PV(NB) Revenue_Base'!R18-'PV(NB) Cost_Base'!R19)*R2*'PV(NB)(M2) Info'!F3 -> -223454.6131 | S6: =R6+('PV(NB) Revenue_Base'!S18-'PV(NB) Cost_Base'!S19)*S2*'PV(NB)(M2) Info'!F3 -> -136825.1322 | T6: =S6+('PV(NB) Revenue_Base'!T18-'PV(NB) Cost_Base'!T19)*T2*'PV(NB)(M2) Info'!F3 -> -51299.97436 | U6: =T6+('PV(NB) Revenue_Base'!U18-'PV(NB) Cost_Base'!U19)*U2*'PV(NB)(M2) Info'!F3 -> 33133.90486 | V6: =U6+('PV(NB) Revenue_Base'!V18-'PV(NB) Cost_Base'!V19)*V2*'PV(NB)(M2) Info'!F3 -> 116489.3991 | W6: =V6+('PV(NB) Revenue_Base'!W18-'PV(NB) Cost_Base'!W19)*W2*'PV(NB)(M2) Info'!F3 -> 198779.2531 | X6: =W6+('PV(NB) Revenue_Base'!X18-'PV(NB) Cost_Base'!X19)*X2*'PV(NB)(M2) Info'!F3 -> 280016.0638 | Y6: =X6+('PV(NB) Revenue_Base'!Y18-'PV(NB) Cost_Base'!Y19)*Y2*'PV(NB)(M2) Info'!F3 -> 360212.2827 | Z6: =Y6+('PV(NB) Revenue_Base'!Z18-'PV(NB) Cost_Base'!Z19)*Z2*'PV(NB)(M2) Info'!F3 -> 439380.2174 | AA6: =Z6+('PV(NB) Revenue_Base'!AA18-'PV(NB) Cost_Base'!AA19)*AA2*'PV(NB)(M2) Info'!F3 -> 451760.3761 | AB6: 19
A7: CASE 5 | B7: =-'General Finance Analysis (PVNB)'!L12 -> -2761530.75 | C7: =B7+('PV(NB) Revenue_Base'!C9*('General Finance Analysis (PVNB)'!$B$4*'PV(NB)(M2) Info'!$D$19+(1-'General Finance Analysis (PVNB)'!$B$4)*'PV(NB)(M2) Info'!$D$20)+'PV(NB) Revenue_Base'!C19-'PV(NB) Revenue_Base'!C11-'PV(NB) Cost_Base'!C20)*C2*'PV(NB)(M2) Info'!$F$3 -> -2657826.236 | D7: =C7+('PV(NB) Revenue_Base'!D9*('General Finance Analysis (PVNB)'!$B$4*'PV(NB)(M2) Info'!$D$19+(1-'General Finance Analysis (PVNB)'!$B$4)*'PV(NB)(M2) Info'!$D$20)+'PV(NB) Revenue_Base'!D19-'PV(NB) Revenue_Base'!D11-'PV(NB) Cost_Base'!D20)*D2*'PV(NB)(M2) Info'!$F$3 -> -2555428.137 | E7: =D7+('PV(NB) Revenue_Base'!E9*('General Finance Analysis (PVNB)'!$B$4*'PV(NB)(M2) Info'!$D$19+(1-'General Finance Analysis (PVNB)'!$B$4)*'PV(NB)(M2) Info'!$D$20)+'PV(NB) Revenue_Base'!E19-'PV(NB) Revenue_Base'!E11-'PV(NB) Cost_Base'!E20)*E2*'PV(NB)(M2) Info'!$F$3 -> -2454321.07 | F7: =E7+('PV(NB) Revenue_Base'!F9*('General Finance Analysis (PVNB)'!$B$4*'PV(NB)(M2) Info'!$D$19+(1-'General Finance Analysis (PVNB)'!$B$4)*'PV(NB)(M2) Info'!$D$20)+'PV(NB) Revenue_Base'!F19-'PV(NB) Revenue_Base'!F11-'PV(NB) Cost_Base'!F20)*F2*'PV(NB)(M2) Info'!$F$3 -> -2354489.83 | G7: =F7+('PV(NB) Revenue_Base'!G9*('General Finance Analysis (PVNB)'!$B$4*'PV(NB)(M2) Info'!$D$19+(1-'General Finance Analysis (PVNB)'!$B$4)*'PV(NB)(M2) Info'!$D$20)+'PV(NB) Revenue_Base'!G19-'PV(NB) Revenue_Base'!G11-'PV(NB) Cost_Base'!G20)*G2*'PV(NB)(M2) Info'!$F$3 -> -2255919.388 | H7: =G7+('PV(NB) Revenue_Base'!H9*('General Finance Analysis (PVNB)'!$B$4*'PV(NB)(M2) Info'!$D$19+(1-'General Finance Analysis (PVNB)'!$B$4)*'PV(NB)(M2) Info'!$D$20)+'PV(NB) Revenue_Base'!H19-'PV(NB) Revenue_Base'!H11-'PV(NB) Cost_Base'!H20)*H2*'PV(NB)(M2) Info'!$F$3 -> -2158594.888 | I7: =H7+('PV(NB) Revenue_Base'!I9*('General Finance Analysis (PVNB)'!$B$4*'PV(NB)(M2) Info'!$D$19+(1-'General Finance Analysis (PVNB)'!$B$4)*'PV(NB)(M2) Info'!$D$20)+'PV(NB) Revenue_Base'!I19-'PV(NB) Revenue_Base'!I11-'PV(NB) Cost_Base'!I20)*I2*'PV(NB)(M2) Info'!$F$3 -> -2062501.646 | J7: =I7+('PV(NB) Revenue_Base'!J9*('General Finance Analysis (PVNB)'!$B$4*'PV(NB)(M2) Info'!$D$19+(1-'General Finance Analysis (PVNB)'!$B$4)*'PV(NB)(M2) Info'!$D$20)+'PV(NB) Revenue_Base'!J19-'PV(NB) Revenue_Base'!J11-'PV(NB) Cost_Base'!J20)*J2*'PV(NB)(M2) Info'!$F$3 -> -1967625.147 | K7: =J7+('PV(NB) Revenue_Base'!K9*('General Finance Analysis (PVNB)'!$B$4*'PV(NB)(M2) Info'!$D$19+(1-'General Finance Analysis (PVNB)'!$B$4)*'PV(NB)(M2) Info'!$D$20)+'PV(NB) Revenue_Base'!K19-'PV(NB) Revenue_Base'!K11-'PV(NB) Cost_Base'!K20)*K2*'PV(NB)(M2) Info'!$F$3 -> -1873951.045 | L7: =K7+('PV(NB) Revenue_Base'!L9*('General Finance Analysis (PVNB)'!$B$4*'PV(NB)(M2) Info'!$D$19+(1-'General Finance Analysis (PVNB)'!$B$4)*'PV(NB)(M2) Info'!$D$20)+'PV(NB) Revenue_Base'!L19-'PV(NB) Revenue_Base'!L11-'PV(NB) Cost_Base'!L20)*L2*'PV(NB)(M2) Info'!$F$3 -> -1781465.159 | M7: =L7+('PV(NB) Revenue_Base'!M9*('General Finance Analysis (PVNB)'!$B$4*'PV(NB)(M2) Info'!$D$19+(1-'General Finance Analysis (PVNB)'!$B$4)*'PV(NB)(M2) Info'!$D$20)+'PV(NB) Revenue_Base'!M19-'PV(NB) Revenue_Base'!M11-'PV(NB) Cost_Base'!M20)*M2*'PV(NB)(M2) Info'!$F$3 -> -1690153.472 | N7: =M7+('PV(NB) Revenue_Base'!N9*('General Finance Analysis (PVNB)'!$B$4*'PV(NB)(M2) Info'!$D$19+(1-'General Finance Analysis (PVNB)'!$B$4)*'PV(NB)(M2) Info'!$D$20)+'PV(NB) Revenue_Base'!N19-'PV(NB) Revenue_Base'!N11-'PV(NB) Cost_Base'!N20)*N2*'PV(NB)(M2) Info'!$F$3 -> -1600002.129 | O7: =N7+('PV(NB) Revenue_Base'!O9*('General Finance Analysis (PVNB)'!$B$4*'PV(NB)(M2) Info'!$D$19+(1-'General Finance Analysis (PVNB)'!$B$4)*'PV(NB)(M2) Info'!$D$20)+'PV(NB) Revenue_Base'!O19-'PV(NB) Revenue_Base'!O11-'PV(NB) Cost_Base'!O20)*O2*'PV(NB)(M2) Info'!$F$3 -> -1596140.995 | P7: =O7+('PV(NB) Revenue_Base'!P9*('General Finance Analysis (PVNB)'!$B$4*'PV(NB)(M2) Info'!$D$19+(1-'General Finance Analysis (PVNB)'!$B$4)*'PV(NB)(M2) Info'!$D$20)+'PV(NB) Revenue_Base'!P19-'PV(NB) Revenue_Base'!P11-'PV(NB) Cost_Base'!P20)*P2*'PV(NB)(M2) Info'!$F$3 -> -1508269.414 | Q7: =P7+('PV(NB) Revenue_Base'!Q9*('General Finance Analysis (PVNB)'!$B$4*'PV(NB)(M2) Info'!$D$19+(1-'General Finance Analysis (PVNB)'!$B$4)*'PV(NB)(M2) Info'!$D$20)+'PV(NB) Revenue_Base'!Q19-'PV(NB) Revenue_Base'!Q11-'PV(NB) Cost_Base'!Q20)*Q2*'PV(NB)(M2) Info'!$F$3 -> -1421517.565 | R7: =Q7+('PV(NB) Revenue_Base'!R9*('General Finance Analysis (PVNB)'!$B$4*'PV(NB)(M2) Info'!$D$19+(1-'General Finance Analysis (PVNB)'!$B$4)*'PV(NB)(M2) Info'!$D$20)+'PV(NB) Revenue_Base'!R19-'PV(NB) Revenue_Base'!R11-'PV(NB) Cost_Base'!R20)*R2*'PV(NB)(M2) Info'!$F$3 -> -1335872.225 | S7: =R7+('PV(NB) Revenue_Base'!S9*('General Finance Analysis (PVNB)'!$B$4*'PV(NB)(M2) Info'!$D$19+(1-'General Finance Analysis (PVNB)'!$B$4)*'PV(NB)(M2) Info'!$D$20)+'PV(NB) Revenue_Base'!S19-'PV(NB) Revenue_Base'!S11-'PV(NB) Cost_Base'!S20)*S2*'PV(NB)(M2) Info'!$F$3 -> -1251320.32 | T7: =S7+('PV(NB) Revenue_Base'!T9*('General Finance Analysis (PVNB)'!$B$4*'PV(NB)(M2) Info'!$D$19+(1-'General Finance Analysis (PVNB)'!$B$4)*'PV(NB)(M2) Info'!$D$20)+'PV(NB) Revenue_Base'!T19-'PV(NB) Revenue_Base'!T11-'PV(NB) Cost_Base'!T20)*T2*'PV(NB)(M2) Info'!$F$3 -> -1167848.929 | U7: =T7+('PV(NB) Revenue_Base'!U9*('General Finance Analysis (PVNB)'!$B$4*'PV(NB)(M2) Info'!$D$19+(1-'General Finance Analysis (PVNB)'!$B$4)*'PV(NB)(M2) Info'!$D$20)+'PV(NB) Revenue_Base'!U19-'PV(NB) Revenue_Base'!U11-'PV(NB) Cost_Base'!U20)*U2*'PV(NB)(M2) Info'!$F$3 -> -1085445.281 | V7: =U7+('PV(NB) Revenue_Base'!V9*('General Finance Analysis (PVNB)'!$B$4*'PV(NB)(M2) Info'!$D$19+(1-'General Finance Analysis (PVNB)'!$B$4)*'PV(NB)(M2) Info'!$D$20)+'PV(NB) Revenue_Base'!V19-'PV(NB) Revenue_Base'!V11-'PV(NB) Cost_Base'!V20)*V2*'PV(NB)(M2) Info'!$F$3 -> -1004096.751 | W7: =V7+('PV(NB) Revenue_Base'!W9*('General Finance Analysis (PVNB)'!$B$4*'PV(NB)(M2) Info'!$D$19+(1-'General Finance Analysis (PVNB)'!$B$4)*'PV(NB)(M2) Info'!$D$20)+'PV(NB) Revenue_Base'!W19-'PV(NB) Revenue_Base'!W11-'PV(NB) Cost_Base'!W20)*W2*'PV(NB)(M2) Info'!$F$3 -> -923790.8628 | X7: =W7+('PV(NB) Revenue_Base'!X9*('General Finance Analysis (PVNB)'!$B$4*'PV(NB)(M2) Info'!$D$19+(1-'General Finance Analysis (PVNB)'!$B$4)*'PV(NB)(M2) Info'!$D$20)+'PV(NB) Revenue_Base'!X19-'PV(NB) Revenue_Base'!X11-'PV(NB) Cost_Base'!X20)*X2*'PV(NB)(M2) Info'!$F$3 -> -844515.2813 | Y7: =X7+('PV(NB) Revenue_Base'!Y9*('General Finance Analysis (PVNB)'!$B$4*'PV(NB)(M2) Info'!$D$19+(1-'General Finance Analysis (PVNB)'!$B$4)*'PV(NB)(M2) Info'!$D$20)+'PV(NB) Revenue_Base'!Y19-'PV(NB) Revenue_Base'!Y11-'PV(NB) Cost_Base'!Y20)*Y2*'PV(NB)(M2) Info'!$F$3 -> -766257.8161 | Z7: =Y7+('PV(NB) Revenue_Base'!Z9*('General Finance Analysis (PVNB)'!$B$4*'PV(NB)(M2) Info'!$D$19+(1-'General Finance Analysis (PVNB)'!$B$4)*'PV(NB)(M2) Info'!$D$20)+'PV(NB) Revenue_Base'!Z19-'PV(NB) Revenue_Base'!Z11-'PV(NB) Cost_Base'!Z20)*Z2*'PV(NB)(M2) Info'!$F$3 -> -689006.4173 | AA7: =Z7+('PV(NB) Revenue_Base'!AA9*('General Finance Analysis (PVNB)'!$B$4*'PV(NB)(M2) Info'!$D$19+(1-'General Finance Analysis (PVNB)'!$B$4)*'PV(NB)(M2) Info'!$D$20)+'PV(NB) Revenue_Base'!AA19-'PV(NB) Revenue_Base'!AA11-'PV(NB) Cost_Base'!AA20)*AA2*'PV(NB)(M2) Info'!$F$3 -> -678520.8312 | AB7: >25
A8: CASE 6 | B8: =-'General Finance Analysis (PVNB)'!L13 -> -2761530.75 | C8: =B8+('PV(NB) Revenue_Base'!C9*('General Finance Analysis (PVNB)'!$B$4*'PV(NB)(M2) Info'!$D$19+(1-'General Finance Analysis (PVNB)'!$B$4)*'PV(NB)(M2) Info'!$D$20)+'PV(NB) Revenue_Base'!C18-'PV(NB) Revenue_Base'!C11-'PV(NB) Cost_Base'!C20)*C2*'PV(NB)(M2) Info'!$F$3 -> -2645452.689 | D8: =C8+('PV(NB) Revenue_Base'!D9*('General Finance Analysis (PVNB)'!$B$4*'PV(NB)(M2) Info'!$D$19+(1-'General Finance Analysis (PVNB)'!$B$4)*'PV(NB)(M2) Info'!$D$20)+'PV(NB) Revenue_Base'!D18-'PV(NB) Revenue_Base'!D11-'PV(NB) Cost_Base'!D20)*D2*'PV(NB)(M2) Info'!$F$3 -> -2530822.842 | E8: =D8+('PV(NB) Revenue_Base'!E9*('General Finance Analysis (PVNB)'!$B$4*'PV(NB)(M2) Info'!$D$19+(1-'General Finance Analysis (PVNB)'!$B$4)*'PV(NB)(M2) Info'!$D$20)+'PV(NB) Revenue_Base'!E18-'PV(NB) Revenue_Base'!E11-'PV(NB) Cost_Base'!E20)*E2*'PV(NB)(M2) Info'!$F$3 -> -2417624.202 | F8: =E8+('PV(NB) Revenue_Base'!F9*('General Finance Analysis (PVNB)'!$B$4*'PV(NB)(M2) Info'!$D$19+(1-'General Finance Analysis (PVNB)'!$B$4)*'PV(NB)(M2) Info'!$D$20)+'PV(NB) Revenue_Base'!F18-'PV(NB) Revenue_Base'!F11-'PV(NB) Cost_Base'!F20)*F2*'PV(NB)(M2) Info'!$F$3 -> -2305839.957 | G8: =F8+('PV(NB) Revenue_Base'!G9*('General Finance Analysis (PVNB)'!$B$4*'PV(NB)(M2) Info'!$D$19+(1-'General Finance Analysis (PVNB)'!$B$4)*'PV(NB)(M2) Info'!$D$20)+'PV(NB) Revenue_Base'!G18-'PV(NB) Revenue_Base'!G11-'PV(NB) Cost_Base'!G20)*G2*'PV(NB)(M2) Info'!$F$3 -> -2195453.49 | H8: =G8+('PV(NB) Revenue_Base'!H9*('General Finance Analysis (PVNB)'!$B$4*'PV(NB)(M2) Info'!$D$19+(1-'General Finance Analysis (PVNB)'!$B$4)*'PV(NB)(M2) Info'!$D$20)+'PV(NB) Revenue_Base'!H18-'PV(NB) Revenue_Base'!H11-'PV(NB) Cost_Base'!H20)*H2*'PV(NB)(M2) Info'!$F$3 -> -2086448.375 | I8: =H8+('PV(NB) Revenue_Base'!I9*('General Finance Analysis (PVNB)'!$B$4*'PV(NB)(M2) Info'!$D$19+(1-'General Finance Analysis (PVNB)'!$B$4)*'PV(NB)(M2) Info'!$D$20)+'PV(NB) Revenue_Base'!I18-'PV(NB) Revenue_Base'!I11-'PV(NB) Cost_Base'!I20)*I2*'PV(NB)(M2) Info'!$F$3 -> -1978808.377 | J8: =I8+('PV(NB) Revenue_Base'!J9*('General Finance Analysis (PVNB)'!$B$4*'PV(NB)(M2) Info'!$D$19+(1-'General Finance Analysis (PVNB)'!$B$4)*'PV(NB)(M2) Info'!$D$20)+'PV(NB) Revenue_Base'!J18-'PV(NB) Revenue_Base'!J11-'PV(NB) Cost_Base'!J20)*J2*'PV(NB)(M2) Info'!$F$3 -> -1872517.447 | K8: =J8+('PV(NB) Revenue_Base'!K9*('General Finance Analysis (PVNB)'!$B$4*'PV(NB)(M2) Info'!$D$19+(1-'General Finance Analysis (PVNB)'!$B$4)*'PV(NB)(M2) Info'!$D$20)+'PV(NB) Revenue_Base'!K18-'PV(NB) Revenue_Base'!K11-'PV(NB) Cost_Base'!K20)*K2*'PV(NB)(M2) Info'!$F$3 -> -1767559.721 | L8: =K8+('PV(NB) Revenue_Base'!L9*('General Finance Analysis (PVNB)'!$B$4*'PV(NB)(M2) Info'!$D$19+(1-'General Finance Analysis (PVNB)'!$B$4)*'PV(NB)(M2) Info'!$D$20)+'PV(NB) Revenue_Base'!L18-'PV(NB) Revenue_Base'!L11-'PV(NB) Cost_Base'!L20)*L2*'PV(NB)(M2) Info'!$F$3 -> -1663919.521 | M8: =L8+('PV(NB) Revenue_Base'!M9*('General Finance Analysis (PVNB)'!$B$4*'PV(NB)(M2) Info'!$D$19+(1-'General Finance Analysis (PVNB)'!$B$4)*'PV(NB)(M2) Info'!$D$20)+'PV(NB) Revenue_Base'!M18-'PV(NB) Revenue_Base'!M11-'PV(NB) Cost_Base'!M20)*M2*'PV(NB)(M2) Info'!$F$3 -> -1561581.346 | N8: =M8+('PV(NB) Revenue_Base'!N9*('General Finance Analysis (PVNB)'!$B$4*'PV(NB)(M2) Info'!$D$19+(1-'General Finance Analysis (PVNB)'!$B$4)*'PV(NB)(M2) Info'!$D$20)+'PV(NB) Revenue_Base'!N18-'PV(NB) Revenue_Base'!N11-'PV(NB) Cost_Base'!N20)*N2*'PV(NB)(M2) Info'!$F$3 -> -1460529.878 | O8: =N8+('PV(NB) Revenue_Base'!O9*('General Finance Analysis (PVNB)'!$B$4*'PV(NB)(M2) Info'!$D$19+(1-'General Finance Analysis (PVNB)'!$B$4)*'PV(NB)(M2) Info'!$D$20)+'PV(NB) Revenue_Base'!O18-'PV(NB) Revenue_Base'!O11-'PV(NB) Cost_Base'!O20)*O2*'PV(NB)(M2) Info'!$F$3 -> -1445893.534 | P8: =O8+('PV(NB) Revenue_Base'!P9*('General Finance Analysis (PVNB)'!$B$4*'PV(NB)(M2) Info'!$D$19+(1-'General Finance Analysis (PVNB)'!$B$4)*'PV(NB)(M2) Info'!$D$20)+'PV(NB) Revenue_Base'!P18-'PV(NB) Revenue_Base'!P11-'PV(NB) Cost_Base'!P20)*P2*'PV(NB)(M2) Info'!$F$3 -> -1347370.225 | Q8: =P8+('PV(NB) Revenue_Base'!Q9*('General Finance Analysis (PVNB)'!$B$4*'PV(NB)(M2) Info'!$D$19+(1-'General Finance Analysis (PVNB)'!$B$4)*'PV(NB)(M2) Info'!$D$20)+'PV(NB) Revenue_Base'!Q18-'PV(NB) Revenue_Base'!Q11-'PV(NB) Cost_Base'!Q20)*Q2*'PV(NB)(M2) Info'!$F$3 -> -1250088.717 | R8: =Q8+('PV(NB) Revenue_Base'!R9*('General Finance Analysis (PVNB)'!$B$4*'PV(NB)(M2) Info'!$D$19+(1-'General Finance Analysis (PVNB)'!$B$4)*'PV(NB)(M2) Info'!$D$20)+'PV(NB) Revenue_Base'!R18-'PV(NB) Revenue_Base'!R11-'PV(NB) Cost_Base'!R20)*R2*'PV(NB)(M2) Info'!$F$3 -> -1154034.385 | S8: =R8+('PV(NB) Revenue_Base'!S9*('General Finance Analysis (PVNB)'!$B$4*'PV(NB)(M2) Info'!$D$19+(1-'General Finance Analysis (PVNB)'!$B$4)*'PV(NB)(M2) Info'!$D$20)+'PV(NB) Revenue_Base'!S18-'PV(NB) Revenue_Base'!S11-'PV(NB) Cost_Base'!S20)*S2*'PV(NB)(M2) Info'!$F$3 -> -1059192.774 | T8: =S8+('PV(NB) Revenue_Base'!T9*('General Finance Analysis (PVNB)'!$B$4*'PV(NB)(M2) Info'!$D$19+(1-'General Finance Analysis (PVNB)'!$B$4)*'PV(NB)(M2) Info'!$D$20)+'PV(NB) Revenue_Base'!T18-'PV(NB) Revenue_Base'!T11-'PV(NB) Cost_Base'!T20)*T2*'PV(NB)(M2) Info'!$F$3 -> -965549.5966 | U8: =T8+('PV(NB) Revenue_Base'!U9*('General Finance Analysis (PVNB)'!$B$4*'PV(NB)(M2) Info'!$D$19+(1-'General Finance Analysis (PVNB)'!$B$4)*'PV(NB)(M2) Info'!$D$20)+'PV(NB) Revenue_Base'!U18-'PV(NB) Revenue_Base'!U11-'PV(NB) Cost_Base'!U20)*U2*'PV(NB)(M2) Info'!$F$3 -> -873090.7294 | V8: =U8+('PV(NB) Revenue_Base'!V9*('General Finance Analysis (PVNB)'!$B$4*'PV(NB)(M2) Info'!$D$19+(1-'General Finance Analysis (PVNB)'!$B$4)*'PV(NB)(M2) Info'!$D$20)+'PV(NB) Revenue_Base'!V18-'PV(NB) Revenue_Base'!V11-'PV(NB) Cost_Base'!V20)*V2*'PV(NB)(M2) Info'!$F$3 -> -781802.2126 | W8: =V8+('PV(NB) Revenue_Base'!W9*('General Finance Analysis (PVNB)'!$B$4*'PV(NB)(M2) Info'!$D$19+(1-'General Finance Analysis (PVNB)'!$B$4)*'PV(NB)(M2) Info'!$D$20)+'PV(NB) Revenue_Base'!W18-'PV(NB) Revenue_Base'!W11-'PV(NB) Cost_Base'!W20)*W2*'PV(NB)(M2) Info'!$F$3 -> -691670.2477 | X8: =W8+('PV(NB) Revenue_Base'!X9*('General Finance Analysis (PVNB)'!$B$4*'PV(NB)(M2) Info'!$D$19+(1-'General Finance Analysis (PVNB)'!$B$4)*'PV(NB)(M2) Info'!$D$20)+'PV(NB) Revenue_Base'!X18-'PV(NB) Revenue_Base'!X11-'PV(NB) Cost_Base'!X20)*X2*'PV(NB)(M2) Info'!$F$3 -> -602681.1958 | Y8: =X8+('PV(NB) Revenue_Base'!Y9*('General Finance Analysis (PVNB)'!$B$4*'PV(NB)(M2) Info'!$D$19+(1-'General Finance Analysis (PVNB)'!$B$4)*'PV(NB)(M2) Info'!$D$20)+'PV(NB) Revenue_Base'!Y18-'PV(NB) Revenue_Base'!Y11-'PV(NB) Cost_Base'!Y20)*Y2*'PV(NB)(M2) Info'!$F$3 -> -514821.5755 | Z8: =Y8+('PV(NB) Revenue_Base'!Z9*('General Finance Analysis (PVNB)'!$B$4*'PV(NB)(M2) Info'!$D$19+(1-'General Finance Analysis (PVNB)'!$B$4)*'PV(NB)(M2) Info'!$D$20)+'PV(NB) Revenue_Base'!Z18-'PV(NB) Revenue_Base'!Z11-'PV(NB) Cost_Base'!Z20)*Z2*'PV(NB)(M2) Info'!$F$3 -> -428078.0612 | AA8: =Z8+('PV(NB) Revenue_Base'!AA9*('General Finance Analysis (PVNB)'!$B$4*'PV(NB)(M2) Info'!$D$19+(1-'General Finance Analysis (PVNB)'!$B$4)*'PV(NB)(M2) Info'!$D$20)+'PV(NB) Revenue_Base'!AA18-'PV(NB) Revenue_Base'!AA11-'PV(NB) Cost_Base'!AA20)*AA2*'PV(NB)(M2) Info'!$F$3 -> -408209.1382 | AB8: >25
A9: CASE 7 | B9: =-'General Finance Analysis (PVNB)'!L14 -> -2485377.675 | C9: =B9+C7-B7 -> -2381673.161 | D9: =C9+D7-C7 -> -2279275.062 | E9: -2178167.995 | F9: -2078336.755 | G9: -1979766.313 | H9: -1882441.813 | I9: -1786348.571 | J9: -1691472.072 | K9: -1597797.97 | L9: -1505312.084 | M9: -1414000.397 | N9: -1323849.054 | O9: -1319987.92 | P9: -1232116.339 | Q9: -1145364.49 | R9: -1059719.15 | S9: -975167.2448 | T9: -891695.854 | U9: -809292.2059 | V9: -727943.6764 | W9: -647637.7878 | X9: -568362.2063 | Y9: -490104.7411 | Z9: -412853.3423 | AA9: -402367.7562 | AB9: >25
A10: CASE 8 | B10: =-'General Finance Analysis (PVNB)'!L15 -> -2485377.675 | C10: =B10+C8-B8 -> -2369299.614 | D10: =C10+D8-C8 -> -2254669.767 | E10: -2141471.127 | F10: -2029686.882 | G10: -1919300.415 | H10: -1810295.3 | I10: -1702655.302 | J10: -1596364.372 | K10: -1491406.646 | L10: -1387766.446 | M10: -1285428.271 | N10: -1184376.803 | O10: -1169740.459 | P10: -1071217.15 | Q10: -973935.6415 | R10: -877881.3096 | S10: -783039.699 | T10: -689396.5216 | U10: -596937.6544 | V10: -505649.1376 | W10: -415517.1727 | X10: -326528.1208 | Y10: -238668.5005 | Z10: -151924.9862 | AA10: -132056.0632 | AB10: >25
A12: Year | B12: 0 | C12: 1 | D12: 2 | E12: 3 | F12: 4 | G12: 5 | H12: 6 | I12: 7 | J12: 8 | K12: 9 | L12: 10 | M12: 11 | N12: 12 | O12: 13 | P12: 14 | Q12: 15 | R12: 16 | S12: 17 | T12: 18 | U12: 19 | V12: 20 | W12: 21 | X12: 22 | Y12: 23 | Z12: 24 | AA12: 25
A13: Discount factor (End of year) | B13: 1 | C13: =C2 -> 0.9965122073 | D13: =D2 -> 0.9930365792 | E13: 0.9895730735 | F13: 0.9861216477 | G13: 0.9826822598 | H13: 0.9792548678 | I13: 0.9758394298 | J13: 0.9724359041 | K13: 0.9690442492 | L13: 0.9656644238 | M13: 0.9622963864 | N13: 0.9589400961 | O13: 0.9555955118 | P13: 0.9522625927 | Q13: 0.9489412982 | R13: 0.9456315876 | S13: 0.9423334206 | T13: 0.939046757 | U13: 0.9357715565 | V13: 0.9325077793 | W13: 0.9292553855 | X13: 0.9260143353 | Y13: 0.9227845892 | Z13: 0.9195661078 | AA13: 0.9163588519 | AB13: NPV
A14: CASE 1 | B14: =B3 -> -1873141.875 | C14: =C3-B3 -> 93829.28749 | D14: =D3-C3 -> 92636.0414 | E14: 91456.88124 | F14: 90291.64415 | G14: 89140.16915 | H14: 88002.29711 | I14: 86877.87071 | J14: 85766.73445 | K14: 84668.73461 | L14: 83583.71926 | M14: 82511.53819 | N14: 81452.04293 | O14: -4738.473404 | P14: 79370.52442 | Q14: 78348.21268 | R14: 77338.00972 | S14: 76339.7754 | T14: 75353.37118 | U14: 74378.66015 | V14: 73415.50693 | W14: 72463.77773 | X14: 71523.34028 | Y14: 70594.06383 | Z14: 69675.81914 | AA14: 2996.82187 | AB14: =SUM(B14:AA14) -> -5865.504365
A15: CASE 2 | B15: =B4 -> -1873141.875 | C15: =C4-B4 -> 106202.8347 | D15: 104867.7891 | E15: 103548.4545 | F15: 102244.6493 | G15: 100956.1942 | H15: 99682.91178 | I15: 98424.62681 | J15: 97181.16599 | K15: 95952.35803 | L15: 94738.03359 | M15: 93538.0253 | N15: 92352.1677 | O15: 6036.737134 | P15: 90022.25223 | Q15: 88877.87286 | R15: 87747.00114 | S15: 86629.48092 | T15: 85525.15781 | U15: 84433.87921 | V15: 83355.49429 | W15: 82289.85392 | X15: 81236.81071 | Y15: 80196.21896 | Z15: 79167.93463 | AA15: 12380.15875 | AB15: =SUM(B15:AA15) -> 264446.1886
A16: CASE 3 | B16: -1685827.688 | C16: 93829.28749 | D16: 92636.0414 | E16: 91456.88124 | F16: 90291.64415 | G16: 89140.16915 | H16: 88002.29711 | I16: 86877.87071 | J16: 85766.73445 | K16: 84668.73461 | L16: 83583.71926 | M16: 82511.53819 | N16: 81452.04293 | O16: -4738.473404 | P16: 79370.52442 | Q16: 78348.21268 | R16: 77338.00972 | S16: 76339.7754 | T16: 75353.37118 | U16: 74378.66015 | V16: 73415.50693 | W16: 72463.77773 | X16: 71523.34028 | Y16: 70594.06383 | Z16: 69675.81914 | AA16: 2996.82187 | AB16: 181448.6831
A17: CASE 4 | B17: -1685827.688 | C17: 106202.8347 | D17: 104867.7891 | E17: 103548.4545 | F17: 102244.6493 | G17: 100956.1942 | H17: 99682.91178 | I17: 98424.62681 | J17: 97181.16599 | K17: 95952.35803 | L17: 94738.03359 | M17: 93538.0253 | N17: 92352.1677 | O17: 6036.737134 | P17: 90022.25223 | Q17: 88877.87286 | R17: 87747.00114 | S17: 86629.48092 | T17: 85525.15781 | U17: 84433.87921 | V17: 83355.49429 | W17: 82289.85392 | X17: 81236.81071 | Y17: 80196.21896 | Z17: 79167.93463 | AA17: 12380.15875 | AB17: 451760.3761
A18: CASE 5 | B18: -2761530.75 | C18: 103704.5142 | D18: 102398.0991 | E18: 101107.0668 | F18: 99831.23966 | G18: 98570.44195 | H18: 97324.50001 | I18: 96093.24218 | J18: 94876.49878 | K18: 93674.10204 | L18: 92485.88617 | M18: 91311.68724 | N18: 90151.34323 | O18: 3861.133873 | P18: 87871.58114 | Q18: 86751.84823 | R18: 85645.34052 | S18: 84551.9051 | T18: 83471.39078 | U18: 82403.64813 | V18: 81348.52943 | W18: 80305.88866 | X18: 79275.58148 | Y18: 78257.46519 | Z18: 77251.39877 | AA18: 10485.58618 | AB18: -678520.8312
A19: CASE 6 | B19: -2761530.75 | C19: 116078.0614 | D19: 114629.8468 | E19: 113198.6401 | F19: 111784.2448 | G19: 110386.467 | H19: 109005.1147 | I19: 107639.9983 | J19: 106290.9303 | K19: 104957.7255 | L19: 103640.2005 | M19: 102338.1743 | N19: 101051.468 | O19: 14636.34441 | P19: 98523.30895 | Q19: 97281.5084 | R19: 96054.33194 | S19: 94841.61062 | T19: 93643.1774 | U19: 92458.86719 | V19: 91288.51679 | W19: 90131.96485 | X19: 88989.05191 | Y19: 87859.62032 | Z19: 86743.51425 | AA19: 19868.92306 | AB19: -408209.1382
A20: CASE 7 | B20: -2485377.675 | C20: 103704.5142 | D20: 102398.0991 | E20: 101107.0668 | F20: 99831.23966 | G20: 98570.44195 | H20: 97324.50001 | I20: 96093.24218 | J20: 94876.49878 | K20: 93674.10204 | L20: 92485.88617 | M20: 91311.68724 | N20: 90151.34323 | O20: 3861.133873 | P20: 87871.58114 | Q20: 86751.84823 | R20: 85645.34052 | S20: 84551.9051 | T20: 83471.39078 | U20: 82403.64813 | V20: 81348.52943 | W20: 80305.88866 | X20: 79275.58148 | Y20: 78257.46519 | Z20: 77251.39877 | AA20: 10485.58618 | AB20: -402367.7562
A21: CASE 8 | B21: -2485377.675 | C21: 116078.0614 | D21: 114629.8468 | E21: 113198.6401 | F21: 111784.2448 | G21: 110386.467 | H21: 109005.1147 | I21: 107639.9983 | J21: 106290.9303 | K21: 104957.7255 | L21: 103640.2005 | M21: 102338.1743 | N21: 101051.468 | O21: 14636.34441 | P21: 98523.30895 | Q21: 97281.5084 | R21: 96054.33194 | S21: 94841.61062 | T21: 93643.1774 | U21: 92458.86719 | V21: 91288.51679 | W21: 90131.96485 | X21: 88989.05191 | Y21: 87859.62032 | Z21: 86743.51425 | AA21: 19868.92306 | AB21: -132056.0632
A23: Case 9 | B23: 0 | C23: ='PV(NB) Revenue_Base'!C9*('PV(NB)(M2) Info'!$D$19-'PV(NB)(M2) Info'!$D$21)*C13*'PV(NB)(M2) Info'!$F$3 -> 19750.45341 | D23: ='PV(NB) Revenue_Base'!D9*('PV(NB)(M2) Info'!$D$19-'PV(NB)(M2) Info'!$D$21)*D13*'PV(NB)(M2) Info'!$F$3 -> 19524.11538 | E23: ='PV(NB) Revenue_Base'!E9*('PV(NB)(M2) Info'!$D$19-'PV(NB)(M2) Info'!$D$21)*E13*'PV(NB)(M2) Info'!$F$3 -> 19300.37116 | F23: ='PV(NB) Revenue_Base'!F9*('PV(NB)(M2) Info'!$D$19-'PV(NB)(M2) Info'!$D$21)*F13*'PV(NB)(M2) Info'!$F$3 -> 19079.19102 | G23: ='PV(NB) Revenue_Base'!G9*('PV(NB)(M2) Info'!$D$19-'PV(NB)(M2) Info'!$D$21)*G13*'PV(NB)(M2) Info'!$F$3 -> 18860.54558 | H23: ='PV(NB) Revenue_Base'!H9*('PV(NB)(M2) Info'!$D$19-'PV(NB)(M2) Info'!$D$21)*H13*'PV(NB)(M2) Info'!$F$3 -> 18644.4058 | I23: ='PV(NB) Revenue_Base'!I9*('PV(NB)(M2) Info'!$D$19-'PV(NB)(M2) Info'!$D$21)*I13*'PV(NB)(M2) Info'!$F$3 -> 18430.74295 | J23: ='PV(NB) Revenue_Base'!J9*('PV(NB)(M2) Info'!$D$19-'PV(NB)(M2) Info'!$D$21)*J13*'PV(NB)(M2) Info'!$F$3 -> 18219.52866 | K23: ='PV(NB) Revenue_Base'!K9*('PV(NB)(M2) Info'!$D$19-'PV(NB)(M2) Info'!$D$21)*K13*'PV(NB)(M2) Info'!$F$3 -> 18010.73486 | L23: ='PV(NB) Revenue_Base'!L9*('PV(NB)(M2) Info'!$D$19-'PV(NB)(M2) Info'!$D$21)*L13*'PV(NB)(M2) Info'!$F$3 -> 17804.33381 | M23: ='PV(NB) Revenue_Base'!M9*('PV(NB)(M2) Info'!$D$19-'PV(NB)(M2) Info'!$D$21)*M13*'PV(NB)(M2) Info'!$F$3 -> 17600.2981 | N23: ='PV(NB) Revenue_Base'!N9*('PV(NB)(M2) Info'!$D$19-'PV(NB)(M2) Info'!$D$21)*N13*'PV(NB)(M2) Info'!$F$3 -> 17398.60061 | O23: ='PV(NB) Revenue_Base'!O9*('PV(NB)(M2) Info'!$D$19-'PV(NB)(M2) Info'!$D$21)*O13*'PV(NB)(M2) Info'!$F$3 -> 17199.21455 | P23: ='PV(NB) Revenue_Base'!P9*('PV(NB)(M2) Info'!$D$19-'PV(NB)(M2) Info'!$D$21)*P13*'PV(NB)(M2) Info'!$F$3 -> 17002.11344 | Q23: ='PV(NB) Revenue_Base'!Q9*('PV(NB)(M2) Info'!$D$19-'PV(NB)(M2) Info'!$D$21)*Q13*'PV(NB)(M2) Info'!$F$3 -> 16807.27108 | R23: ='PV(NB) Revenue_Base'!R9*('PV(NB)(M2) Info'!$D$19-'PV(NB)(M2) Info'!$D$21)*R13*'PV(NB)(M2) Info'!$F$3 -> 16614.6616 | S23: ='PV(NB) Revenue_Base'!S9*('PV(NB)(M2) Info'!$D$19-'PV(NB)(M2) Info'!$D$21)*S13*'PV(NB)(M2) Info'!$F$3 -> 16424.2594 | T23: ='PV(NB) Revenue_Base'!T9*('PV(NB)(M2) Info'!$D$19-'PV(NB)(M2) Info'!$D$21)*T13*'PV(NB)(M2) Info'!$F$3 -> 16236.03919 | U23: ='PV(NB) Revenue_Base'!U9*('PV(NB)(M2) Info'!$D$19-'PV(NB)(M2) Info'!$D$21)*U13*'PV(NB)(M2) Info'!$F$3 -> 16049.97596 | V23: ='PV(NB) Revenue_Base'!V9*('PV(NB)(M2) Info'!$D$19-'PV(NB)(M2) Info'!$D$21)*V13*'PV(NB)(M2) Info'!$F$3 -> 15866.04499 | W23: ='PV(NB) Revenue_Base'!W9*('PV(NB)(M2) Info'!$D$19-'PV(NB)(M2) Info'!$D$21)*W13*'PV(NB)(M2) Info'!$F$3 -> 15684.22186 | X23: ='PV(NB) Revenue_Base'!X9*('PV(NB)(M2) Info'!$D$19-'PV(NB)(M2) Info'!$D$21)*X13*'PV(NB)(M2) Info'!$F$3 -> 15504.48239 | Y23: ='PV(NB) Revenue_Base'!Y9*('PV(NB)(M2) Info'!$D$19-'PV(NB)(M2) Info'!$D$21)*Y13*'PV(NB)(M2) Info'!$F$3 -> 15326.80272 | Z23: ='PV(NB) Revenue_Base'!Z9*('PV(NB)(M2) Info'!$D$19-'PV(NB)(M2) Info'!$D$21)*Z13*'PV(NB)(M2) Info'!$F$3 -> 15151.15924 | AA23: ='PV(NB) Revenue_Base'!AA9*('PV(NB)(M2) Info'!$D$19-'PV(NB)(M2) Info'!$D$21)*AA13*'PV(NB)(M2) Info'!$F$3 -> 14977.52862 | AB23: =SUM(B23:AA23) -> 431467.0964
A24: Case 10 | B24: 0 | C24: =(SUM('PV(NB) Revenue_Base'!C13:C15)+'PV(NB) Revenue_Base'!C9*('PV(NB)(M2) Info'!$D$19-'PV(NB)(M2) Info'!$D$21))*C13*'PV(NB)(M2) Info'!$F$3 -> 31482.11092 | D24: =(SUM('PV(NB) Revenue_Base'!D13:D15)+'PV(NB) Revenue_Base'!D9*('PV(NB)(M2) Info'!$D$19-'PV(NB)(M2) Info'!$D$21))*D13*'PV(NB)(M2) Info'!$F$3 -> 31121.32938 | E24: =(SUM('PV(NB) Revenue_Base'!E13:E15)+'PV(NB) Revenue_Base'!E9*('PV(NB)(M2) Info'!$D$19-'PV(NB)(M2) Info'!$D$21))*E13*'PV(NB)(M2) Info'!$F$3 -> 30764.68235 | F24: =(SUM('PV(NB) Revenue_Base'!F13:F15)+'PV(NB) Revenue_Base'!F9*('PV(NB)(M2) Info'!$D$19-'PV(NB)(M2) Info'!$D$21))*F13*'PV(NB)(M2) Info'!$F$3 -> 30412.12247 | G24: =(SUM('PV(NB) Revenue_Base'!G13:G15)+'PV(NB) Revenue_Base'!G9*('PV(NB)(M2) Info'!$D$19-'PV(NB)(M2) Info'!$D$21))*G13*'PV(NB)(M2) Info'!$F$3 -> 30063.60288 | H24: =(SUM('PV(NB) Revenue_Base'!H13:H15)+'PV(NB) Revenue_Base'!H9*('PV(NB)(M2) Info'!$D$19-'PV(NB)(M2) Info'!$D$21))*H13*'PV(NB)(M2) Info'!$F$3 -> 29719.07728 | I24: =(SUM('PV(NB) Revenue_Base'!I13:I15)+'PV(NB) Revenue_Base'!I9*('PV(NB)(M2) Info'!$D$19-'PV(NB)(M2) Info'!$D$21))*I13*'PV(NB)(M2) Info'!$F$3 -> 29378.49991 | J24: =(SUM('PV(NB) Revenue_Base'!J13:J15)+'PV(NB) Revenue_Base'!J9*('PV(NB)(M2) Info'!$D$19-'PV(NB)(M2) Info'!$D$21))*J13*'PV(NB)(M2) Info'!$F$3 -> 29041.82553 | K24: =(SUM('PV(NB) Revenue_Base'!K13:K15)+'PV(NB) Revenue_Base'!K9*('PV(NB)(M2) Info'!$D$19-'PV(NB)(M2) Info'!$D$21))*K13*'PV(NB)(M2) Info'!$F$3 -> 28709.00939 | L24: =(SUM('PV(NB) Revenue_Base'!L13:L15)+'PV(NB) Revenue_Base'!L9*('PV(NB)(M2) Info'!$D$19-'PV(NB)(M2) Info'!$D$21))*L13*'PV(NB)(M2) Info'!$F$3 -> 28380.00729 | M24: =(SUM('PV(NB) Revenue_Base'!M13:M15)+'PV(NB) Revenue_Base'!M9*('PV(NB)(M2) Info'!$D$19-'PV(NB)(M2) Info'!$D$21))*M13*'PV(NB)(M2) Info'!$F$3 -> 28054.77552 | N24: =(SUM('PV(NB) Revenue_Base'!N13:N15)+'PV(NB) Revenue_Base'!N9*('PV(NB)(M2) Info'!$D$19-'PV(NB)(M2) Info'!$D$21))*N13*'PV(NB)(M2) Info'!$F$3 -> 27733.27086 | O24: =(SUM('PV(NB) Revenue_Base'!O13:O15)+'PV(NB) Revenue_Base'!O9*('PV(NB)(M2) Info'!$D$19-'PV(NB)(M2) Info'!$D$21))*O13*'PV(NB)(M2) Info'!$F$3 -> 27415.45062 | P24: =(SUM('PV(NB) Revenue_Base'!P13:P15)+'PV(NB) Revenue_Base'!P9*('PV(NB)(M2) Info'!$D$19-'PV(NB)(M2) Info'!$D$21))*P13*'PV(NB)(M2) Info'!$F$3 -> 27101.27256 | Q24: =(SUM('PV(NB) Revenue_Base'!Q13:Q15)+'PV(NB) Revenue_Base'!Q9*('PV(NB)(M2) Info'!$D$19-'PV(NB)(M2) Info'!$D$21))*Q13*'PV(NB)(M2) Info'!$F$3 -> 26790.69495 | R24: =(SUM('PV(NB) Revenue_Base'!R13:R15)+'PV(NB) Revenue_Base'!R9*('PV(NB)(M2) Info'!$D$19-'PV(NB)(M2) Info'!$D$21))*R13*'PV(NB)(M2) Info'!$F$3 -> 26483.67652 | S24: =(SUM('PV(NB) Revenue_Base'!S13:S15)+'PV(NB) Revenue_Base'!S9*('PV(NB)(M2) Info'!$D$19-'PV(NB)(M2) Info'!$D$21))*S13*'PV(NB)(M2) Info'!$F$3 -> 26180.17649 | T24: =(SUM('PV(NB) Revenue_Base'!T13:T15)+'PV(NB) Revenue_Base'!T9*('PV(NB)(M2) Info'!$D$19-'PV(NB)(M2) Info'!$D$21))*T13*'PV(NB)(M2) Info'!$F$3 -> 25880.15454 | U24: =(SUM('PV(NB) Revenue_Base'!U13:U15)+'PV(NB) Revenue_Base'!U9*('PV(NB)(M2) Info'!$D$19-'PV(NB)(M2) Info'!$D$21))*U13*'PV(NB)(M2) Info'!$F$3 -> 25583.5708 | V24: =(SUM('PV(NB) Revenue_Base'!V13:V15)+'PV(NB) Revenue_Base'!V9*('PV(NB)(M2) Info'!$D$19-'PV(NB)(M2) Info'!$D$21))*V13*'PV(NB)(M2) Info'!$F$3 -> 25290.38589 | W24: =(SUM('PV(NB) Revenue_Base'!W13:W15)+'PV(NB) Revenue_Base'!W9*('PV(NB)(M2) Info'!$D$19-'PV(NB)(M2) Info'!$D$21))*W13*'PV(NB)(M2) Info'!$F$3 -> 25000.56084 | X24: =(SUM('PV(NB) Revenue_Base'!X13:X15)+'PV(NB) Revenue_Base'!X9*('PV(NB)(M2) Info'!$D$19-'PV(NB)(M2) Info'!$D$21))*X13*'PV(NB)(M2) Info'!$F$3 -> 24714.05715 | Y24: =(SUM('PV(NB) Revenue_Base'!Y13:Y15)+'PV(NB) Revenue_Base'!Y9*('PV(NB)(M2) Info'!$D$19-'PV(NB)(M2) Info'!$D$21))*Y13*'PV(NB)(M2) Info'!$F$3 -> 24430.83676 | Z24: =(SUM('PV(NB) Revenue_Base'!Z13:Z15)+'PV(NB) Revenue_Base'!Z9*('PV(NB)(M2) Info'!$D$19-'PV(NB)(M2) Info'!$D$21))*Z13*'PV(NB)(M2) Info'!$F$3 -> 24150.86205 | AA24: =(SUM('PV(NB) Revenue_Base'!AA13:AA15)+'PV(NB) Revenue_Base'!AA9*('PV(NB)(M2) Info'!$D$19-'PV(NB)(M2) Info'!$D$21))*AA13*'PV(NB)(M2) Info'!$F$3 -> 23874.09582 | AB24: =SUM(B24:AA24) -> 687756.1087
A27: Year | B27: 0 | C27: 1 | D27: 2 | E27: 3 | F27: 4 | G27: 5 | H27: 6 | I27: 7 | J27: 8 | K27: 9 | L27: 10 | M27: 11 | N27: 12 | O27: 13 | P27: 14 | Q27: 15 | R27: 16 | S27: 17 | T27: 18 | U27: 19 | V27: 20 | W27: 21 | X27: 22 | Y27: 23 | Z27: 24 | AA27: 25
A28: Discount factor (End of year) | B28: =B13 -> 1 | C28: 0.9965122073 | D28: 0.9930365792 | E28: 0.9895730735 | F28: 0.9861216477 | G28: 0.9826822598 | H28: 0.9792548678 | I28: 0.9758394298 | J28: 0.9724359041 | K28: 0.9690442492 | L28: 0.9656644238 | M28: 0.9622963864 | N28: 0.9589400961 | O28: 0.9555955118 | P28: 0.9522625927 | Q28: 0.9489412982 | R28: 0.9456315876 | S28: 0.9423334206 | T28: 0.939046757 | U28: 0.9357715565 | V28: 0.9325077793 | W28: 0.9292553855 | X28: 0.9260143353 | Y28: 0.9227845892 | Z28: 0.9195661078 | AA28: 0.9163588519 | AB28: IRR
A29: CASE 1 | B29: =B14/$B$2 -> -1873141.875 | C29: =C14/$C$2 -> 94157.69 | D29: =D14/$D$2 -> 93285.62848 | E29: =E14/$E$2 -> 92420.54345 | F29: =F14/$F$2 -> 91562.3791 | G29: =G14/$G$2 -> 90711.08007 | H29: =H14/$H$2 -> 89866.59143 | I29: =I14/$I$2 -> 89028.8587 | J29: =J14/$J$2 -> 88197.82783 | K29: =K14/$K$2 -> 87373.44521 | L29: =L14/$L$2 -> 86555.65765 | M29: =M14/$M$2 -> 85744.41238 | N29: =N14/$N$2 -> 84939.65709 | O29: =O14/$O$2 -> -4958.660171 | P29: =P14/$P$2 -> 83349.40911 | Q29: =Q14/$Q$2 -> 82563.81384 | R29: =R14/$R$2 -> 81784.50333 | S29: =S14/$S$2 -> 81011.4273 | T29: =T14/$T$2 -> 80244.53588 | U29: =U14/$U$2 -> 79483.77959 | V29: =V14/$V$2 -> 78729.10936 | W29: =W14/$W$2 -> 77980.47648 | X29: =X14/$X$2 -> 77237.83267 | Y29: =Y14/$Y$2 -> 76501.13001 | Z29: =Z14/$Z$2 -> 75770.32097 | AA29: =AA14/$AA$2 -> 3270.358402 | AB29: =IRR(B29:AA29) -> 0.003234618196
A30: CASE 2 | B30: -1873141.875 | C30: 106574.5447 | D30: 105603.1483 | E30: 104639.5231 | F30: 103683.6069 | G30: 102735.3381 | H30: 101794.6554 | I30: 100861.4981 | J30: 99935.80614 | K30: 99017.51969 | L30: 98106.57953 | M30: 97202.9269 | N30: 96306.50348 | O30: 6317.251452 | P30: 94535.11344 | Q30: 93660.03253 | R30: 92791.95227 | S30: 91930.81665 | T30: 91076.57012 | U30: 90229.15756 | V30: 89388.5243 | W30: 88554.61611 | X30: 87727.37918 | Y30: 86906.76014 | Z30: 86092.70606 | AA30: 13510.16441 | AB30: =IRR(B30:AA30) -> 0.0149531563
A31: CASE 3 | B31: -1685827.688 | C31: 94157.69 | D31: 93285.62848 | E31: 92420.54345 | F31: 91562.3791 | G31: 90711.08007 | H31: 89866.59143 | I31: 89028.8587 | J31: 88197.82783 | K31: 87373.44521 | L31: 86555.65765 | M31: 85744.41238 | N31: 84939.65709 | O31: -4958.660171 | P31: 83349.40911 | Q31: 82563.81384 | R31: 81784.50333 | S31: 81011.4273 | T31: 80244.53588 | U31: 79483.77959 | V31: 78729.10936 | W31: 77980.47648 | X31: 77237.83267 | Y31: 76501.13001 | Z31: 75770.32097 | AA31: 3270.358402 | AB31: 0.01235765509
A32: CASE 4 | B32: -1685827.688 | C32: 106574.5447 | D32: 105603.1483 | E32: 104639.5231 | F32: 103683.6069 | G32: 102735.3381 | H32: 101794.6554 | I32: 100861.4981 | J32: 99935.80614 | K32: 99017.51969 | L32: 98106.57953 | M32: 97202.9269 | N32: 96306.50348 | O32: 6317.251452 | P32: 94535.11344 | Q32: 93660.03253 | R32: 92791.95227 | S32: 91930.81665 | T32: 91076.57012 | U32: 90229.15756 | V32: 89388.5243 | W32: 88554.61611 | X32: 87727.37918 | Y32: 86906.76014 | Z32: 86092.70606 | AA32: 13510.16441 | AB32: 0.02461478383
A33: CASE 5 | B33: -2761530.75 | C33: 104067.48 | D33: 103116.1402 | E33: 102172.411 | F33: 101236.2318 | G33: 100307.5419 | H33: 99386.28156 | I33: 98472.39131 | J33: 97565.81218 | K33: 96666.48568 | L33: 95774.3538 | M33: 94889.35897 | N33: 94011.44409 | O33: 4040.552541 | P33: 92276.62812 | Q33: 91419.6151 | R33: 90569.45817 | S33: 89726.10251 | T33: 88889.49369 | U33: 88059.57774 | V33: 87236.30112 | W33: 86419.61071 | X33: 85609.45382 | Y33: 84805.77819 | Z33: 84008.53197 | AA33: 11442.66371 | AB33: -0.018922805
A34: CASE 6 | B34: -2761530.75 | C34: 116484.3347 | D34: 115433.66 | E34: 114391.3907 | F34: 113357.4596 | G34: 112331.7999 | H34: 111314.3455 | I34: 110305.0307 | J34: 109303.7905 | K34: 108310.5602 | L34: 107325.2757 | M34: 106347.8735 | N34: 105378.2905 | O34: 15316.46416 | P34: 103462.3325 | Q34: 102515.8338 | R34: 101576.9071 | S34: 100645.4919 | T34: 99721.52793 | U34: 98804.95571 | V34: 97895.71606 | W34: 96993.75033 | X34: 96099.00033 | Y34: 95211.40833 | Z34: 94330.91706 | AA34: 21682.46972 | AB34: -0.009472244228
A35: CASE 7 | B35: -2485377.675 | C35: 104067.48 | D35: 103116.1402 | E35: 102172.411 | F35: 101236.2318 | G35: 100307.5419 | H35: 99386.28156 | I35: 98472.39131 | J35: 97565.81218 | K35: 96666.48568 | L35: 95774.3538 | M35: 94889.35897 | N35: 94011.44409 | O35: 4040.552541 | P35: 92276.62812 | Q35: 91419.6151 | R35: 90569.45817 | S35: 89726.10251 | T35: 88889.49369 | U35: 88059.57774 | V35: 87236.30112 | W35: 86419.61071 | X35: 85609.45382 | Y35: 84805.77819 | Z35: 84008.53197 | AA35: 11442.66371 | AB35: -0.0108399047
A36: CASE 8 | B36: -2485377.675 | C36: 116484.3347 | D36: 115433.66 | E36: 114391.3907 | F36: 113357.4596 | G36: 112331.7999 | H36: 111314.3455 | I36: 110305.0307 | J36: 109303.7905 | K36: 108310.5602 | L36: 107325.2757 | M36: 106347.8735 | N36: 105378.2905 | O36: 15316.46416 | P36: 103462.3325 | Q36: 102515.8338 | R36: 101576.9071 | S36: 100645.4919 | T36: 99721.52793 | U36: 98804.95571 | V36: 97895.71606 | W36: 96993.75033 | X36: 96099.00033 | Y36: 95211.40833 | Z36: 94330.91706 | AA36: 21682.46972 | AB36: -0.001025598316
A38: Case 9 | B38: 0 | C38: 19819.58 | D38: 19661.02336 | E38: 19503.73517 | F38: 19347.70529 | G38: 19192.92365 | H38: 19039.38026 | I38: 18887.06522 | J38: 18735.9687 | K38: 18586.08095 | L38: 18437.3923 | M38: 18289.89316 | N38: 18143.57402 | O38: 17998.42542 | P38: 17854.43802 | Q38: 17711.60252 | R38: 17569.9097 | S38: 17429.35042 | T38: 17289.91561 | U38: 17151.59629 | V38: 17014.38352 | W38: 16878.26845 | X38: 16743.2423 | Y38: 16609.29637 | Z38: 16476.42199 | AA38: 16344.61062 | AB38: NA
A39: Case 10 | B39: 0 | C39: 31592.2983 | D39: 31339.55992 | E39: 31088.84344 | F39: 30840.13269 | G39: 30593.41163 | H39: 30348.66434 | I39: 30105.87502 | J39: 29865.02802 | K39: 29626.1078 | L39: 29389.09894 | M39: 29153.98614 | N39: 28920.75425 | O39: 28689.38822 | P39: 28459.87311 | Q39: 28232.19413 | R39: 28006.33658 | S39: 27782.28588 | T39: 27560.0276 | U39: 27339.54738 | V39: 27120.831 | W39: 26903.86435 | X39: 26688.63343 | Y39: 26475.12437 | Z39: 26263.32337 | AA39: 26053.21679 | AB39: NA
AB41: Payback
A42: CASE 1 | B42: =IF(B3>=0,B1,0) -> 0 | C42: =IF(C3>=0,C1,0) -> 0 | D42: 0 | E42: 0 | F42: 0 | G42: 0 | H42: 0 | I42: 0 | J42: 0 | K42: 0 | L42: 0 | M42: 0 | N42: 0 | O42: 0 | P42: 0 | Q42: 0 | R42: 0 | S42: 0 | T42: 0 | U42: 0 | V42: 0 | W42: 0 | X42: 0 | Y42: 0 | Z42: 0 | AA42: 0 | AB42: =MATCH(TRUE,INDEX(C42:AA42>0,0),0) -> 
A43: CASE 2 | B43: =IF(B4>=0,B1,0) -> 0 | C43: =IF(C4>=0,C1,0) -> 0 | D43: 0 | E43: 0 | F43: 0 | G43: 0 | H43: 0 | I43: 0 | J43: 0 | K43: 0 | L43: 0 | M43: 0 | N43: 0 | O43: 0 | P43: 0 | Q43: 0 | R43: 0 | S43: 0 | T43: 0 | U43: 0 | V43: 0 | W43: 21 | X43: 22 | Y43: 23 | Z43: 24 | AA43: 25 | AB43: =MATCH(TRUE,INDEX(C43:AA43>0,0),0) -> 21
A44: CASE 3 | B44: =IF(B5>=0,B1,0) -> 0 | C44: =IF(C5>=0,C1,0) -> 0 | D44: 0 | E44: 0 | F44: 0 | G44: 0 | H44: 0 | I44: 0 | J44: 0 | K44: 0 | L44: 0 | M44: 0 | N44: 0 | O44: 0 | P44: 0 | Q44: 0 | R44: 0 | S44: 0 | T44: 0 | U44: 0 | V44: 0 | W44: 0 | X44: 22 | Y44: 23 | Z44: 24 | AA44: 25 | AB44: =MATCH(TRUE,INDEX(C44:AA44>0,0),0) -> 22
A45: CASE 4 | B45: =IF(B6>=0,B1,0) -> 0 | C45: =IF(C6>=0,C1,0) -> 0 | D45: 0 | E45: 0 | F45: 0 | G45: 0 | H45: 0 | I45: 0 | J45: 0 | K45: 0 | L45: 0 | M45: 0 | N45: 0 | O45: 0 | P45: 0 | Q45: 0 | R45: 0 | S45: 0 | T45: 0 | U45: 19 | V45: 20 | W45: 21 | X45: 22 | Y45: 23 | Z45: 24 | AA45: 25 | AB45: =MATCH(TRUE,INDEX(C45:AA45>0,0),0) -> 19
A46: CASE 5 | B46: =IF(B7>=0,B1,0) -> 0 | C46: =IF(C7>=0,C1,0) -> 0 | D46: 0 | E46: 0 | F46: 0 | G46: 0 | H46: 0 | I46: 0 | J46: 0 | K46: 0 | L46: 0 | M46: 0 | N46: 0 | O46: 0 | P46: 0 | Q46: 0 | R46: 0 | S46: 0 | T46: 0 | U46: 0 | V46: 0 | W46: 0 | X46: 0 | Y46: 0 | Z46: 0 | AA46: 0 | AB46: =MATCH(TRUE,INDEX(C46:AA46>0,0),0) -> 
A47: CASE 6 | B47: =IF(B8>=0,B1,0) -> 0 | C47: =IF(C8>=0,C1,0) -> 0 | D47: 0 | E47: 0 | F47: 0 | G47: 0 | H47: 0 | I47: 0 | J47: 0 | K47: 0 | L47: 0 | M47: 0 | N47: 0 | O47: 0 | P47: 0 | Q47: 0 | R47: 0 | S47: 0 | T47: 0 | U47: 0 | V47: 0 | W47: 0 | X47: 0 | Y47: 0 | Z47: 0 | AA47: 0 | AB47: =MATCH(TRUE,INDEX(C47:AA47>0,0),0) -> 
A48: CASE 7 | B48: =IF(B9>=0,B1,0) -> 0 | C48: =IF(C9>=0,C1,0) -> 0 | D48: 0 | E48: 0 | F48: 0 | G48: 0 | H48: 0 | I48: 0 | J48: 0 | K48: 0 | L48: 0 | M48: 0 | N48: 0 | O48: 0 | P48: 0 | Q48: 0 | R48: 0 | S48: 0 | T48: 0 | U48: 0 | V48: 0 | W48: 0 | X48: 0 | Y48: 0 | Z48: 0 | AA48: 0 | AB48: =MATCH(TRUE,INDEX(C48:AA48>0,0),0) -> 
A49: CASE 8 | B49: =IF(B10>=0,B1,0) -> 0 | C49: =IF(C10>=0,C1,0) -> 0 | D49: 0 | E49: 0 | F49: 0 | G49: 0 | H49: 0 | I49: 0 | J49: 0 | K49: 0 | L49: 0 | M49: 0 | N49: 0 | O49: 0 | P49: 0 | Q49: 0 | R49: 0 | S49: 0 | T49: 0 | U49: 0 | V49: 0 | W49: 0 | X49: 0 | Y49: 0 | Z49: 0 | AA49: 0 | AB49: =MATCH(TRUE,INDEX(C49:AA49>0,0),0) -> 

Sheet PVNB_CBA (hidden)
A1: Year | B1: 0 | C1: 1 | D1: 2 | E1: 3 | F1: 4 | G1: 5 | H1: 6 | I1: 7 | J1: 8 | K1: 9 | L1: 10 | M1: 11 | N1: 12 | O1: 13 | P1: 14 | Q1: 15 | R1: 16 | S1: 17 | T1: 18 | U1: 19 | V1: 20 | W1: 21 | X1: 22 | Y1: 23 | Z1: 24 | AA1: 25
A2: Discount factor (End of year) | B2: 1 | C2: ='PV(NB)_CBA'!C2 -> 0.9965122073 | D2: ='PV(NB)_CBA'!D2 -> 0.9930365792 | E2: ='PV(NB)_CBA'!E2 -> 0.9895730735 | F2: ='PV(NB)_CBA'!F2 -> 0.9861216477 | G2: ='PV(NB)_CBA'!G2 -> 0.9826822598 | H2: ='PV(NB)_CBA'!H2 -> 0.9792548678 | I2: ='PV(NB)_CBA'!I2 -> 0.9758394298 | J2: ='PV(NB)_CBA'!J2 -> 0.9724359041 | K2: ='PV(NB)_CBA'!K2 -> 0.9690442492 | L2: ='PV(NB)_CBA'!L2 -> 0.9656644238 | M2: ='PV(NB)_CBA'!M2 -> 0.9622963864 | N2: ='PV(NB)_CBA'!N2 -> 0.9589400961 | O2: ='PV(NB)_CBA'!O2 -> 0.9555955118 | P2: ='PV(NB)_CBA'!P2 -> 0.9522625927 | Q2: ='PV(NB)_CBA'!Q2 -> 0.9489412982 | R2: ='PV(NB)_CBA'!R2 -> 0.9456315876 | S2: ='PV(NB)_CBA'!S2 -> 0.9423334206 | T2: ='PV(NB)_CBA'!T2 -> 0.939046757 | U2: ='PV(NB)_CBA'!U2 -> 0.9357715565 | V2: ='PV(NB)_CBA'!V2 -> 0.9325077793 | W2: ='PV(NB)_CBA'!W2 -> 0.9292553855 | X2: ='PV(NB)_CBA'!X2 -> 0.9260143353 | Y2: ='PV(NB)_CBA'!Y2 -> 0.9227845892 | Z2: ='PV(NB)_CBA'!Z2 -> 0.9195661078 | AA2: ='PV(NB)_CBA'!AA2 -> 0.9163588519 | AB2: NPV
A3: CASE 1 | B3: =(NB_CBA!B12)*B2+'PV(NB)_CBA'!B14 -> -5674741.875 | C3: =(NB_CBA!C12)*C2+'PV(NB)_CBA'!C14 -> 702252274.7 | D3: =(NB_CBA!D12)*D2+'PV(NB)_CBA'!D14 -> 699802098.4 | E3: =(NB_CBA!E12)*E2+'PV(NB)_CBA'!E14 -> 697360477.6 | F3: =(NB_CBA!F12)*F2+'PV(NB)_CBA'!F14 -> 694927382.6 | G3: =(NB_CBA!G12)*G2+'PV(NB)_CBA'!G14 -> 692502783.3 | H3: =(NB_CBA!H12)*H2+'PV(NB)_CBA'!H14 -> 690086650.2 | I3: =(NB_CBA!I12)*I2+'PV(NB)_CBA'!I14 -> 687678953.5 | J3: =(NB_CBA!J12)*J2+'PV(NB)_CBA'!J14 -> 685279663.7 | K3: =(NB_CBA!K12)*K2+'PV(NB)_CBA'!K14 -> 682888751.5 | L3: =(NB_CBA!L12)*L2+'PV(NB)_CBA'!L14 -> 680506187.3 | M3: =(NB_CBA!M12)*M2+'PV(NB)_CBA'!M14 -> 678131942.1 | N3: =(NB_CBA!N12)*N2+'PV(NB)_CBA'!N14 -> 675765986.8 | O3: =(NB_CBA!O12)*O2+'PV(NB)_CBA'!O14 -> 673323148.6 | P3: =(NB_CBA!P12)*P2+'PV(NB)_CBA'!P14 -> 671058829.5 | Q3: =(NB_CBA!Q12)*Q2+'PV(NB)_CBA'!Q14 -> 668717570 | R3: =(NB_CBA!R12)*R2+'PV(NB)_CBA'!R14 -> 666384484.7 | S3: =(NB_CBA!S12)*S2+'PV(NB)_CBA'!S14 -> 664059545.3 | T3: =(NB_CBA!T12)*T2+'PV(NB)_CBA'!T14 -> 661742723.1 | U3: =(NB_CBA!U12)*U2+'PV(NB)_CBA'!U14 -> 659433989.7 | V3: =(NB_CBA!V12)*V2+'PV(NB)_CBA'!V14 -> 657133316.9 | W3: =(NB_CBA!W12)*W2+'PV(NB)_CBA'!W14 -> 654840676.5 | X3: =(NB_CBA!X12)*X2+'PV(NB)_CBA'!X14 -> 652556040.2 | Y3: =(NB_CBA!Y12)*Y2+'PV(NB)_CBA'!Y14 -> 650279380.2 | Z3: =(NB_CBA!Z12)*Z2+'PV(NB)_CBA'!Z14 -> 648010668.5 | AA3: =(NB_CBA!AA12)*AA2+'PV(NB)_CBA'!AA14 -> 645684105.6 | AB3: =SUM(B3:AA3) -> 1.683473289e+10
A4: CASE 2 | B4: =(NB_CBA!B12)*B2+'PV(NB)_CBA'!B15 -> -5674741.875 | C4: =(NB_CBA!C12)*C2+'PV(NB)_CBA'!C15 -> 702264648.3 | D4: =(NB_CBA!D12)*D2+'PV(NB)_CBA'!D15 -> 699814330.1 | E4: =(NB_CBA!E12)*E2+'PV(NB)_CBA'!E15 -> 697372569.2 | F4: =(NB_CBA!F12)*F2+'PV(NB)_CBA'!F15 -> 694939335.6 | G4: =(NB_CBA!G12)*G2+'PV(NB)_CBA'!G15 -> 692514599.4 | H4: =(NB_CBA!H12)*H2+'PV(NB)_CBA'!H15 -> 690098330.8 | I4: =(NB_CBA!I12)*I2+'PV(NB)_CBA'!I15 -> 687690500.3 | J4: =(NB_CBA!J12)*J2+'PV(NB)_CBA'!J15 -> 685291078.2 | K4: =(NB_CBA!K12)*K2+'PV(NB)_CBA'!K15 -> 682900035.1 | L4: =(NB_CBA!L12)*L2+'PV(NB)_CBA'!L15 -> 680517341.6 | M4: =(NB_CBA!M12)*M2+'PV(NB)_CBA'!M15 -> 678142968.6 | N4: =(NB_CBA!N12)*N2+'PV(NB)_CBA'!N15 -> 675776886.9 | O4: =(NB_CBA!O12)*O2+'PV(NB)_CBA'!O15 -> 673333923.9 | P4: =(NB_CBA!P12)*P2+'PV(NB)_CBA'!P15 -> 671069481.3 | Q4: =(NB_CBA!Q12)*Q2+'PV(NB)_CBA'!Q15 -> 668728099.6 | R4: =(NB_CBA!R12)*R2+'PV(NB)_CBA'!R15 -> 666394893.7 | S4: =(NB_CBA!S12)*S2+'PV(NB)_CBA'!S15 -> 664069835 | T4: =(NB_CBA!T12)*T2+'PV(NB)_CBA'!T15 -> 661752894.9 | U4: =(NB_CBA!U12)*U2+'PV(NB)_CBA'!U15 -> 659444045 | V4: =(NB_CBA!V12)*V2+'PV(NB)_CBA'!V15 -> 657143256.9 | W4: =(NB_CBA!W12)*W2+'PV(NB)_CBA'!W15 -> 654850502.5 | X4: =(NB_CBA!X12)*X2+'PV(NB)_CBA'!X15 -> 652565753.7 | Y4: =(NB_CBA!Y12)*Y2+'PV(NB)_CBA'!Y15 -> 650288982.3 | Z4: =(NB_CBA!Z12)*Z2+'PV(NB)_CBA'!Z15 -> 648020160.6 | AA4: =(NB_CBA!AA12)*AA2+'PV(NB)_CBA'!AA15 -> 645693488.9 | AB4: =SUM(B4:AA4) -> 1.68350032e+10
A5: CASE 3 | B5: =(NB_CBA!B12)*B2+'PV(NB)_CBA'!B16 -> -5487427.688 | C5: =(NB_CBA!C12)*C2+'PV(NB)_CBA'!C16 -> 702252274.7 | D5: =(NB_CBA!D12)*D2+'PV(NB)_CBA'!D16 -> 699802098.4 | E5: =(NB_CBA!E12)*E2+'PV(NB)_CBA'!E16 -> 697360477.6 | F5: =(NB_CBA!F12)*F2+'PV(NB)_CBA'!F16 -> 694927382.6 | G5: =(NB_CBA!G12)*G2+'PV(NB)_CBA'!G16 -> 692502783.3 | H5: =(NB_CBA!H12)*H2+'PV(NB)_CBA'!H16 -> 690086650.2 | I5: =(NB_CBA!I12)*I2+'PV(NB)_CBA'!I16 -> 687678953.5 | J5: =(NB_CBA!J12)*J2+'PV(NB)_CBA'!J16 -> 685279663.7 | K5: =(NB_CBA!K12)*K2+'PV(NB)_CBA'!K16 -> 682888751.5 | L5: =(NB_CBA!L12)*L2+'PV(NB)_CBA'!L16 -> 680506187.3 | M5: =(NB_CBA!M12)*M2+'PV(NB)_CBA'!M16 -> 678131942.1 | N5: =(NB_CBA!N12)*N2+'PV(NB)_CBA'!N16 -> 675765986.8 | O5: =(NB_CBA!O12)*O2+'PV(NB)_CBA'!O16 -> 673323148.6 | P5: =(NB_CBA!P12)*P2+'PV(NB)_CBA'!P16 -> 671058829.5 | Q5: =(NB_CBA!Q12)*Q2+'PV(NB)_CBA'!Q16 -> 668717570 | R5: =(NB_CBA!R12)*R2+'PV(NB)_CBA'!R16 -> 666384484.7 | S5: =(NB_CBA!S12)*S2+'PV(NB)_CBA'!S16 -> 664059545.3 | T5: =(NB_CBA!T12)*T2+'PV(NB)_CBA'!T16 -> 661742723.1 | U5: =(NB_CBA!U12)*U2+'PV(NB)_CBA'!U16 -> 659433989.7 | V5: =(NB_CBA!V12)*V2+'PV(NB)_CBA'!V16 -> 657133316.9 | W5: =(NB_CBA!W12)*W2+'PV(NB)_CBA'!W16 -> 654840676.5 | X5: =(NB_CBA!X12)*X2+'PV(NB)_CBA'!X16 -> 652556040.2 | Y5: =(NB_CBA!Y12)*Y2+'PV(NB)_CBA'!Y16 -> 650279380.2 | Z5: =(NB_CBA!Z12)*Z2+'PV(NB)_CBA'!Z16 -> 648010668.5 | AA5: =(NB_CBA!AA12)*AA2+'PV(NB)_CBA'!AA16 -> 645684105.6 | AB5: 1.68349202e+10
A6: CASE 4 | B6: =(NB_CBA!B12)*B2+'PV(NB)_CBA'!B17 -> -5487427.688 | C6: =(NB_CBA!C12)*C2+'PV(NB)_CBA'!C17 -> 702264648.3 | D6: =(NB_CBA!D12)*D2+'PV(NB)_CBA'!D17 -> 699814330.1 | E6: =(NB_CBA!E12)*E2+'PV(NB)_CBA'!E17 -> 697372569.2 | F6: =(NB_CBA!F12)*F2+'PV(NB)_CBA'!F17 -> 694939335.6 | G6: =(NB_CBA!G12)*G2+'PV(NB)_CBA'!G17 -> 692514599.4 | H6: =(NB_CBA!H12)*H2+'PV(NB)_CBA'!H17 -> 690098330.8 | I6: =(NB_CBA!I12)*I2+'PV(NB)_CBA'!I17 -> 687690500.3 | J6: =(NB_CBA!J12)*J2+'PV(NB)_CBA'!J17 -> 685291078.2 | K6: =(NB_CBA!K12)*K2+'PV(NB)_CBA'!K17 -> 682900035.1 | L6: =(NB_CBA!L12)*L2+'PV(NB)_CBA'!L17 -> 680517341.6 | M6: =(NB_CBA!M12)*M2+'PV(NB)_CBA'!M17 -> 678142968.6 | N6: =(NB_CBA!N12)*N2+'PV(NB)_CBA'!N17 -> 675776886.9 | O6: =(NB_CBA!O12)*O2+'PV(NB)_CBA'!O17 -> 673333923.9 | P6: =(NB_CBA!P12)*P2+'PV(NB)_CBA'!P17 -> 671069481.3 | Q6: =(NB_CBA!Q12)*Q2+'PV(NB)_CBA'!Q17 -> 668728099.6 | R6: =(NB_CBA!R12)*R2+'PV(NB)_CBA'!R17 -> 666394893.7 | S6: =(NB_CBA!S12)*S2+'PV(NB)_CBA'!S17 -> 664069835 | T6: =(NB_CBA!T12)*T2+'PV(NB)_CBA'!T17 -> 661752894.9 | U6: =(NB_CBA!U12)*U2+'PV(NB)_CBA'!U17 -> 659444045 | V6: =(NB_CBA!V12)*V2+'PV(NB)_CBA'!V17 -> 657143256.9 | W6: =(NB_CBA!W12)*W2+'PV(NB)_CBA'!W17 -> 654850502.5 | X6: =(NB_CBA!X12)*X2+'PV(NB)_CBA'!X17 -> 652565753.7 | Y6: =(NB_CBA!Y12)*Y2+'PV(NB)_CBA'!Y17 -> 650288982.3 | Z6: =(NB_CBA!Z12)*Z2+'PV(NB)_CBA'!Z17 -> 648020160.6 | AA6: =(NB_CBA!AA12)*AA2+'PV(NB)_CBA'!AA17 -> 645693488.9 | AB6: 1.683519051e+10
A7: CASE 5 | B7: =(NB_CBA!B12)*B2+'PV(NB)_CBA'!B18 -> -6563130.75 | C7: =(NB_CBA!C12)*C2+'PV(NB)_CBA'!C18 -> 702262150 | D7: =(NB_CBA!D12)*D2+'PV(NB)_CBA'!D18 -> 699811860.4 | E7: =(NB_CBA!E12)*E2+'PV(NB)_CBA'!E18 -> 697370127.8 | F7: =(NB_CBA!F12)*F2+'PV(NB)_CBA'!F18 -> 694936922.2 | G7: =(NB_CBA!G12)*G2+'PV(NB)_CBA'!G18 -> 692512213.6 | H7: =(NB_CBA!H12)*H2+'PV(NB)_CBA'!H18 -> 690095972.4 | I7: =(NB_CBA!I12)*I2+'PV(NB)_CBA'!I18 -> 687688168.9 | J7: =(NB_CBA!J12)*J2+'PV(NB)_CBA'!J18 -> 685288773.5 | K7: =(NB_CBA!K12)*K2+'PV(NB)_CBA'!K18 -> 682897756.8 | L7: =(NB_CBA!L12)*L2+'PV(NB)_CBA'!L18 -> 680515089.5 | M7: =(NB_CBA!M12)*M2+'PV(NB)_CBA'!M18 -> 678140742.3 | N7: =(NB_CBA!N12)*N2+'PV(NB)_CBA'!N18 -> 675774686.1 | O7: =(NB_CBA!O12)*O2+'PV(NB)_CBA'!O18 -> 673331748.3 | P7: =(NB_CBA!P12)*P2+'PV(NB)_CBA'!P18 -> 671067330.6 | Q7: =(NB_CBA!Q12)*Q2+'PV(NB)_CBA'!Q18 -> 668725973.6 | R7: =(NB_CBA!R12)*R2+'PV(NB)_CBA'!R18 -> 666392792.1 | S7: =(NB_CBA!S12)*S2+'PV(NB)_CBA'!S18 -> 664067757.4 | T7: =(NB_CBA!T12)*T2+'PV(NB)_CBA'!T18 -> 661750841.1 | U7: =(NB_CBA!U12)*U2+'PV(NB)_CBA'!U18 -> 659442014.7 | V7: =(NB_CBA!V12)*V2+'PV(NB)_CBA'!V18 -> 657141249.9 | W7: =(NB_CBA!W12)*W2+'PV(NB)_CBA'!W18 -> 654848518.6 | X7: =(NB_CBA!X12)*X2+'PV(NB)_CBA'!X18 -> 652563792.4 | Y7: =(NB_CBA!Y12)*Y2+'PV(NB)_CBA'!Y18 -> 650287043.6 | Z7: =(NB_CBA!Z12)*Z2+'PV(NB)_CBA'!Z18 -> 648018244 | AA7: =(NB_CBA!AA12)*AA2+'PV(NB)_CBA'!AA18 -> 645691594.3 | AB7: 1.683406023e+10
A8: CASE 6 | B8: =(NB_CBA!B12)*B2+'PV(NB)_CBA'!B19 -> -6563130.75 | C8: =(NB_CBA!C12)*C2+'PV(NB)_CBA'!C19 -> 702274523.5 | D8: =(NB_CBA!D12)*D2+'PV(NB)_CBA'!D19 -> 699824092.2 | E8: =(NB_CBA!E12)*E2+'PV(NB)_CBA'!E19 -> 697382219.4 | F8: =(NB_CBA!F12)*F2+'PV(NB)_CBA'!F19 -> 694948875.2 | G8: =(NB_CBA!G12)*G2+'PV(NB)_CBA'!G19 -> 692524029.6 | H8: =(NB_CBA!H12)*H2+'PV(NB)_CBA'!H19 -> 690107653 | I8: =(NB_CBA!I12)*I2+'PV(NB)_CBA'!I19 -> 687699715.6 | J8: =(NB_CBA!J12)*J2+'PV(NB)_CBA'!J19 -> 685300187.9 | K8: =(NB_CBA!K12)*K2+'PV(NB)_CBA'!K19 -> 682909040.4 | L8: =(NB_CBA!L12)*L2+'PV(NB)_CBA'!L19 -> 680526243.8 | M8: =(NB_CBA!M12)*M2+'PV(NB)_CBA'!M19 -> 678151768.8 | N8: =(NB_CBA!N12)*N2+'PV(NB)_CBA'!N19 -> 675785586.2 | O8: =(NB_CBA!O12)*O2+'PV(NB)_CBA'!O19 -> 673342523.5 | P8: =(NB_CBA!P12)*P2+'PV(NB)_CBA'!P19 -> 671077982.3 | Q8: =(NB_CBA!Q12)*Q2+'PV(NB)_CBA'!Q19 -> 668736503.2 | R8: =(NB_CBA!R12)*R2+'PV(NB)_CBA'!R19 -> 666403201.1 | S8: =(NB_CBA!S12)*S2+'PV(NB)_CBA'!S19 -> 664078047.1 | T8: =(NB_CBA!T12)*T2+'PV(NB)_CBA'!T19 -> 661761012.9 | U8: =(NB_CBA!U12)*U2+'PV(NB)_CBA'!U19 -> 659452069.9 | V8: =(NB_CBA!V12)*V2+'PV(NB)_CBA'!V19 -> 657151189.9 | W8: =(NB_CBA!W12)*W2+'PV(NB)_CBA'!W19 -> 654858344.6 | X8: =(NB_CBA!X12)*X2+'PV(NB)_CBA'!X19 -> 652573505.9 | Y8: =(NB_CBA!Y12)*Y2+'PV(NB)_CBA'!Y19 -> 650296645.7 | Z8: =(NB_CBA!Z12)*Z2+'PV(NB)_CBA'!Z19 -> 648027736.2 | AA8: =(NB_CBA!AA12)*AA2+'PV(NB)_CBA'!AA19 -> 645700977.7 | AB8: 1.683433055e+10
A9: CASE 7 | B9: =(NB_CBA!B12)*B2+'PV(NB)_CBA'!B20 -> -6286977.675 | C9: =(NB_CBA!C12)*C2+'PV(NB)_CBA'!C20 -> 702262150 | D9: =(NB_CBA!D12)*D2+'PV(NB)_CBA'!D20 -> 699811860.4 | E9: =(NB_CBA!E12)*E2+'PV(NB)_CBA'!E20 -> 697370127.8 | F9: =(NB_CBA!F12)*F2+'PV(NB)_CBA'!F20 -> 694936922.2 | G9: =(NB_CBA!G12)*G2+'PV(NB)_CBA'!G20 -> 692512213.6 | H9: =(NB_CBA!H12)*H2+'PV(NB)_CBA'!H20 -> 690095972.4 | I9: =(NB_CBA!I12)*I2+'PV(NB)_CBA'!I20 -> 687688168.9 | J9: =(NB_CBA!J12)*J2+'PV(NB)_CBA'!J20 -> 685288773.5 | K9: =(NB_CBA!K12)*K2+'PV(NB)_CBA'!K20 -> 682897756.8 | L9: =(NB_CBA!L12)*L2+'PV(NB)_CBA'!L20 -> 680515089.5 | M9: =(NB_CBA!M12)*M2+'PV(NB)_CBA'!M20 -> 678140742.3 | N9: =(NB_CBA!N12)*N2+'PV(NB)_CBA'!N20 -> 675774686.1 | O9: =(NB_CBA!O12)*O2+'PV(NB)_CBA'!O20 -> 673331748.3 | P9: =(NB_CBA!P12)*P2+'PV(NB)_CBA'!P20 -> 671067330.6 | Q9: =(NB_CBA!Q12)*Q2+'PV(NB)_CBA'!Q20 -> 668725973.6 | R9: =(NB_CBA!R12)*R2+'PV(NB)_CBA'!R20 -> 666392792.1 | S9: =(NB_CBA!S12)*S2+'PV(NB)_CBA'!S20 -> 664067757.4 | T9: =(NB_CBA!T12)*T2+'PV(NB)_CBA'!T20 -> 661750841.1 | U9: =(NB_CBA!U12)*U2+'PV(NB)_CBA'!U20 -> 659442014.7 | V9: =(NB_CBA!V12)*V2+'PV(NB)_CBA'!V20 -> 657141249.9 | W9: =(NB_CBA!W12)*W2+'PV(NB)_CBA'!W20 -> 654848518.6 | X9: =(NB_CBA!X12)*X2+'PV(NB)_CBA'!X20 -> 652563792.4 | Y9: =(NB_CBA!Y12)*Y2+'PV(NB)_CBA'!Y20 -> 650287043.6 | Z9: =(NB_CBA!Z12)*Z2+'PV(NB)_CBA'!Z20 -> 648018244 | AA9: =(NB_CBA!AA12)*AA2+'PV(NB)_CBA'!AA20 -> 645691594.3 | AB9: 1.683433639e+10
A10: CASE 8 | B10: =(NB_CBA!B12)*B2+'PV(NB)_CBA'!B21 -> -6286977.675 | C10: =(NB_CBA!C12)*C2+'PV(NB)_CBA'!C21 -> 702274523.5 | D10: =(NB_CBA!D12)*D2+'PV(NB)_CBA'!D21 -> 699824092.2 | E10: =(NB_CBA!E12)*E2+'PV(NB)_CBA'!E21 -> 697382219.4 | F10: =(NB_CBA!F12)*F2+'PV(NB)_CBA'!F21 -> 694948875.2 | G10: =(NB_CBA!G12)*G2+'PV(NB)_CBA'!G21 -> 692524029.6 | H10: =(NB_CBA!H12)*H2+'PV(NB)_CBA'!H21 -> 690107653 | I10: =(NB_CBA!I12)*I2+'PV(NB)_CBA'!I21 -> 687699715.6 | J10: =(NB_CBA!J12)*J2+'PV(NB)_CBA'!J21 -> 685300187.9 | K10: =(NB_CBA!K12)*K2+'PV(NB)_CBA'!K21 -> 682909040.4 | L10: =(NB_CBA!L12)*L2+'PV(NB)_CBA'!L21 -> 680526243.8 | M10: =(NB_CBA!M12)*M2+'PV(NB)_CBA'!M21 -> 678151768.8 | N10: =(NB_CBA!N12)*N2+'PV(NB)_CBA'!N21 -> 675785586.2 | O10: =(NB_CBA!O12)*O2+'PV(NB)_CBA'!O21 -> 673342523.5 | P10: =(NB_CBA!P12)*P2+'PV(NB)_CBA'!P21 -> 671077982.3 | Q10: =(NB_CBA!Q12)*Q2+'PV(NB)_CBA'!Q21 -> 668736503.2 | R10: =(NB_CBA!R12)*R2+'PV(NB)_CBA'!R21 -> 666403201.1 | S10: =(NB_CBA!S12)*S2+'PV(NB)_CBA'!S21 -> 664078047.1 | T10: =(NB_CBA!T12)*T2+'PV(NB)_CBA'!T21 -> 661761012.9 | U10: =(NB_CBA!U12)*U2+'PV(NB)_CBA'!U21 -> 659452069.9 | V10: =(NB_CBA!V12)*V2+'PV(NB)_CBA'!V21 -> 657151189.9 | W10: =(NB_CBA!W12)*W2+'PV(NB)_CBA'!W21 -> 654858344.6 | X10: =(NB_CBA!X12)*X2+'PV(NB)_CBA'!X21 -> 652573505.9 | Y10: =(NB_CBA!Y12)*Y2+'PV(NB)_CBA'!Y21 -> 650296645.7 | Z10: =(NB_CBA!Z12)*Z2+'PV(NB)_CBA'!Z21 -> 648027736.2 | AA10: =(NB_CBA!AA12)*AA2+'PV(NB)_CBA'!AA21 -> 645700977.7 | AB10: 1.68346067e+10
A11: Special Cases
A12: Case 9 | B12: =(NB_CBA!B12)*B2+'PV(NB)_CBA'!B23 -> -3801600 | C12: =(NB_CBA!C12)*C2+'PV(NB)_CBA'!C23 -> 702178195.9 | D12: =(NB_CBA!D12)*D2+'PV(NB)_CBA'!D23 -> 699728986.4 | E12: =(NB_CBA!E12)*E2+'PV(NB)_CBA'!E23 -> 697288321.1 | F12: =(NB_CBA!F12)*F2+'PV(NB)_CBA'!F23 -> 694856170.1 | G12: =(NB_CBA!G12)*G2+'PV(NB)_CBA'!G23 -> 692432503.7 | H12: =(NB_CBA!H12)*H2+'PV(NB)_CBA'!H23 -> 690017292.3 | I12: =(NB_CBA!I12)*I2+'PV(NB)_CBA'!I23 -> 687610506.4 | J12: =(NB_CBA!J12)*J2+'PV(NB)_CBA'!J23 -> 685212116.5 | K12: =(NB_CBA!K12)*K2+'PV(NB)_CBA'!K23 -> 682822093.5 | L12: =(NB_CBA!L12)*L2+'PV(NB)_CBA'!L23 -> 680440407.9 | M12: =(NB_CBA!M12)*M2+'PV(NB)_CBA'!M23 -> 678067030.9 | N12: =(NB_CBA!N12)*N2+'PV(NB)_CBA'!N23 -> 675701933.3 | O12: =(NB_CBA!O12)*O2+'PV(NB)_CBA'!O23 -> 673345086.3 | P12: =(NB_CBA!P12)*P2+'PV(NB)_CBA'!P23 -> 670996461.1 | Q12: =(NB_CBA!Q12)*Q2+'PV(NB)_CBA'!Q23 -> 668656029 | R12: =(NB_CBA!R12)*R2+'PV(NB)_CBA'!R23 -> 666323761.4 | S12: =(NB_CBA!S12)*S2+'PV(NB)_CBA'!S23 -> 663999629.8 | T12: =(NB_CBA!T12)*T2+'PV(NB)_CBA'!T23 -> 661683605.8 | U12: =(NB_CBA!U12)*U2+'PV(NB)_CBA'!U23 -> 659375661.1 | V12: =(NB_CBA!V12)*V2+'PV(NB)_CBA'!V23 -> 657075767.5 | W12: =(NB_CBA!W12)*W2+'PV(NB)_CBA'!W23 -> 654783896.9 | X12: =(NB_CBA!X12)*X2+'PV(NB)_CBA'!X23 -> 652500021.3 | Y12: =(NB_CBA!Y12)*Y2+'PV(NB)_CBA'!Y23 -> 650224112.9 | Z12: =(NB_CBA!Z12)*Z2+'PV(NB)_CBA'!Z23 -> 647956143.8 | AA12: =(NB_CBA!AA12)*AA2+'PV(NB)_CBA'!AA23 -> 645696086.3 | AB12: =SUM(B12:AA12) -> 1.683517022e+10
A13: Case 10 | B13: =(NB_CBA!B12)*B2+'PV(NB)_CBA'!B24 -> -3801600 | C13: =(NB_CBA!C12)*C2+'PV(NB)_CBA'!C24 -> 702189927.6 | D13: =(NB_CBA!D12)*D2+'PV(NB)_CBA'!D24 -> 699740583.7 | E13: =(NB_CBA!E12)*E2+'PV(NB)_CBA'!E24 -> 697299785.4 | F13: =(NB_CBA!F12)*F2+'PV(NB)_CBA'!F24 -> 694867503.1 | G13: =(NB_CBA!G12)*G2+'PV(NB)_CBA'!G24 -> 692443706.8 | H13: =(NB_CBA!H12)*H2+'PV(NB)_CBA'!H24 -> 690028367 | I13: =(NB_CBA!I12)*I2+'PV(NB)_CBA'!I24 -> 687621454.1 | J13: =(NB_CBA!J12)*J2+'PV(NB)_CBA'!J24 -> 685222938.8 | K13: =(NB_CBA!K12)*K2+'PV(NB)_CBA'!K24 -> 682832791.7 | L13: =(NB_CBA!L12)*L2+'PV(NB)_CBA'!L24 -> 680450983.6 | M13: =(NB_CBA!M12)*M2+'PV(NB)_CBA'!M24 -> 678077485.4 | N13: =(NB_CBA!N12)*N2+'PV(NB)_CBA'!N24 -> 675712268 | O13: =(NB_CBA!O12)*O2+'PV(NB)_CBA'!O24 -> 673355302.6 | P13: =(NB_CBA!P12)*P2+'PV(NB)_CBA'!P24 -> 671006560.3 | Q13: =(NB_CBA!Q12)*Q2+'PV(NB)_CBA'!Q24 -> 668666012.4 | R13: =(NB_CBA!R12)*R2+'PV(NB)_CBA'!R24 -> 666333630.4 | S13: =(NB_CBA!S12)*S2+'PV(NB)_CBA'!S24 -> 664009385.7 | T13: =(NB_CBA!T12)*T2+'PV(NB)_CBA'!T24 -> 661693249.9 | U13: =(NB_CBA!U12)*U2+'PV(NB)_CBA'!U24 -> 659385194.6 | V13: =(NB_CBA!V12)*V2+'PV(NB)_CBA'!V24 -> 657085191.8 | W13: =(NB_CBA!W12)*W2+'PV(NB)_CBA'!W24 -> 654793213.2 | X13: =(NB_CBA!X12)*X2+'PV(NB)_CBA'!X24 -> 652509230.9 | Y13: =(NB_CBA!Y12)*Y2+'PV(NB)_CBA'!Y24 -> 650233217 | Z13: =(NB_CBA!Z12)*Z2+'PV(NB)_CBA'!Z24 -> 647965143.5 | AA13: =(NB_CBA!AA12)*AA2+'PV(NB)_CBA'!AA24 -> 645704982.9 | AB13: 1.683542651e+10
A15: Year | B15: 0 | C15: 1 | D15: 2 | E15: 3 | F15: 4 | G15: 5 | H15: 6 | I15: 7 | J15: 8 | K15: 9 | L15: 10 | M15: 11 | N15: 12 | O15: 13 | P15: 14 | Q15: 15 | R15: 16 | S15: 17 | T15: 18 | U15: 19 | V15: 20 | W15: 21 | X15: 22 | Y15: 23 | Z15: 24 | AA15: 25 | AB15: IRR
A16: CASE 1 | B16: =B3/B2 -> -5674741.875 | C16: 704710157.7 | D16: 704709285.6 | E16: 704708420.5 | F16: 704707562.4 | G16: 704706711.1 | H16: 704705866.6 | I16: 704705028.9 | J16: 704704197.8 | K16: 704703373.4 | L16: 704702555.7 | M16: 704701744.4 | N16: 704700939.7 | O16: 704611041.3 | P16: 704699349.4 | Q16: 704698563.8 | R16: 704697784.5 | S16: 704697011.4 | T16: 704696244.5 | U16: 704695483.8 | V16: 704694729.1 | W16: 704693980.5 | X16: 704693237.8 | Y16: 704692501.1 | Z16: 704691770.3 | AA16: 704619270.4 | AB16: =IRR(B16:AA16) -> 124.1836486
A17: CASE 2 | B17: =B4/B2 -> -5674741.875 | C17: 704722574.5 | D17: 704721603.1 | E17: 704720639.5 | F17: 704719683.6 | G17: 704718735.3 | H17: 704717794.7 | I17: 704716861.5 | J17: 704715935.8 | K17: 704715017.5 | L17: 704714106.6 | M17: 704713202.9 | N17: 704712306.5 | O17: 704622317.3 | P17: 704710535.1 | Q17: 704709660 | R17: 704708792 | S17: 704707930.8 | T17: 704707076.6 | U17: 704706229.2 | V17: 704705388.5 | W17: 704704554.6 | X17: 704703727.4 | Y17: 704702906.8 | Z17: 704702092.7 | AA17: 704629510.2 | AB17: =IRR(B17:AA17) -> 124.1858365
A18: CASE 3 | B18: =B5/B2 -> -5487427.688 | C18: 704710157.7 | D18: 704709285.6 | E18: 704708420.5 | F18: 704707562.4 | G18: 704706711.1 | H18: 704705866.6 | I18: 704705028.9 | J18: 704704197.8 | K18: 704703373.4 | L18: 704702555.7 | M18: 704701744.4 | N18: 704700939.7 | O18: 704611041.3 | P18: 704699349.4 | Q18: 704698563.8 | R18: 704697784.5 | S18: 704697011.4 | T18: 704696244.5 | U18: 704695483.8 | V18: 704694729.1 | W18: 704693980.5 | X18: 704693237.8 | Y18: 704692501.1 | Z18: 704691770.3 | AA18: 704619270.4 | AB18: 128.4226765
A19: CASE 4 | B19: =B6/B2 -> -5487427.688 | C19: 704722574.5 | D19: 704721603.1 | E19: 704720639.5 | F19: 704719683.6 | G19: 704718735.3 | H19: 704717794.7 | I19: 704716861.5 | J19: 704715935.8 | K19: 704715017.5 | L19: 704714106.6 | M19: 704713202.9 | N19: 704712306.5 | O19: 704622317.3 | P19: 704710535.1 | Q19: 704709660 | R19: 704708792 | S19: 704707930.8 | T19: 704707076.6 | U19: 704706229.2 | V19: 704705388.5 | W19: 704704554.6 | X19: 704703727.4 | Y19: 704702906.8 | Z19: 704702092.7 | AA19: 704629510.2 | AB19: 128.4249392
A20: CASE 5 | B20: =B7/B2 -> -6563130.75 | C20: 704720067.5 | D20: 704719116.1 | E20: 704718172.4 | F20: 704717236.2 | G20: 704716307.5 | H20: 704715386.3 | I20: 704714472.4 | J20: 704713565.8 | K20: 704712666.5 | L20: 704711774.4 | M20: 704710889.4 | N20: 704710011.4 | O20: 704620040.6 | P20: 704708276.6 | Q20: 704707419.6 | R20: 704706569.5 | S20: 704705726.1 | T20: 704704889.5 | U20: 704704059.6 | V20: 704703236.3 | W20: 704702419.6 | X20: 704701609.5 | Y20: 704700805.8 | Z20: 704700008.5 | AA20: 704627442.7 | AB20: 107.3755934
A21: CASE 6 | B21: =B8/B2 -> -6563130.75 | C21: 704732484.3 | D21: 704731433.7 | E21: 704730391.4 | F21: 704729357.5 | G21: 704728331.8 | H21: 704727314.3 | I21: 704726305 | J21: 704725303.8 | K21: 704724310.6 | L21: 704723325.3 | M21: 704722347.9 | N21: 704721378.3 | O21: 704631316.5 | P21: 704719462.3 | Q21: 704718515.8 | R21: 704717576.9 | S21: 704716645.5 | T21: 704715721.5 | U21: 704714805 | V21: 704713895.7 | W21: 704712993.8 | X21: 704712099 | Y21: 704711211.4 | Z21: 704710330.9 | AA21: 704637682.5 | AB21: 107.3774851
A22: CASE 7 | B22: =B9/B2 -> -6286977.675 | C22: 704720067.5 | D22: 704719116.1 | E22: 704718172.4 | F22: 704717236.2 | G22: 704716307.5 | H22: 704715386.3 | I22: 704714472.4 | J22: 704713565.8 | K22: 704712666.5 | L22: 704711774.4 | M22: 704710889.4 | N22: 704710011.4 | O22: 704620040.6 | P22: 704708276.6 | Q22: 704707419.6 | R22: 704706569.5 | S22: 704705726.1 | T22: 704704889.5 | U22: 704704059.6 | V22: 704703236.3 | W22: 704702419.6 | X22: 704701609.5 | Y22: 704700805.8 | Z22: 704700008.5 | AA22: 704627442.7 | AB22: 112.092025
A23: CASE 8 | B23: =B10/B2 -> -6286977.675 | C23: 704732484.3 | D23: 704731433.7 | E23: 704730391.4 | F23: 704729357.5 | G23: 704728331.8 | H23: 704727314.3 | I23: 704726305 | J23: 704725303.8 | K23: 704724310.6 | L23: 704723325.3 | M23: 704722347.9 | N23: 704721378.3 | O23: 704631316.5 | P23: 704719462.3 | Q23: 704718515.8 | R23: 704717576.9 | S23: 704716645.5 | T23: 704715721.5 | U23: 704714805 | V23: 704713895.7 | W23: 704712993.8 | X23: 704712099 | Y23: 704711211.4 | Z23: 704710330.9 | AA23: 704637682.5 | AB23: 112.0939999
A24: Special Cases
A25: Case 9 | B25: =B12/B2 -> -3801600 | C25: 704635819.6 | D25: 704635661 | E25: 704635503.7 | F25: 704635347.7 | G25: 704635192.9 | H25: 704635039.4 | I25: 704634887.1 | J25: 704634736 | K25: 704634586.1 | L25: 704634437.4 | M25: 704634289.9 | N25: 704634143.6 | O25: 704633998.4 | P25: 704633854.4 | Q25: 704633711.6 | R25: 704633569.9 | S25: 704633429.4 | T25: 704633289.9 | U25: 704633151.6 | V25: 704633014.4 | W25: 704632878.3 | X25: 704632743.2 | Y25: 704632609.3 | Z25: 704632476.4 | AA25: 704632344.6 | AB25: 185.3524355
A26: Case 10 | B26: =B13/B2 -> -3801600 | C26: 704647592.3 | D26: 704647339.6 | E26: 704647088.8 | F26: 704646840.1 | G26: 704646593.4 | H26: 704646348.7 | I26: 704646105.9 | J26: 704645865 | K26: 704645626.1 | L26: 704645389.1 | M26: 704645154 | N26: 704644920.8 | O26: 704644689.4 | P26: 704644459.9 | Q26: 704644232.2 | R26: 704644006.3 | S26: 704643782.3 | T26: 704643560 | U26: 704643339.5 | V26: 704643120.8 | W26: 704642903.9 | X26: 704642688.6 | Y26: 704642475.1 | Z26: 704642263.3 | AA26: 704642053.2 | AB26: 185.3555321
A28: Year | B28: 0 | C28: 1 | D28: 2 | E28: 3 | F28: 4 | G28: 5 | H28: 6 | I28: 7 | J28: 8 | K28: 9 | L28: 10 | M28: 11 | N28: 12 | O28: 13 | P28: 14 | Q28: 15 | R28: 16 | S28: 17 | T28: 18 | U28: 19 | V28: 20 | W28: 21 | X28: 22 | Y28: 23 | Z28: 24 | AA28: 25 | AB28: Payback
A29: CASE 1 | B29: =B3 -> -5674741.875 | C29: =B29+C3 -> 696577532.9 | D29: 1396379631 | E29: 2093740109 | F29: 2788667491 | G29: 3481170275 | H29: 4171256925 | I29: 4858935879 | J29: 5544215542 | K29: 6227104294 | L29: 6907610481 | M29: 7585742423 | N29: 8261508410 | O29: 8934831559 | P29: 9605890388 | Q29: 1.027460796e+10 | R29: 1.094099244e+10 | S29: 1.160505199e+10 | T29: 1.226679471e+10 | U29: 1.29262287e+10 | V29: 1.358336202e+10 | W29: 1.423820269e+10 | X29: 1.489075873e+10 | Y29: 1.554103811e+10 | Z29: 1.618904878e+10 | AA29: 1.683473289e+10 | AB29: =IFERROR(AB42,">25") -> 1
A30: CASE 2 | B30: -5674741.875 | C30: =B30+C4 -> 696589906.4 | D30: 1396404237 | E30: 2093776806 | F30: 2788716141 | G30: 3481230741 | H30: 4171329071 | I30: 4859019572 | J30: 5544310650 | K30: 6227210685 | L30: 6907728027 | M30: 7585870995 | N30: 8261647882 | O30: 8934981806 | P30: 9606051287 | Q30: 1.027477939e+10 | R30: 1.094117428e+10 | S30: 1.160524412e+10 | T30: 1.226699701e+10 | U30: 1.292644106e+10 | V30: 1.358358431e+10 | W30: 1.423843481e+10 | X30: 1.489100057e+10 | Y30: 1.554128955e+10 | Z30: 1.618930971e+10 | AA30: 1.68350032e+10 | AB30: =IFERROR(AB43,">25") -> 1
A31: CASE 3 | B31: -5487427.688 | C31: =B31+C5 -> 696764847 | D31: 1396566945 | E31: 2093927423 | F31: 2788854806 | G31: 3481357589 | H31: 4171444239 | I31: 4859123193 | J31: 5544402856 | K31: 6227291608 | L31: 6907797795 | M31: 7585929737 | N31: 8261695724 | O31: 8935018873 | P31: 9606077702 | Q31: 1.027479527e+10 | R31: 1.094117976e+10 | S31: 1.16052393e+10 | T31: 1.226698203e+10 | U31: 1.292641602e+10 | V31: 1.358354933e+10 | W31: 1.423839001e+10 | X31: 1.489094605e+10 | Y31: 1.554122543e+10 | Z31: 1.61892361e+10 | AA31: 1.68349202e+10 | AB31: 1
A32: CASE 4 | B32: -5487427.688 | C32: =B32+C6 -> 696777220.6 | D32: 1396591551 | E32: 2093964120 | F32: 2788903455 | G32: 3481418055 | H32: 4171516386 | I32: 4859206886 | J32: 5544497964 | K32: 6227397999 | L32: 6907915341 | M32: 7586058309 | N32: 8261835196 | O32: 8935169120 | P32: 9606238602 | Q32: 1.02749667e+10 | R32: 1.094136159e+10 | S32: 1.160543143e+10 | T32: 1.226718432e+10 | U32: 1.292662837e+10 | V32: 1.358377163e+10 | W32: 1.423862213e+10 | X32: 1.489118788e+10 | Y32: 1.554147687e+10 | Z32: 1.618949703e+10 | AA32: 1.683519051e+10 | AB32: 1
A33: CASE 5 | B33: -6563130.75 | C33: =B33+C7 -> 695699019.2 | D33: 1395510880 | E33: 2092881007 | F33: 2787817930 | G33: 3480330143 | H33: 4170426116 | I33: 4858114285 | J33: 5543403058 | K33: 6226300815 | L33: 6906815904 | M33: 7584956647 | N33: 8260731333 | O33: 8934063081 | P33: 9605130412 | Q33: 1.027385639e+10 | R33: 1.094024918e+10 | S33: 1.160431693e+10 | T33: 1.226606778e+10 | U33: 1.292550979e+10 | V33: 1.358265104e+10 | W33: 1.423749956e+10 | X33: 1.489006335e+10 | Y33: 1.55403504e+10 | Z33: 1.618836864e+10 | AA33: 1.683406023e+10 | AB33: 1
A34: CASE 6 | B34: -6563130.75 | C34: =B34+C8 -> 695711392.8 | D34: 1395535485 | E34: 2092917704 | F34: 2787866579 | G34: 3480390609 | H34: 4170498262 | I34: 4858197978 | J34: 5543498166 | K34: 6226407206 | L34: 6906933450 | M34: 7585085219 | N34: 8260870805 | O34: 8934213328 | P34: 9605291311 | Q34: 1.027402781e+10 | R34: 1.094043102e+10 | S34: 1.160450906e+10 | T34: 1.226627008e+10 | U34: 1.292572215e+10 | V34: 1.358287333e+10 | W34: 1.423773168e+10 | X34: 1.489030519e+10 | Y34: 1.554060183e+10 | Z34: 1.618862957e+10 | AA34: 1.683433055e+10 | AB34: 1
A35: CASE 7 | B35: -6286977.675 | C35: =B35+C9 -> 695975172.3 | D35: 1395787033 | E35: 2093157161 | F35: 2788094083 | G35: 3480606296 | H35: 4170702269 | I35: 4858390438 | J35: 5543679211 | K35: 6226576968 | L35: 6907092057 | M35: 7585232800 | N35: 8261007486 | O35: 8934339234 | P35: 9605406565 | Q35: 1.027413254e+10 | R35: 1.094052533e+10 | S35: 1.160459309e+10 | T35: 1.226634393e+10 | U35: 1.292578594e+10 | V35: 1.358292719e+10 | W35: 1.423777571e+10 | X35: 1.48903395e+10 | Y35: 1.554062655e+10 | Z35: 1.618864479e+10 | AA35: 1.683433639e+10 | AB35: 1
A36: CASE 8 | B36: -6286977.675 | C36: =B36+C10 -> 695987545.8 | D36: 1395811638 | E36: 2093193857 | F36: 2788142733 | G36: 3480666762 | H36: 4170774415 | I36: 4858474131 | J36: 5543774319 | K36: 6226683359 | L36: 6907209603 | M36: 7585361372 | N36: 8261146958 | O36: 8934489482 | P36: 9605567464 | Q36: 1.027430397e+10 | R36: 1.094070717e+10 | S36: 1.160478522e+10 | T36: 1.226654623e+10 | U36: 1.29259983e+10 | V36: 1.358314949e+10 | W36: 1.423800783e+10 | X36: 1.489058134e+10 | Y36: 1.554087798e+10 | Z36: 1.618890572e+10 | AA36: 1.68346067e+10 | AB36: 1
A37: Special Cases
A38: Case 9 | B38: =B12 -> -3801600 | C38: =B38+C12 -> 698376595.9 | D38: 1398105582 | E38: 2095393903 | F38: 2790250074 | G38: 3482682577 | H38: 4172699870 | I38: 4860310376 | J38: 5545522493 | K38: 6228344586 | L38: 6908784994 | M38: 7586852025 | N38: 8262553958 | O38: 8935899045 | P38: 9606895506 | Q38: 1.027555153e+10 | R38: 1.09418753e+10 | S38: 1.160587493e+10 | T38: 1.226755853e+10 | U38: 1.292693419e+10 | V38: 1.358400996e+10 | W38: 1.423879386e+10 | X38: 1.489129388e+10 | Y38: 1.554151799e+10 | Z38: 1.618947414e+10 | AA38: 1.683517022e+10 | AB38: 1
